Workbook

Sheet Off.Cap.
A1: # Offered Capacity values (MW) for Daily bilateral coordinated auction for a date:
A2: 2017-10-03 | AA2: PL-CZ | AB2: PL-DE(50Hz) | AC2: DE(50Hz)-PL | AD2: CZ-PL | AE2: PL-SK | AF2: SK-PL | AG2: HR-SI | AH2: HU-AT | AI2: CZ-DE(TenneT) | AJ2: AT-CZ | AK2: AT-HU | AL2: CZ-AT | AM2: DE(50Hz)-CZ | AN2: HR-HU | AO2: CZ-DE(50Hz) | AP2: DE(TenneT)-CZ | AQ2: SI-HR | AR2: HU-HR
A3: profile | B3: H01 | C3: H02 | D3: H03 | E3: H04 | F3: H05 | G3: H06 | H3: H07 | I3: H08 | J3: H09 | K3: H10 | L3: H11 | M3: H12 | N3: H13 | O3: H14 | P3: H15 | Q3: H16 | R3: H17 | S3: H18 | T3: H19 | U3: H20 | V3: H21 | W3: H22 | X3: H23 | Y3: H24 | AA3: PSE>CEPS Yearly Auction Price | AB3: PSE>50Hz Yearly Auction Price | AC3: 50Hz>PSE Yearly Auction Price | AD3: CEPS>PSE Yearly Auction Price | AE3: PSE>SEPS Yearly Auction Price | AF3: SEPS>PSE Yearly Auction Price | AG3: HOPS>ELESE Daily Auction Price | AH3: MAVIR>APG Yearly Auction Price | AI3: CEPS>EON Yearly Auction Price | AJ3: APG>CEPS Yearly Auction Price | AK3: APG>MAVIR Yearly Auction Price | AL3: CEPS>APG Yearly Auction Price | AM3: 50Hz>CEPS Yearly Auction Price | AN3: HOPS>MAVIR Yearly Auction Price | AO3: CEPS-50Hz Yearly Auction Price | AP3: EON>CEPS Yearly Auction Price | AQ3: ELES>HOPS Yearly Auction Price | AR3: MAVIR>HOPS Yearly Auction Price
A4: AT-CZ | B4: 690 | C4: 690 | D4: 690 | E4: 690 | F4: 690 | G4: 690 | H4: 690 | I4: 690 | J4: 690 | K4: 690 | L4: 690 | M4: 690 | N4: 690 | O4: 690 | P4: 690 | Q4: 690 | R4: 690 | S4: 690 | T4: 690 | U4: 690 | V4: 690 | W4: 690 | X4: 690 | Y4: 690 | AA4: =HLOOKUP(AA2,$B$24:$Q$25,2,0) -> 900 | AD4: 600 | AE4: 550 | AF4: 500 | AG4: 1827 | AH4: 975 | AJ4: 615 | AK4: 225 | AL4: 785 | AN4: 1231 | AQ4: 1173 | AR4: 969
A5: AT-HU | B5: 222 | C5: 222 | D5: 222 | E5: 222 | F5: 222 | G5: 222 | H5: 222 | I5: 222 | J5: 222 | K5: 222 | L5: 222 | M5: 222 | N5: 222 | O5: 222 | P5: 222 | Q5: 222 | R5: 222 | S5: 222 | T5: 222 | U5: 222 | V5: 222 | W5: 222 | X5: 222 | Y5: 222 | AA5: =HLOOKUP(AA2,$B$24:$Q$25,2,0) -> 900
A6: CZ-AT | B6: 960 | C6: 960 | D6: 960 | E6: 960 | F6: 960 | G6: 910 | H6: 860 | I6: 810 | J6: 810 | K6: 810 | L6: 810 | M6: 810 | N6: 810 | O6: 810 | P6: 810 | Q6: 810 | R6: 810 | S6: 810 | T6: 810 | U6: 810 | V6: 860 | W6: 860 | X6: 860 | Y6: 860
A7: CZ-PL | B7: 600 | C7: 600 | D7: 600 | E7: 600 | F7: 600 | G7: 600 | H7: 600 | I7: 600 | J7: 600 | K7: 600 | L7: 600 | M7: 600 | N7: 600 | O7: 600 | P7: 600 | Q7: 600 | R7: 600 | S7: 600 | T7: 600 | U7: 600 | V7: 600 | W7: 600 | X7: 600 | Y7: 600
A8: CZ-DE(TenneT) | B8: 1462 | C8: 1462 | D8: 1462 | E8: 1462 | F8: 1462 | G8: 1462 | H8: 1462 | I8: 1462 | J8: 1477 | K8: 1477 | L8: 1477 | M8: 1477 | N8: 1477 | O8: 1477 | P8: 1477 | Q8: 1477 | R8: 1477 | S8: 1477 | T8: 1477 | U8: 1477 | V8: 1462 | W8: 1462 | X8: 1462 | Y8: 1462 | AA8: PL-CZ | AB8: PL-DE(50Hz) | AC8: DE(50Hz)-PL | AD8: CZ-PL | AE8: PL-SK | AF8: SK-PL | AG8: HR-SI | AH8: HU-AT | AI8: CZ-DE(TenneT) | AJ8: AT-CZ | AK8: AT-HU | AL8: CZ-AT | AM8: DE(50Hz)-CZ | AN8: HR-HU | AO8: CZ-DE(50Hz) | AP8: DE(TenneT)-CZ | AQ8: SI-HR | AR8: HU-HR
A9: SI-HR | B9: 1183 | C9: 1183 | D9: 1183 | E9: 1183 | F9: 1183 | G9: 1184 | H9: 1184 | I9: 1184 | J9: 1184 | K9: 1184 | L9: 1059 | M9: 1059 | N9: 1059 | O9: 1059 | P9: 1059 | Q9: 1059 | R9: 1059 | S9: 1059 | T9: 1059 | U9: 1059 | V9: 1059 | W9: 1058 | X9: 1183 | Y9: 1183 | AA9: PSE>CEPS Yearly Auction Price | AB9: PSE>50Hz Yearly Auction Price | AC9: 50Hz>PSE Yearly Auction Price | AD9: CEPS>PSE Yearly Auction Price | AE9: PSE>SEPS Yearly Auction Price | AF9: SEPS>PSE Yearly Auction Price | AG9: HOPS>ELESE Daily Auction Price | AH9: MAVIR>APG Yearly Auction Price | AI9: CEPS>EON Yearly Auction Price | AJ9: APG>CEPS Yearly Auction Price | AK9: APG>MAVIR Yearly Auction Price | AL9: CEPS>APG Yearly Auction Price | AM9: 50Hz>CEPS Yearly Auction Price | AN9: HOPS>MAVIR Yearly Auction Price | AO9: CEPS-50Hz Yearly Auction Price | AP9: EON>CEPS Yearly Auction Price | AQ9: ELES>HOPS Yearly Auction Price | AR9: MAVIR>HOPS Yearly Auction Price
A10: HR-SI | B10: 1817 | C10: 1817 | D10: 1817 | E10: 1817 | F10: 1817 | G10: 1816 | H10: 1816 | I10: 1816 | J10: 1816 | K10: 1816 | L10: 1941 | M10: 1941 | N10: 1941 | O10: 1941 | P10: 1941 | Q10: 1941 | R10: 1941 | S10: 1941 | T10: 1941 | U10: 1941 | V10: 1941 | W10: 1942 | X10: 1817 | Y10: 1817 | AA10: =HLOOKUP(AA$2,CHOOSE({1;2},$B$24:$Q$24,$B25:$Q25),2,0) -> 900 | AB10: =HLOOKUP(AB$2,CHOOSE({1;2},$B$24:$Q$24,$B25:$Q25),2,0) ->  | AC10: =HLOOKUP(AC$2,CHOOSE({1;2},$B$24:$Q$24,$B25:$Q25),2,0) ->  | AD10: =HLOOKUP(AD$2,CHOOSE({1;2},$B$24:$Q$24,$B25:$Q25),2,0) -> 600 | AE10: =HLOOKUP(AE$2,CHOOSE({1;2},$B$24:$Q$24,$B25:$Q25),2,0) -> 550 | AF10: =HLOOKUP(AF$2,CHOOSE({1;2},$B$24:$Q$24,$B25:$Q25),2,0) -> 500 | AG10: =HLOOKUP(AG$2,CHOOSE({1;2},$B$24:$Q$24,$B25:$Q25),2,0) -> 1827 | AH10: =HLOOKUP(AH$2,CHOOSE({1;2},$B$24:$Q$24,$B25:$Q25),2,0) -> 975 | AI10: =HLOOKUP(AI$2,CHOOSE({1;2},$B$24:$Q$24,$B25:$Q25),2,0) ->  | AJ10: =HLOOKUP(AJ$2,CHOOSE({1;2},$B$24:$Q$24,$B25:$Q25),2,0) -> 615 | AK10: =HLOOKUP(AK$2,CHOOSE({1;2},$B$24:$Q$24,$B25:$Q25),2,0) -> 225 | AL10: =HLOOKUP(AL$2,CHOOSE({1;2},$B$24:$Q$24,$B25:$Q25),2,0) -> 785 | AM10: =HLOOKUP(AM$2,CHOOSE({1;2},$B$24:$Q$24,$B25:$Q25),2,0) ->  | AN10: =HLOOKUP(AN$2,CHOOSE({1;2},$B$24:$Q$24,$B25:$Q25),2,0) -> 1231 | AO10: =HLOOKUP(AO$2,CHOOSE({1;2},$B$24:$Q$24,$B25:$Q25),2,0) ->  | AP10: =HLOOKUP(AP$2,CHOOSE({1;2},$B$24:$Q$24,$B25:$Q25),2,0) ->  | AQ10: =HLOOKUP(AQ$2,CHOOSE({1;2},$B$24:$Q$24,$B25:$Q25),2,0) -> 1173 | AR10: =HLOOKUP(AR$2,CHOOSE({1;2},$B$24:$Q$24,$B25:$Q25),2,0) -> 969 | AS10: H01
A11: HR-HU | B11: 1118 | C11: 1118 | D11: 1118 | E11: 1118 | F11: 1118 | G11: 1118 | H11: 1118 | I11: 1118 | J11: 1118 | K11: 1118 | L11: 993 | M11: 993 | N11: 993 | O11: 993 | P11: 993 | Q11: 993 | R11: 993 | S11: 993 | T11: 993 | U11: 993 | V11: 993 | W11: 993 | X11: 1118 | Y11: 1118 | AA11: =HLOOKUP(AA$2,CHOOSE({1;2},$B$24:$Q$24,$B26:$Q26),2,0) -> 900 | AB11: =HLOOKUP(AB$2,CHOOSE({1;2},$B$24:$Q$24,$B26:$Q26),2,0) ->  | AC11: =HLOOKUP(AC$2,CHOOSE({1;2},$B$24:$Q$24,$B26:$Q26),2,0) ->  | AD11: =HLOOKUP(AD$2,CHOOSE({1;2},$B$24:$Q$24,$B26:$Q26),2,0) -> 600 | AE11: =HLOOKUP(AE$2,CHOOSE({1;2},$B$24:$Q$24,$B26:$Q26),2,0) -> 550 | AF11: =HLOOKUP(AF$2,CHOOSE({1;2},$B$24:$Q$24,$B26:$Q26),2,0) -> 500 | AG11: =HLOOKUP(AG$2,CHOOSE({1;2},$B$24:$Q$24,$B26:$Q26),2,0) -> 1826 | AH11: =HLOOKUP(AH$2,CHOOSE({1;2},$B$24:$Q$24,$B26:$Q26),2,0) -> 975 | AI11: =HLOOKUP(AI$2,CHOOSE({1;2},$B$24:$Q$24,$B26:$Q26),2,0) ->  | AJ11: =HLOOKUP(AJ$2,CHOOSE({1;2},$B$24:$Q$24,$B26:$Q26),2,0) -> 615 | AK11: =HLOOKUP(AK$2,CHOOSE({1;2},$B$24:$Q$24,$B26:$Q26),2,0) -> 225 | AL11: =HLOOKUP(AL$2,CHOOSE({1;2},$B$24:$Q$24,$B26:$Q26),2,0) -> 785 | AM11: =HLOOKUP(AM$2,CHOOSE({1;2},$B$24:$Q$24,$B26:$Q26),2,0) ->  | AN11: =HLOOKUP(AN$2,CHOOSE({1;2},$B$24:$Q$24,$B26:$Q26),2,0) -> 1229 | AO11: =HLOOKUP(AO$2,CHOOSE({1;2},$B$24:$Q$24,$B26:$Q26),2,0) ->  | AP11: =HLOOKUP(AP$2,CHOOSE({1;2},$B$24:$Q$24,$B26:$Q26),2,0) ->  | AQ11: =HLOOKUP(AQ$2,CHOOSE({1;2},$B$24:$Q$24,$B26:$Q26),2,0) -> 1174 | AR11: =HLOOKUP(AR$2,CHOOSE({1;2},$B$24:$Q$24,$B26:$Q26),2,0) -> 971 | AS11: H02
A12: HU-AT | B12: 878 | C12: 878 | D12: 878 | E12: 878 | F12: 878 | G12: 878 | H12: 878 | I12: 878 | J12: 878 | K12: 878 | L12: 878 | M12: 878 | N12: 878 | O12: 878 | P12: 878 | Q12: 878 | R12: 878 | S12: 878 | T12: 878 | U12: 878 | V12: 878 | W12: 878 | X12: 878 | Y12: 878 | AA12: =HLOOKUP(AA$2,CHOOSE({1;2},$B$24:$Q$24,$B27:$Q27),2,0) -> 900 | AB12: =HLOOKUP(AB$2,CHOOSE({1;2},$B$24:$Q$24,$B27:$Q27),2,0) ->  | AC12: =HLOOKUP(AC$2,CHOOSE({1;2},$B$24:$Q$24,$B27:$Q27),2,0) ->  | AD12: =HLOOKUP(AD$2,CHOOSE({1;2},$B$24:$Q$24,$B27:$Q27),2,0) -> 600 | AE12: =HLOOKUP(AE$2,CHOOSE({1;2},$B$24:$Q$24,$B27:$Q27),2,0) -> 550 | AF12: =HLOOKUP(AF$2,CHOOSE({1;2},$B$24:$Q$24,$B27:$Q27),2,0) -> 500 | AG12: =HLOOKUP(AG$2,CHOOSE({1;2},$B$24:$Q$24,$B27:$Q27),2,0) -> 1826 | AH12: =HLOOKUP(AH$2,CHOOSE({1;2},$B$24:$Q$24,$B27:$Q27),2,0) -> 975 | AI12: =HLOOKUP(AI$2,CHOOSE({1;2},$B$24:$Q$24,$B27:$Q27),2,0) ->  | AJ12: =HLOOKUP(AJ$2,CHOOSE({1;2},$B$24:$Q$24,$B27:$Q27),2,0) -> 615 | AK12: =HLOOKUP(AK$2,CHOOSE({1;2},$B$24:$Q$24,$B27:$Q27),2,0) -> 225 | AL12: =HLOOKUP(AL$2,CHOOSE({1;2},$B$24:$Q$24,$B27:$Q27),2,0) -> 785 | AM12: =HLOOKUP(AM$2,CHOOSE({1;2},$B$24:$Q$24,$B27:$Q27),2,0) ->  | AN12: =HLOOKUP(AN$2,CHOOSE({1;2},$B$24:$Q$24,$B27:$Q27),2,0) -> 1228 | AO12: =HLOOKUP(AO$2,CHOOSE({1;2},$B$24:$Q$24,$B27:$Q27),2,0) ->  | AP12: =HLOOKUP(AP$2,CHOOSE({1;2},$B$24:$Q$24,$B27:$Q27),2,0) ->  | AQ12: =HLOOKUP(AQ$2,CHOOSE({1;2},$B$24:$Q$24,$B27:$Q27),2,0) -> 1174 | AR12: =HLOOKUP(AR$2,CHOOSE({1;2},$B$24:$Q$24,$B27:$Q27),2,0) -> 972 | AS12: H03
A13: HU-HR | B13: 1082 | C13: 1082 | D13: 1082 | E13: 1082 | F13: 1082 | G13: 1082 | H13: 1082 | I13: 1082 | J13: 1082 | K13: 1082 | L13: 1207 | M13: 1207 | N13: 1207 | O13: 1207 | P13: 1207 | Q13: 1207 | R13: 1207 | S13: 1207 | T13: 1207 | U13: 1207 | V13: 1207 | W13: 1207 | X13: 1082 | Y13: 1082 | AA13: =HLOOKUP(AA$2,CHOOSE({1;2},$B$24:$Q$24,$B28:$Q28),2,0) -> 900 | AB13: =HLOOKUP(AB$2,CHOOSE({1;2},$B$24:$Q$24,$B28:$Q28),2,0) ->  | AC13: =HLOOKUP(AC$2,CHOOSE({1;2},$B$24:$Q$24,$B28:$Q28),2,0) ->  | AD13: =HLOOKUP(AD$2,CHOOSE({1;2},$B$24:$Q$24,$B28:$Q28),2,0) -> 600 | AE13: =HLOOKUP(AE$2,CHOOSE({1;2},$B$24:$Q$24,$B28:$Q28),2,0) -> 550 | AF13: =HLOOKUP(AF$2,CHOOSE({1;2},$B$24:$Q$24,$B28:$Q28),2,0) -> 500 | AG13: =HLOOKUP(AG$2,CHOOSE({1;2},$B$24:$Q$24,$B28:$Q28),2,0) -> 1816 | AH13: =HLOOKUP(AH$2,CHOOSE({1;2},$B$24:$Q$24,$B28:$Q28),2,0) -> 975 | AI13: =HLOOKUP(AI$2,CHOOSE({1;2},$B$24:$Q$24,$B28:$Q28),2,0) ->  | AJ13: =HLOOKUP(AJ$2,CHOOSE({1;2},$B$24:$Q$24,$B28:$Q28),2,0) -> 615 | AK13: =HLOOKUP(AK$2,CHOOSE({1;2},$B$24:$Q$24,$B28:$Q28),2,0) -> 225 | AL13: =HLOOKUP(AL$2,CHOOSE({1;2},$B$24:$Q$24,$B28:$Q28),2,0) -> 785 | AM13: =HLOOKUP(AM$2,CHOOSE({1;2},$B$24:$Q$24,$B28:$Q28),2,0) ->  | AN13: =HLOOKUP(AN$2,CHOOSE({1;2},$B$24:$Q$24,$B28:$Q28),2,0) -> 1228 | AO13: =HLOOKUP(AO$2,CHOOSE({1;2},$B$24:$Q$24,$B28:$Q28),2,0) ->  | AP13: =HLOOKUP(AP$2,CHOOSE({1;2},$B$24:$Q$24,$B28:$Q28),2,0) ->  | AQ13: =HLOOKUP(AQ$2,CHOOSE({1;2},$B$24:$Q$24,$B28:$Q28),2,0) -> 1184 | AR13: =HLOOKUP(AR$2,CHOOSE({1;2},$B$24:$Q$24,$B28:$Q28),2,0) -> 972 | AS13: H04
A14: PL-CZ | B14: 900 | C14: 900 | D14: 900 | E14: 900 | F14: 900 | G14: 900 | H14: 900 | I14: 900 | J14: 900 | K14: 900 | L14: 900 | M14: 900 | N14: 900 | O14: 900 | P14: 900 | Q14: 900 | R14: 900 | S14: 900 | T14: 900 | U14: 900 | V14: 900 | W14: 900 | X14: 900 | Y14: 900 | AA14: =HLOOKUP(AA$2,CHOOSE({1;2},$B$24:$Q$24,$B29:$Q29),2,0) -> 900 | AB14: =HLOOKUP(AB$2,CHOOSE({1;2},$B$24:$Q$24,$B29:$Q29),2,0) ->  | AC14: =HLOOKUP(AC$2,CHOOSE({1;2},$B$24:$Q$24,$B29:$Q29),2,0) ->  | AD14: =HLOOKUP(AD$2,CHOOSE({1;2},$B$24:$Q$24,$B29:$Q29),2,0) -> 600 | AE14: =HLOOKUP(AE$2,CHOOSE({1;2},$B$24:$Q$24,$B29:$Q29),2,0) -> 550 | AF14: =HLOOKUP(AF$2,CHOOSE({1;2},$B$24:$Q$24,$B29:$Q29),2,0) -> 500 | AG14: =HLOOKUP(AG$2,CHOOSE({1;2},$B$24:$Q$24,$B29:$Q29),2,0) -> 1815 | AH14: =HLOOKUP(AH$2,CHOOSE({1;2},$B$24:$Q$24,$B29:$Q29),2,0) -> 975 | AI14: =HLOOKUP(AI$2,CHOOSE({1;2},$B$24:$Q$24,$B29:$Q29),2,0) ->  | AJ14: =HLOOKUP(AJ$2,CHOOSE({1;2},$B$24:$Q$24,$B29:$Q29),2,0) -> 615 | AK14: =HLOOKUP(AK$2,CHOOSE({1;2},$B$24:$Q$24,$B29:$Q29),2,0) -> 225 | AL14: =HLOOKUP(AL$2,CHOOSE({1;2},$B$24:$Q$24,$B29:$Q29),2,0) -> 785 | AM14: =HLOOKUP(AM$2,CHOOSE({1;2},$B$24:$Q$24,$B29:$Q29),2,0) ->  | AN14: =HLOOKUP(AN$2,CHOOSE({1;2},$B$24:$Q$24,$B29:$Q29),2,0) -> 1229 | AO14: =HLOOKUP(AO$2,CHOOSE({1;2},$B$24:$Q$24,$B29:$Q29),2,0) ->  | AP14: =HLOOKUP(AP$2,CHOOSE({1;2},$B$24:$Q$24,$B29:$Q29),2,0) ->  | AQ14: =HLOOKUP(AQ$2,CHOOSE({1;2},$B$24:$Q$24,$B29:$Q29),2,0) -> 1185 | AR14: =HLOOKUP(AR$2,CHOOSE({1;2},$B$24:$Q$24,$B29:$Q29),2,0) -> 971 | AS14: H05
A15: DE(50Hz)+CZ+SK-PL | B15: 0 | C15: 0 | D15: 0 | E15: 0 | F15: 0 | G15: 0 | H15: 0 | I15: 0 | J15: 0 | K15: 0 | L15: 0 | M15: 0 | N15: 0 | O15: 0 | P15: 0 | Q15: 0 | R15: 0 | S15: 0 | T15: 0 | U15: 0 | V15: 0 | W15: 0 | X15: 0 | Y15: 0 | AA15: =HLOOKUP(AA$2,CHOOSE({1;2},$B$24:$Q$24,$B30:$Q30),2,0) -> 900 | AB15: =HLOOKUP(AB$2,CHOOSE({1;2},$B$24:$Q$24,$B30:$Q30),2,0) ->  | AC15: =HLOOKUP(AC$2,CHOOSE({1;2},$B$24:$Q$24,$B30:$Q30),2,0) ->  | AD15: =HLOOKUP(AD$2,CHOOSE({1;2},$B$24:$Q$24,$B30:$Q30),2,0) -> 600 | AE15: =HLOOKUP(AE$2,CHOOSE({1;2},$B$24:$Q$24,$B30:$Q30),2,0) -> 550 | AF15: =HLOOKUP(AF$2,CHOOSE({1;2},$B$24:$Q$24,$B30:$Q30),2,0) -> 500 | AG15: =HLOOKUP(AG$2,CHOOSE({1;2},$B$24:$Q$24,$B30:$Q30),2,0) -> 1819 | AH15: =HLOOKUP(AH$2,CHOOSE({1;2},$B$24:$Q$24,$B30:$Q30),2,0) -> 975 | AI15: =HLOOKUP(AI$2,CHOOSE({1;2},$B$24:$Q$24,$B30:$Q30),2,0) ->  | AJ15: =HLOOKUP(AJ$2,CHOOSE({1;2},$B$24:$Q$24,$B30:$Q30),2,0) -> 615 | AK15: =HLOOKUP(AK$2,CHOOSE({1;2},$B$24:$Q$24,$B30:$Q30),2,0) -> 225 | AL15: =HLOOKUP(AL$2,CHOOSE({1;2},$B$24:$Q$24,$B30:$Q30),2,0) -> 785 | AM15: =HLOOKUP(AM$2,CHOOSE({1;2},$B$24:$Q$24,$B30:$Q30),2,0) ->  | AN15: =HLOOKUP(AN$2,CHOOSE({1;2},$B$24:$Q$24,$B30:$Q30),2,0) -> 1232 | AO15: =HLOOKUP(AO$2,CHOOSE({1;2},$B$24:$Q$24,$B30:$Q30),2,0) ->  | AP15: =HLOOKUP(AP$2,CHOOSE({1;2},$B$24:$Q$24,$B30:$Q30),2,0) ->  | AQ15: =HLOOKUP(AQ$2,CHOOSE({1;2},$B$24:$Q$24,$B30:$Q30),2,0) -> 1181 | AR15: =HLOOKUP(AR$2,CHOOSE({1;2},$B$24:$Q$24,$B30:$Q30),2,0) -> 968 | AS15: H06
A16: PL-DE(50Hz)+CZ+SK | B16: 900 | C16: 900 | D16: 900 | E16: 900 | F16: 900 | G16: 900 | H16: 450 | I16: 0 | J16: 0 | K16: 0 | L16: 0 | M16: 0 | N16: 0 | O16: 0 | P16: 0 | Q16: 0 | R16: 0 | S16: 0 | T16: 0 | U16: 0 | V16: 0 | W16: 39 | X16: 900 | Y16: 900 | AA16: =HLOOKUP(AA$2,CHOOSE({1;2},$B$24:$Q$24,$B31:$Q31),2,0) -> 900 | AB16: =HLOOKUP(AB$2,CHOOSE({1;2},$B$24:$Q$24,$B31:$Q31),2,0) ->  | AC16: =HLOOKUP(AC$2,CHOOSE({1;2},$B$24:$Q$24,$B31:$Q31),2,0) ->  | AD16: =HLOOKUP(AD$2,CHOOSE({1;2},$B$24:$Q$24,$B31:$Q31),2,0) -> 600 | AE16: =HLOOKUP(AE$2,CHOOSE({1;2},$B$24:$Q$24,$B31:$Q31),2,0) -> 550 | AF16: =HLOOKUP(AF$2,CHOOSE({1;2},$B$24:$Q$24,$B31:$Q31),2,0) -> 500 | AG16: =HLOOKUP(AG$2,CHOOSE({1;2},$B$24:$Q$24,$B31:$Q31),2,0) -> 1822 | AH16: =HLOOKUP(AH$2,CHOOSE({1;2},$B$24:$Q$24,$B31:$Q31),2,0) -> 975 | AI16: =HLOOKUP(AI$2,CHOOSE({1;2},$B$24:$Q$24,$B31:$Q31),2,0) ->  | AJ16: =HLOOKUP(AJ$2,CHOOSE({1;2},$B$24:$Q$24,$B31:$Q31),2,0) -> 610 | AK16: =HLOOKUP(AK$2,CHOOSE({1;2},$B$24:$Q$24,$B31:$Q31),2,0) -> 225 | AL16: =HLOOKUP(AL$2,CHOOSE({1;2},$B$24:$Q$24,$B31:$Q31),2,0) -> 790 | AM16: =HLOOKUP(AM$2,CHOOSE({1;2},$B$24:$Q$24,$B31:$Q31),2,0) ->  | AN16: =HLOOKUP(AN$2,CHOOSE({1;2},$B$24:$Q$24,$B31:$Q31),2,0) -> 1159 | AO16: =HLOOKUP(AO$2,CHOOSE({1;2},$B$24:$Q$24,$B31:$Q31),2,0) ->  | AP16: =HLOOKUP(AP$2,CHOOSE({1;2},$B$24:$Q$24,$B31:$Q31),2,0) ->  | AQ16: =HLOOKUP(AQ$2,CHOOSE({1;2},$B$24:$Q$24,$B31:$Q31),2,0) -> 1178 | AR16: =HLOOKUP(AR$2,CHOOSE({1;2},$B$24:$Q$24,$B31:$Q31),2,0) -> 1041 | AS16: H07
A17: PL-SK | B17: 550 | C17: 550 | D17: 550 | E17: 550 | F17: 550 | G17: 550 | H17: 550 | I17: 550 | J17: 550 | K17: 550 | L17: 550 | M17: 550 | N17: 550 | O17: 550 | P17: 550 | Q17: 550 | R17: 550 | S17: 550 | T17: 550 | U17: 550 | V17: 550 | W17: 550 | X17: 550 | Y17: 550 | AA17: =HLOOKUP(AA$2,CHOOSE({1;2},$B$24:$Q$24,$B32:$Q32),2,0) -> 900 | AB17: =HLOOKUP(AB$2,CHOOSE({1;2},$B$24:$Q$24,$B32:$Q32),2,0) ->  | AC17: =HLOOKUP(AC$2,CHOOSE({1;2},$B$24:$Q$24,$B32:$Q32),2,0) ->  | AD17: =HLOOKUP(AD$2,CHOOSE({1;2},$B$24:$Q$24,$B32:$Q32),2,0) -> 600 | AE17: =HLOOKUP(AE$2,CHOOSE({1;2},$B$24:$Q$24,$B32:$Q32),2,0) -> 550 | AF17: =HLOOKUP(AF$2,CHOOSE({1;2},$B$24:$Q$24,$B32:$Q32),2,0) -> 500 | AG17: =HLOOKUP(AG$2,CHOOSE({1;2},$B$24:$Q$24,$B32:$Q32),2,0) -> 1822 | AH17: =HLOOKUP(AH$2,CHOOSE({1;2},$B$24:$Q$24,$B32:$Q32),2,0) -> 975 | AI17: =HLOOKUP(AI$2,CHOOSE({1;2},$B$24:$Q$24,$B32:$Q32),2,0) ->  | AJ17: =HLOOKUP(AJ$2,CHOOSE({1;2},$B$24:$Q$24,$B32:$Q32),2,0) -> 610 | AK17: =HLOOKUP(AK$2,CHOOSE({1;2},$B$24:$Q$24,$B32:$Q32),2,0) -> 225 | AL17: =HLOOKUP(AL$2,CHOOSE({1;2},$B$24:$Q$24,$B32:$Q32),2,0) -> 790 | AM17: =HLOOKUP(AM$2,CHOOSE({1;2},$B$24:$Q$24,$B32:$Q32),2,0) ->  | AN17: =HLOOKUP(AN$2,CHOOSE({1;2},$B$24:$Q$24,$B32:$Q32),2,0) -> 1166 | AO17: =HLOOKUP(AO$2,CHOOSE({1;2},$B$24:$Q$24,$B32:$Q32),2,0) ->  | AP17: =HLOOKUP(AP$2,CHOOSE({1;2},$B$24:$Q$24,$B32:$Q32),2,0) ->  | AQ17: =HLOOKUP(AQ$2,CHOOSE({1;2},$B$24:$Q$24,$B32:$Q32),2,0) -> 1178 | AR17: =HLOOKUP(AR$2,CHOOSE({1;2},$B$24:$Q$24,$B32:$Q32),2,0) -> 1034 | AS17: H08
A18: SK-PL | B18: 500 | C18: 500 | D18: 500 | E18: 500 | F18: 500 | G18: 500 | H18: 500 | I18: 500 | J18: 500 | K18: 500 | L18: 500 | M18: 500 | N18: 500 | O18: 500 | P18: 500 | Q18: 500 | R18: 500 | S18: 500 | T18: 500 | U18: 500 | V18: 500 | W18: 500 | X18: 500 | Y18: 500 | AA18: =HLOOKUP(AA$2,CHOOSE({1;2},$B$24:$Q$24,$B33:$Q33),2,0) -> 900 | AB18: =HLOOKUP(AB$2,CHOOSE({1;2},$B$24:$Q$24,$B33:$Q33),2,0) ->  | AC18: =HLOOKUP(AC$2,CHOOSE({1;2},$B$24:$Q$24,$B33:$Q33),2,0) ->  | AD18: =HLOOKUP(AD$2,CHOOSE({1;2},$B$24:$Q$24,$B33:$Q33),2,0) -> 600 | AE18: =HLOOKUP(AE$2,CHOOSE({1;2},$B$24:$Q$24,$B33:$Q33),2,0) -> 550 | AF18: =HLOOKUP(AF$2,CHOOSE({1;2},$B$24:$Q$24,$B33:$Q33),2,0) -> 500 | AG18: =HLOOKUP(AG$2,CHOOSE({1;2},$B$24:$Q$24,$B33:$Q33),2,0) -> 1933 | AH18: =HLOOKUP(AH$2,CHOOSE({1;2},$B$24:$Q$24,$B33:$Q33),2,0) -> 975 | AI18: =HLOOKUP(AI$2,CHOOSE({1;2},$B$24:$Q$24,$B33:$Q33),2,0) ->  | AJ18: =HLOOKUP(AJ$2,CHOOSE({1;2},$B$24:$Q$24,$B33:$Q33),2,0) -> 610 | AK18: =HLOOKUP(AK$2,CHOOSE({1;2},$B$24:$Q$24,$B33:$Q33),2,0) -> 225 | AL18: =HLOOKUP(AL$2,CHOOSE({1;2},$B$24:$Q$24,$B33:$Q33),2,0) -> 790 | AM18: =HLOOKUP(AM$2,CHOOSE({1;2},$B$24:$Q$24,$B33:$Q33),2,0) ->  | AN18: =HLOOKUP(AN$2,CHOOSE({1;2},$B$24:$Q$24,$B33:$Q33),2,0) -> 1040 | AO18: =HLOOKUP(AO$2,CHOOSE({1;2},$B$24:$Q$24,$B33:$Q33),2,0) ->  | AP18: =HLOOKUP(AP$2,CHOOSE({1;2},$B$24:$Q$24,$B33:$Q33),2,0) ->  | AQ18: =HLOOKUP(AQ$2,CHOOSE({1;2},$B$24:$Q$24,$B33:$Q33),2,0) -> 1067 | AR18: =HLOOKUP(AR$2,CHOOSE({1;2},$B$24:$Q$24,$B33:$Q33),2,0) -> 1160 | AS18: H09
A19: DE(TenneT)-CZ | B19: 238 | C19: 238 | D19: 238 | E19: 238 | F19: 238 | G19: 238 | H19: 238 | I19: 438 | J19: 423 | K19: 373 | L19: 223 | M19: 223 | N19: 223 | O19: 223 | P19: 223 | Q19: 223 | R19: 223 | S19: 223 | T19: 223 | U19: 223 | V19: 238 | W19: 238 | X19: 238 | Y19: 238 | AA19: =HLOOKUP(AA$2,CHOOSE({1;2},$B$24:$Q$24,$B34:$Q34),2,0) -> 900 | AB19: =HLOOKUP(AB$2,CHOOSE({1;2},$B$24:$Q$24,$B34:$Q34),2,0) ->  | AC19: =HLOOKUP(AC$2,CHOOSE({1;2},$B$24:$Q$24,$B34:$Q34),2,0) ->  | AD19: =HLOOKUP(AD$2,CHOOSE({1;2},$B$24:$Q$24,$B34:$Q34),2,0) -> 600 | AE19: =HLOOKUP(AE$2,CHOOSE({1;2},$B$24:$Q$24,$B34:$Q34),2,0) -> 550 | AF19: =HLOOKUP(AF$2,CHOOSE({1;2},$B$24:$Q$24,$B34:$Q34),2,0) -> 500 | AG19: =HLOOKUP(AG$2,CHOOSE({1;2},$B$24:$Q$24,$B34:$Q34),2,0) -> 1932 | AH19: =HLOOKUP(AH$2,CHOOSE({1;2},$B$24:$Q$24,$B34:$Q34),2,0) -> 975 | AI19: =HLOOKUP(AI$2,CHOOSE({1;2},$B$24:$Q$24,$B34:$Q34),2,0) ->  | AJ19: =HLOOKUP(AJ$2,CHOOSE({1;2},$B$24:$Q$24,$B34:$Q34),2,0) -> 610 | AK19: =HLOOKUP(AK$2,CHOOSE({1;2},$B$24:$Q$24,$B34:$Q34),2,0) -> 225 | AL19: =HLOOKUP(AL$2,CHOOSE({1;2},$B$24:$Q$24,$B34:$Q34),2,0) -> 790 | AM19: =HLOOKUP(AM$2,CHOOSE({1;2},$B$24:$Q$24,$B34:$Q34),2,0) ->  | AN19: =HLOOKUP(AN$2,CHOOSE({1;2},$B$24:$Q$24,$B34:$Q34),2,0) -> 1040 | AO19: =HLOOKUP(AO$2,CHOOSE({1;2},$B$24:$Q$24,$B34:$Q34),2,0) ->  | AP19: =HLOOKUP(AP$2,CHOOSE({1;2},$B$24:$Q$24,$B34:$Q34),2,0) ->  | AQ19: =HLOOKUP(AQ$2,CHOOSE({1;2},$B$24:$Q$24,$B34:$Q34),2,0) -> 1068 | AR19: =HLOOKUP(AR$2,CHOOSE({1;2},$B$24:$Q$24,$B34:$Q34),2,0) -> 1160 | AS19: H10
A20: PL+CZ-DE(50Hz) | B20: 1451 | C20: 1451 | D20: 1451 | E20: 1451 | F20: 1451 | G20: 1451 | H20: 1451 | I20: 1451 | J20: 1451 | K20: 1451 | L20: 1451 | M20: 1451 | N20: 1451 | O20: 1451 | P20: 1451 | Q20: 1451 | R20: 1451 | S20: 1451 | T20: 1451 | U20: 1451 | V20: 1451 | W20: 1451 | X20: 1451 | Y20: 1451 | AA20: =HLOOKUP(AA$2,CHOOSE({1;2},$B$24:$Q$24,$B35:$Q35),2,0) -> 900 | AB20: =HLOOKUP(AB$2,CHOOSE({1;2},$B$24:$Q$24,$B35:$Q35),2,0) ->  | AC20: =HLOOKUP(AC$2,CHOOSE({1;2},$B$24:$Q$24,$B35:$Q35),2,0) ->  | AD20: =HLOOKUP(AD$2,CHOOSE({1;2},$B$24:$Q$24,$B35:$Q35),2,0) -> 600 | AE20: =HLOOKUP(AE$2,CHOOSE({1;2},$B$24:$Q$24,$B35:$Q35),2,0) -> 550 | AF20: =HLOOKUP(AF$2,CHOOSE({1;2},$B$24:$Q$24,$B35:$Q35),2,0) -> 500 | AG20: =HLOOKUP(AG$2,CHOOSE({1;2},$B$24:$Q$24,$B35:$Q35),2,0) -> 1932 | AH20: =HLOOKUP(AH$2,CHOOSE({1;2},$B$24:$Q$24,$B35:$Q35),2,0) -> 975 | AI20: =HLOOKUP(AI$2,CHOOSE({1;2},$B$24:$Q$24,$B35:$Q35),2,0) ->  | AJ20: =HLOOKUP(AJ$2,CHOOSE({1;2},$B$24:$Q$24,$B35:$Q35),2,0) -> 610 | AK20: =HLOOKUP(AK$2,CHOOSE({1;2},$B$24:$Q$24,$B35:$Q35),2,0) -> 225 | AL20: =HLOOKUP(AL$2,CHOOSE({1;2},$B$24:$Q$24,$B35:$Q35),2,0) -> 790 | AM20: =HLOOKUP(AM$2,CHOOSE({1;2},$B$24:$Q$24,$B35:$Q35),2,0) ->  | AN20: =HLOOKUP(AN$2,CHOOSE({1;2},$B$24:$Q$24,$B35:$Q35),2,0) -> 1040 | AO20: =HLOOKUP(AO$2,CHOOSE({1;2},$B$24:$Q$24,$B35:$Q35),2,0) ->  | AP20: =HLOOKUP(AP$2,CHOOSE({1;2},$B$24:$Q$24,$B35:$Q35),2,0) ->  | AQ20: =HLOOKUP(AQ$2,CHOOSE({1;2},$B$24:$Q$24,$B35:$Q35),2,0) -> 1068 | AR20: =HLOOKUP(AR$2,CHOOSE({1;2},$B$24:$Q$24,$B35:$Q35),2,0) -> 1160 | AS20: H11
A21: DE(50Hz)-PL+CZ | B21: 249 | C21: 249 | D21: 249 | E21: 249 | F21: 249 | G21: 249 | H21: 249 | I21: 449 | J21: 449 | K21: 399 | L21: 249 | M21: 249 | N21: 249 | O21: 249 | P21: 249 | Q21: 249 | R21: 249 | S21: 249 | T21: 249 | U21: 249 | V21: 249 | W21: 249 | X21: 249 | Y21: 249 | AA21: =HLOOKUP(AA$2,CHOOSE({1;2},$B$24:$Q$24,$B36:$Q36),2,0) -> 900 | AB21: =HLOOKUP(AB$2,CHOOSE({1;2},$B$24:$Q$24,$B36:$Q36),2,0) ->  | AC21: =HLOOKUP(AC$2,CHOOSE({1;2},$B$24:$Q$24,$B36:$Q36),2,0) ->  | AD21: =HLOOKUP(AD$2,CHOOSE({1;2},$B$24:$Q$24,$B36:$Q36),2,0) -> 600 | AE21: =HLOOKUP(AE$2,CHOOSE({1;2},$B$24:$Q$24,$B36:$Q36),2,0) -> 550 | AF21: =HLOOKUP(AF$2,CHOOSE({1;2},$B$24:$Q$24,$B36:$Q36),2,0) -> 500 | AG21: =HLOOKUP(AG$2,CHOOSE({1;2},$B$24:$Q$24,$B36:$Q36),2,0) -> 1932 | AH21: =HLOOKUP(AH$2,CHOOSE({1;2},$B$24:$Q$24,$B36:$Q36),2,0) -> 975 | AI21: =HLOOKUP(AI$2,CHOOSE({1;2},$B$24:$Q$24,$B36:$Q36),2,0) ->  | AJ21: =HLOOKUP(AJ$2,CHOOSE({1;2},$B$24:$Q$24,$B36:$Q36),2,0) -> 610 | AK21: =HLOOKUP(AK$2,CHOOSE({1;2},$B$24:$Q$24,$B36:$Q36),2,0) -> 225 | AL21: =HLOOKUP(AL$2,CHOOSE({1;2},$B$24:$Q$24,$B36:$Q36),2,0) -> 790 | AM21: =HLOOKUP(AM$2,CHOOSE({1;2},$B$24:$Q$24,$B36:$Q36),2,0) ->  | AN21: =HLOOKUP(AN$2,CHOOSE({1;2},$B$24:$Q$24,$B36:$Q36),2,0) -> 1040 | AO21: =HLOOKUP(AO$2,CHOOSE({1;2},$B$24:$Q$24,$B36:$Q36),2,0) ->  | AP21: =HLOOKUP(AP$2,CHOOSE({1;2},$B$24:$Q$24,$B36:$Q36),2,0) ->  | AQ21: =HLOOKUP(AQ$2,CHOOSE({1;2},$B$24:$Q$24,$B36:$Q36),2,0) -> 1068 | AR21: =HLOOKUP(AR$2,CHOOSE({1;2},$B$24:$Q$24,$B36:$Q36),2,0) -> 1160 | AS21: H12
AA22: =HLOOKUP(AA$2,CHOOSE({1;2},$B$24:$Q$24,$B37:$Q37),2,0) -> 900 | AB22: =HLOOKUP(AB$2,CHOOSE({1;2},$B$24:$Q$24,$B37:$Q37),2,0) ->  | AC22: =HLOOKUP(AC$2,CHOOSE({1;2},$B$24:$Q$24,$B37:$Q37),2,0) ->  | AD22: =HLOOKUP(AD$2,CHOOSE({1;2},$B$24:$Q$24,$B37:$Q37),2,0) -> 600 | AE22: =HLOOKUP(AE$2,CHOOSE({1;2},$B$24:$Q$24,$B37:$Q37),2,0) -> 550 | AF22: =HLOOKUP(AF$2,CHOOSE({1;2},$B$24:$Q$24,$B37:$Q37),2,0) -> 500 | AG22: =HLOOKUP(AG$2,CHOOSE({1;2},$B$24:$Q$24,$B37:$Q37),2,0) -> 1933 | AH22: =HLOOKUP(AH$2,CHOOSE({1;2},$B$24:$Q$24,$B37:$Q37),2,0) -> 975 | AI22: =HLOOKUP(AI$2,CHOOSE({1;2},$B$24:$Q$24,$B37:$Q37),2,0) ->  | AJ22: =HLOOKUP(AJ$2,CHOOSE({1;2},$B$24:$Q$24,$B37:$Q37),2,0) -> 610 | AK22: =HLOOKUP(AK$2,CHOOSE({1;2},$B$24:$Q$24,$B37:$Q37),2,0) -> 225 | AL22: =HLOOKUP(AL$2,CHOOSE({1;2},$B$24:$Q$24,$B37:$Q37),2,0) -> 790 | AM22: =HLOOKUP(AM$2,CHOOSE({1;2},$B$24:$Q$24,$B37:$Q37),2,0) ->  | AN22: =HLOOKUP(AN$2,CHOOSE({1;2},$B$24:$Q$24,$B37:$Q37),2,0) -> 1040 | AO22: =HLOOKUP(AO$2,CHOOSE({1;2},$B$24:$Q$24,$B37:$Q37),2,0) ->  | AP22: =HLOOKUP(AP$2,CHOOSE({1;2},$B$24:$Q$24,$B37:$Q37),2,0) ->  | AQ22: =HLOOKUP(AQ$2,CHOOSE({1;2},$B$24:$Q$24,$B37:$Q37),2,0) -> 1067 | AR22: =HLOOKUP(AR$2,CHOOSE({1;2},$B$24:$Q$24,$B37:$Q37),2,0) -> 1160 | AS22: H13
AA23: =HLOOKUP(AA$2,CHOOSE({1;2},$B$24:$Q$24,$B38:$Q38),2,0) -> 900 | AB23: =HLOOKUP(AB$2,CHOOSE({1;2},$B$24:$Q$24,$B38:$Q38),2,0) ->  | AC23: =HLOOKUP(AC$2,CHOOSE({1;2},$B$24:$Q$24,$B38:$Q38),2,0) ->  | AD23: =HLOOKUP(AD$2,CHOOSE({1;2},$B$24:$Q$24,$B38:$Q38),2,0) -> 600 | AE23: =HLOOKUP(AE$2,CHOOSE({1;2},$B$24:$Q$24,$B38:$Q38),2,0) -> 550 | AF23: =HLOOKUP(AF$2,CHOOSE({1;2},$B$24:$Q$24,$B38:$Q38),2,0) -> 500 | AG23: =HLOOKUP(AG$2,CHOOSE({1;2},$B$24:$Q$24,$B38:$Q38),2,0) -> 1933 | AH23: =HLOOKUP(AH$2,CHOOSE({1;2},$B$24:$Q$24,$B38:$Q38),2,0) -> 975 | AI23: =HLOOKUP(AI$2,CHOOSE({1;2},$B$24:$Q$24,$B38:$Q38),2,0) ->  | AJ23: =HLOOKUP(AJ$2,CHOOSE({1;2},$B$24:$Q$24,$B38:$Q38),2,0) -> 610 | AK23: =HLOOKUP(AK$2,CHOOSE({1;2},$B$24:$Q$24,$B38:$Q38),2,0) -> 225 | AL23: =HLOOKUP(AL$2,CHOOSE({1;2},$B$24:$Q$24,$B38:$Q38),2,0) -> 790 | AM23: =HLOOKUP(AM$2,CHOOSE({1;2},$B$24:$Q$24,$B38:$Q38),2,0) ->  | AN23: =HLOOKUP(AN$2,CHOOSE({1;2},$B$24:$Q$24,$B38:$Q38),2,0) -> 1040 | AO23: =HLOOKUP(AO$2,CHOOSE({1;2},$B$24:$Q$24,$B38:$Q38),2,0) ->  | AP23: =HLOOKUP(AP$2,CHOOSE({1;2},$B$24:$Q$24,$B38:$Q38),2,0) ->  | AQ23: =HLOOKUP(AQ$2,CHOOSE({1;2},$B$24:$Q$24,$B38:$Q38),2,0) -> 1067 | AR23: =HLOOKUP(AR$2,CHOOSE({1;2},$B$24:$Q$24,$B38:$Q38),2,0) -> 1160 | AS23: H14
A24: profile | B24: AT-CZ | C24: AT-HU | D24: CZ-AT | E24: CZ-PL | F24: SI-HR | G24: HR-SI | H24: HR-HU | I24: HU-AT | J24: HU-HR | K24: PL-CZ | L24: DE(50Hz)+CZ+SK-PL | M24: PL-DE(50Hz)+CZ+SK | N24: PL-SK | O24: SK-PL | P24: PL+CZ-DE | Q24: DE-PL+CZ | AA24: =HLOOKUP(AA$2,CHOOSE({1;2},$B$24:$Q$24,$B39:$Q39),2,0) -> 900 | AB24: =HLOOKUP(AB$2,CHOOSE({1;2},$B$24:$Q$24,$B39:$Q39),2,0) ->  | AC24: =HLOOKUP(AC$2,CHOOSE({1;2},$B$24:$Q$24,$B39:$Q39),2,0) ->  | AD24: =HLOOKUP(AD$2,CHOOSE({1;2},$B$24:$Q$24,$B39:$Q39),2,0) -> 600 | AE24: =HLOOKUP(AE$2,CHOOSE({1;2},$B$24:$Q$24,$B39:$Q39),2,0) -> 550 | AF24: =HLOOKUP(AF$2,CHOOSE({1;2},$B$24:$Q$24,$B39:$Q39),2,0) -> 500 | AG24: =HLOOKUP(AG$2,CHOOSE({1;2},$B$24:$Q$24,$B39:$Q39),2,0) -> 1933 | AH24: =HLOOKUP(AH$2,CHOOSE({1;2},$B$24:$Q$24,$B39:$Q39),2,0) -> 975 | AI24: =HLOOKUP(AI$2,CHOOSE({1;2},$B$24:$Q$24,$B39:$Q39),2,0) ->  | AJ24: =HLOOKUP(AJ$2,CHOOSE({1;2},$B$24:$Q$24,$B39:$Q39),2,0) -> 610 | AK24: =HLOOKUP(AK$2,CHOOSE({1;2},$B$24:$Q$24,$B39:$Q39),2,0) -> 225 | AL24: =HLOOKUP(AL$2,CHOOSE({1;2},$B$24:$Q$24,$B39:$Q39),2,0) -> 790 | AM24: =HLOOKUP(AM$2,CHOOSE({1;2},$B$24:$Q$24,$B39:$Q39),2,0) ->  | AN24: =HLOOKUP(AN$2,CHOOSE({1;2},$B$24:$Q$24,$B39:$Q39),2,0) -> 1034 | AO24: =HLOOKUP(AO$2,CHOOSE({1;2},$B$24:$Q$24,$B39:$Q39),2,0) ->  | AP24: =HLOOKUP(AP$2,CHOOSE({1;2},$B$24:$Q$24,$B39:$Q39),2,0) ->  | AQ24: =HLOOKUP(AQ$2,CHOOSE({1;2},$B$24:$Q$24,$B39:$Q39),2,0) -> 1067 | AR24: =HLOOKUP(AR$2,CHOOSE({1;2},$B$24:$Q$24,$B39:$Q39),2,0) -> 1166 | AS24: H15
A25: H01 | B25: 615 | C25: 225 | D25: 785 | E25: 600 | F25: 1173 | G25: 1827 | H25: 1231 | I25: 975 | J25: 969 | K25: 900 | L25: 218 | M25: 1800 | N25: 550 | O25: 500 | P25: 2863 | Q25: 2437 | R25: 2017-12-01 | S25: 1 | AA25: =HLOOKUP(AA$2,CHOOSE({1;2},$B$24:$Q$24,$B40:$Q40),2,0) -> 900 | AB25: =HLOOKUP(AB$2,CHOOSE({1;2},$B$24:$Q$24,$B40:$Q40),2,0) ->  | AC25: =HLOOKUP(AC$2,CHOOSE({1;2},$B$24:$Q$24,$B40:$Q40),2,0) ->  | AD25: =HLOOKUP(AD$2,CHOOSE({1;2},$B$24:$Q$24,$B40:$Q40),2,0) -> 600 | AE25: =HLOOKUP(AE$2,CHOOSE({1;2},$B$24:$Q$24,$B40:$Q40),2,0) -> 550 | AF25: =HLOOKUP(AF$2,CHOOSE({1;2},$B$24:$Q$24,$B40:$Q40),2,0) -> 500 | AG25: =HLOOKUP(AG$2,CHOOSE({1;2},$B$24:$Q$24,$B40:$Q40),2,0) -> 1933 | AH25: =HLOOKUP(AH$2,CHOOSE({1;2},$B$24:$Q$24,$B40:$Q40),2,0) -> 975 | AI25: =HLOOKUP(AI$2,CHOOSE({1;2},$B$24:$Q$24,$B40:$Q40),2,0) ->  | AJ25: =HLOOKUP(AJ$2,CHOOSE({1;2},$B$24:$Q$24,$B40:$Q40),2,0) -> 610 | AK25: =HLOOKUP(AK$2,CHOOSE({1;2},$B$24:$Q$24,$B40:$Q40),2,0) -> 225 | AL25: =HLOOKUP(AL$2,CHOOSE({1;2},$B$24:$Q$24,$B40:$Q40),2,0) -> 790 | AM25: =HLOOKUP(AM$2,CHOOSE({1;2},$B$24:$Q$24,$B40:$Q40),2,0) ->  | AN25: =HLOOKUP(AN$2,CHOOSE({1;2},$B$24:$Q$24,$B40:$Q40),2,0) -> 1033 | AO25: =HLOOKUP(AO$2,CHOOSE({1;2},$B$24:$Q$24,$B40:$Q40),2,0) ->  | AP25: =HLOOKUP(AP$2,CHOOSE({1;2},$B$24:$Q$24,$B40:$Q40),2,0) ->  | AQ25: =HLOOKUP(AQ$2,CHOOSE({1;2},$B$24:$Q$24,$B40:$Q40),2,0) -> 1067 | AR25: =HLOOKUP(AR$2,CHOOSE({1;2},$B$24:$Q$24,$B40:$Q40),2,0) -> 1167 | AS25: H16
A26: H02 | B26: 615 | C26: 225 | D26: 785 | E26: 600 | F26: 1174 | G26: 1826 | H26: 1229 | I26: 975 | J26: 971 | K26: 900 | L26: 0 | M26: 1800 | N26: 550 | O26: 500 | P26: 2863 | Q26: 2337 | R26: 2017-12-01 | AA26: =HLOOKUP(AA$2,CHOOSE({1;2},$B$24:$Q$24,$B41:$Q41),2,0) -> 900 | AB26: =HLOOKUP(AB$2,CHOOSE({1;2},$B$24:$Q$24,$B41:$Q41),2,0) ->  | AC26: =HLOOKUP(AC$2,CHOOSE({1;2},$B$24:$Q$24,$B41:$Q41),2,0) ->  | AD26: =HLOOKUP(AD$2,CHOOSE({1;2},$B$24:$Q$24,$B41:$Q41),2,0) -> 600 | AE26: =HLOOKUP(AE$2,CHOOSE({1;2},$B$24:$Q$24,$B41:$Q41),2,0) -> 550 | AF26: =HLOOKUP(AF$2,CHOOSE({1;2},$B$24:$Q$24,$B41:$Q41),2,0) -> 500 | AG26: =HLOOKUP(AG$2,CHOOSE({1;2},$B$24:$Q$24,$B41:$Q41),2,0) -> 1933 | AH26: =HLOOKUP(AH$2,CHOOSE({1;2},$B$24:$Q$24,$B41:$Q41),2,0) -> 975 | AI26: =HLOOKUP(AI$2,CHOOSE({1;2},$B$24:$Q$24,$B41:$Q41),2,0) ->  | AJ26: =HLOOKUP(AJ$2,CHOOSE({1;2},$B$24:$Q$24,$B41:$Q41),2,0) -> 610 | AK26: =HLOOKUP(AK$2,CHOOSE({1;2},$B$24:$Q$24,$B41:$Q41),2,0) -> 225 | AL26: =HLOOKUP(AL$2,CHOOSE({1;2},$B$24:$Q$24,$B41:$Q41),2,0) -> 790 | AM26: =HLOOKUP(AM$2,CHOOSE({1;2},$B$24:$Q$24,$B41:$Q41),2,0) ->  | AN26: =HLOOKUP(AN$2,CHOOSE({1;2},$B$24:$Q$24,$B41:$Q41),2,0) -> 1016 | AO26: =HLOOKUP(AO$2,CHOOSE({1;2},$B$24:$Q$24,$B41:$Q41),2,0) ->  | AP26: =HLOOKUP(AP$2,CHOOSE({1;2},$B$24:$Q$24,$B41:$Q41),2,0) ->  | AQ26: =HLOOKUP(AQ$2,CHOOSE({1;2},$B$24:$Q$24,$B41:$Q41),2,0) -> 1067 | AR26: =HLOOKUP(AR$2,CHOOSE({1;2},$B$24:$Q$24,$B41:$Q41),2,0) -> 1184 | AS26: H17
A27: H03 | B27: 615 | C27: 225 | D27: 785 | E27: 600 | F27: 1174 | G27: 1826 | H27: 1228 | I27: 975 | J27: 972 | K27: 900 | L27: 0 | M27: 1800 | N27: 550 | O27: 500 | P27: 2863 | Q27: 2237 | R27: 2017-12-01 | AA27: =HLOOKUP(AA$2,CHOOSE({1;2},$B$24:$Q$24,$B42:$Q42),2,0) -> 900 | AB27: =HLOOKUP(AB$2,CHOOSE({1;2},$B$24:$Q$24,$B42:$Q42),2,0) ->  | AC27: =HLOOKUP(AC$2,CHOOSE({1;2},$B$24:$Q$24,$B42:$Q42),2,0) ->  | AD27: =HLOOKUP(AD$2,CHOOSE({1;2},$B$24:$Q$24,$B42:$Q42),2,0) -> 600 | AE27: =HLOOKUP(AE$2,CHOOSE({1;2},$B$24:$Q$24,$B42:$Q42),2,0) -> 550 | AF27: =HLOOKUP(AF$2,CHOOSE({1;2},$B$24:$Q$24,$B42:$Q42),2,0) -> 500 | AG27: =HLOOKUP(AG$2,CHOOSE({1;2},$B$24:$Q$24,$B42:$Q42),2,0) -> 1933 | AH27: =HLOOKUP(AH$2,CHOOSE({1;2},$B$24:$Q$24,$B42:$Q42),2,0) -> 975 | AI27: =HLOOKUP(AI$2,CHOOSE({1;2},$B$24:$Q$24,$B42:$Q42),2,0) ->  | AJ27: =HLOOKUP(AJ$2,CHOOSE({1;2},$B$24:$Q$24,$B42:$Q42),2,0) -> 610 | AK27: =HLOOKUP(AK$2,CHOOSE({1;2},$B$24:$Q$24,$B42:$Q42),2,0) -> 225 | AL27: =HLOOKUP(AL$2,CHOOSE({1;2},$B$24:$Q$24,$B42:$Q42),2,0) -> 790 | AM27: =HLOOKUP(AM$2,CHOOSE({1;2},$B$24:$Q$24,$B42:$Q42),2,0) ->  | AN27: =HLOOKUP(AN$2,CHOOSE({1;2},$B$24:$Q$24,$B42:$Q42),2,0) -> 1030 | AO27: =HLOOKUP(AO$2,CHOOSE({1;2},$B$24:$Q$24,$B42:$Q42),2,0) ->  | AP27: =HLOOKUP(AP$2,CHOOSE({1;2},$B$24:$Q$24,$B42:$Q42),2,0) ->  | AQ27: =HLOOKUP(AQ$2,CHOOSE({1;2},$B$24:$Q$24,$B42:$Q42),2,0) -> 1067 | AR27: =HLOOKUP(AR$2,CHOOSE({1;2},$B$24:$Q$24,$B42:$Q42),2,0) -> 1170 | AS27: H18
A28: H04 | B28: 615 | C28: 225 | D28: 785 | E28: 600 | F28: 1184 | G28: 1816 | H28: 1228 | I28: 975 | J28: 972 | K28: 900 | L28: 0 | M28: 1800 | N28: 550 | O28: 500 | P28: 2863 | Q28: 2237 | R28: 2017-12-01 | AA28: =HLOOKUP(AA$2,CHOOSE({1;2},$B$24:$Q$24,$B43:$Q43),2,0) -> 900 | AB28: =HLOOKUP(AB$2,CHOOSE({1;2},$B$24:$Q$24,$B43:$Q43),2,0) ->  | AC28: =HLOOKUP(AC$2,CHOOSE({1;2},$B$24:$Q$24,$B43:$Q43),2,0) ->  | AD28: =HLOOKUP(AD$2,CHOOSE({1;2},$B$24:$Q$24,$B43:$Q43),2,0) -> 600 | AE28: =HLOOKUP(AE$2,CHOOSE({1;2},$B$24:$Q$24,$B43:$Q43),2,0) -> 550 | AF28: =HLOOKUP(AF$2,CHOOSE({1;2},$B$24:$Q$24,$B43:$Q43),2,0) -> 500 | AG28: =HLOOKUP(AG$2,CHOOSE({1;2},$B$24:$Q$24,$B43:$Q43),2,0) -> 1933 | AH28: =HLOOKUP(AH$2,CHOOSE({1;2},$B$24:$Q$24,$B43:$Q43),2,0) -> 975 | AI28: =HLOOKUP(AI$2,CHOOSE({1;2},$B$24:$Q$24,$B43:$Q43),2,0) ->  | AJ28: =HLOOKUP(AJ$2,CHOOSE({1;2},$B$24:$Q$24,$B43:$Q43),2,0) -> 610 | AK28: =HLOOKUP(AK$2,CHOOSE({1;2},$B$24:$Q$24,$B43:$Q43),2,0) -> 225 | AL28: =HLOOKUP(AL$2,CHOOSE({1;2},$B$24:$Q$24,$B43:$Q43),2,0) -> 790 | AM28: =HLOOKUP(AM$2,CHOOSE({1;2},$B$24:$Q$24,$B43:$Q43),2,0) ->  | AN28: =HLOOKUP(AN$2,CHOOSE({1;2},$B$24:$Q$24,$B43:$Q43),2,0) -> 1027 | AO28: =HLOOKUP(AO$2,CHOOSE({1;2},$B$24:$Q$24,$B43:$Q43),2,0) ->  | AP28: =HLOOKUP(AP$2,CHOOSE({1;2},$B$24:$Q$24,$B43:$Q43),2,0) ->  | AQ28: =HLOOKUP(AQ$2,CHOOSE({1;2},$B$24:$Q$24,$B43:$Q43),2,0) -> 1067 | AR28: =HLOOKUP(AR$2,CHOOSE({1;2},$B$24:$Q$24,$B43:$Q43),2,0) -> 1173 | AS28: H19
A29: H05 | B29: 615 | C29: 225 | D29: 785 | E29: 600 | F29: 1185 | G29: 1815 | H29: 1229 | I29: 975 | J29: 971 | K29: 900 | L29: 0 | M29: 1800 | N29: 550 | O29: 500 | P29: 2863 | Q29: 2237 | R29: 2017-12-01 | AA29: =HLOOKUP(AA$2,CHOOSE({1;2},$B$24:$Q$24,$B44:$Q44),2,0) -> 900 | AB29: =HLOOKUP(AB$2,CHOOSE({1;2},$B$24:$Q$24,$B44:$Q44),2,0) ->  | AC29: =HLOOKUP(AC$2,CHOOSE({1;2},$B$24:$Q$24,$B44:$Q44),2,0) ->  | AD29: =HLOOKUP(AD$2,CHOOSE({1;2},$B$24:$Q$24,$B44:$Q44),2,0) -> 600 | AE29: =HLOOKUP(AE$2,CHOOSE({1;2},$B$24:$Q$24,$B44:$Q44),2,0) -> 550 | AF29: =HLOOKUP(AF$2,CHOOSE({1;2},$B$24:$Q$24,$B44:$Q44),2,0) -> 500 | AG29: =HLOOKUP(AG$2,CHOOSE({1;2},$B$24:$Q$24,$B44:$Q44),2,0) -> 1933 | AH29: =HLOOKUP(AH$2,CHOOSE({1;2},$B$24:$Q$24,$B44:$Q44),2,0) -> 975 | AI29: =HLOOKUP(AI$2,CHOOSE({1;2},$B$24:$Q$24,$B44:$Q44),2,0) ->  | AJ29: =HLOOKUP(AJ$2,CHOOSE({1;2},$B$24:$Q$24,$B44:$Q44),2,0) -> 610 | AK29: =HLOOKUP(AK$2,CHOOSE({1;2},$B$24:$Q$24,$B44:$Q44),2,0) -> 225 | AL29: =HLOOKUP(AL$2,CHOOSE({1;2},$B$24:$Q$24,$B44:$Q44),2,0) -> 790 | AM29: =HLOOKUP(AM$2,CHOOSE({1;2},$B$24:$Q$24,$B44:$Q44),2,0) ->  | AN29: =HLOOKUP(AN$2,CHOOSE({1;2},$B$24:$Q$24,$B44:$Q44),2,0) -> 1025 | AO29: =HLOOKUP(AO$2,CHOOSE({1;2},$B$24:$Q$24,$B44:$Q44),2,0) ->  | AP29: =HLOOKUP(AP$2,CHOOSE({1;2},$B$24:$Q$24,$B44:$Q44),2,0) ->  | AQ29: =HLOOKUP(AQ$2,CHOOSE({1;2},$B$24:$Q$24,$B44:$Q44),2,0) -> 1067 | AR29: =HLOOKUP(AR$2,CHOOSE({1;2},$B$24:$Q$24,$B44:$Q44),2,0) -> 1175 | AS29: H20
A30: H06 | B30: 615 | C30: 225 | D30: 785 | E30: 600 | F30: 1181 | G30: 1819 | H30: 1232 | I30: 975 | J30: 968 | K30: 900 | L30: 0 | M30: 1800 | N30: 550 | O30: 500 | P30: 2863 | Q30: 2137 | R30: 2017-12-01 | AA30: =HLOOKUP(AA$2,CHOOSE({1;2},$B$24:$Q$24,$B45:$Q45),2,0) -> 900 | AB30: =HLOOKUP(AB$2,CHOOSE({1;2},$B$24:$Q$24,$B45:$Q45),2,0) ->  | AC30: =HLOOKUP(AC$2,CHOOSE({1;2},$B$24:$Q$24,$B45:$Q45),2,0) ->  | AD30: =HLOOKUP(AD$2,CHOOSE({1;2},$B$24:$Q$24,$B45:$Q45),2,0) -> 600 | AE30: =HLOOKUP(AE$2,CHOOSE({1;2},$B$24:$Q$24,$B45:$Q45),2,0) -> 550 | AF30: =HLOOKUP(AF$2,CHOOSE({1;2},$B$24:$Q$24,$B45:$Q45),2,0) -> 500 | AG30: =HLOOKUP(AG$2,CHOOSE({1;2},$B$24:$Q$24,$B45:$Q45),2,0) -> 1833 | AH30: =HLOOKUP(AH$2,CHOOSE({1;2},$B$24:$Q$24,$B45:$Q45),2,0) -> 975 | AI30: =HLOOKUP(AI$2,CHOOSE({1;2},$B$24:$Q$24,$B45:$Q45),2,0) ->  | AJ30: =HLOOKUP(AJ$2,CHOOSE({1;2},$B$24:$Q$24,$B45:$Q45),2,0) -> 610 | AK30: =HLOOKUP(AK$2,CHOOSE({1;2},$B$24:$Q$24,$B45:$Q45),2,0) -> 225 | AL30: =HLOOKUP(AL$2,CHOOSE({1;2},$B$24:$Q$24,$B45:$Q45),2,0) -> 790 | AM30: =HLOOKUP(AM$2,CHOOSE({1;2},$B$24:$Q$24,$B45:$Q45),2,0) ->  | AN30: =HLOOKUP(AN$2,CHOOSE({1;2},$B$24:$Q$24,$B45:$Q45),2,0) -> 1140 | AO30: =HLOOKUP(AO$2,CHOOSE({1;2},$B$24:$Q$24,$B45:$Q45),2,0) ->  | AP30: =HLOOKUP(AP$2,CHOOSE({1;2},$B$24:$Q$24,$B45:$Q45),2,0) ->  | AQ30: =HLOOKUP(AQ$2,CHOOSE({1;2},$B$24:$Q$24,$B45:$Q45),2,0) -> 1167 | AR30: =HLOOKUP(AR$2,CHOOSE({1;2},$B$24:$Q$24,$B45:$Q45),2,0) -> 1060 | AS30: H21
A31: H07 | B31: 610 | C31: 225 | D31: 790 | E31: 600 | F31: 1178 | G31: 1822 | H31: 1159 | I31: 975 | J31: 1041 | K31: 900 | L31: 216 | M31: 623 | N31: 550 | O31: 500 | P31: 2885 | Q31: 1815 | R31: 2017-12-01 | AA31: =HLOOKUP(AA$2,CHOOSE({1;2},$B$24:$Q$24,$B46:$Q46),2,0) -> 900 | AB31: =HLOOKUP(AB$2,CHOOSE({1;2},$B$24:$Q$24,$B46:$Q46),2,0) ->  | AC31: =HLOOKUP(AC$2,CHOOSE({1;2},$B$24:$Q$24,$B46:$Q46),2,0) ->  | AD31: =HLOOKUP(AD$2,CHOOSE({1;2},$B$24:$Q$24,$B46:$Q46),2,0) -> 600 | AE31: =HLOOKUP(AE$2,CHOOSE({1;2},$B$24:$Q$24,$B46:$Q46),2,0) -> 550 | AF31: =HLOOKUP(AF$2,CHOOSE({1;2},$B$24:$Q$24,$B46:$Q46),2,0) -> 500 | AG31: =HLOOKUP(AG$2,CHOOSE({1;2},$B$24:$Q$24,$B46:$Q46),2,0) -> 1833 | AH31: =HLOOKUP(AH$2,CHOOSE({1;2},$B$24:$Q$24,$B46:$Q46),2,0) -> 975 | AI31: =HLOOKUP(AI$2,CHOOSE({1;2},$B$24:$Q$24,$B46:$Q46),2,0) ->  | AJ31: =HLOOKUP(AJ$2,CHOOSE({1;2},$B$24:$Q$24,$B46:$Q46),2,0) -> 610 | AK31: =HLOOKUP(AK$2,CHOOSE({1;2},$B$24:$Q$24,$B46:$Q46),2,0) -> 225 | AL31: =HLOOKUP(AL$2,CHOOSE({1;2},$B$24:$Q$24,$B46:$Q46),2,0) -> 790 | AM31: =HLOOKUP(AM$2,CHOOSE({1;2},$B$24:$Q$24,$B46:$Q46),2,0) ->  | AN31: =HLOOKUP(AN$2,CHOOSE({1;2},$B$24:$Q$24,$B46:$Q46),2,0) -> 1140 | AO31: =HLOOKUP(AO$2,CHOOSE({1;2},$B$24:$Q$24,$B46:$Q46),2,0) ->  | AP31: =HLOOKUP(AP$2,CHOOSE({1;2},$B$24:$Q$24,$B46:$Q46),2,0) ->  | AQ31: =HLOOKUP(AQ$2,CHOOSE({1;2},$B$24:$Q$24,$B46:$Q46),2,0) -> 1167 | AR31: =HLOOKUP(AR$2,CHOOSE({1;2},$B$24:$Q$24,$B46:$Q46),2,0) -> 1060 | AS31: H22
A32: H08 | B32: 610 | C32: 225 | D32: 790 | E32: 600 | F32: 1178 | G32: 1822 | H32: 1166 | I32: 975 | J32: 1034 | K32: 900 | L32: 367 | M32: 0 | N32: 550 | O32: 500 | P32: 2885 | Q32: 1815 | R32: 2017-12-01 | AA32: =HLOOKUP(AA$2,CHOOSE({1;2},$B$24:$Q$24,$B47:$Q47),2,0) -> 900 | AB32: =HLOOKUP(AB$2,CHOOSE({1;2},$B$24:$Q$24,$B47:$Q47),2,0) ->  | AC32: =HLOOKUP(AC$2,CHOOSE({1;2},$B$24:$Q$24,$B47:$Q47),2,0) ->  | AD32: =HLOOKUP(AD$2,CHOOSE({1;2},$B$24:$Q$24,$B47:$Q47),2,0) -> 600 | AE32: =HLOOKUP(AE$2,CHOOSE({1;2},$B$24:$Q$24,$B47:$Q47),2,0) -> 550 | AF32: =HLOOKUP(AF$2,CHOOSE({1;2},$B$24:$Q$24,$B47:$Q47),2,0) -> 500 | AG32: =HLOOKUP(AG$2,CHOOSE({1;2},$B$24:$Q$24,$B47:$Q47),2,0) -> 1830 | AH32: =HLOOKUP(AH$2,CHOOSE({1;2},$B$24:$Q$24,$B47:$Q47),2,0) -> 975 | AI32: =HLOOKUP(AI$2,CHOOSE({1;2},$B$24:$Q$24,$B47:$Q47),2,0) ->  | AJ32: =HLOOKUP(AJ$2,CHOOSE({1;2},$B$24:$Q$24,$B47:$Q47),2,0) -> 615 | AK32: =HLOOKUP(AK$2,CHOOSE({1;2},$B$24:$Q$24,$B47:$Q47),2,0) -> 225 | AL32: =HLOOKUP(AL$2,CHOOSE({1;2},$B$24:$Q$24,$B47:$Q47),2,0) -> 785 | AM32: =HLOOKUP(AM$2,CHOOSE({1;2},$B$24:$Q$24,$B47:$Q47),2,0) ->  | AN32: =HLOOKUP(AN$2,CHOOSE({1;2},$B$24:$Q$24,$B47:$Q47),2,0) -> 1177 | AO32: =HLOOKUP(AO$2,CHOOSE({1;2},$B$24:$Q$24,$B47:$Q47),2,0) ->  | AP32: =HLOOKUP(AP$2,CHOOSE({1;2},$B$24:$Q$24,$B47:$Q47),2,0) ->  | AQ32: =HLOOKUP(AQ$2,CHOOSE({1;2},$B$24:$Q$24,$B47:$Q47),2,0) -> 1170 | AR32: =HLOOKUP(AR$2,CHOOSE({1;2},$B$24:$Q$24,$B47:$Q47),2,0) -> 1023 | AS32: H23
A33: H09 | B33: 610 | C33: 225 | D33: 790 | E33: 600 | F33: 1067 | G33: 1933 | H33: 1040 | I33: 975 | J33: 1160 | K33: 900 | L33: 500 | M33: 0 | N33: 550 | O33: 500 | P33: 2900 | Q33: 1600 | R33: 2017-12-01 | AA33: =HLOOKUP(AA$2,CHOOSE({1;2},$B$24:$Q$24,$B48:$Q48),2,0) -> 900 | AB33: =HLOOKUP(AB$2,CHOOSE({1;2},$B$24:$Q$24,$B48:$Q48),2,0) ->  | AC33: =HLOOKUP(AC$2,CHOOSE({1;2},$B$24:$Q$24,$B48:$Q48),2,0) ->  | AD33: =HLOOKUP(AD$2,CHOOSE({1;2},$B$24:$Q$24,$B48:$Q48),2,0) -> 600 | AE33: =HLOOKUP(AE$2,CHOOSE({1;2},$B$24:$Q$24,$B48:$Q48),2,0) -> 550 | AF33: =HLOOKUP(AF$2,CHOOSE({1;2},$B$24:$Q$24,$B48:$Q48),2,0) -> 500 | AG33: =HLOOKUP(AG$2,CHOOSE({1;2},$B$24:$Q$24,$B48:$Q48),2,0) -> 1829 | AH33: =HLOOKUP(AH$2,CHOOSE({1;2},$B$24:$Q$24,$B48:$Q48),2,0) -> 975 | AI33: =HLOOKUP(AI$2,CHOOSE({1;2},$B$24:$Q$24,$B48:$Q48),2,0) ->  | AJ33: =HLOOKUP(AJ$2,CHOOSE({1;2},$B$24:$Q$24,$B48:$Q48),2,0) -> 615 | AK33: =HLOOKUP(AK$2,CHOOSE({1;2},$B$24:$Q$24,$B48:$Q48),2,0) -> 225 | AL33: =HLOOKUP(AL$2,CHOOSE({1;2},$B$24:$Q$24,$B48:$Q48),2,0) -> 785 | AM33: =HLOOKUP(AM$2,CHOOSE({1;2},$B$24:$Q$24,$B48:$Q48),2,0) ->  | AN33: =HLOOKUP(AN$2,CHOOSE({1;2},$B$24:$Q$24,$B48:$Q48),2,0) -> 1160 | AO33: =HLOOKUP(AO$2,CHOOSE({1;2},$B$24:$Q$24,$B48:$Q48),2,0) ->  | AP33: =HLOOKUP(AP$2,CHOOSE({1;2},$B$24:$Q$24,$B48:$Q48),2,0) ->  | AQ33: =HLOOKUP(AQ$2,CHOOSE({1;2},$B$24:$Q$24,$B48:$Q48),2,0) -> 1171 | AR33: =HLOOKUP(AR$2,CHOOSE({1;2},$B$24:$Q$24,$B48:$Q48),2,0) -> 1040 | AS33: H24
A34: H10 | B34: 610 | C34: 225 | D34: 790 | E34: 600 | F34: 1068 | G34: 1932 | H34: 1040 | I34: 975 | J34: 1160 | K34: 900 | L34: 500 | M34: 0 | N34: 550 | O34: 500 | P34: 2900 | Q34: 1600 | R34: 2017-12-01 | AA34: =HLOOKUP(AA$2,CHOOSE({1;2},$B$24:$Q$24,$B49:$Q49),2,0) -> 900 | AB34: =HLOOKUP(AB$2,CHOOSE({1;2},$B$24:$Q$24,$B49:$Q49),2,0) ->  | AC34: =HLOOKUP(AC$2,CHOOSE({1;2},$B$24:$Q$24,$B49:$Q49),2,0) ->  | AD34: =HLOOKUP(AD$2,CHOOSE({1;2},$B$24:$Q$24,$B49:$Q49),2,0) -> 600 | AE34: =HLOOKUP(AE$2,CHOOSE({1;2},$B$24:$Q$24,$B49:$Q49),2,0) -> 550 | AF34: =HLOOKUP(AF$2,CHOOSE({1;2},$B$24:$Q$24,$B49:$Q49),2,0) -> 500 | AG34: =HLOOKUP(AG$2,CHOOSE({1;2},$B$24:$Q$24,$B49:$Q49),2,0) -> 1826 | AH34: =HLOOKUP(AH$2,CHOOSE({1;2},$B$24:$Q$24,$B49:$Q49),2,0) -> 998 | AI34: =HLOOKUP(AI$2,CHOOSE({1;2},$B$24:$Q$24,$B49:$Q49),2,0) ->  | AJ34: =HLOOKUP(AJ$2,CHOOSE({1;2},$B$24:$Q$24,$B49:$Q49),2,0) -> 655 | AK34: =HLOOKUP(AK$2,CHOOSE({1;2},$B$24:$Q$24,$B49:$Q49),2,0) -> 202 | AL34: =HLOOKUP(AL$2,CHOOSE({1;2},$B$24:$Q$24,$B49:$Q49),2,0) -> 745 | AM34: =HLOOKUP(AM$2,CHOOSE({1;2},$B$24:$Q$24,$B49:$Q49),2,0) ->  | AN34: =HLOOKUP(AN$2,CHOOSE({1;2},$B$24:$Q$24,$B49:$Q49),2,0) -> 1210 | AO34: =HLOOKUP(AO$2,CHOOSE({1;2},$B$24:$Q$24,$B49:$Q49),2,0) ->  | AP34: =HLOOKUP(AP$2,CHOOSE({1;2},$B$24:$Q$24,$B49:$Q49),2,0) ->  | AQ34: =HLOOKUP(AQ$2,CHOOSE({1;2},$B$24:$Q$24,$B49:$Q49),2,0) -> 1174 | AR34: =HLOOKUP(AR$2,CHOOSE({1;2},$B$24:$Q$24,$B49:$Q49),2,0) -> 990 | AS34: H01
A35: H11 | B35: 610 | C35: 225 | D35: 790 | E35: 600 | F35: 1068 | G35: 1932 | H35: 1040 | I35: 975 | J35: 1160 | K35: 900 | L35: 0 | M35: 0 | N35: 550 | O35: 500 | P35: 2900 | Q35: 1800 | R35: 2017-12-01 | AA35: =HLOOKUP(AA$2,CHOOSE({1;2},$B$24:$Q$24,$B50:$Q50),2,0) -> 900 | AB35: =HLOOKUP(AB$2,CHOOSE({1;2},$B$24:$Q$24,$B50:$Q50),2,0) ->  | AC35: =HLOOKUP(AC$2,CHOOSE({1;2},$B$24:$Q$24,$B50:$Q50),2,0) ->  | AD35: =HLOOKUP(AD$2,CHOOSE({1;2},$B$24:$Q$24,$B50:$Q50),2,0) -> 600 | AE35: =HLOOKUP(AE$2,CHOOSE({1;2},$B$24:$Q$24,$B50:$Q50),2,0) -> 550 | AF35: =HLOOKUP(AF$2,CHOOSE({1;2},$B$24:$Q$24,$B50:$Q50),2,0) -> 500 | AG35: =HLOOKUP(AG$2,CHOOSE({1;2},$B$24:$Q$24,$B50:$Q50),2,0) -> 1826 | AH35: =HLOOKUP(AH$2,CHOOSE({1;2},$B$24:$Q$24,$B50:$Q50),2,0) -> 998 | AI35: =HLOOKUP(AI$2,CHOOSE({1;2},$B$24:$Q$24,$B50:$Q50),2,0) ->  | AJ35: =HLOOKUP(AJ$2,CHOOSE({1;2},$B$24:$Q$24,$B50:$Q50),2,0) -> 655 | AK35: =HLOOKUP(AK$2,CHOOSE({1;2},$B$24:$Q$24,$B50:$Q50),2,0) -> 202 | AL35: =HLOOKUP(AL$2,CHOOSE({1;2},$B$24:$Q$24,$B50:$Q50),2,0) -> 745 | AM35: =HLOOKUP(AM$2,CHOOSE({1;2},$B$24:$Q$24,$B50:$Q50),2,0) ->  | AN35: =HLOOKUP(AN$2,CHOOSE({1;2},$B$24:$Q$24,$B50:$Q50),2,0) -> 1208 | AO35: =HLOOKUP(AO$2,CHOOSE({1;2},$B$24:$Q$24,$B50:$Q50),2,0) ->  | AP35: =HLOOKUP(AP$2,CHOOSE({1;2},$B$24:$Q$24,$B50:$Q50),2,0) ->  | AQ35: =HLOOKUP(AQ$2,CHOOSE({1;2},$B$24:$Q$24,$B50:$Q50),2,0) -> 1174 | AR35: =HLOOKUP(AR$2,CHOOSE({1;2},$B$24:$Q$24,$B50:$Q50),2,0) -> 992 | AS35: H02
A36: H12 | B36: 610 | C36: 225 | D36: 790 | E36: 600 | F36: 1068 | G36: 1932 | H36: 1040 | I36: 975 | J36: 1160 | K36: 900 | L36: 0 | M36: 0 | N36: 550 | O36: 500 | P36: 2900 | Q36: 1800 | R36: 2017-12-01 | AA36: =HLOOKUP(AA$2,CHOOSE({1;2},$B$24:$Q$24,$B51:$Q51),2,0) -> 900 | AB36: =HLOOKUP(AB$2,CHOOSE({1;2},$B$24:$Q$24,$B51:$Q51),2,0) ->  | AC36: =HLOOKUP(AC$2,CHOOSE({1;2},$B$24:$Q$24,$B51:$Q51),2,0) ->  | AD36: =HLOOKUP(AD$2,CHOOSE({1;2},$B$24:$Q$24,$B51:$Q51),2,0) -> 600 | AE36: =HLOOKUP(AE$2,CHOOSE({1;2},$B$24:$Q$24,$B51:$Q51),2,0) -> 550 | AF36: =HLOOKUP(AF$2,CHOOSE({1;2},$B$24:$Q$24,$B51:$Q51),2,0) -> 500 | AG36: =HLOOKUP(AG$2,CHOOSE({1;2},$B$24:$Q$24,$B51:$Q51),2,0) -> 1826 | AH36: =HLOOKUP(AH$2,CHOOSE({1;2},$B$24:$Q$24,$B51:$Q51),2,0) -> 998 | AI36: =HLOOKUP(AI$2,CHOOSE({1;2},$B$24:$Q$24,$B51:$Q51),2,0) ->  | AJ36: =HLOOKUP(AJ$2,CHOOSE({1;2},$B$24:$Q$24,$B51:$Q51),2,0) -> 655 | AK36: =HLOOKUP(AK$2,CHOOSE({1;2},$B$24:$Q$24,$B51:$Q51),2,0) -> 202 | AL36: =HLOOKUP(AL$2,CHOOSE({1;2},$B$24:$Q$24,$B51:$Q51),2,0) -> 745 | AM36: =HLOOKUP(AM$2,CHOOSE({1;2},$B$24:$Q$24,$B51:$Q51),2,0) ->  | AN36: =HLOOKUP(AN$2,CHOOSE({1;2},$B$24:$Q$24,$B51:$Q51),2,0) -> 1207 | AO36: =HLOOKUP(AO$2,CHOOSE({1;2},$B$24:$Q$24,$B51:$Q51),2,0) ->  | AP36: =HLOOKUP(AP$2,CHOOSE({1;2},$B$24:$Q$24,$B51:$Q51),2,0) ->  | AQ36: =HLOOKUP(AQ$2,CHOOSE({1;2},$B$24:$Q$24,$B51:$Q51),2,0) -> 1174 | AR36: =HLOOKUP(AR$2,CHOOSE({1;2},$B$24:$Q$24,$B51:$Q51),2,0) -> 993 | AS36: H03
A37: H13 | B37: 610 | C37: 225 | D37: 790 | E37: 600 | F37: 1067 | G37: 1933 | H37: 1040 | I37: 975 | J37: 1160 | K37: 900 | L37: 0 | M37: 0 | N37: 550 | O37: 500 | P37: 2900 | Q37: 1800 | R37: 2017-12-01 | AA37: =HLOOKUP(AA$2,CHOOSE({1;2},$B$24:$Q$24,$B52:$Q52),2,0) -> 900 | AB37: =HLOOKUP(AB$2,CHOOSE({1;2},$B$24:$Q$24,$B52:$Q52),2,0) ->  | AC37: =HLOOKUP(AC$2,CHOOSE({1;2},$B$24:$Q$24,$B52:$Q52),2,0) ->  | AD37: =HLOOKUP(AD$2,CHOOSE({1;2},$B$24:$Q$24,$B52:$Q52),2,0) -> 600 | AE37: =HLOOKUP(AE$2,CHOOSE({1;2},$B$24:$Q$24,$B52:$Q52),2,0) -> 550 | AF37: =HLOOKUP(AF$2,CHOOSE({1;2},$B$24:$Q$24,$B52:$Q52),2,0) -> 500 | AG37: =HLOOKUP(AG$2,CHOOSE({1;2},$B$24:$Q$24,$B52:$Q52),2,0) -> 1816 | AH37: =HLOOKUP(AH$2,CHOOSE({1;2},$B$24:$Q$24,$B52:$Q52),2,0) -> 998 | AI37: =HLOOKUP(AI$2,CHOOSE({1;2},$B$24:$Q$24,$B52:$Q52),2,0) ->  | AJ37: =HLOOKUP(AJ$2,CHOOSE({1;2},$B$24:$Q$24,$B52:$Q52),2,0) -> 655 | AK37: =HLOOKUP(AK$2,CHOOSE({1;2},$B$24:$Q$24,$B52:$Q52),2,0) -> 202 | AL37: =HLOOKUP(AL$2,CHOOSE({1;2},$B$24:$Q$24,$B52:$Q52),2,0) -> 745 | AM37: =HLOOKUP(AM$2,CHOOSE({1;2},$B$24:$Q$24,$B52:$Q52),2,0) ->  | AN37: =HLOOKUP(AN$2,CHOOSE({1;2},$B$24:$Q$24,$B52:$Q52),2,0) -> 1207 | AO37: =HLOOKUP(AO$2,CHOOSE({1;2},$B$24:$Q$24,$B52:$Q52),2,0) ->  | AP37: =HLOOKUP(AP$2,CHOOSE({1;2},$B$24:$Q$24,$B52:$Q52),2,0) ->  | AQ37: =HLOOKUP(AQ$2,CHOOSE({1;2},$B$24:$Q$24,$B52:$Q52),2,0) -> 1184 | AR37: =HLOOKUP(AR$2,CHOOSE({1;2},$B$24:$Q$24,$B52:$Q52),2,0) -> 993 | AS37: H04
A38: H14 | B38: 610 | C38: 225 | D38: 790 | E38: 600 | F38: 1067 | G38: 1933 | H38: 1040 | I38: 975 | J38: 1160 | K38: 900 | L38: 0 | M38: 0 | N38: 550 | O38: 500 | P38: 2900 | Q38: 1800 | R38: 2017-12-01 | AA38: =HLOOKUP(AA$2,CHOOSE({1;2},$B$24:$Q$24,$B53:$Q53),2,0) -> 900 | AB38: =HLOOKUP(AB$2,CHOOSE({1;2},$B$24:$Q$24,$B53:$Q53),2,0) ->  | AC38: =HLOOKUP(AC$2,CHOOSE({1;2},$B$24:$Q$24,$B53:$Q53),2,0) ->  | AD38: =HLOOKUP(AD$2,CHOOSE({1;2},$B$24:$Q$24,$B53:$Q53),2,0) -> 600 | AE38: =HLOOKUP(AE$2,CHOOSE({1;2},$B$24:$Q$24,$B53:$Q53),2,0) -> 550 | AF38: =HLOOKUP(AF$2,CHOOSE({1;2},$B$24:$Q$24,$B53:$Q53),2,0) -> 500 | AG38: =HLOOKUP(AG$2,CHOOSE({1;2},$B$24:$Q$24,$B53:$Q53),2,0) -> 1815 | AH38: =HLOOKUP(AH$2,CHOOSE({1;2},$B$24:$Q$24,$B53:$Q53),2,0) -> 998 | AI38: =HLOOKUP(AI$2,CHOOSE({1;2},$B$24:$Q$24,$B53:$Q53),2,0) ->  | AJ38: =HLOOKUP(AJ$2,CHOOSE({1;2},$B$24:$Q$24,$B53:$Q53),2,0) -> 655 | AK38: =HLOOKUP(AK$2,CHOOSE({1;2},$B$24:$Q$24,$B53:$Q53),2,0) -> 202 | AL38: =HLOOKUP(AL$2,CHOOSE({1;2},$B$24:$Q$24,$B53:$Q53),2,0) -> 745 | AM38: =HLOOKUP(AM$2,CHOOSE({1;2},$B$24:$Q$24,$B53:$Q53),2,0) ->  | AN38: =HLOOKUP(AN$2,CHOOSE({1;2},$B$24:$Q$24,$B53:$Q53),2,0) -> 1207 | AO38: =HLOOKUP(AO$2,CHOOSE({1;2},$B$24:$Q$24,$B53:$Q53),2,0) ->  | AP38: =HLOOKUP(AP$2,CHOOSE({1;2},$B$24:$Q$24,$B53:$Q53),2,0) ->  | AQ38: =HLOOKUP(AQ$2,CHOOSE({1;2},$B$24:$Q$24,$B53:$Q53),2,0) -> 1185 | AR38: =HLOOKUP(AR$2,CHOOSE({1;2},$B$24:$Q$24,$B53:$Q53),2,0) -> 993 | AS38: H05
A39: H15 | B39: 610 | C39: 225 | D39: 790 | E39: 600 | F39: 1067 | G39: 1933 | H39: 1034 | I39: 975 | J39: 1166 | K39: 900 | L39: 500 | M39: 0 | N39: 550 | O39: 500 | P39: 2900 | Q39: 1800 | R39: 2017-12-01 | AA39: =HLOOKUP(AA$2,CHOOSE({1;2},$B$24:$Q$24,$B54:$Q54),2,0) -> 900 | AB39: =HLOOKUP(AB$2,CHOOSE({1;2},$B$24:$Q$24,$B54:$Q54),2,0) ->  | AC39: =HLOOKUP(AC$2,CHOOSE({1;2},$B$24:$Q$24,$B54:$Q54),2,0) ->  | AD39: =HLOOKUP(AD$2,CHOOSE({1;2},$B$24:$Q$24,$B54:$Q54),2,0) -> 600 | AE39: =HLOOKUP(AE$2,CHOOSE({1;2},$B$24:$Q$24,$B54:$Q54),2,0) -> 550 | AF39: =HLOOKUP(AF$2,CHOOSE({1;2},$B$24:$Q$24,$B54:$Q54),2,0) -> 500 | AG39: =HLOOKUP(AG$2,CHOOSE({1;2},$B$24:$Q$24,$B54:$Q54),2,0) -> 1819 | AH39: =HLOOKUP(AH$2,CHOOSE({1;2},$B$24:$Q$24,$B54:$Q54),2,0) -> 998 | AI39: =HLOOKUP(AI$2,CHOOSE({1;2},$B$24:$Q$24,$B54:$Q54),2,0) ->  | AJ39: =HLOOKUP(AJ$2,CHOOSE({1;2},$B$24:$Q$24,$B54:$Q54),2,0) -> 655 | AK39: =HLOOKUP(AK$2,CHOOSE({1;2},$B$24:$Q$24,$B54:$Q54),2,0) -> 202 | AL39: =HLOOKUP(AL$2,CHOOSE({1;2},$B$24:$Q$24,$B54:$Q54),2,0) -> 745 | AM39: =HLOOKUP(AM$2,CHOOSE({1;2},$B$24:$Q$24,$B54:$Q54),2,0) ->  | AN39: =HLOOKUP(AN$2,CHOOSE({1;2},$B$24:$Q$24,$B54:$Q54),2,0) -> 1208 | AO39: =HLOOKUP(AO$2,CHOOSE({1;2},$B$24:$Q$24,$B54:$Q54),2,0) ->  | AP39: =HLOOKUP(AP$2,CHOOSE({1;2},$B$24:$Q$24,$B54:$Q54),2,0) ->  | AQ39: =HLOOKUP(AQ$2,CHOOSE({1;2},$B$24:$Q$24,$B54:$Q54),2,0) -> 1181 | AR39: =HLOOKUP(AR$2,CHOOSE({1;2},$B$24:$Q$24,$B54:$Q54),2,0) -> 992 | AS39: H06
A40: H16 | B40: 610 | C40: 225 | D40: 790 | E40: 600 | F40: 1067 | G40: 1933 | H40: 1033 | I40: 975 | J40: 1167 | K40: 900 | L40: 500 | M40: 0 | N40: 550 | O40: 500 | P40: 2900 | Q40: 1800 | R40: 2017-12-01 | AA40: =HLOOKUP(AA$2,CHOOSE({1;2},$B$24:$Q$24,$B55:$Q55),2,0) -> 900 | AB40: =HLOOKUP(AB$2,CHOOSE({1;2},$B$24:$Q$24,$B55:$Q55),2,0) ->  | AC40: =HLOOKUP(AC$2,CHOOSE({1;2},$B$24:$Q$24,$B55:$Q55),2,0) ->  | AD40: =HLOOKUP(AD$2,CHOOSE({1;2},$B$24:$Q$24,$B55:$Q55),2,0) -> 600 | AE40: =HLOOKUP(AE$2,CHOOSE({1;2},$B$24:$Q$24,$B55:$Q55),2,0) -> 550 | AF40: =HLOOKUP(AF$2,CHOOSE({1;2},$B$24:$Q$24,$B55:$Q55),2,0) -> 500 | AG40: =HLOOKUP(AG$2,CHOOSE({1;2},$B$24:$Q$24,$B55:$Q55),2,0) -> 1820 | AH40: =HLOOKUP(AH$2,CHOOSE({1;2},$B$24:$Q$24,$B55:$Q55),2,0) -> 998 | AI40: =HLOOKUP(AI$2,CHOOSE({1;2},$B$24:$Q$24,$B55:$Q55),2,0) ->  | AJ40: =HLOOKUP(AJ$2,CHOOSE({1;2},$B$24:$Q$24,$B55:$Q55),2,0) -> 640 | AK40: =HLOOKUP(AK$2,CHOOSE({1;2},$B$24:$Q$24,$B55:$Q55),2,0) -> 202 | AL40: =HLOOKUP(AL$2,CHOOSE({1;2},$B$24:$Q$24,$B55:$Q55),2,0) -> 760 | AM40: =HLOOKUP(AM$2,CHOOSE({1;2},$B$24:$Q$24,$B55:$Q55),2,0) ->  | AN40: =HLOOKUP(AN$2,CHOOSE({1;2},$B$24:$Q$24,$B55:$Q55),2,0) -> 1130 | AO40: =HLOOKUP(AO$2,CHOOSE({1;2},$B$24:$Q$24,$B55:$Q55),2,0) ->  | AP40: =HLOOKUP(AP$2,CHOOSE({1;2},$B$24:$Q$24,$B55:$Q55),2,0) ->  | AQ40: =HLOOKUP(AQ$2,CHOOSE({1;2},$B$24:$Q$24,$B55:$Q55),2,0) -> 1180 | AR40: =HLOOKUP(AR$2,CHOOSE({1;2},$B$24:$Q$24,$B55:$Q55),2,0) -> 1070 | AS40: H07
A41: H17 | B41: 610 | C41: 225 | D41: 790 | E41: 600 | F41: 1067 | G41: 1933 | H41: 1016 | I41: 975 | J41: 1184 | K41: 900 | L41: 500 | M41: 0 | N41: 550 | O41: 500 | P41: 2900 | Q41: 1800 | R41: 2017-12-01 | AA41: =HLOOKUP(AA$2,CHOOSE({1;2},$B$24:$Q$24,$B56:$Q56),2,0) -> 900 | AB41: =HLOOKUP(AB$2,CHOOSE({1;2},$B$24:$Q$24,$B56:$Q56),2,0) ->  | AC41: =HLOOKUP(AC$2,CHOOSE({1;2},$B$24:$Q$24,$B56:$Q56),2,0) ->  | AD41: =HLOOKUP(AD$2,CHOOSE({1;2},$B$24:$Q$24,$B56:$Q56),2,0) -> 600 | AE41: =HLOOKUP(AE$2,CHOOSE({1;2},$B$24:$Q$24,$B56:$Q56),2,0) -> 550 | AF41: =HLOOKUP(AF$2,CHOOSE({1;2},$B$24:$Q$24,$B56:$Q56),2,0) -> 500 | AG41: =HLOOKUP(AG$2,CHOOSE({1;2},$B$24:$Q$24,$B56:$Q56),2,0) -> 1821 | AH41: =HLOOKUP(AH$2,CHOOSE({1;2},$B$24:$Q$24,$B56:$Q56),2,0) -> 998 | AI41: =HLOOKUP(AI$2,CHOOSE({1;2},$B$24:$Q$24,$B56:$Q56),2,0) ->  | AJ41: =HLOOKUP(AJ$2,CHOOSE({1;2},$B$24:$Q$24,$B56:$Q56),2,0) -> 640 | AK41: =HLOOKUP(AK$2,CHOOSE({1;2},$B$24:$Q$24,$B56:$Q56),2,0) -> 202 | AL41: =HLOOKUP(AL$2,CHOOSE({1;2},$B$24:$Q$24,$B56:$Q56),2,0) -> 760 | AM41: =HLOOKUP(AM$2,CHOOSE({1;2},$B$24:$Q$24,$B56:$Q56),2,0) ->  | AN41: =HLOOKUP(AN$2,CHOOSE({1;2},$B$24:$Q$24,$B56:$Q56),2,0) -> 1107 | AO41: =HLOOKUP(AO$2,CHOOSE({1;2},$B$24:$Q$24,$B56:$Q56),2,0) ->  | AP41: =HLOOKUP(AP$2,CHOOSE({1;2},$B$24:$Q$24,$B56:$Q56),2,0) ->  | AQ41: =HLOOKUP(AQ$2,CHOOSE({1;2},$B$24:$Q$24,$B56:$Q56),2,0) -> 1179 | AR41: =HLOOKUP(AR$2,CHOOSE({1;2},$B$24:$Q$24,$B56:$Q56),2,0) -> 1093 | AS41: H08
A42: H18 | B42: 610 | C42: 225 | D42: 790 | E42: 600 | F42: 1067 | G42: 1933 | H42: 1030 | I42: 975 | J42: 1170 | K42: 900 | L42: 500 | M42: 0 | N42: 550 | O42: 500 | P42: 2900 | Q42: 2100 | R42: 2017-12-01 | AA42: =HLOOKUP(AA$2,CHOOSE({1;2},$B$24:$Q$24,$B57:$Q57),2,0) -> 900 | AB42: =HLOOKUP(AB$2,CHOOSE({1;2},$B$24:$Q$24,$B57:$Q57),2,0) ->  | AC42: =HLOOKUP(AC$2,CHOOSE({1;2},$B$24:$Q$24,$B57:$Q57),2,0) ->  | AD42: =HLOOKUP(AD$2,CHOOSE({1;2},$B$24:$Q$24,$B57:$Q57),2,0) -> 600 | AE42: =HLOOKUP(AE$2,CHOOSE({1;2},$B$24:$Q$24,$B57:$Q57),2,0) -> 550 | AF42: =HLOOKUP(AF$2,CHOOSE({1;2},$B$24:$Q$24,$B57:$Q57),2,0) -> 500 | AG42: =HLOOKUP(AG$2,CHOOSE({1;2},$B$24:$Q$24,$B57:$Q57),2,0) -> 1831 | AH42: =HLOOKUP(AH$2,CHOOSE({1;2},$B$24:$Q$24,$B57:$Q57),2,0) -> 998 | AI42: =HLOOKUP(AI$2,CHOOSE({1;2},$B$24:$Q$24,$B57:$Q57),2,0) ->  | AJ42: =HLOOKUP(AJ$2,CHOOSE({1;2},$B$24:$Q$24,$B57:$Q57),2,0) -> 610 | AK42: =HLOOKUP(AK$2,CHOOSE({1;2},$B$24:$Q$24,$B57:$Q57),2,0) -> 202 | AL42: =HLOOKUP(AL$2,CHOOSE({1;2},$B$24:$Q$24,$B57:$Q57),2,0) -> 790 | AM42: =HLOOKUP(AM$2,CHOOSE({1;2},$B$24:$Q$24,$B57:$Q57),2,0) ->  | AN42: =HLOOKUP(AN$2,CHOOSE({1;2},$B$24:$Q$24,$B57:$Q57),2,0) -> 1127 | AO42: =HLOOKUP(AO$2,CHOOSE({1;2},$B$24:$Q$24,$B57:$Q57),2,0) ->  | AP42: =HLOOKUP(AP$2,CHOOSE({1;2},$B$24:$Q$24,$B57:$Q57),2,0) ->  | AQ42: =HLOOKUP(AQ$2,CHOOSE({1;2},$B$24:$Q$24,$B57:$Q57),2,0) -> 1169 | AR42: =HLOOKUP(AR$2,CHOOSE({1;2},$B$24:$Q$24,$B57:$Q57),2,0) -> 1073 | AS42: H09
A43: H19 | B43: 610 | C43: 225 | D43: 790 | E43: 600 | F43: 1067 | G43: 1933 | H43: 1027 | I43: 975 | J43: 1173 | K43: 900 | L43: 500 | M43: 0 | N43: 550 | O43: 500 | P43: 2900 | Q43: 1800 | R43: 2017-12-01 | AA43: =HLOOKUP(AA$2,CHOOSE({1;2},$B$24:$Q$24,$B58:$Q58),2,0) -> 900 | AB43: =HLOOKUP(AB$2,CHOOSE({1;2},$B$24:$Q$24,$B58:$Q58),2,0) ->  | AC43: =HLOOKUP(AC$2,CHOOSE({1;2},$B$24:$Q$24,$B58:$Q58),2,0) ->  | AD43: =HLOOKUP(AD$2,CHOOSE({1;2},$B$24:$Q$24,$B58:$Q58),2,0) -> 600 | AE43: =HLOOKUP(AE$2,CHOOSE({1;2},$B$24:$Q$24,$B58:$Q58),2,0) -> 550 | AF43: =HLOOKUP(AF$2,CHOOSE({1;2},$B$24:$Q$24,$B58:$Q58),2,0) -> 500 | AG43: =HLOOKUP(AG$2,CHOOSE({1;2},$B$24:$Q$24,$B58:$Q58),2,0) -> 1932 | AH43: =HLOOKUP(AH$2,CHOOSE({1;2},$B$24:$Q$24,$B58:$Q58),2,0) -> 998 | AI43: =HLOOKUP(AI$2,CHOOSE({1;2},$B$24:$Q$24,$B58:$Q58),2,0) ->  | AJ43: =HLOOKUP(AJ$2,CHOOSE({1;2},$B$24:$Q$24,$B58:$Q58),2,0) -> 610 | AK43: =HLOOKUP(AK$2,CHOOSE({1;2},$B$24:$Q$24,$B58:$Q58),2,0) -> 202 | AL43: =HLOOKUP(AL$2,CHOOSE({1;2},$B$24:$Q$24,$B58:$Q58),2,0) -> 790 | AM43: =HLOOKUP(AM$2,CHOOSE({1;2},$B$24:$Q$24,$B58:$Q58),2,0) ->  | AN43: =HLOOKUP(AN$2,CHOOSE({1;2},$B$24:$Q$24,$B58:$Q58),2,0) -> 1040 | AO43: =HLOOKUP(AO$2,CHOOSE({1;2},$B$24:$Q$24,$B58:$Q58),2,0) ->  | AP43: =HLOOKUP(AP$2,CHOOSE({1;2},$B$24:$Q$24,$B58:$Q58),2,0) ->  | AQ43: =HLOOKUP(AQ$2,CHOOSE({1;2},$B$24:$Q$24,$B58:$Q58),2,0) -> 1068 | AR43: =HLOOKUP(AR$2,CHOOSE({1;2},$B$24:$Q$24,$B58:$Q58),2,0) -> 1160 | AS43: H10
A44: H20 | B44: 610 | C44: 225 | D44: 790 | E44: 600 | F44: 1067 | G44: 1933 | H44: 1025 | I44: 975 | J44: 1175 | K44: 900 | L44: 500 | M44: 0 | N44: 550 | O44: 500 | P44: 2900 | Q44: 1900 | R44: 2017-12-01 | AA44: =HLOOKUP(AA$2,CHOOSE({1;2},$B$24:$Q$24,$B59:$Q59),2,0) -> 900 | AB44: =HLOOKUP(AB$2,CHOOSE({1;2},$B$24:$Q$24,$B59:$Q59),2,0) ->  | AC44: =HLOOKUP(AC$2,CHOOSE({1;2},$B$24:$Q$24,$B59:$Q59),2,0) ->  | AD44: =HLOOKUP(AD$2,CHOOSE({1;2},$B$24:$Q$24,$B59:$Q59),2,0) -> 600 | AE44: =HLOOKUP(AE$2,CHOOSE({1;2},$B$24:$Q$24,$B59:$Q59),2,0) -> 550 | AF44: =HLOOKUP(AF$2,CHOOSE({1;2},$B$24:$Q$24,$B59:$Q59),2,0) -> 500 | AG44: =HLOOKUP(AG$2,CHOOSE({1;2},$B$24:$Q$24,$B59:$Q59),2,0) -> 1932 | AH44: =HLOOKUP(AH$2,CHOOSE({1;2},$B$24:$Q$24,$B59:$Q59),2,0) -> 998 | AI44: =HLOOKUP(AI$2,CHOOSE({1;2},$B$24:$Q$24,$B59:$Q59),2,0) ->  | AJ44: =HLOOKUP(AJ$2,CHOOSE({1;2},$B$24:$Q$24,$B59:$Q59),2,0) -> 610 | AK44: =HLOOKUP(AK$2,CHOOSE({1;2},$B$24:$Q$24,$B59:$Q59),2,0) -> 202 | AL44: =HLOOKUP(AL$2,CHOOSE({1;2},$B$24:$Q$24,$B59:$Q59),2,0) -> 790 | AM44: =HLOOKUP(AM$2,CHOOSE({1;2},$B$24:$Q$24,$B59:$Q59),2,0) ->  | AN44: =HLOOKUP(AN$2,CHOOSE({1;2},$B$24:$Q$24,$B59:$Q59),2,0) -> 1041 | AO44: =HLOOKUP(AO$2,CHOOSE({1;2},$B$24:$Q$24,$B59:$Q59),2,0) ->  | AP44: =HLOOKUP(AP$2,CHOOSE({1;2},$B$24:$Q$24,$B59:$Q59),2,0) ->  | AQ44: =HLOOKUP(AQ$2,CHOOSE({1;2},$B$24:$Q$24,$B59:$Q59),2,0) -> 1068 | AR44: =HLOOKUP(AR$2,CHOOSE({1;2},$B$24:$Q$24,$B59:$Q59),2,0) -> 1159 | AS44: H11
A45: H21 | B45: 610 | C45: 225 | D45: 790 | E45: 600 | F45: 1167 | G45: 1833 | H45: 1140 | I45: 975 | J45: 1060 | K45: 900 | L45: 500 | M45: 0 | N45: 550 | O45: 500 | P45: 2885 | Q45: 2115 | R45: 2017-12-01 | AA45: =HLOOKUP(AA$2,CHOOSE({1;2},$B$24:$Q$24,$B60:$Q60),2,0) -> 900 | AB45: =HLOOKUP(AB$2,CHOOSE({1;2},$B$24:$Q$24,$B60:$Q60),2,0) ->  | AC45: =HLOOKUP(AC$2,CHOOSE({1;2},$B$24:$Q$24,$B60:$Q60),2,0) ->  | AD45: =HLOOKUP(AD$2,CHOOSE({1;2},$B$24:$Q$24,$B60:$Q60),2,0) -> 600 | AE45: =HLOOKUP(AE$2,CHOOSE({1;2},$B$24:$Q$24,$B60:$Q60),2,0) -> 550 | AF45: =HLOOKUP(AF$2,CHOOSE({1;2},$B$24:$Q$24,$B60:$Q60),2,0) -> 500 | AG45: =HLOOKUP(AG$2,CHOOSE({1;2},$B$24:$Q$24,$B60:$Q60),2,0) -> 1933 | AH45: =HLOOKUP(AH$2,CHOOSE({1;2},$B$24:$Q$24,$B60:$Q60),2,0) -> 998 | AI45: =HLOOKUP(AI$2,CHOOSE({1;2},$B$24:$Q$24,$B60:$Q60),2,0) ->  | AJ45: =HLOOKUP(AJ$2,CHOOSE({1;2},$B$24:$Q$24,$B60:$Q60),2,0) -> 610 | AK45: =HLOOKUP(AK$2,CHOOSE({1;2},$B$24:$Q$24,$B60:$Q60),2,0) -> 202 | AL45: =HLOOKUP(AL$2,CHOOSE({1;2},$B$24:$Q$24,$B60:$Q60),2,0) -> 790 | AM45: =HLOOKUP(AM$2,CHOOSE({1;2},$B$24:$Q$24,$B60:$Q60),2,0) ->  | AN45: =HLOOKUP(AN$2,CHOOSE({1;2},$B$24:$Q$24,$B60:$Q60),2,0) -> 1041 | AO45: =HLOOKUP(AO$2,CHOOSE({1;2},$B$24:$Q$24,$B60:$Q60),2,0) ->  | AP45: =HLOOKUP(AP$2,CHOOSE({1;2},$B$24:$Q$24,$B60:$Q60),2,0) ->  | AQ45: =HLOOKUP(AQ$2,CHOOSE({1;2},$B$24:$Q$24,$B60:$Q60),2,0) -> 1067 | AR45: =HLOOKUP(AR$2,CHOOSE({1;2},$B$24:$Q$24,$B60:$Q60),2,0) -> 1159 | AS45: H12
A46: H22 | B46: 610 | C46: 225 | D46: 790 | E46: 600 | F46: 1167 | G46: 1833 | H46: 1140 | I46: 975 | J46: 1060 | K46: 900 | L46: 500 | M46: 0 | N46: 550 | O46: 500 | P46: 2885 | Q46: 2315 | R46: 2017-12-01 | AA46: =HLOOKUP(AA$2,CHOOSE({1;2},$B$24:$Q$24,$B61:$Q61),2,0) -> 900 | AB46: =HLOOKUP(AB$2,CHOOSE({1;2},$B$24:$Q$24,$B61:$Q61),2,0) ->  | AC46: =HLOOKUP(AC$2,CHOOSE({1;2},$B$24:$Q$24,$B61:$Q61),2,0) ->  | AD46: =HLOOKUP(AD$2,CHOOSE({1;2},$B$24:$Q$24,$B61:$Q61),2,0) -> 600 | AE46: =HLOOKUP(AE$2,CHOOSE({1;2},$B$24:$Q$24,$B61:$Q61),2,0) -> 550 | AF46: =HLOOKUP(AF$2,CHOOSE({1;2},$B$24:$Q$24,$B61:$Q61),2,0) -> 500 | AG46: =HLOOKUP(AG$2,CHOOSE({1;2},$B$24:$Q$24,$B61:$Q61),2,0) -> 1933 | AH46: =HLOOKUP(AH$2,CHOOSE({1;2},$B$24:$Q$24,$B61:$Q61),2,0) -> 998 | AI46: =HLOOKUP(AI$2,CHOOSE({1;2},$B$24:$Q$24,$B61:$Q61),2,0) ->  | AJ46: =HLOOKUP(AJ$2,CHOOSE({1;2},$B$24:$Q$24,$B61:$Q61),2,0) -> 610 | AK46: =HLOOKUP(AK$2,CHOOSE({1;2},$B$24:$Q$24,$B61:$Q61),2,0) -> 202 | AL46: =HLOOKUP(AL$2,CHOOSE({1;2},$B$24:$Q$24,$B61:$Q61),2,0) -> 790 | AM46: =HLOOKUP(AM$2,CHOOSE({1;2},$B$24:$Q$24,$B61:$Q61),2,0) ->  | AN46: =HLOOKUP(AN$2,CHOOSE({1;2},$B$24:$Q$24,$B61:$Q61),2,0) -> 1040 | AO46: =HLOOKUP(AO$2,CHOOSE({1;2},$B$24:$Q$24,$B61:$Q61),2,0) ->  | AP46: =HLOOKUP(AP$2,CHOOSE({1;2},$B$24:$Q$24,$B61:$Q61),2,0) ->  | AQ46: =HLOOKUP(AQ$2,CHOOSE({1;2},$B$24:$Q$24,$B61:$Q61),2,0) -> 1067 | AR46: =HLOOKUP(AR$2,CHOOSE({1;2},$B$24:$Q$24,$B61:$Q61),2,0) -> 1160 | AS46: H13
A47: H23 | B47: 615 | C47: 225 | D47: 785 | E47: 600 | F47: 1170 | G47: 1830 | H47: 1177 | I47: 975 | J47: 1023 | K47: 900 | L47: 428 | M47: 1007 | N47: 550 | O47: 500 | P47: 2863 | Q47: 2737 | R47: 2017-12-01 | AA47: =HLOOKUP(AA$2,CHOOSE({1;2},$B$24:$Q$24,$B62:$Q62),2,0) -> 900 | AB47: =HLOOKUP(AB$2,CHOOSE({1;2},$B$24:$Q$24,$B62:$Q62),2,0) ->  | AC47: =HLOOKUP(AC$2,CHOOSE({1;2},$B$24:$Q$24,$B62:$Q62),2,0) ->  | AD47: =HLOOKUP(AD$2,CHOOSE({1;2},$B$24:$Q$24,$B62:$Q62),2,0) -> 600 | AE47: =HLOOKUP(AE$2,CHOOSE({1;2},$B$24:$Q$24,$B62:$Q62),2,0) -> 550 | AF47: =HLOOKUP(AF$2,CHOOSE({1;2},$B$24:$Q$24,$B62:$Q62),2,0) -> 500 | AG47: =HLOOKUP(AG$2,CHOOSE({1;2},$B$24:$Q$24,$B62:$Q62),2,0) -> 1933 | AH47: =HLOOKUP(AH$2,CHOOSE({1;2},$B$24:$Q$24,$B62:$Q62),2,0) -> 998 | AI47: =HLOOKUP(AI$2,CHOOSE({1;2},$B$24:$Q$24,$B62:$Q62),2,0) ->  | AJ47: =HLOOKUP(AJ$2,CHOOSE({1;2},$B$24:$Q$24,$B62:$Q62),2,0) -> 610 | AK47: =HLOOKUP(AK$2,CHOOSE({1;2},$B$24:$Q$24,$B62:$Q62),2,0) -> 202 | AL47: =HLOOKUP(AL$2,CHOOSE({1;2},$B$24:$Q$24,$B62:$Q62),2,0) -> 790 | AM47: =HLOOKUP(AM$2,CHOOSE({1;2},$B$24:$Q$24,$B62:$Q62),2,0) ->  | AN47: =HLOOKUP(AN$2,CHOOSE({1;2},$B$24:$Q$24,$B62:$Q62),2,0) -> 1033 | AO47: =HLOOKUP(AO$2,CHOOSE({1;2},$B$24:$Q$24,$B62:$Q62),2,0) ->  | AP47: =HLOOKUP(AP$2,CHOOSE({1;2},$B$24:$Q$24,$B62:$Q62),2,0) ->  | AQ47: =HLOOKUP(AQ$2,CHOOSE({1;2},$B$24:$Q$24,$B62:$Q62),2,0) -> 1067 | AR47: =HLOOKUP(AR$2,CHOOSE({1;2},$B$24:$Q$24,$B62:$Q62),2,0) -> 1167 | AS47: H14
A48: H24 | B48: 615 | C48: 225 | D48: 785 | E48: 600 | F48: 1171 | G48: 1829 | H48: 1160 | I48: 975 | J48: 1040 | K48: 900 | L48: 227 | M48: 1400 | N48: 550 | O48: 500 | P48: 2863 | Q48: 2737 | R48: 2017-12-01 | AA48: =HLOOKUP(AA$2,CHOOSE({1;2},$B$24:$Q$24,$B63:$Q63),2,0) -> 900 | AB48: =HLOOKUP(AB$2,CHOOSE({1;2},$B$24:$Q$24,$B63:$Q63),2,0) ->  | AC48: =HLOOKUP(AC$2,CHOOSE({1;2},$B$24:$Q$24,$B63:$Q63),2,0) ->  | AD48: =HLOOKUP(AD$2,CHOOSE({1;2},$B$24:$Q$24,$B63:$Q63),2,0) -> 600 | AE48: =HLOOKUP(AE$2,CHOOSE({1;2},$B$24:$Q$24,$B63:$Q63),2,0) -> 550 | AF48: =HLOOKUP(AF$2,CHOOSE({1;2},$B$24:$Q$24,$B63:$Q63),2,0) -> 500 | AG48: =HLOOKUP(AG$2,CHOOSE({1;2},$B$24:$Q$24,$B63:$Q63),2,0) -> 1931 | AH48: =HLOOKUP(AH$2,CHOOSE({1;2},$B$24:$Q$24,$B63:$Q63),2,0) -> 998 | AI48: =HLOOKUP(AI$2,CHOOSE({1;2},$B$24:$Q$24,$B63:$Q63),2,0) ->  | AJ48: =HLOOKUP(AJ$2,CHOOSE({1;2},$B$24:$Q$24,$B63:$Q63),2,0) -> 610 | AK48: =HLOOKUP(AK$2,CHOOSE({1;2},$B$24:$Q$24,$B63:$Q63),2,0) -> 202 | AL48: =HLOOKUP(AL$2,CHOOSE({1;2},$B$24:$Q$24,$B63:$Q63),2,0) -> 790 | AM48: =HLOOKUP(AM$2,CHOOSE({1;2},$B$24:$Q$24,$B63:$Q63),2,0) ->  | AN48: =HLOOKUP(AN$2,CHOOSE({1;2},$B$24:$Q$24,$B63:$Q63),2,0) -> 1021 | AO48: =HLOOKUP(AO$2,CHOOSE({1;2},$B$24:$Q$24,$B63:$Q63),2,0) ->  | AP48: =HLOOKUP(AP$2,CHOOSE({1;2},$B$24:$Q$24,$B63:$Q63),2,0) ->  | AQ48: =HLOOKUP(AQ$2,CHOOSE({1;2},$B$24:$Q$24,$B63:$Q63),2,0) -> 1069 | AR48: =HLOOKUP(AR$2,CHOOSE({1;2},$B$24:$Q$24,$B63:$Q63),2,0) -> 1179 | AS48: H15
A49: H01 | B49: 655 | C49: 202 | D49: 745 | E49: 600 | F49: 1174 | G49: 1826 | H49: 1210 | I49: 998 | J49: 990 | K49: 900 | L49: 500 | M49: 1800 | N49: 550 | O49: 500 | P49: 2966 | Q49: 1934 | R49: 2017-12-02 | S49: 2 | AA49: =HLOOKUP(AA$2,CHOOSE({1;2},$B$24:$Q$24,$B64:$Q64),2,0) -> 900 | AB49: =HLOOKUP(AB$2,CHOOSE({1;2},$B$24:$Q$24,$B64:$Q64),2,0) ->  | AC49: =HLOOKUP(AC$2,CHOOSE({1;2},$B$24:$Q$24,$B64:$Q64),2,0) ->  | AD49: =HLOOKUP(AD$2,CHOOSE({1;2},$B$24:$Q$24,$B64:$Q64),2,0) -> 600 | AE49: =HLOOKUP(AE$2,CHOOSE({1;2},$B$24:$Q$24,$B64:$Q64),2,0) -> 550 | AF49: =HLOOKUP(AF$2,CHOOSE({1;2},$B$24:$Q$24,$B64:$Q64),2,0) -> 500 | AG49: =HLOOKUP(AG$2,CHOOSE({1;2},$B$24:$Q$24,$B64:$Q64),2,0) -> 1931 | AH49: =HLOOKUP(AH$2,CHOOSE({1;2},$B$24:$Q$24,$B64:$Q64),2,0) -> 998 | AI49: =HLOOKUP(AI$2,CHOOSE({1;2},$B$24:$Q$24,$B64:$Q64),2,0) ->  | AJ49: =HLOOKUP(AJ$2,CHOOSE({1;2},$B$24:$Q$24,$B64:$Q64),2,0) -> 610 | AK49: =HLOOKUP(AK$2,CHOOSE({1;2},$B$24:$Q$24,$B64:$Q64),2,0) -> 202 | AL49: =HLOOKUP(AL$2,CHOOSE({1;2},$B$24:$Q$24,$B64:$Q64),2,0) -> 790 | AM49: =HLOOKUP(AM$2,CHOOSE({1;2},$B$24:$Q$24,$B64:$Q64),2,0) ->  | AN49: =HLOOKUP(AN$2,CHOOSE({1;2},$B$24:$Q$24,$B64:$Q64),2,0) -> 1021 | AO49: =HLOOKUP(AO$2,CHOOSE({1;2},$B$24:$Q$24,$B64:$Q64),2,0) ->  | AP49: =HLOOKUP(AP$2,CHOOSE({1;2},$B$24:$Q$24,$B64:$Q64),2,0) ->  | AQ49: =HLOOKUP(AQ$2,CHOOSE({1;2},$B$24:$Q$24,$B64:$Q64),2,0) -> 1069 | AR49: =HLOOKUP(AR$2,CHOOSE({1;2},$B$24:$Q$24,$B64:$Q64),2,0) -> 1179 | AS49: H16
A50: H02 | B50: 655 | C50: 202 | D50: 745 | E50: 600 | F50: 1174 | G50: 1826 | H50: 1208 | I50: 998 | J50: 992 | K50: 900 | L50: 378 | M50: 1800 | N50: 550 | O50: 500 | P50: 2966 | Q50: 1934 | R50: 2017-12-02 | AA50: =HLOOKUP(AA$2,CHOOSE({1;2},$B$24:$Q$24,$B65:$Q65),2,0) -> 900 | AB50: =HLOOKUP(AB$2,CHOOSE({1;2},$B$24:$Q$24,$B65:$Q65),2,0) ->  | AC50: =HLOOKUP(AC$2,CHOOSE({1;2},$B$24:$Q$24,$B65:$Q65),2,0) ->  | AD50: =HLOOKUP(AD$2,CHOOSE({1;2},$B$24:$Q$24,$B65:$Q65),2,0) -> 600 | AE50: =HLOOKUP(AE$2,CHOOSE({1;2},$B$24:$Q$24,$B65:$Q65),2,0) -> 550 | AF50: =HLOOKUP(AF$2,CHOOSE({1;2},$B$24:$Q$24,$B65:$Q65),2,0) -> 500 | AG50: =HLOOKUP(AG$2,CHOOSE({1;2},$B$24:$Q$24,$B65:$Q65),2,0) -> 1933 | AH50: =HLOOKUP(AH$2,CHOOSE({1;2},$B$24:$Q$24,$B65:$Q65),2,0) -> 998 | AI50: =HLOOKUP(AI$2,CHOOSE({1;2},$B$24:$Q$24,$B65:$Q65),2,0) ->  | AJ50: =HLOOKUP(AJ$2,CHOOSE({1;2},$B$24:$Q$24,$B65:$Q65),2,0) -> 610 | AK50: =HLOOKUP(AK$2,CHOOSE({1;2},$B$24:$Q$24,$B65:$Q65),2,0) -> 202 | AL50: =HLOOKUP(AL$2,CHOOSE({1;2},$B$24:$Q$24,$B65:$Q65),2,0) -> 790 | AM50: =HLOOKUP(AM$2,CHOOSE({1;2},$B$24:$Q$24,$B65:$Q65),2,0) ->  | AN50: =HLOOKUP(AN$2,CHOOSE({1;2},$B$24:$Q$24,$B65:$Q65),2,0) -> 1023 | AO50: =HLOOKUP(AO$2,CHOOSE({1;2},$B$24:$Q$24,$B65:$Q65),2,0) ->  | AP50: =HLOOKUP(AP$2,CHOOSE({1;2},$B$24:$Q$24,$B65:$Q65),2,0) ->  | AQ50: =HLOOKUP(AQ$2,CHOOSE({1;2},$B$24:$Q$24,$B65:$Q65),2,0) -> 1067 | AR50: =HLOOKUP(AR$2,CHOOSE({1;2},$B$24:$Q$24,$B65:$Q65),2,0) -> 1177 | AS50: H17
A51: H03 | B51: 655 | C51: 202 | D51: 745 | E51: 600 | F51: 1174 | G51: 1826 | H51: 1207 | I51: 998 | J51: 993 | K51: 900 | L51: 255 | M51: 1800 | N51: 550 | O51: 500 | P51: 2966 | Q51: 1834 | R51: 2017-12-02 | AA51: =HLOOKUP(AA$2,CHOOSE({1;2},$B$24:$Q$24,$B66:$Q66),2,0) -> 900 | AB51: =HLOOKUP(AB$2,CHOOSE({1;2},$B$24:$Q$24,$B66:$Q66),2,0) ->  | AC51: =HLOOKUP(AC$2,CHOOSE({1;2},$B$24:$Q$24,$B66:$Q66),2,0) ->  | AD51: =HLOOKUP(AD$2,CHOOSE({1;2},$B$24:$Q$24,$B66:$Q66),2,0) -> 600 | AE51: =HLOOKUP(AE$2,CHOOSE({1;2},$B$24:$Q$24,$B66:$Q66),2,0) -> 550 | AF51: =HLOOKUP(AF$2,CHOOSE({1;2},$B$24:$Q$24,$B66:$Q66),2,0) -> 500 | AG51: =HLOOKUP(AG$2,CHOOSE({1;2},$B$24:$Q$24,$B66:$Q66),2,0) -> 1933 | AH51: =HLOOKUP(AH$2,CHOOSE({1;2},$B$24:$Q$24,$B66:$Q66),2,0) -> 998 | AI51: =HLOOKUP(AI$2,CHOOSE({1;2},$B$24:$Q$24,$B66:$Q66),2,0) ->  | AJ51: =HLOOKUP(AJ$2,CHOOSE({1;2},$B$24:$Q$24,$B66:$Q66),2,0) -> 610 | AK51: =HLOOKUP(AK$2,CHOOSE({1;2},$B$24:$Q$24,$B66:$Q66),2,0) -> 202 | AL51: =HLOOKUP(AL$2,CHOOSE({1;2},$B$24:$Q$24,$B66:$Q66),2,0) -> 790 | AM51: =HLOOKUP(AM$2,CHOOSE({1;2},$B$24:$Q$24,$B66:$Q66),2,0) ->  | AN51: =HLOOKUP(AN$2,CHOOSE({1;2},$B$24:$Q$24,$B66:$Q66),2,0) -> 1047 | AO51: =HLOOKUP(AO$2,CHOOSE({1;2},$B$24:$Q$24,$B66:$Q66),2,0) ->  | AP51: =HLOOKUP(AP$2,CHOOSE({1;2},$B$24:$Q$24,$B66:$Q66),2,0) ->  | AQ51: =HLOOKUP(AQ$2,CHOOSE({1;2},$B$24:$Q$24,$B66:$Q66),2,0) -> 1067 | AR51: =HLOOKUP(AR$2,CHOOSE({1;2},$B$24:$Q$24,$B66:$Q66),2,0) -> 1153 | AS51: H18
A52: H04 | B52: 655 | C52: 202 | D52: 745 | E52: 600 | F52: 1184 | G52: 1816 | H52: 1207 | I52: 998 | J52: 993 | K52: 900 | L52: 241 | M52: 1800 | N52: 550 | O52: 500 | P52: 2966 | Q52: 2134 | R52: 2017-12-02 | AA52: =HLOOKUP(AA$2,CHOOSE({1;2},$B$24:$Q$24,$B67:$Q67),2,0) -> 900 | AB52: =HLOOKUP(AB$2,CHOOSE({1;2},$B$24:$Q$24,$B67:$Q67),2,0) ->  | AC52: =HLOOKUP(AC$2,CHOOSE({1;2},$B$24:$Q$24,$B67:$Q67),2,0) ->  | AD52: =HLOOKUP(AD$2,CHOOSE({1;2},$B$24:$Q$24,$B67:$Q67),2,0) -> 600 | AE52: =HLOOKUP(AE$2,CHOOSE({1;2},$B$24:$Q$24,$B67:$Q67),2,0) -> 550 | AF52: =HLOOKUP(AF$2,CHOOSE({1;2},$B$24:$Q$24,$B67:$Q67),2,0) -> 500 | AG52: =HLOOKUP(AG$2,CHOOSE({1;2},$B$24:$Q$24,$B67:$Q67),2,0) -> 1933 | AH52: =HLOOKUP(AH$2,CHOOSE({1;2},$B$24:$Q$24,$B67:$Q67),2,0) -> 998 | AI52: =HLOOKUP(AI$2,CHOOSE({1;2},$B$24:$Q$24,$B67:$Q67),2,0) ->  | AJ52: =HLOOKUP(AJ$2,CHOOSE({1;2},$B$24:$Q$24,$B67:$Q67),2,0) -> 610 | AK52: =HLOOKUP(AK$2,CHOOSE({1;2},$B$24:$Q$24,$B67:$Q67),2,0) -> 202 | AL52: =HLOOKUP(AL$2,CHOOSE({1;2},$B$24:$Q$24,$B67:$Q67),2,0) -> 790 | AM52: =HLOOKUP(AM$2,CHOOSE({1;2},$B$24:$Q$24,$B67:$Q67),2,0) ->  | AN52: =HLOOKUP(AN$2,CHOOSE({1;2},$B$24:$Q$24,$B67:$Q67),2,0) -> 1043 | AO52: =HLOOKUP(AO$2,CHOOSE({1;2},$B$24:$Q$24,$B67:$Q67),2,0) ->  | AP52: =HLOOKUP(AP$2,CHOOSE({1;2},$B$24:$Q$24,$B67:$Q67),2,0) ->  | AQ52: =HLOOKUP(AQ$2,CHOOSE({1;2},$B$24:$Q$24,$B67:$Q67),2,0) -> 1067 | AR52: =HLOOKUP(AR$2,CHOOSE({1;2},$B$24:$Q$24,$B67:$Q67),2,0) -> 1157 | AS52: H19
A53: H05 | B53: 655 | C53: 202 | D53: 745 | E53: 600 | F53: 1185 | G53: 1815 | H53: 1207 | I53: 998 | J53: 993 | K53: 900 | L53: 275 | M53: 1800 | N53: 550 | O53: 500 | P53: 2966 | Q53: 2234 | R53: 2017-12-02 | AA53: =HLOOKUP(AA$2,CHOOSE({1;2},$B$24:$Q$24,$B68:$Q68),2,0) -> 900 | AB53: =HLOOKUP(AB$2,CHOOSE({1;2},$B$24:$Q$24,$B68:$Q68),2,0) ->  | AC53: =HLOOKUP(AC$2,CHOOSE({1;2},$B$24:$Q$24,$B68:$Q68),2,0) ->  | AD53: =HLOOKUP(AD$2,CHOOSE({1;2},$B$24:$Q$24,$B68:$Q68),2,0) -> 600 | AE53: =HLOOKUP(AE$2,CHOOSE({1;2},$B$24:$Q$24,$B68:$Q68),2,0) -> 550 | AF53: =HLOOKUP(AF$2,CHOOSE({1;2},$B$24:$Q$24,$B68:$Q68),2,0) -> 500 | AG53: =HLOOKUP(AG$2,CHOOSE({1;2},$B$24:$Q$24,$B68:$Q68),2,0) -> 1933 | AH53: =HLOOKUP(AH$2,CHOOSE({1;2},$B$24:$Q$24,$B68:$Q68),2,0) -> 998 | AI53: =HLOOKUP(AI$2,CHOOSE({1;2},$B$24:$Q$24,$B68:$Q68),2,0) ->  | AJ53: =HLOOKUP(AJ$2,CHOOSE({1;2},$B$24:$Q$24,$B68:$Q68),2,0) -> 610 | AK53: =HLOOKUP(AK$2,CHOOSE({1;2},$B$24:$Q$24,$B68:$Q68),2,0) -> 202 | AL53: =HLOOKUP(AL$2,CHOOSE({1;2},$B$24:$Q$24,$B68:$Q68),2,0) -> 790 | AM53: =HLOOKUP(AM$2,CHOOSE({1;2},$B$24:$Q$24,$B68:$Q68),2,0) ->  | AN53: =HLOOKUP(AN$2,CHOOSE({1;2},$B$24:$Q$24,$B68:$Q68),2,0) -> 1038 | AO53: =HLOOKUP(AO$2,CHOOSE({1;2},$B$24:$Q$24,$B68:$Q68),2,0) ->  | AP53: =HLOOKUP(AP$2,CHOOSE({1;2},$B$24:$Q$24,$B68:$Q68),2,0) ->  | AQ53: =HLOOKUP(AQ$2,CHOOSE({1;2},$B$24:$Q$24,$B68:$Q68),2,0) -> 1067 | AR53: =HLOOKUP(AR$2,CHOOSE({1;2},$B$24:$Q$24,$B68:$Q68),2,0) -> 1162 | AS53: H20
A54: H06 | B54: 655 | C54: 202 | D54: 745 | E54: 600 | F54: 1181 | G54: 1819 | H54: 1208 | I54: 998 | J54: 992 | K54: 900 | L54: 389 | M54: 1800 | N54: 550 | O54: 500 | P54: 2966 | Q54: 2034 | R54: 2017-12-02 | AA54: =HLOOKUP(AA$2,CHOOSE({1;2},$B$24:$Q$24,$B69:$Q69),2,0) -> 900 | AB54: =HLOOKUP(AB$2,CHOOSE({1;2},$B$24:$Q$24,$B69:$Q69),2,0) ->  | AC54: =HLOOKUP(AC$2,CHOOSE({1;2},$B$24:$Q$24,$B69:$Q69),2,0) ->  | AD54: =HLOOKUP(AD$2,CHOOSE({1;2},$B$24:$Q$24,$B69:$Q69),2,0) -> 600 | AE54: =HLOOKUP(AE$2,CHOOSE({1;2},$B$24:$Q$24,$B69:$Q69),2,0) -> 550 | AF54: =HLOOKUP(AF$2,CHOOSE({1;2},$B$24:$Q$24,$B69:$Q69),2,0) -> 500 | AG54: =HLOOKUP(AG$2,CHOOSE({1;2},$B$24:$Q$24,$B69:$Q69),2,0) -> 1833 | AH54: =HLOOKUP(AH$2,CHOOSE({1;2},$B$24:$Q$24,$B69:$Q69),2,0) -> 998 | AI54: =HLOOKUP(AI$2,CHOOSE({1;2},$B$24:$Q$24,$B69:$Q69),2,0) ->  | AJ54: =HLOOKUP(AJ$2,CHOOSE({1;2},$B$24:$Q$24,$B69:$Q69),2,0) -> 640 | AK54: =HLOOKUP(AK$2,CHOOSE({1;2},$B$24:$Q$24,$B69:$Q69),2,0) -> 202 | AL54: =HLOOKUP(AL$2,CHOOSE({1;2},$B$24:$Q$24,$B69:$Q69),2,0) -> 760 | AM54: =HLOOKUP(AM$2,CHOOSE({1;2},$B$24:$Q$24,$B69:$Q69),2,0) ->  | AN54: =HLOOKUP(AN$2,CHOOSE({1;2},$B$24:$Q$24,$B69:$Q69),2,0) -> 1146 | AO54: =HLOOKUP(AO$2,CHOOSE({1;2},$B$24:$Q$24,$B69:$Q69),2,0) ->  | AP54: =HLOOKUP(AP$2,CHOOSE({1;2},$B$24:$Q$24,$B69:$Q69),2,0) ->  | AQ54: =HLOOKUP(AQ$2,CHOOSE({1;2},$B$24:$Q$24,$B69:$Q69),2,0) -> 1167 | AR54: =HLOOKUP(AR$2,CHOOSE({1;2},$B$24:$Q$24,$B69:$Q69),2,0) -> 1054 | AS54: H21
A55: H07 | B55: 640 | C55: 202 | D55: 760 | E55: 600 | F55: 1180 | G55: 1820 | H55: 1130 | I55: 998 | J55: 1070 | K55: 900 | L55: 500 | M55: 678 | N55: 550 | O55: 500 | P55: 2993 | Q55: 1907 | R55: 2017-12-02 | AA55: =HLOOKUP(AA$2,CHOOSE({1;2},$B$24:$Q$24,$B70:$Q70),2,0) -> 900 | AB55: =HLOOKUP(AB$2,CHOOSE({1;2},$B$24:$Q$24,$B70:$Q70),2,0) ->  | AC55: =HLOOKUP(AC$2,CHOOSE({1;2},$B$24:$Q$24,$B70:$Q70),2,0) ->  | AD55: =HLOOKUP(AD$2,CHOOSE({1;2},$B$24:$Q$24,$B70:$Q70),2,0) -> 600 | AE55: =HLOOKUP(AE$2,CHOOSE({1;2},$B$24:$Q$24,$B70:$Q70),2,0) -> 550 | AF55: =HLOOKUP(AF$2,CHOOSE({1;2},$B$24:$Q$24,$B70:$Q70),2,0) -> 500 | AG55: =HLOOKUP(AG$2,CHOOSE({1;2},$B$24:$Q$24,$B70:$Q70),2,0) -> 1832 | AH55: =HLOOKUP(AH$2,CHOOSE({1;2},$B$24:$Q$24,$B70:$Q70),2,0) -> 998 | AI55: =HLOOKUP(AI$2,CHOOSE({1;2},$B$24:$Q$24,$B70:$Q70),2,0) ->  | AJ55: =HLOOKUP(AJ$2,CHOOSE({1;2},$B$24:$Q$24,$B70:$Q70),2,0) -> 640 | AK55: =HLOOKUP(AK$2,CHOOSE({1;2},$B$24:$Q$24,$B70:$Q70),2,0) -> 202 | AL55: =HLOOKUP(AL$2,CHOOSE({1;2},$B$24:$Q$24,$B70:$Q70),2,0) -> 760 | AM55: =HLOOKUP(AM$2,CHOOSE({1;2},$B$24:$Q$24,$B70:$Q70),2,0) ->  | AN55: =HLOOKUP(AN$2,CHOOSE({1;2},$B$24:$Q$24,$B70:$Q70),2,0) -> 1138 | AO55: =HLOOKUP(AO$2,CHOOSE({1;2},$B$24:$Q$24,$B70:$Q70),2,0) ->  | AP55: =HLOOKUP(AP$2,CHOOSE({1;2},$B$24:$Q$24,$B70:$Q70),2,0) ->  | AQ55: =HLOOKUP(AQ$2,CHOOSE({1;2},$B$24:$Q$24,$B70:$Q70),2,0) -> 1168 | AR55: =HLOOKUP(AR$2,CHOOSE({1;2},$B$24:$Q$24,$B70:$Q70),2,0) -> 1062 | AS55: H22
A56: H08 | B56: 640 | C56: 202 | D56: 760 | E56: 600 | F56: 1179 | G56: 1821 | H56: 1107 | I56: 998 | J56: 1093 | K56: 900 | L56: 0 | M56: 744 | N56: 550 | O56: 500 | P56: 2993 | Q56: 1807 | R56: 2017-12-02 | AA56: =HLOOKUP(AA$2,CHOOSE({1;2},$B$24:$Q$24,$B71:$Q71),2,0) -> 900 | AB56: =HLOOKUP(AB$2,CHOOSE({1;2},$B$24:$Q$24,$B71:$Q71),2,0) ->  | AC56: =HLOOKUP(AC$2,CHOOSE({1;2},$B$24:$Q$24,$B71:$Q71),2,0) ->  | AD56: =HLOOKUP(AD$2,CHOOSE({1;2},$B$24:$Q$24,$B71:$Q71),2,0) -> 600 | AE56: =HLOOKUP(AE$2,CHOOSE({1;2},$B$24:$Q$24,$B71:$Q71),2,0) -> 550 | AF56: =HLOOKUP(AF$2,CHOOSE({1;2},$B$24:$Q$24,$B71:$Q71),2,0) -> 500 | AG56: =HLOOKUP(AG$2,CHOOSE({1;2},$B$24:$Q$24,$B71:$Q71),2,0) -> 1832 | AH56: =HLOOKUP(AH$2,CHOOSE({1;2},$B$24:$Q$24,$B71:$Q71),2,0) -> 998 | AI56: =HLOOKUP(AI$2,CHOOSE({1;2},$B$24:$Q$24,$B71:$Q71),2,0) ->  | AJ56: =HLOOKUP(AJ$2,CHOOSE({1;2},$B$24:$Q$24,$B71:$Q71),2,0) -> 645 | AK56: =HLOOKUP(AK$2,CHOOSE({1;2},$B$24:$Q$24,$B71:$Q71),2,0) -> 202 | AL56: =HLOOKUP(AL$2,CHOOSE({1;2},$B$24:$Q$24,$B71:$Q71),2,0) -> 755 | AM56: =HLOOKUP(AM$2,CHOOSE({1;2},$B$24:$Q$24,$B71:$Q71),2,0) ->  | AN56: =HLOOKUP(AN$2,CHOOSE({1;2},$B$24:$Q$24,$B71:$Q71),2,0) -> 1154 | AO56: =HLOOKUP(AO$2,CHOOSE({1;2},$B$24:$Q$24,$B71:$Q71),2,0) ->  | AP56: =HLOOKUP(AP$2,CHOOSE({1;2},$B$24:$Q$24,$B71:$Q71),2,0) ->  | AQ56: =HLOOKUP(AQ$2,CHOOSE({1;2},$B$24:$Q$24,$B71:$Q71),2,0) -> 1168 | AR56: =HLOOKUP(AR$2,CHOOSE({1;2},$B$24:$Q$24,$B71:$Q71),2,0) -> 1046 | AS56: H23
A57: H09 | B57: 610 | C57: 202 | D57: 790 | E57: 600 | F57: 1169 | G57: 1831 | H57: 1127 | I57: 998 | J57: 1073 | K57: 900 | L57: 0 | M57: 543 | N57: 550 | O57: 500 | P57: 3073 | Q57: 1927 | R57: 2017-12-02 | AA57: =HLOOKUP(AA$2,CHOOSE({1;2},$B$24:$Q$24,$B72:$Q72),2,0) -> 900 | AB57: =HLOOKUP(AB$2,CHOOSE({1;2},$B$24:$Q$24,$B72:$Q72),2,0) ->  | AC57: =HLOOKUP(AC$2,CHOOSE({1;2},$B$24:$Q$24,$B72:$Q72),2,0) ->  | AD57: =HLOOKUP(AD$2,CHOOSE({1;2},$B$24:$Q$24,$B72:$Q72),2,0) -> 600 | AE57: =HLOOKUP(AE$2,CHOOSE({1;2},$B$24:$Q$24,$B72:$Q72),2,0) -> 550 | AF57: =HLOOKUP(AF$2,CHOOSE({1;2},$B$24:$Q$24,$B72:$Q72),2,0) -> 500 | AG57: =HLOOKUP(AG$2,CHOOSE({1;2},$B$24:$Q$24,$B72:$Q72),2,0) -> 1831 | AH57: =HLOOKUP(AH$2,CHOOSE({1;2},$B$24:$Q$24,$B72:$Q72),2,0) -> 998 | AI57: =HLOOKUP(AI$2,CHOOSE({1;2},$B$24:$Q$24,$B72:$Q72),2,0) ->  | AJ57: =HLOOKUP(AJ$2,CHOOSE({1;2},$B$24:$Q$24,$B72:$Q72),2,0) -> 645 | AK57: =HLOOKUP(AK$2,CHOOSE({1;2},$B$24:$Q$24,$B72:$Q72),2,0) -> 202 | AL57: =HLOOKUP(AL$2,CHOOSE({1;2},$B$24:$Q$24,$B72:$Q72),2,0) -> 755 | AM57: =HLOOKUP(AM$2,CHOOSE({1;2},$B$24:$Q$24,$B72:$Q72),2,0) ->  | AN57: =HLOOKUP(AN$2,CHOOSE({1;2},$B$24:$Q$24,$B72:$Q72),2,0) -> 1140 | AO57: =HLOOKUP(AO$2,CHOOSE({1;2},$B$24:$Q$24,$B72:$Q72),2,0) ->  | AP57: =HLOOKUP(AP$2,CHOOSE({1;2},$B$24:$Q$24,$B72:$Q72),2,0) ->  | AQ57: =HLOOKUP(AQ$2,CHOOSE({1;2},$B$24:$Q$24,$B72:$Q72),2,0) -> 1169 | AR57: =HLOOKUP(AR$2,CHOOSE({1;2},$B$24:$Q$24,$B72:$Q72),2,0) -> 1060 | AS57: H24
A58: H10 | B58: 610 | C58: 202 | D58: 790 | E58: 600 | F58: 1068 | G58: 1932 | H58: 1040 | I58: 998 | J58: 1160 | K58: 900 | L58: 0 | M58: 496 | N58: 550 | O58: 500 | P58: 3073 | Q58: 2127 | R58: 2017-12-02
A59: H11 | B59: 610 | C59: 202 | D59: 790 | E59: 600 | F59: 1068 | G59: 1932 | H59: 1041 | I59: 998 | J59: 1159 | K59: 900 | L59: 500 | M59: 547 | N59: 550 | O59: 500 | P59: 3073 | Q59: 2627 | R59: 2017-12-02
A60: H12 | B60: 610 | C60: 202 | D60: 790 | E60: 600 | F60: 1067 | G60: 1933 | H60: 1041 | I60: 998 | J60: 1159 | K60: 900 | L60: 500 | M60: 533 | N60: 550 | O60: 500 | P60: 3073 | Q60: 2627 | R60: 2017-12-02
A61: H13 | B61: 610 | C61: 202 | D61: 790 | E61: 600 | F61: 1067 | G61: 1933 | H61: 1040 | I61: 998 | J61: 1160 | K61: 900 | L61: 500 | M61: 611 | N61: 550 | O61: 500 | P61: 3073 | Q61: 2627 | R61: 2017-12-02
A62: H14 | B62: 610 | C62: 202 | D62: 790 | E62: 600 | F62: 1067 | G62: 1933 | H62: 1033 | I62: 998 | J62: 1167 | K62: 900 | L62: 500 | M62: 618 | N62: 550 | O62: 500 | P62: 3073 | Q62: 2627 | R62: 2017-12-02
A63: H15 | B63: 610 | C63: 202 | D63: 790 | E63: 600 | F63: 1069 | G63: 1931 | H63: 1021 | I63: 998 | J63: 1179 | K63: 900 | L63: 500 | M63: 602 | N63: 550 | O63: 500 | P63: 3073 | Q63: 2627 | R63: 2017-12-02
A64: H16 | B64: 610 | C64: 202 | D64: 790 | E64: 600 | F64: 1069 | G64: 1931 | H64: 1021 | I64: 998 | J64: 1179 | K64: 900 | L64: 500 | M64: 448 | N64: 550 | O64: 500 | P64: 3073 | Q64: 2327 | R64: 2017-12-02
A65: H17 | B65: 610 | C65: 202 | D65: 790 | E65: 600 | F65: 1067 | G65: 1933 | H65: 1023 | I65: 998 | J65: 1177 | K65: 900 | L65: 500 | M65: 210 | N65: 550 | O65: 500 | P65: 3073 | Q65: 2127 | R65: 2017-12-02
A66: H18 | B66: 610 | C66: 202 | D66: 790 | E66: 600 | F66: 1067 | G66: 1933 | H66: 1047 | I66: 998 | J66: 1153 | K66: 900 | L66: 500 | M66: 254 | N66: 550 | O66: 500 | P66: 3073 | Q66: 2427 | R66: 2017-12-02
A67: H19 | B67: 610 | C67: 202 | D67: 790 | E67: 600 | F67: 1067 | G67: 1933 | H67: 1043 | I67: 998 | J67: 1157 | K67: 900 | L67: 500 | M67: 284 | N67: 550 | O67: 500 | P67: 3073 | Q67: 2627 | R67: 2017-12-02
A68: H20 | B68: 610 | C68: 202 | D68: 790 | E68: 600 | F68: 1067 | G68: 1933 | H68: 1038 | I68: 998 | J68: 1162 | K68: 900 | L68: 500 | M68: 335 | N68: 550 | O68: 500 | P68: 3073 | Q68: 2327 | R68: 2017-12-02
A69: H21 | B69: 640 | C69: 202 | D69: 760 | E69: 600 | F69: 1167 | G69: 1833 | H69: 1146 | I69: 998 | J69: 1054 | K69: 900 | L69: 500 | M69: 567 | N69: 550 | O69: 500 | P69: 2993 | Q69: 2107 | R69: 2017-12-02
A70: H22 | B70: 640 | C70: 202 | D70: 760 | E70: 600 | F70: 1168 | G70: 1832 | H70: 1138 | I70: 998 | J70: 1062 | K70: 900 | L70: 500 | M70: 1326 | N70: 550 | O70: 500 | P70: 2993 | Q70: 2007 | R70: 2017-12-02
A71: H23 | B71: 645 | C71: 202 | D71: 755 | E71: 600 | F71: 1168 | G71: 1832 | H71: 1154 | I71: 998 | J71: 1046 | K71: 900 | L71: 379 | M71: 1400 | N71: 550 | O71: 500 | P71: 2971 | Q71: 1729 | R71: 2017-12-02
A72: H24 | B72: 645 | C72: 202 | D72: 755 | E72: 600 | F72: 1169 | G72: 1831 | H72: 1140 | I72: 998 | J72: 1060 | K72: 900 | L72: 249 | M72: 1400 | N72: 550 | O72: 500 | P72: 2971 | Q72: 1929 | R72: 2017-12-02
A73: H01 | B73: 700 | C73: 202 | D73: 700 | E73: 600 | F73: 1174 | G73: 1826 | H73: 1128 | I73: 998 | J73: 1072 | K73: 900 | L73: 500 | M73: 1400 | N73: 550 | O73: 500 | P73: 3012 | Q73: 1888 | R73: 2017-12-03 | S73: 3
A74: H02 | B74: 700 | C74: 202 | D74: 700 | E74: 600 | F74: 1174 | G74: 1826 | H74: 1126 | I74: 998 | J74: 1074 | K74: 900 | L74: 479 | M74: 1400 | N74: 550 | O74: 500 | P74: 3012 | Q74: 2088 | R74: 2017-12-03
A75: H03 | B75: 700 | C75: 202 | D75: 700 | E75: 600 | F75: 1174 | G75: 1826 | H75: 1125 | I75: 998 | J75: 1075 | K75: 900 | L75: 330 | M75: 1400 | N75: 550 | O75: 500 | P75: 3012 | Q75: 2388 | R75: 2017-12-03
A76: H04 | B76: 700 | C76: 202 | D76: 700 | E76: 600 | F76: 1174 | G76: 1826 | H76: 1124 | I76: 998 | J76: 1076 | K76: 900 | L76: 244 | M76: 1400 | N76: 550 | O76: 500 | P76: 3012 | Q76: 2388 | R76: 2017-12-03
A77: H05 | B77: 700 | C77: 202 | D77: 700 | E77: 600 | F77: 1175 | G77: 1825 | H77: 1123 | I77: 998 | J77: 1077 | K77: 900 | L77: 238 | M77: 1400 | N77: 550 | O77: 500 | P77: 3012 | Q77: 2288 | R77: 2017-12-03
A78: H06 | B78: 700 | C78: 202 | D78: 700 | E78: 600 | F78: 1171 | G78: 1829 | H78: 1124 | I78: 998 | J78: 1076 | K78: 900 | L78: 257 | M78: 1400 | N78: 550 | O78: 500 | P78: 3012 | Q78: 2188 | R78: 2017-12-03
A79: H07 | B79: 620 | C79: 202 | D79: 780 | E79: 600 | F79: 1171 | G79: 1829 | H79: 1126 | I79: 998 | J79: 1074 | K79: 900 | L79: 363 | M79: 524 | N79: 550 | O79: 500 | P79: 3122 | Q79: 2178 | R79: 2017-12-03
A80: H08 | B80: 615 | C80: 202 | D80: 785 | E80: 600 | F80: 1172 | G80: 1828 | H80: 1106 | I80: 998 | J80: 1094 | K80: 900 | L80: 475 | M80: 663 | N80: 550 | O80: 500 | P80: 3125 | Q80: 2475 | R80: 2017-12-03
A81: H09 | B81: 585 | C81: 202 | D81: 815 | E81: 600 | F81: 1072 | G81: 1928 | H81: 987 | I81: 998 | J81: 1213 | K81: 900 | L81: 500 | M81: 662 | N81: 550 | O81: 500 | P81: 3253 | Q81: 1647 | R81: 2017-12-03
A82: H10 | B82: 585 | C82: 202 | D82: 815 | E82: 600 | F82: 1072 | G82: 1928 | H82: 989 | I82: 998 | J82: 1211 | K82: 900 | L82: 500 | M82: 1400 | N82: 550 | O82: 500 | P82: 3253 | Q82: 1647 | R82: 2017-12-03
A83: H11 | B83: 385 | C83: 102 | D83: 615 | E83: 600 | F83: 1071 | G83: 1929 | H83: 996 | I83: 998 | J83: 1204 | K83: 900 | L83: 500 | M83: 1400 | N83: 550 | O83: 500 | P83: 3253 | Q83: 1447 | R83: 2017-12-03
A84: H12 | B84: 385 | C84: 102 | D84: 615 | E84: 600 | F84: 1070 | G84: 1930 | H84: 997 | I84: 998 | J84: 1203 | K84: 900 | L84: 500 | M84: 1400 | N84: 550 | O84: 500 | P84: 3253 | Q84: 1547 | R84: 2017-12-03
A85: H13 | B85: 385 | C85: 102 | D85: 615 | E85: 600 | F85: 1173 | G85: 1827 | H85: 1097 | I85: 998 | J85: 1103 | K85: 900 | L85: 500 | M85: 1400 | N85: 550 | O85: 500 | P85: 3253 | Q85: 1647 | R85: 2017-12-03
A86: H14 | B86: 385 | C86: 102 | D86: 615 | E86: 600 | F86: 1173 | G86: 1827 | H86: 1091 | I86: 998 | J86: 1109 | K86: 900 | L86: 500 | M86: 1400 | N86: 550 | O86: 500 | P86: 3253 | Q86: 1647 | R86: 2017-12-03
A87: H15 | B87: 385 | C87: 102 | D87: 615 | E87: 600 | F87: 1174 | G87: 1826 | H87: 1090 | I87: 998 | J87: 1110 | K87: 900 | L87: 500 | M87: 1400 | N87: 550 | O87: 500 | P87: 3253 | Q87: 1547 | R87: 2017-12-03
A88: H16 | B88: 385 | C88: 102 | D88: 615 | E88: 600 | F88: 1171 | G88: 1829 | H88: 1089 | I88: 998 | J88: 1111 | K88: 900 | L88: 500 | M88: 1400 | N88: 550 | O88: 500 | P88: 3253 | Q88: 1447 | R88: 2017-12-03
A89: H17 | B89: 385 | C89: 102 | D89: 615 | E89: 600 | F89: 1092 | G89: 1908 | H89: 988 | I89: 998 | J89: 1212 | K89: 900 | L89: 500 | M89: 1400 | N89: 550 | O89: 500 | P89: 3253 | Q89: 1547 | R89: 2017-12-03
A90: H18 | B90: 385 | C90: 102 | D90: 615 | E90: 600 | F90: 1092 | G90: 1908 | H90: 1009 | I90: 998 | J90: 1191 | K90: 900 | L90: 500 | M90: 1400 | N90: 550 | O90: 500 | P90: 3253 | Q90: 1447 | R90: 2017-12-03
A91: H19 | B91: 385 | C91: 102 | D91: 615 | E91: 600 | F91: 1192 | G91: 1808 | H91: 1114 | I91: 998 | J91: 1086 | K91: 900 | L91: 500 | M91: 1400 | N91: 550 | O91: 500 | P91: 3253 | Q91: 1347 | R91: 2017-12-03
A92: H20 | B92: 385 | C92: 102 | D92: 615 | E92: 600 | F92: 1167 | G92: 1833 | H92: 1117 | I92: 998 | J92: 1083 | K92: 900 | L92: 500 | M92: 1393 | N92: 550 | O92: 500 | P92: 3253 | Q92: 1647 | R92: 2017-12-03
A93: H21 | B93: 440 | C93: 102 | D93: 560 | E93: 600 | F93: 1067 | G93: 1933 | H93: 1047 | I93: 998 | J93: 1153 | K93: 900 | L93: 500 | M93: 1212 | N93: 550 | O93: 500 | P93: 3067 | Q93: 1333 | R93: 2017-12-03
A94: H22 | B94: 440 | C94: 102 | D94: 560 | E94: 600 | F94: 1170 | G94: 1830 | H94: 1140 | I94: 998 | J94: 1060 | K94: 900 | L94: 500 | M94: 1400 | N94: 550 | O94: 500 | P94: 3067 | Q94: 1333 | R94: 2017-12-03
A95: H23 | B95: 640 | C95: 202 | D95: 760 | E95: 600 | F95: 1171 | G95: 1829 | H95: 1147 | I95: 998 | J95: 1053 | K95: 900 | L95: 500 | M95: 1400 | N95: 550 | O95: 500 | P95: 3067 | Q95: 1333 | R95: 2017-12-03
A96: H24 | B96: 640 | C96: 202 | D96: 760 | E96: 600 | F96: 1172 | G96: 1828 | H96: 1139 | I96: 998 | J96: 1061 | K96: 900 | L96: 140 | M96: 1400 | N96: 550 | O96: 500 | P96: 3067 | Q96: 1633 | R96: 2017-12-03
A97: H01 | B97: 495 | C97: 174 | D97: 505 | E97: 600 | F97: 1175 | G97: 1825 | H97: 1168 | I97: 926 | J97: 1032 | K97: 900 | L97: 0 | M97: 1400 | N97: 550 | O97: 500 | P97: 2641 | Q97: 1759 | S97: 4
A98: H02 | B98: 495 | C98: 174 | D98: 505 | E98: 600 | F98: 1175 | G98: 1825 | H98: 1165 | I98: 926 | J98: 1035 | K98: 900 | L98: 0 | M98: 1400 | N98: 550 | O98: 500 | P98: 2841 | Q98: 1459
A99: H03 | B99: 445 | C99: 174 | D99: 555 | E99: 600 | F99: 1175 | G99: 1825 | H99: 1164 | I99: 926 | J99: 1036 | K99: 900 | L99: 0 | M99: 1400 | N99: 550 | O99: 500 | P99: 2771 | Q99: 1729
A100: H04 | B100: 445 | C100: 174 | D100: 555 | E100: 600 | F100: 1174 | G100: 1826 | H100: 1164 | I100: 926 | J100: 1036 | K100: 900 | L100: 0 | M100: 1400 | N100: 550 | O100: 500 | P100: 2571 | Q100: 1429
A101: H05 | B101: 445 | C101: 174 | D101: 555 | E101: 600 | F101: 1175 | G101: 1825 | H101: 1166 | I101: 926 | J101: 1034 | K101: 900 | L101: 0 | M101: 1400 | N101: 550 | O101: 500 | P101: 2771 | Q101: 1429
A102: H06 | B102: 440 | C102: 174 | D102: 560 | E102: 600 | F102: 1170 | G102: 1830 | H102: 1169 | I102: 926 | J102: 1031 | K102: 900 | L102: 0 | M102: 1400 | N102: 550 | O102: 500 | P102: 2793 | Q102: 1107
A103: H07 | B103: 410 | C103: 174 | D103: 590 | E103: 600 | F103: 1168 | G103: 1832 | H103: 1185 | I103: 926 | J103: 1015 | K103: 900 | L103: 156 | M103: 504 | N103: 550 | O103: 500 | P103: 2273 | Q103: 727
A104: H08 | B104: 410 | C104: 174 | D104: 590 | E104: 600 | F104: 1168 | G104: 1832 | H104: 1215 | I104: 926 | J104: 985 | K104: 900 | L104: 500 | M104: 157 | N104: 550 | O104: 500 | P104: 2273 | Q104: 1027
A105: H09 | B105: 410 | C105: 174 | D105: 590 | E105: 600 | F105: 1068 | G105: 1932 | H105: 1090 | I105: 926 | J105: 1110 | K105: 900 | L105: 500 | M105: 0 | N105: 550 | O105: 500 | P105: 2288 | Q105: 1312
A106: H10 | B106: 410 | C106: 174 | D106: 590 | E106: 600 | F106: 1068 | G106: 1932 | H106: 1090 | I106: 926 | J106: 1110 | K106: 900 | L106: 500 | M106: 0 | N106: 550 | O106: 500 | P106: 2288 | Q106: 1312
A107: H11 | B107: 410 | C107: 174 | D107: 590 | E107: 600 | F107: 1068 | G107: 1932 | H107: 1090 | I107: 926 | J107: 1110 | K107: 900 | L107: 500 | M107: 0 | N107: 550 | O107: 500 | P107: 2288 | Q107: 1112
A108: H12 | B108: 410 | C108: 174 | D108: 590 | E108: 600 | F108: 1067 | G108: 1933 | H108: 1090 | I108: 926 | J108: 1110 | K108: 900 | L108: 500 | M108: 0 | N108: 550 | O108: 500 | P108: 2288 | Q108: 1312
A109: H13 | B109: 410 | C109: 174 | D109: 590 | E109: 600 | F109: 1067 | G109: 1933 | H109: 1090 | I109: 926 | J109: 1110 | K109: 900 | L109: 500 | M109: 0 | N109: 550 | O109: 500 | P109: 2288 | Q109: 1612
A110: H14 | B110: 410 | C110: 174 | D110: 590 | E110: 600 | F110: 1167 | G110: 1833 | H110: 1190 | I110: 926 | J110: 1010 | K110: 900 | L110: 500 | M110: 0 | N110: 550 | O110: 500 | P110: 2288 | Q110: 1512
A111: H15 | B111: 410 | C111: 174 | D111: 590 | E111: 600 | F111: 1067 | G111: 1933 | H111: 1083 | I111: 926 | J111: 1117 | K111: 900 | L111: 500 | M111: 0 | N111: 550 | O111: 500 | P111: 2388 | Q111: 1312
A112: H16 | B112: 410 | C112: 174 | D112: 590 | E112: 600 | F112: 1067 | G112: 1933 | H112: 1082 | I112: 926 | J112: 1118 | K112: 900 | L112: 500 | M112: 0 | N112: 550 | O112: 500 | P112: 2688 | Q112: 1312
A113: H17 | B113: 410 | C113: 174 | D113: 590 | E113: 600 | F113: 1092 | G113: 1908 | H113: 1081 | I113: 926 | J113: 1119 | K113: 900 | L113: 500 | M113: 0 | N113: 550 | O113: 500 | P113: 2988 | Q113: 1312
A114: H18 | B114: 410 | C114: 174 | D114: 590 | E114: 600 | F114: 1083 | G114: 1917 | H114: 1090 | I114: 926 | J114: 1110 | K114: 900 | L114: 500 | M114: 0 | N114: 550 | O114: 500 | P114: 2288 | Q114: 1312
A115: H19 | B115: 410 | C115: 174 | D115: 590 | E115: 600 | F115: 1081 | G115: 1919 | H115: 1090 | I115: 926 | J115: 1110 | K115: 900 | L115: 500 | M115: 0 | N115: 550 | O115: 500 | P115: 2388 | Q115: 1312
A116: H20 | B116: 410 | C116: 174 | D116: 590 | E116: 600 | F116: 1067 | G116: 1933 | H116: 1090 | I116: 926 | J116: 1110 | K116: 900 | L116: 500 | M116: 0 | N116: 550 | O116: 500 | P116: 2588 | Q116: 1312
A117: H21 | B117: 440 | C117: 174 | D117: 560 | E117: 600 | F117: 1167 | G117: 1833 | H117: 1200 | I117: 926 | J117: 1000 | K117: 900 | L117: 500 | M117: 0 | N117: 550 | O117: 500 | P117: 2393 | Q117: 1707
A118: H22 | B118: 540 | C118: 274 | D118: 660 | E118: 600 | F118: 1167 | G118: 1833 | H118: 1200 | I118: 926 | J118: 1000 | K118: 900 | L118: 500 | M118: 702 | N118: 550 | O118: 500 | P118: 2493 | Q118: 1707
A119: H23 | B119: 540 | C119: 274 | D119: 660 | E119: 600 | F119: 1170 | G119: 1830 | H119: 1209 | I119: 926 | J119: 991 | K119: 900 | L119: 500 | M119: 1400 | N119: 550 | O119: 500 | P119: 2193 | Q119: 1807
A120: H24 | B120: 590 | C120: 274 | D120: 610 | E120: 600 | F120: 1172 | G120: 1828 | H120: 1190 | I120: 926 | J120: 1010 | K120: 900 | L120: 500 | M120: 1400 | N120: 550 | O120: 500 | P120: 2263 | Q120: 1837
A121: H01 | B121: 575 | C121: 274 | D121: 625 | E121: 600 | F121: 1181 | G121: 1819 | H121: 1273 | I121: 926 | J121: 927 | K121: 900 | L121: 0 | M121: 1400 | N121: 550 | O121: 500 | P121: 3016 | Q121: 2384 | S121: 5
A122: H02 | B122: 575 | C122: 274 | D122: 625 | E122: 600 | F122: 1184 | G122: 1816 | H122: 1273 | I122: 926 | J122: 927 | K122: 900 | L122: 0 | M122: 1400 | N122: 550 | O122: 500 | P122: 3016 | Q122: 1884
A123: H03 | B123: 525 | C123: 274 | D123: 675 | E123: 600 | F123: 1186 | G123: 1814 | H123: 1273 | I123: 926 | J123: 927 | K123: 900 | L123: 0 | M123: 1400 | N123: 550 | O123: 500 | P123: 3046 | Q123: 1954
A124: H04 | B124: 525 | C124: 274 | D124: 675 | E124: 600 | F124: 1186 | G124: 1814 | H124: 1273 | I124: 926 | J124: 927 | K124: 900 | L124: 0 | M124: 1400 | N124: 550 | O124: 500 | P124: 3046 | Q124: 2154
A125: H05 | B125: 525 | C125: 274 | D125: 675 | E125: 600 | F125: 1187 | G125: 1813 | H125: 1273 | I125: 926 | J125: 927 | K125: 900 | L125: 0 | M125: 1400 | N125: 550 | O125: 500 | P125: 3046 | Q125: 2054
A126: H06 | B126: 520 | C126: 274 | D126: 680 | E126: 600 | F126: 1178 | G126: 1822 | H126: 1273 | I126: 926 | J126: 927 | K126: 900 | L126: 103 | M126: 1400 | N126: 550 | O126: 500 | P126: 3068 | Q126: 1532
A127: H07 | B127: 410 | C127: 174 | D127: 590 | E127: 600 | F127: 1168 | G127: 1832 | H127: 1189 | I127: 926 | J127: 1011 | K127: 900 | L127: 293 | M127: 548 | N127: 550 | O127: 500 | P127: 3073 | Q127: 1927
A128: H08 | B128: 410 | C128: 174 | D128: 590 | E128: 600 | F128: 1168 | G128: 1832 | H128: 1121 | I128: 926 | J128: 1079 | K128: 900 | L128: 500 | M128: 632 | N128: 550 | O128: 500 | P128: 3073 | Q128: 1127
A129: H09 | B129: 410 | C129: 174 | D129: 590 | E129: 600 | F129: 1068 | G129: 1932 | H129: 995 | I129: 926 | J129: 1205 | K129: 900 | L129: 500 | M129: 608 | N129: 550 | O129: 500 | P129: 2788 | Q129: 1112
A130: H10 | B130: 410 | C130: 174 | D130: 590 | E130: 600 | F130: 1068 | G130: 1932 | H130: 995 | I130: 926 | J130: 1205 | K130: 900 | L130: 500 | M130: 634 | N130: 550 | O130: 500 | P130: 3088 | Q130: 1112
A131: H11 | B131: 410 | C131: 174 | D131: 590 | E131: 600 | F131: 1068 | G131: 1932 | H131: 995 | I131: 926 | J131: 1205 | K131: 900 | L131: 500 | M131: 727 | N131: 550 | O131: 500 | P131: 3088 | Q131: 1112
A132: H12 | B132: 410 | C132: 174 | D132: 590 | E132: 600 | F132: 1067 | G132: 1933 | H132: 995 | I132: 926 | J132: 1205 | K132: 900 | L132: 500 | M132: 813 | N132: 550 | O132: 500 | P132: 2488 | Q132: 1112
A133: H13 | B133: 410 | C133: 174 | D133: 590 | E133: 600 | F133: 1067 | G133: 1933 | H133: 995 | I133: 926 | J133: 1205 | K133: 900 | L133: 500 | M133: 1092 | N133: 550 | O133: 500 | P133: 2388 | Q133: 1112
A134: H14 | B134: 410 | C134: 174 | D134: 590 | E134: 600 | F134: 1167 | G134: 1833 | H134: 1093 | I134: 926 | J134: 1107 | K134: 900 | L134: 500 | M134: 1198 | N134: 550 | O134: 500 | P134: 2288 | Q134: 1112
A135: H15 | B135: 410 | C135: 174 | D135: 590 | E135: 600 | F135: 1067 | G135: 1933 | H135: 988 | I135: 926 | J135: 1212 | K135: 900 | L135: 500 | M135: 1255 | N135: 550 | O135: 500 | P135: 2288 | Q135: 1112
A136: H16 | B136: 410 | C136: 174 | D136: 590 | E136: 600 | F136: 1067 | G136: 1933 | H136: 988 | I136: 926 | J136: 1212 | K136: 900 | L136: 500 | M136: 1313 | N136: 550 | O136: 500 | P136: 2288 | Q136: 1112
A137: H17 | B137: 410 | C137: 174 | D137: 590 | E137: 600 | F137: 1090 | G137: 1910 | H137: 985 | I137: 926 | J137: 1215 | K137: 900 | L137: 500 | M137: 1302 | N137: 550 | O137: 500 | P137: 2388 | Q137: 1112
A138: H18 | B138: 410 | C138: 174 | D138: 590 | E138: 600 | F138: 1081 | G138: 1919 | H138: 995 | I138: 926 | J138: 1205 | K138: 900 | L138: 500 | M138: 1400 | N138: 550 | O138: 500 | P138: 2788 | Q138: 1112
A139: H19 | B139: 410 | C139: 174 | D139: 590 | E139: 600 | F139: 1078 | G139: 1922 | H139: 995 | I139: 926 | J139: 1205 | K139: 900 | L139: 500 | M139: 1400 | N139: 550 | O139: 500 | P139: 2288 | Q139: 1112
A140: H20 | B140: 410 | C140: 174 | D140: 590 | E140: 600 | F140: 1067 | G140: 1933 | H140: 995 | I140: 926 | J140: 1205 | K140: 900 | L140: 447 | M140: 1367 | N140: 550 | O140: 500 | P140: 2288 | Q140: 1112
A141: H21 | B141: 460 | C141: 224 | D141: 640 | E141: 600 | F141: 1167 | G141: 1833 | H141: 1105 | I141: 926 | J141: 1095 | K141: 900 | L141: 269 | M141: 1400 | N141: 550 | O141: 500 | P141: 2273 | Q141: 1627
A142: H22 | B142: 470 | C142: 224 | D142: 630 | E142: 600 | F142: 1167 | G142: 1833 | H142: 1105 | I142: 926 | J142: 1095 | K142: 900 | L142: 24 | M142: 1400 | N142: 550 | O142: 500 | P142: 2268 | Q142: 1532
A143: H23 | B143: 470 | C143: 224 | D143: 630 | E143: 600 | F143: 1170 | G143: 1830 | H143: 1211 | I143: 926 | J143: 989 | K143: 900 | L143: 0 | M143: 1400 | N143: 550 | O143: 500 | P143: 2268 | Q143: 1632
A144: H24 | B144: 520 | C144: 224 | D144: 580 | E144: 600 | F144: 1175 | G144: 1825 | H144: 1195 | I144: 926 | J144: 1005 | K144: 900 | L144: 0 | M144: 1400 | N144: 550 | O144: 500 | P144: 2238 | Q144: 1662
A145: H01 | B145: 415 | C145: 52 | D145: 585 | E145: 600 | F145: 1093 | G145: 1907 | H145: 1207 | I145: 998 | J145: 993 | K145: 900 | L145: 0 | M145: 1400 | N145: 550 | O145: 500 | P145: 2473 | Q145: 1527 | S145: 6
A146: H02 | B146: 415 | C146: 52 | D146: 585 | E146: 600 | F146: 1093 | G146: 1907 | H146: 1204 | I146: 998 | J146: 996 | K146: 900 | L146: 0 | M146: 1400 | N146: 550 | O146: 500 | P146: 2773 | Q146: 1227
A147: H03 | B147: 415 | C147: 52 | D147: 585 | E147: 600 | F147: 1103 | G147: 1897 | H147: 1202 | I147: 998 | J147: 998 | K147: 900 | L147: 0 | M147: 1400 | N147: 550 | O147: 500 | P147: 3073 | Q147: 1227
A148: H04 | B148: 415 | C148: 52 | D148: 585 | E148: 600 | F148: 1103 | G148: 1897 | H148: 1202 | I148: 998 | J148: 998 | K148: 900 | L148: 0 | M148: 1400 | N148: 550 | O148: 500 | P148: 3173 | Q148: 1227
A149: H05 | B149: 415 | C149: 52 | D149: 585 | E149: 600 | F149: 1103 | G149: 1897 | H149: 1202 | I149: 998 | J149: 998 | K149: 900 | L149: 0 | M149: 1400 | N149: 550 | O149: 500 | P149: 3173 | Q149: 1227
A150: H06 | B150: 415 | C150: 52 | D150: 585 | E150: 600 | F150: 1103 | G150: 1897 | H150: 1210 | I150: 998 | J150: 990 | K150: 900 | L150: 0 | M150: 1400 | N150: 550 | O150: 500 | P150: 3173 | Q150: 1227
A151: H07 | B151: 295 | C151: 52 | D151: 705 | E151: 600 | F151: 1103 | G151: 1897 | H151: 1097 | I151: 998 | J151: 1103 | K151: 900 | L151: 125 | M151: 503 | N151: 550 | O151: 500 | P151: 2473 | Q151: 727
A152: H08 | B152: 295 | C152: 52 | D152: 705 | E152: 600 | F152: 1103 | G152: 1897 | H152: 1097 | I152: 998 | J152: 1103 | K152: 900 | L152: 308 | M152: 504 | N152: 550 | O152: 500 | P152: 3073 | Q152: 927
A153: H09 | B153: 295 | C153: 52 | D153: 705 | E153: 600 | F153: 1213 | G153: 1787 | H153: 1190 | I153: 998 | J153: 1010 | K153: 900 | L153: 500 | M153: 662 | N153: 550 | O153: 500 | P153: 3288 | Q153: 912
A154: H10 | B154: 295 | C154: 52 | D154: 705 | E154: 600 | F154: 1203 | G154: 1797 | H154: 1190 | I154: 998 | J154: 1010 | K154: 900 | L154: 500 | M154: 1400 | N154: 550 | O154: 500 | P154: 3288 | Q154: 912
A155: H11 | B155: 295 | C155: 52 | D155: 705 | E155: 600 | F155: 1203 | G155: 1797 | H155: 1190 | I155: 998 | J155: 1010 | K155: 900 | L155: 500 | M155: 1400 | N155: 550 | O155: 500 | P155: 3288 | Q155: 812
A156: H12 | B156: 295 | C156: 52 | D156: 705 | E156: 600 | F156: 1203 | G156: 1797 | H156: 1190 | I156: 998 | J156: 1010 | K156: 900 | L156: 500 | M156: 1400 | N156: 550 | O156: 500 | P156: 3288 | Q156: 812
A157: H13 | B157: 295 | C157: 52 | D157: 705 | E157: 600 | F157: 1203 | G157: 1797 | H157: 1190 | I157: 998 | J157: 1010 | K157: 900 | L157: 500 | M157: 1400 | N157: 550 | O157: 500 | P157: 3288 | Q157: 912
A158: H14 | B158: 295 | C158: 52 | D158: 705 | E158: 600 | F158: 1203 | G158: 1797 | H158: 1190 | I158: 998 | J158: 1010 | K158: 900 | L158: 500 | M158: 1400 | N158: 550 | O158: 500 | P158: 3288 | Q158: 912
A159: H15 | B159: 295 | C159: 52 | D159: 705 | E159: 600 | F159: 1213 | G159: 1787 | H159: 1190 | I159: 998 | J159: 1010 | K159: 900 | L159: 500 | M159: 1400 | N159: 550 | O159: 500 | P159: 3288 | Q159: 912
A160: H16 | B160: 295 | C160: 52 | D160: 705 | E160: 600 | F160: 1213 | G160: 1787 | H160: 1190 | I160: 998 | J160: 1010 | K160: 900 | L160: 500 | M160: 1400 | N160: 550 | O160: 500 | P160: 3288 | Q160: 912
A161: H17 | B161: 295 | C161: 52 | D161: 705 | E161: 600 | F161: 1213 | G161: 1787 | H161: 1179 | I161: 998 | J161: 1021 | K161: 900 | L161: 500 | M161: 1400 | N161: 550 | O161: 500 | P161: 3288 | Q161: 912
A162: H18 | B162: 295 | C162: 52 | D162: 705 | E162: 600 | F162: 1213 | G162: 1787 | H162: 1190 | I162: 998 | J162: 1010 | K162: 900 | L162: 500 | M162: 1400 | N162: 550 | O162: 500 | P162: 3288 | Q162: 912
A163: H19 | B163: 295 | C163: 52 | D163: 705 | E163: 600 | F163: 1213 | G163: 1787 | H163: 1190 | I163: 998 | J163: 1010 | K163: 900 | L163: 500 | M163: 1400 | N163: 550 | O163: 500 | P163: 3288 | Q163: 912
A164: H20 | B164: 295 | C164: 52 | D164: 705 | E164: 600 | F164: 1203 | G164: 1797 | H164: 1190 | I164: 998 | J164: 1010 | K164: 900 | L164: 500 | M164: 1400 | N164: 550 | O164: 500 | P164: 3288 | Q164: 912
A165: H21 | B165: 295 | C165: 52 | D165: 705 | E165: 600 | F165: 1088 | G165: 1912 | H165: 1090 | I165: 998 | J165: 1110 | K165: 900 | L165: 500 | M165: 1400 | N165: 550 | O165: 500 | P165: 3273 | Q165: 927
A166: H22 | B166: 295 | C166: 52 | D166: 705 | E166: 600 | F166: 1088 | G166: 1912 | H166: 1090 | I166: 998 | J166: 1110 | K166: 900 | L166: 500 | M166: 1400 | N166: 550 | O166: 500 | P166: 3273 | Q166: 927
A167: H23 | B167: 295 | C167: 52 | D167: 705 | E167: 600 | F167: 1078 | G167: 1922 | H167: 1117 | I167: 998 | J167: 1083 | K167: 900 | L167: 128 | M167: 1400 | N167: 550 | O167: 500 | P167: 3273 | Q167: 1327
A168: H24 | B168: 295 | C168: 52 | D168: 705 | E168: 600 | F168: 1078 | G168: 1922 | H168: 1102 | I168: 998 | J168: 1098 | K168: 900 | L168: 0 | M168: 1400 | N168: 550 | O168: 500 | P168: 3273 | Q168: 1427
A169: H01 | B169: 395 | C169: 124 | D169: 605 | E169: 600 | F169: 1223 | G169: 1777 | H169: 1306 | I169: 926 | J169: 894 | K169: 900 | L169: 0 | M169: 1400 | N169: 550 | O169: 500 | P169: 3248 | Q169: 2052 | S169: 7
A170: H02 | B170: 395 | C170: 124 | D170: 605 | E170: 600 | F170: 1223 | G170: 1777 | H170: 1303 | I170: 926 | J170: 897 | K170: 900 | L170: 0 | M170: 1400 | N170: 550 | O170: 500 | P170: 3248 | Q170: 1852
A171: H03 | B171: 395 | C171: 124 | D171: 605 | E171: 600 | F171: 1223 | G171: 1777 | H171: 1302 | I171: 926 | J171: 898 | K171: 900 | L171: 0 | M171: 1400 | N171: 550 | O171: 500 | P171: 3248 | Q171: 1952
A172: H04 | B172: 395 | C172: 124 | D172: 605 | E172: 600 | F172: 1223 | G172: 1777 | H172: 1302 | I172: 926 | J172: 898 | K172: 900 | L172: 0 | M172: 1400 | N172: 550 | O172: 500 | P172: 3248 | Q172: 1752
A173: H05 | B173: 395 | C173: 124 | D173: 605 | E173: 600 | F173: 1223 | G173: 1777 | H173: 1302 | I173: 926 | J173: 898 | K173: 900 | L173: 0 | M173: 1400 | N173: 550 | O173: 500 | P173: 3248 | Q173: 1352
A174: H06 | B174: 395 | C174: 124 | D174: 605 | E174: 600 | F174: 1223 | G174: 1777 | H174: 1308 | I174: 926 | J174: 892 | K174: 900 | L174: 0 | M174: 1400 | N174: 550 | O174: 500 | P174: 3248 | Q174: 952
A175: H07 | B175: 385 | C175: 124 | D175: 615 | E175: 600 | F175: 1223 | G175: 1777 | H175: 1187 | I175: 926 | J175: 1013 | K175: 900 | L175: 214 | M175: 525 | N175: 550 | O175: 500 | P175: 3253 | Q175: 947
A176: H08 | B176: 385 | C176: 124 | D176: 615 | E176: 600 | F176: 1223 | G176: 1777 | H176: 1207 | I176: 926 | J176: 993 | K176: 900 | L176: 500 | M176: 525 | N176: 550 | O176: 500 | P176: 3253 | Q176: 847
A177: H09 | B177: 385 | C177: 124 | D177: 615 | E177: 600 | F177: 1223 | G177: 1777 | H177: 1190 | I177: 926 | J177: 1010 | K177: 900 | L177: 500 | M177: 572 | N177: 550 | O177: 500 | P177: 3268 | Q177: 932
A178: H10 | B178: 385 | C178: 124 | D178: 615 | E178: 600 | F178: 1223 | G178: 1777 | H178: 1190 | I178: 926 | J178: 1010 | K178: 900 | L178: 500 | M178: 921 | N178: 550 | O178: 500 | P178: 3268 | Q178: 832
A179: H11 | B179: 385 | C179: 124 | D179: 615 | E179: 600 | F179: 1223 | G179: 1777 | H179: 1190 | I179: 926 | J179: 1010 | K179: 900 | L179: 500 | M179: 920 | N179: 550 | O179: 500 | P179: 3268 | Q179: 732
A180: H12 | B180: 385 | C180: 124 | D180: 615 | E180: 600 | F180: 1223 | G180: 1777 | H180: 1190 | I180: 926 | J180: 1010 | K180: 900 | L180: 500 | M180: 824 | N180: 550 | O180: 500 | P180: 3268 | Q180: 532
A181: H13 | B181: 385 | C181: 124 | D181: 615 | E181: 600 | F181: 1223 | G181: 1777 | H181: 1188 | I181: 926 | J181: 1012 | K181: 900 | L181: 500 | M181: 837 | N181: 550 | O181: 500 | P181: 3268 | Q181: 532
A182: H14 | B182: 385 | C182: 124 | D182: 615 | E182: 600 | F182: 1223 | G182: 1777 | H182: 1186 | I182: 926 | J182: 1014 | K182: 900 | L182: 500 | M182: 788 | N182: 550 | O182: 500 | P182: 3268 | Q182: 532
A183: H15 | B183: 385 | C183: 124 | D183: 615 | E183: 600 | F183: 1223 | G183: 1777 | H183: 1177 | I183: 926 | J183: 1023 | K183: 900 | L183: 500 | M183: 839 | N183: 550 | O183: 500 | P183: 3268 | Q183: 532
A184: H16 | B184: 385 | C184: 124 | D184: 615 | E184: 600 | F184: 1223 | G184: 1777 | H184: 1176 | I184: 926 | J184: 1024 | K184: 900 | L184: 500 | M184: 695 | N184: 550 | O184: 500 | P184: 3268 | Q184: 832
A185: H17 | B185: 385 | C185: 124 | D185: 615 | E185: 600 | F185: 1223 | G185: 1777 | H185: 1182 | I185: 926 | J185: 1018 | K185: 900 | L185: 500 | M185: 687 | N185: 550 | O185: 500 | P185: 3268 | Q185: 832
A186: H18 | B186: 385 | C186: 124 | D186: 615 | E186: 600 | F186: 1223 | G186: 1777 | H186: 1190 | I186: 926 | J186: 1010 | K186: 900 | L186: 500 | M186: 693 | N186: 550 | O186: 500 | P186: 2668 | Q186: 832
A187: H19 | B187: 385 | C187: 124 | D187: 615 | E187: 600 | F187: 1223 | G187: 1777 | H187: 1190 | I187: 926 | J187: 1010 | K187: 900 | L187: 500 | M187: 956 | N187: 550 | O187: 500 | P187: 2668 | Q187: 832
A188: H20 | B188: 385 | C188: 124 | D188: 615 | E188: 600 | F188: 1223 | G188: 1777 | H188: 1190 | I188: 926 | J188: 1010 | K188: 900 | L188: 500 | M188: 1140 | N188: 550 | O188: 500 | P188: 2468 | Q188: 832
A189: H21 | B189: 385 | C189: 124 | D189: 615 | E189: 600 | F189: 1223 | G189: 1777 | H189: 1190 | I189: 926 | J189: 1010 | K189: 900 | L189: 500 | M189: 1400 | N189: 550 | O189: 500 | P189: 2653 | Q189: 547
A190: H22 | B190: 385 | C190: 124 | D190: 615 | E190: 600 | F190: 1223 | G190: 1777 | H190: 1190 | I190: 926 | J190: 1010 | K190: 900 | L190: 473 | M190: 1400 | N190: 550 | O190: 500 | P190: 2753 | Q190: 747
A191: H23 | B191: 385 | C191: 124 | D191: 615 | E191: 600 | F191: 1223 | G191: 1777 | H191: 1237 | I191: 926 | J191: 963 | K191: 900 | L191: 0 | M191: 1400 | N191: 550 | O191: 500 | P191: 2753 | Q191: 547
A192: H24 | B192: 385 | C192: 124 | D192: 615 | E192: 600 | F192: 1223 | G192: 1777 | H192: 1235 | I192: 926 | J192: 965 | K192: 900 | L192: 0 | M192: 1400 | N192: 550 | O192: 500 | P192: 2953 | Q192: 547
A193: H01 | B193: 295 | C193: 2 | D193: 655 | E193: 600 | F193: 1132 | G193: 1868 | H193: 1205 | I193: 998 | J193: 995 | K193: 900 | L193: 0 | M193: 1400 | N193: 550 | O193: 500 | P193: 3243 | Q193: 1457 | S193: 8
A194: H02 | B194: 295 | C194: 2 | D194: 655 | E194: 600 | F194: 1132 | G194: 1868 | H194: 1202 | I194: 998 | J194: 998 | K194: 900 | L194: 0 | M194: 1400 | N194: 550 | O194: 500 | P194: 3243 | Q194: 1557
A195: H03 | B195: 295 | C195: 2 | D195: 655 | E195: 600 | F195: 1132 | G195: 1868 | H195: 1201 | I195: 998 | J195: 999 | K195: 900 | L195: 0 | M195: 1400 | N195: 550 | O195: 500 | P195: 3243 | Q195: 1757
A196: H04 | B196: 295 | C196: 2 | D196: 655 | E196: 600 | F196: 1132 | G196: 1868 | H196: 1201 | I196: 998 | J196: 999 | K196: 900 | L196: 0 | M196: 1400 | N196: 550 | O196: 500 | P196: 3243 | Q196: 1857
A197: H05 | B197: 295 | C197: 2 | D197: 655 | E197: 600 | F197: 1132 | G197: 1868 | H197: 1201 | I197: 998 | J197: 999 | K197: 900 | L197: 0 | M197: 1400 | N197: 550 | O197: 500 | P197: 3243 | Q197: 1957
A198: H06 | B198: 245 | C198: 2 | D198: 705 | E198: 600 | F198: 1132 | G198: 1868 | H198: 1207 | I198: 998 | J198: 993 | K198: 900 | L198: 0 | M198: 1400 | N198: 550 | O198: 500 | P198: 3273 | Q198: 2027
A199: H07 | B199: 245 | C199: 2 | D199: 705 | E199: 600 | F199: 1133 | G199: 1867 | H199: 1200 | I199: 998 | J199: 1000 | K199: 900 | L199: 206 | M199: 572 | N199: 550 | O199: 500 | P199: 3273 | Q199: 1827
A200: H08 | B200: 245 | C200: 2 | D200: 705 | E200: 600 | F200: 1133 | G200: 1867 | H200: 1127 | I200: 998 | J200: 1073 | K200: 900 | L200: 500 | M200: 630 | N200: 550 | O200: 500 | P200: 3273 | Q200: 1927
... 568 more rows

Sheet měsíční aukce
A1: Year | B1: Month | C1: Day | D1: AuctionId | E1: Border | F1: Days | G1: TimeTable | H1: OfferedCapacity | I1: Resale | J1: ATC | K1: Total requested capacity | L1: Price | M1: Total allocated capacity | N1: Number of participants | O1: Awarded participants
A2: 2017 | B2: 12 | C2: 2017-12-01 | D2: CEEXD-M-BASE-------171201-01 | E2: AT-CZ | F2: 2017/12/01 - 2018/01/01 | G2: Every day 00:00-24:00 | H2: 150 | J2: 150 | K2: 1414 | L2: 2.06 | M2: 150 | N2: 22 | O2: 7 | P2: =E2 -> AT-CZ | Q2: =L2 -> 2.06 | R2: =E2 -> AT-CZ | S2: =M2 -> 150
A3: 2017 | B3: 12 | C3: 2017-12-01 | D3: CEEXD-M-BASE-------171201-01 | E3: CZ-AT | F3: 2017/12/01 - 2018/01/01 | G3: Every day 00:00-24:00 | H3: 150 | J3: 150 | K3: 1276 | L3: 0.18 | M3: 150 | N3: 17 | O3: 10 | P3: =E3 -> CZ-AT | Q3: =L3 -> 0.18 | R3: =E3 -> CZ-AT | S3: =M3 -> 150
A4: 2017 | B4: 12 | C4: 2017-12-01 | D4: CEEXD-M-BASE-------171201-01 | E4: CZ-PL | F4: 2017/12/01 - 2018/01/01 | G4: Every day 00:00-24:00 | H4: For Offered Capacity see respective constraints | I4: For Offered Capacity see respective constraints | J4: For Offered Capacity see respective constraints | M4: 0 | P4: CZ-PL | R4: CZ-PL | S4: 0
A5: 2017 | B5: 12 | C5: 2017-12-01 | D5: CEEXD-M-BASE-------171201-01 | E5: PL-CZ | F5: 2017/12/01 - 2018/01/01 | G5: Every day 00:00-24:00 | H5: For Offered Capacity see respective constraints | I5: For Offered Capacity see respective constraints | J5: For Offered Capacity see respective constraints | M5: 0 | P5: PL-CZ | R5: PL-CZ | S5: 0
A6: 2017 | B6: 12 | C6: 2017-12-01 | D6: CEEXD-M-BASE-------171201-01 | E6: PL-SK | F6: 2017/12/01 - 2018/01/01 | G6: Every day 00:00-24:00 | H6: For Offered Capacity see respective constraints | I6: For Offered Capacity see respective constraints | J6: For Offered Capacity see respective constraints | M6: 0 | P6: PL-SK | R6: PL-SK | S6: 0
A7: 2017 | B7: 12 | C7: 2017-12-01 | D7: CEEXD-M-BASE-------171201-01 | E7: SK-PL | F7: 2017/12/01 - 2018/01/01 | G7: Every day 00:00-24:00 | H7: For Offered Capacity see respective constraints | I7: For Offered Capacity see respective constraints | J7: For Offered Capacity see respective constraints | M7: 0 | P7: SK-PL | R7: SK-PL | S7: 0
A8: 2017 | B8: 12 | C8: 2017-12-01 | D8: CEEXD-M-BASE-------171201-01 | E8: DE(50Hz)-CZ | F8: 2017/12/01 - 2018/01/01 | G8: Every day 00:00-24:00 | H8: For Offered Capacity see respective constraints | I8: For Offered Capacity see respective constraints | J8: For Offered Capacity see respective constraints | K8: 972 | L8: 2.2 | M8: 101 | N8: 18 | O8: 7 | P8: DE(50Hz)-CZ | Q8: 2.2 | R8: DE(50Hz)-CZ | S8: 101
A9: 2017 | B9: 12 | C9: 2017-12-01 | D9: CEEXD-M-BASE-------171201-01 | E9: DE(TenneT)-CZ | F9: 2017/12/01 - 2018/01/01 | G9: Every day 00:00-24:00 | H9: 100 | J9: 100 | K9: 1072 | L9: 2.2 | M9: 99 | N9: 19 | O9: 6 | P9: DE(TenneT)-CZ | Q9: 2.2 | R9: DE(TenneT)-CZ | S9: 99
A10: 2017 | B10: 12 | C10: 2017-12-01 | D10: CEEXD-M-BASE-------171201-01 | E10: CZ-DE(50Hz) | F10: 2017/12/01 - 2018/01/01 | G10: Every day 00:00-24:00 | H10: For Offered Capacity see respective constraints | I10: For Offered Capacity see respective constraints | J10: For Offered Capacity see respective constraints | K10: 2630 | L10: 0.13 | M10: 398 | N10: 13 | O10: 9 | P10: CZ-DE(50Hz) | Q10: 0.13 | R10: CZ-DE(50Hz) | S10: 398
A11: 2017 | B11: 12 | C11: 2017-12-01 | D11: CEEXD-M-BASE-------171201-01 | E11: CZ-DE(TenneT) | F11: 2017/12/01 - 2018/01/01 | G11: Every day 00:00-24:00 | H11: 400 | J11: 400 | K11: 2655 | L11: 0.13 | M11: 402 | N11: 14 | O11: 8 | P11: CZ-DE(TenneT) | Q11: 0.13 | R11: CZ-DE(TenneT) | S11: 402
P12: 0 | Q12: 0 | R12: 0 | S12: 0
P13: 0 | Q13: 0 | R13: 0 | S13: 0
P14: 0 | Q14: 0 | R14: 0 | S14: 0
P15: 0 | Q15: 0 | R15: 0 | S15: 0
P16: 0 | Q16: 0 | R16: 0 | S16: 0
P17: 0 | Q17: 0 | R17: 0 | S17: 0
A22: PL-CZ | B22: PL-DE(50Hz) | C22: DE(50Hz)-PL | D22: CZ-PL | E22: PL-SK | F22: SK-PL | G22: HR-SI | H22: HU-AT | I22: CZ-DE(TenneT) | J22: AT-CZ | K22: AT-HU | L22: CZ-AT | M22: DE(50Hz)-CZ | N22: HR-HU | O22: CZ-DE(50Hz) | P22: DE(TenneT)-CZ | Q22: SI-HR | R22: HU-HR
A23: PSE>CEPS Monthly Auction Price | B23: PSE>50Hz Monthly Auction Price | C23: 50Hz>PSE Monthly Auction Price | D23: CEPS>PSE Monthly Auction Price | E23: PSE>SEPS Monthly Auction Price | F23: SEPS>PSE Monthly Auction Price | G23: HOPS>ELESE Monthly Auction Price | H23: MAVIR>APG Monthly Auction Price | I23: CEPS>EON Monthly Auction Price | J23: APG>CEPS Monthly Auction Price | K23: APG>MAVIR Monthly Auction Price | L23: CEPS>APG Monthly Auction Price | M23: 50Hz>CEPS Monthly Auction Price | N23: HOPS>MAVIR Monthly Auction Price | O23: CEPS-50Hz Monthly Auction Price | P23: EON>CEPS Monthly Auction Price | Q23: ELES>HOPS Monthly Auction Price | R23: MAVIR>HOPS Monthly Auction Price
A24: =IFERROR(VLOOKUP(A22,$P$2:$Q$17,2,0),"") ->  | B24: =IFERROR(VLOOKUP(B22,$P$2:$Q$17,2,0),"") ->  | C24: =IFERROR(VLOOKUP(C22,$P$2:$Q$17,2,0),"") ->  | I24: 0.13 | J24: 2.06 | L24: 0.18 | M24: 2.2 | O24: 0.13 | P24: 2.2
A25: PL-CZ | B25: PL-DE(50Hz) | C25: DE(50Hz)-PL | D25: CZ-PL | E25: PL-SK | F25: SK-PL | G25: HR-SI | H25: HU-AT | I25: CZ-DE(TenneT) | J25: AT-CZ | K25: AT-HU | L25: CZ-AT | M25: DE(50Hz)-CZ | N25: HR-HU | O25: CZ-DE(50Hz) | P25: DE(TenneT)-CZ | Q25: SI-HR | R25: HU-HR
A26: AC | B26: AC | C26: AC | D26: AC | E26: AC | F26: AC | G26: AC | H26: AC | I26: AC | J26: AC | K26: AC | L26: AC | M26: AC | N26: AC | O26: AC | P26: AC | Q26: AC | R26: AC
A27: =IFERROR(VLOOKUP(A22,$R$2:$S$17,2,0),0) -> 0 | B27: =IFERROR(VLOOKUP(B22,$R$2:$S$17,2,0),0) -> 0 | C27: 0 | D27: 0 | E27: 0 | F27: 0 | G27: 0 | H27: 0 | I27: 402 | J27: 150 | K27: 0 | L27: 150 | M27: 101 | N27: 0 | O27: 398 | P27: 99 | Q27: 0 | R27: 0

Sheet roční aukce
A1: Year | B1: Month | C1: Day | D1: AuctionId | E1: Border | F1: Days | G1: TimeTable | H1: OfferedCapacity | I1: Resale | J1: ATC | K1: Total requested capacity | L1: Price | M1: Total allocated capacity | N1: Number of participants | O1: Awarded participants
A2: 2017 | B2: 1 | C2: 2017-01-01 | D2: CEEXD-Y-BASE-------170101-01 | E2: HU-HR | F2: 2017/01/01 - 2018/01/01 | G2: Every day 00:00-24:00 | H2: 700 | J2: 700 | K2: 5412 | L2: 0.25 | M2: 698 | N2: 23 | O2: 7 | P2: =E2 -> HU-HR | Q2: =L2 -> 0.25 | R2: =E2 -> HU-HR | S2: =M2 -> 698
A3: 2017 | B3: 1 | C3: 2017-01-01 | D3: CEEXD-Y-BASE-------170101-01 | E3: AT-CZ | F3: 2017/01/01 - 2018/01/01 | G3: Every day 00:00-24:00 | H3: 300 | J3: 300 | K3: 3442 | L3: 0.66 | M3: 300 | N3: 28 | O3: 10 | P3: =E3 -> AT-CZ | Q3: =L3 -> 0.66 | R3: =E3 -> AT-CZ | S3: =M3 -> 300
A4: 2017 | B4: 1 | C4: 2017-01-01 | D4: CEEXD-Y-BASE-------170101-01 | E4: HR-HU | F4: 2017/01/01 - 2018/01/01 | G4: Every day 00:00-24:00 | H4: 600 | J4: 600 | K4: 4732 | L4: 0.13 | M4: 599 | N4: 22 | O4: 11 | P4: HR-HU | Q4: 0.13 | R4: HR-HU | S4: 599
A5: 2017 | B5: 1 | C5: 2017-01-01 | D5: CEEXD-Y-BASE-------170101-01 | E5: CZ-AT | F5: 2017/01/01 - 2018/01/01 | G5: Every day 00:00-24:00 | H5: 300 | J5: 300 | K5: 3851 | L5: 0.24 | M5: 298 | N5: 29 | O5: 13 | P5: CZ-AT | Q5: 0.24 | R5: CZ-AT | S5: 298
A6: 2017 | B6: 1 | C6: 2017-01-01 | D6: CEEXD-Y-BASE-------170101-01 | E6: SI-HR | F6: 2017/01/01 - 2018/01/01 | G6: Every day 00:00-24:00 | H6: 800 | J6: 800 | K6: 5819 | L6: 0.21 | M6: 799 | N6: 22 | O6: 7 | P6: SI-HR | Q6: 0.21 | R6: SI-HR | S6: 799
A7: 2017 | B7: 1 | C7: 2017-01-01 | D7: CEEXD-Y-BASE-------170101-01 | E7: CZ-PL | F7: 2017/01/01 - 2018/01/01 | G7: Every day 00:00-24:00 | H7: For Offered Capacity see respective constraints | I7: For Offered Capacity see respective constraints | J7: For Offered Capacity see respective constraints | M7: 0 | P7: CZ-PL | R7: CZ-PL | S7: 0
A8: 2017 | B8: 1 | C8: 2017-01-01 | D8: CEEXD-Y-BASE-------170101-01 | E8: HU-AT | F8: 2017/01/01 - 2018/01/01 | G8: Every day 00:00-24:00 | H8: 300 | J8: 300 | K8: 3346 | L8: 0.12 | M8: 300 | N8: 27 | O8: 10 | P8: HU-AT | Q8: 0.12 | R8: HU-AT | S8: 300
A9: 2017 | B9: 1 | C9: 2017-01-01 | D9: CEEXD-Y-BASE-------170101-01 | E9: PL-CZ | F9: 2017/01/01 - 2018/01/01 | G9: Every day 00:00-24:00 | H9: For Offered Capacity see respective constraints | I9: For Offered Capacity see respective constraints | J9: For Offered Capacity see respective constraints | M9: 0 | P9: PL-CZ | R9: PL-CZ | S9: 0
A10: 2017 | B10: 1 | C10: 2017-01-01 | D10: CEEXD-Y-BASE-------170101-01 | E10: PL-SK | F10: 2017/01/01 - 2018/01/01 | G10: Every day 00:00-24:00 | H10: For Offered Capacity see respective constraints | I10: For Offered Capacity see respective constraints | J10: For Offered Capacity see respective constraints | M10: 0 | P10: PL-SK | R10: PL-SK | S10: 0
A11: 2017 | B11: 1 | C11: 2017-01-01 | D11: CEEXD-Y-BASE-------170101-01 | E11: SK-PL | F11: 2017/01/01 - 2018/01/01 | G11: Every day 00:00-24:00 | H11: For Offered Capacity see respective constraints | I11: For Offered Capacity see respective constraints | J11: For Offered Capacity see respective constraints | M11: 0 | P11: SK-PL | R11: SK-PL | S11: 0
A12: 2017 | B12: 1 | C12: 2017-01-01 | D12: CEEXD-Y-BASE-------170101-01 | E12: AT-HU | F12: 2017/01/01 - 2018/01/01 | G12: Every day 00:00-24:00 | H12: 300 | J12: 300 | K12: 2584 | L12: 6.78 | M12: 300 | N12: 31 | O12: 8 | P12: AT-HU | Q12: 6.78 | R12: AT-HU | S12: 300
A13: 2017 | B13: 1 | C13: 2017-01-01 | D13: CEEXD-Y-BASE-------170101-01 | E13: DE(50Hz)-CZ | F13: 2017/01/01 - 2018/01/01 | G13: Every day 00:00-24:00 | H13: For Offered Capacity see respective constraints | I13: For Offered Capacity see respective constraints | J13: For Offered Capacity see respective constraints | K13: 1016 | L13: 0.62 | M13: 61 | N13: 21 | O13: 9 | P13: DE(50Hz)-CZ | Q13: 0.62 | R13: DE(50Hz)-CZ | S13: 61
A14: 2017 | B14: 1 | C14: 2017-01-01 | D14: CEEXD-Y-BASE-------170101-01 | E14: DE(TenneT)-CZ | F14: 2017/01/01 - 2018/01/01 | G14: Every day 00:00-24:00 | H14: 100 | J14: 100 | K14: 1535 | L14: 0.62 | M14: 139 | N14: 28 | O14: 7 | P14: DE(TenneT)-CZ | Q14: 0.62 | R14: DE(TenneT)-CZ | S14: 139
A15: 2017 | B15: 1 | C15: 2017-01-01 | D15: CEEXD-Y-BASE-------170101-01 | E15: CZ-DE(50Hz) | F15: 2017/01/01 - 2018/01/01 | G15: Every day 00:00-24:00 | H15: For Offered Capacity see respective constraints | I15: For Offered Capacity see respective constraints | J15: For Offered Capacity see respective constraints | K15: 4097 | L15: 0.21 | M15: 413 | N15: 22 | O15: 9 | P15: CZ-DE(50Hz) | Q15: 0.21 | R15: CZ-DE(50Hz) | S15: 413
A16: 2017 | B16: 1 | C16: 2017-01-01 | D16: CEEXD-Y-BASE-------170101-01 | E16: HR-SI | F16: 2017/01/01 - 2018/01/01 | G16: Every day 00:00-24:00 | H16: 800 | J16: 800 | K16: 5748 | L16: 0.06 | M16: 800 | N16: 23 | O16: 15 | P16: HR-SI | Q16: 0.06 | R16: HR-SI | S16: 800
A17: 2017 | B17: 1 | C17: 2017-01-01 | D17: CEEXD-Y-BASE-------170101-01 | E17: CZ-DE(TenneT) | F17: 2017/01/01 - 2018/01/01 | G17: Every day 00:00-24:00 | H17: 500 | J17: 500 | K17: 4787 | L17: 0.21 | M17: 587 | N17: 24 | O17: 13 | P17: CZ-DE(TenneT) | Q17: 0.21 | R17: CZ-DE(TenneT) | S17: 587
A22: PL-CZ | B22: PL-DE(50Hz) | C22: DE(50Hz)-PL | D22: CZ-PL | E22: PL-SK | F22: SK-PL | G22: HR-SI | H22: HU-AT | I22: CZ-DE(TenneT) | J22: AT-CZ | K22: AT-HU | L22: CZ-AT | M22: DE(50Hz)-CZ | N22: HR-HU | O22: CZ-DE(50Hz) | P22: DE(TenneT)-CZ | Q22: SI-HR | R22: HU-HR
A23: PSE>CEPS Yearly Auction Price | B23: PSE>50Hz Yearly Auction Price | C23: 50Hz>PSE Yearly Auction Price | D23: CEPS>PSE Yearly Auction Price | E23: PSE>SEPS Yearly Auction Price | F23: SEPS>PSE Yearly Auction Price | G23: HOPS>ELESE Daily Auction Price | H23: MAVIR>APG Yearly Auction Price | I23: CEPS>EON Yearly Auction Price | J23: APG>CEPS Yearly Auction Price | K23: APG>MAVIR Yearly Auction Price | L23: CEPS>APG Yearly Auction Price | M23: 50Hz>CEPS Yearly Auction Price | N23: HOPS>MAVIR Yearly Auction Price | O23: CEPS-50Hz Yearly Auction Price | P23: EON>CEPS Yearly Auction Price | Q23: ELES>HOPS Yearly Auction Price | R23: MAVIR>HOPS Yearly Auction Price
A24: =IFERROR(VLOOKUP(A22,$P$2:$Q$17,2,0),"") ->  | B24: =IFERROR(VLOOKUP(B22,$P$2:$Q$17,2,0),"") ->  | G24: 0.06 | H24: 0.12 | I24: 0.21 | J24: 0.66 | K24: 6.78 | L24: 0.24 | M24: 0.62 | N24: 0.13 | O24: 0.21 | P24: 0.62 | Q24: 0.21 | R24: 0.25
A28: PL-CZ | B28: PL-DE(50Hz) | C28: DE(50Hz)-PL | D28: CZ-PL | E28: PL-SK | F28: SK-PL | G28: HR-SI | H28: HU-AT | I28: CZ-DE(TenneT) | J28: AT-CZ | K28: AT-HU | L28: CZ-AT | M28: DE(50Hz)-CZ | N28: HR-HU | O28: CZ-DE(50Hz) | P28: DE(TenneT)-CZ | Q28: SI-HR | R28: HU-HR
A29: AC | B29: AC | C29: AC | D29: AC | E29: AC | F29: AC | G29: AC | H29: AC | I29: AC | J29: AC | K29: AC | L29: AC | M29: AC | N29: AC | O29: AC | P29: AC | Q29: AC | R29: AC
A30: =IFERROR(VLOOKUP(A22,$R$2:$S$17,2,0),0) -> 0 | B30: =IFERROR(VLOOKUP(B22,$R$2:$S$17,2,0),0) -> 0 | C30: 0 | D30: 0 | E30: 0 | F30: 0 | G30: 800 | H30: 300 | I30: 587 | J30: 300 | K30: 300 | L30: 298 | M30: 61 | N30: 599 | O30: 413 | P30: 139 | Q30: 799 | R30: 698

Sheet denní aukce
A1: Year | B1: Month | C1: Day | D1: AuctionId | E1: Border | F1: Days | G1: TimeTable | H1: OfferedCapacity | I1: Resale | J1: ATC | K1: Total requested capacity | L1: Price | M1: Total allocated capacity | N1: Number of participants | O1: Awarded participants
A2: 2017 | B2: 12 | C2: 2017-12-01 | D2: CEEXD-D-DAILYPRODU-171201-01 | E2: AT-CZ | F2: 2017/12/01 - 2017/12/02 | G2: 00:00-01:00 | H2: 615 | J2: 615 | K2: 2409 | L2: 0.08 | M2: 615 | N2: 13 | O2: 7
A3: 2017 | B3: 12 | C3: 2017-12-01 | D3: CEEXD-D-DAILYPRODU-171201-01 | E3: CZ-AT | F3: 2017/12/01 - 2017/12/02 | G3: 00:00-01:00 | H3: 785 | J3: 785 | K3: 3247 | L3: 0.32 | M3: 785 | N3: 14 | O3: 13
A4: 2017 | B4: 12 | C4: 2017-12-01 | D4: CEEXD-D-DAILYPRODU-171201-01 | E4: CZ-DE(TenneT) | F4: 2017/12/01 - 2017/12/02 | G4: 00:00-01:00 | H4: 1329 | J4: 1329 | K4: 5092 | L4: 0.95 | M4: 1329 | N4: 15 | O4: 6
A5: 2017 | B5: 12 | C5: 2017-12-01 | D5: CEEXD-D-DAILYPRODU-171201-01 | E5: CZ-PL | F5: 2017/12/01 - 2017/12/02 | G5: 00:00-01:00 | H5: For Offered Capacity see respective constraints | I5: For Offered Capacity see respective constraints | J5: For Offered Capacity see respective constraints | K5: 75 | L5: 0 | M5: 75 | N5: 5 | O5: 2
A6: 2017 | B6: 12 | C6: 2017-12-01 | D6: CEEXD-D-DAILYPRODU-171201-01 | E6: DE(TenneT)-CZ | F6: 2017/12/01 - 2017/12/02 | G6: 00:00-01:00 | H6: 1321 | J6: 1321 | K6: 3856 | L6: 0.01 | M6: 1321 | N6: 16 | O6: 12
A7: 2017 | B7: 12 | C7: 2017-12-01 | D7: CEEXD-D-DAILYPRODU-171201-01 | E7: PL-CZ | F7: 2017/12/01 - 2017/12/02 | G7: 00:00-01:00 | H7: For Offered Capacity see respective constraints | I7: For Offered Capacity see respective constraints | J7: For Offered Capacity see respective constraints | K7: 1498 | L7: 0.99 | M7: 558 | N7: 11 | O7: 8
A8: 2017 | B8: 12 | C8: 2017-12-01 | D8: CEEXD-D-DAILYPRODU-171201-01 | E8: PL-SK | F8: 2017/12/01 - 2017/12/02 | G8: 00:00-01:00 | H8: For Offered Capacity see respective constraints | I8: For Offered Capacity see respective constraints | J8: For Offered Capacity see respective constraints | K8: 395 | L8: 0.99 | M8: 365 | N8: 8 | O8: 6
A9: 2017 | B9: 12 | C9: 2017-12-01 | D9: CEEXD-D-DAILYPRODU-171201-01 | E9: SK-PL | F9: 2017/12/01 - 2017/12/02 | G9: 00:00-01:00 | H9: For Offered Capacity see respective constraints | I9: For Offered Capacity see respective constraints | J9: For Offered Capacity see respective constraints | K9: 25 | L9: 0 | M9: 25 | N9: 3 | O9: 1
A10: 2017 | B10: 12 | C10: 2017-12-01 | D10: CEEXD-D-DAILYPRODU-171201-01 | E10: PL-DE(50Hz) | F10: 2017/12/01 - 2017/12/02 | G10: 00:00-01:00 | H10: For Offered Capacity see respective constraints | I10: For Offered Capacity see respective constraints | J10: For Offered Capacity see respective constraints | K10: 1897 | L10: 1.5 | M10: 877 | N10: 10 | O10: 7
A11: 2017 | B11: 12 | C11: 2017-12-01 | D11: CEEXD-D-DAILYPRODU-171201-01 | E11: DE(50Hz)-PL | F11: 2017/12/01 - 2017/12/02 | G11: 00:00-01:00 | H11: For Offered Capacity see respective constraints | I11: For Offered Capacity see respective constraints | J11: For Offered Capacity see respective constraints | K11: 293 | L11: 0.02 | M11: 20 | N11: 6 | O11: 1
A12: 2017 | B12: 12 | C12: 2017-12-01 | D12: CEEXD-D-DAILYPRODU-171201-01 | E12: DE(50Hz)-CZ | F12: 2017/12/01 - 2017/12/02 | G12: 00:00-01:00 | H12: For Offered Capacity see respective constraints | I12: For Offered Capacity see respective constraints | J12: For Offered Capacity see respective constraints | K12: 3461 | L12: 0.02 | M12: 1096 | N12: 13 | O12: 10
A13: 2017 | B13: 12 | C13: 2017-12-01 | D13: CEEXD-D-DAILYPRODU-171201-01 | E13: CZ-DE(50Hz) | F13: 2017/12/01 - 2017/12/02 | G13: 00:00-01:00 | H13: For Offered Capacity see respective constraints | I13: For Offered Capacity see respective constraints | J13: For Offered Capacity see respective constraints | K13: 4507 | L13: 0.51 | M13: 657 | N13: 12 | O13: 6
A14: 2017 | B14: 12 | C14: 2017-12-01 | D14: CEEXD-D-DAILYPRODU-171201-01 | E14: CZ-DE(50Hz) | F14: 2017/12/01 - 2017/12/02 | G14: 01:00-02:00 | H14: For Offered Capacity see respective constraints | I14: For Offered Capacity see respective constraints | J14: For Offered Capacity see respective constraints | K14: 4507 | L14: 0.51 | M14: 657 | N14: 12 | O14: 6
A15: 2017 | B15: 12 | C15: 2017-12-01 | D15: CEEXD-D-DAILYPRODU-171201-01 | E15: DE(50Hz)-CZ | F15: 2017/12/01 - 2017/12/02 | G15: 01:00-02:00 | H15: For Offered Capacity see respective constraints | I15: For Offered Capacity see respective constraints | J15: For Offered Capacity see respective constraints | K15: 3361 | L15: 0.02 | M15: 1065 | N15: 13 | O15: 10
A16: 2017 | B16: 12 | C16: 2017-12-01 | D16: CEEXD-D-DAILYPRODU-171201-01 | E16: DE(50Hz)-PL | F16: 2017/12/01 - 2017/12/02 | G16: 01:00-02:00 | H16: For Offered Capacity see respective constraints | I16: For Offered Capacity see respective constraints | J16: For Offered Capacity see respective constraints | K16: 0 | L16: 0.02 | M16: 0 | N16: 6
A17: 2017 | B17: 12 | C17: 2017-12-01 | D17: CEEXD-D-DAILYPRODU-171201-01 | E17: PL-DE(50Hz) | F17: 2017/12/01 - 2017/12/02 | G17: 01:00-02:00 | H17: For Offered Capacity see respective constraints | I17: For Offered Capacity see respective constraints | J17: For Offered Capacity see respective constraints | K17: 1897 | L17: 1.7 | M17: 877 | N17: 10 | O17: 7
A18: 2017 | B18: 12 | C18: 2017-12-01 | D18: CEEXD-D-DAILYPRODU-171201-01 | E18: SK-PL | F18: 2017/12/01 - 2017/12/02 | G18: 01:00-02:00 | H18: For Offered Capacity see respective constraints | I18: For Offered Capacity see respective constraints | J18: For Offered Capacity see respective constraints | K18: 0 | L18: 0 | M18: 0 | N18: 3
A19: 2017 | B19: 12 | C19: 2017-12-01 | D19: CEEXD-D-DAILYPRODU-171201-01 | E19: PL-SK | F19: 2017/12/01 - 2017/12/02 | G19: 01:00-02:00 | H19: For Offered Capacity see respective constraints | I19: For Offered Capacity see respective constraints | J19: For Offered Capacity see respective constraints | K19: 395 | L19: 1.19 | M19: 365 | N19: 8 | O19: 6
A20: 2017 | B20: 12 | C20: 2017-12-01 | D20: CEEXD-D-DAILYPRODU-171201-01 | E20: PL-CZ | F20: 2017/12/01 - 2017/12/02 | G20: 01:00-02:00 | H20: For Offered Capacity see respective constraints | I20: For Offered Capacity see respective constraints | J20: For Offered Capacity see respective constraints | K20: 1498 | L20: 1.19 | M20: 558 | N20: 11 | O20: 8
A21: 2017 | B21: 12 | C21: 2017-12-01 | D21: CEEXD-D-DAILYPRODU-171201-01 | E21: DE(TenneT)-CZ | F21: 2017/12/01 - 2017/12/02 | G21: 01:00-02:00 | H21: 1271 | J21: 1271 | K21: 3756 | L21: 0.01 | M21: 1271 | N21: 16 | O21: 12
A22: 2017 | B22: 12 | C22: 2017-12-01 | D22: CEEXD-D-DAILYPRODU-171201-01 | E22: CZ-PL | F22: 2017/12/01 - 2017/12/02 | G22: 01:00-02:00 | H22: For Offered Capacity see respective constraints | I22: For Offered Capacity see respective constraints | J22: For Offered Capacity see respective constraints | K22: 0 | L22: 0 | M22: 0 | N22: 5
A23: 2017 | B23: 12 | C23: 2017-12-01 | D23: CEEXD-D-DAILYPRODU-171201-01 | E23: CZ-DE(TenneT) | F23: 2017/12/01 - 2017/12/02 | G23: 01:00-02:00 | H23: 1329 | J23: 1329 | K23: 5092 | L23: 0.95 | M23: 1329 | N23: 15 | O23: 7
A24: 2017 | B24: 12 | C24: 2017-12-01 | D24: CEEXD-D-DAILYPRODU-171201-01 | E24: CZ-AT | F24: 2017/12/01 - 2017/12/02 | G24: 01:00-02:00 | H24: 785 | J24: 785 | K24: 3247 | L24: 0.35 | M24: 785 | N24: 14 | O24: 13
A25: 2017 | B25: 12 | C25: 2017-12-01 | D25: CEEXD-D-DAILYPRODU-171201-01 | E25: AT-CZ | F25: 2017/12/01 - 2017/12/02 | G25: 01:00-02:00 | H25: 615 | J25: 615 | K25: 2409 | L25: 0.08 | M25: 615 | N25: 13 | O25: 7
A26: 2017 | B26: 12 | C26: 2017-12-01 | D26: CEEXD-D-DAILYPRODU-171201-01 | E26: AT-CZ | F26: 2017/12/01 - 2017/12/02 | G26: 02:00-03:00 | H26: 615 | J26: 615 | K26: 2409 | L26: 0.08 | M26: 615 | N26: 13 | O26: 7
A27: 2017 | B27: 12 | C27: 2017-12-01 | D27: CEEXD-D-DAILYPRODU-171201-01 | E27: CZ-AT | F27: 2017/12/01 - 2017/12/02 | G27: 02:00-03:00 | H27: 785 | J27: 785 | K27: 3247 | L27: 0.35 | M27: 785 | N27: 14 | O27: 13
A28: 2017 | B28: 12 | C28: 2017-12-01 | D28: CEEXD-D-DAILYPRODU-171201-01 | E28: CZ-DE(TenneT) | F28: 2017/12/01 - 2017/12/02 | G28: 02:00-03:00 | H28: 1329 | J28: 1329 | K28: 5092 | L28: 0.95 | M28: 1329 | N28: 15 | O28: 7
A29: 2017 | B29: 12 | C29: 2017-12-01 | D29: CEEXD-D-DAILYPRODU-171201-01 | E29: CZ-PL | F29: 2017/12/01 - 2017/12/02 | G29: 02:00-03:00 | H29: For Offered Capacity see respective constraints | I29: For Offered Capacity see respective constraints | J29: For Offered Capacity see respective constraints | K29: 0 | L29: 0 | M29: 0 | N29: 5
A30: 2017 | B30: 12 | C30: 2017-12-01 | D30: CEEXD-D-DAILYPRODU-171201-01 | E30: DE(TenneT)-CZ | F30: 2017/12/01 - 2017/12/02 | G30: 02:00-03:00 | H30: 1221 | J30: 1221 | K30: 3656 | L30: 0.01 | M30: 1221 | N30: 16 | O30: 12
A31: 2017 | B31: 12 | C31: 2017-12-01 | D31: CEEXD-D-DAILYPRODU-171201-01 | E31: PL-CZ | F31: 2017/12/01 - 2017/12/02 | G31: 02:00-03:00 | H31: For Offered Capacity see respective constraints | I31: For Offered Capacity see respective constraints | J31: For Offered Capacity see respective constraints | K31: 1498 | L31: 0.98 | M31: 578 | N31: 11 | O31: 8
A32: 2017 | B32: 12 | C32: 2017-12-01 | D32: CEEXD-D-DAILYPRODU-171201-01 | E32: PL-SK | F32: 2017/12/01 - 2017/12/02 | G32: 02:00-03:00 | H32: For Offered Capacity see respective constraints | I32: For Offered Capacity see respective constraints | J32: For Offered Capacity see respective constraints | K32: 395 | L32: 0.98 | M32: 345 | N32: 8 | O32: 6
A33: 2017 | B33: 12 | C33: 2017-12-01 | D33: CEEXD-D-DAILYPRODU-171201-01 | E33: SK-PL | F33: 2017/12/01 - 2017/12/02 | G33: 02:00-03:00 | H33: For Offered Capacity see respective constraints | I33: For Offered Capacity see respective constraints | J33: For Offered Capacity see respective constraints | K33: 0 | L33: 0 | M33: 0 | N33: 3
A34: 2017 | B34: 12 | C34: 2017-12-01 | D34: CEEXD-D-DAILYPRODU-171201-01 | E34: PL-DE(50Hz) | F34: 2017/12/01 - 2017/12/02 | G34: 02:00-03:00 | H34: For Offered Capacity see respective constraints | I34: For Offered Capacity see respective constraints | J34: For Offered Capacity see respective constraints | K34: 1897 | L34: 1.49 | M34: 877 | N34: 10 | O34: 7
A35: 2017 | B35: 12 | C35: 2017-12-01 | D35: CEEXD-D-DAILYPRODU-171201-01 | E35: DE(50Hz)-PL | F35: 2017/12/01 - 2017/12/02 | G35: 02:00-03:00 | H35: For Offered Capacity see respective constraints | I35: For Offered Capacity see respective constraints | J35: For Offered Capacity see respective constraints | K35: 0 | L35: 0.02 | M35: 0 | N35: 6
A36: 2017 | B36: 12 | C36: 2017-12-01 | D36: CEEXD-D-DAILYPRODU-171201-01 | E36: DE(50Hz)-CZ | F36: 2017/12/01 - 2017/12/02 | G36: 02:00-03:00 | H36: For Offered Capacity see respective constraints | I36: For Offered Capacity see respective constraints | J36: For Offered Capacity see respective constraints | K36: 3261 | L36: 0.02 | M36: 1015 | N36: 13 | O36: 10
A37: 2017 | B37: 12 | C37: 2017-12-01 | D37: CEEXD-D-DAILYPRODU-171201-01 | E37: CZ-DE(50Hz) | F37: 2017/12/01 - 2017/12/02 | G37: 02:00-03:00 | H37: For Offered Capacity see respective constraints | I37: For Offered Capacity see respective constraints | J37: For Offered Capacity see respective constraints | K37: 4507 | L37: 0.51 | M37: 657 | N37: 12 | O37: 6
A38: 2017 | B38: 12 | C38: 2017-12-01 | D38: CEEXD-D-DAILYPRODU-171201-01 | E38: CZ-DE(50Hz) | F38: 2017/12/01 - 2017/12/02 | G38: 03:00-04:00 | H38: For Offered Capacity see respective constraints | I38: For Offered Capacity see respective constraints | J38: For Offered Capacity see respective constraints | K38: 4535 | L38: 0.51 | M38: 651 | N38: 12 | O38: 7
A39: 2017 | B39: 12 | C39: 2017-12-01 | D39: CEEXD-D-DAILYPRODU-171201-01 | E39: DE(50Hz)-CZ | F39: 2017/12/01 - 2017/12/02 | G39: 03:00-04:00 | H39: For Offered Capacity see respective constraints | I39: For Offered Capacity see respective constraints | J39: For Offered Capacity see respective constraints | K39: 3261 | L39: 0.02 | M39: 1015 | N39: 13 | O39: 10
A40: 2017 | B40: 12 | C40: 2017-12-01 | D40: CEEXD-D-DAILYPRODU-171201-01 | E40: DE(50Hz)-PL | F40: 2017/12/01 - 2017/12/02 | G40: 03:00-04:00 | H40: For Offered Capacity see respective constraints | I40: For Offered Capacity see respective constraints | J40: For Offered Capacity see respective constraints | K40: 0 | L40: 0.02 | M40: 0 | N40: 6
A41: 2017 | B41: 12 | C41: 2017-12-01 | D41: CEEXD-D-DAILYPRODU-171201-01 | E41: PL-DE(50Hz) | F41: 2017/12/01 - 2017/12/02 | G41: 03:00-04:00 | H41: For Offered Capacity see respective constraints | I41: For Offered Capacity see respective constraints | J41: For Offered Capacity see respective constraints | K41: 1897 | L41: 1.47 | M41: 882 | N41: 10 | O41: 7
A42: 2017 | B42: 12 | C42: 2017-12-01 | D42: CEEXD-D-DAILYPRODU-171201-01 | E42: SK-PL | F42: 2017/12/01 - 2017/12/02 | G42: 03:00-04:00 | H42: For Offered Capacity see respective constraints | I42: For Offered Capacity see respective constraints | J42: For Offered Capacity see respective constraints | K42: 0 | L42: 0 | M42: 0 | N42: 3
A43: 2017 | B43: 12 | C43: 2017-12-01 | D43: CEEXD-D-DAILYPRODU-171201-01 | E43: PL-SK | F43: 2017/12/01 - 2017/12/02 | G43: 03:00-04:00 | H43: For Offered Capacity see respective constraints | I43: For Offered Capacity see respective constraints | J43: For Offered Capacity see respective constraints | K43: 395 | L43: 0.96 | M43: 345 | N43: 8 | O43: 6
A44: 2017 | B44: 12 | C44: 2017-12-01 | D44: CEEXD-D-DAILYPRODU-171201-01 | E44: PL-CZ | F44: 2017/12/01 - 2017/12/02 | G44: 03:00-04:00 | H44: For Offered Capacity see respective constraints | I44: For Offered Capacity see respective constraints | J44: For Offered Capacity see respective constraints | K44: 1498 | L44: 0.96 | M44: 573 | N44: 11 | O44: 9
A45: 2017 | B45: 12 | C45: 2017-12-01 | D45: CEEXD-D-DAILYPRODU-171201-01 | E45: DE(TenneT)-CZ | F45: 2017/12/01 - 2017/12/02 | G45: 03:00-04:00 | H45: 1221 | J45: 1221 | K45: 3656 | L45: 0.01 | M45: 1221 | N45: 16 | O45: 12
A46: 2017 | B46: 12 | C46: 2017-12-01 | D46: CEEXD-D-DAILYPRODU-171201-01 | E46: CZ-PL | F46: 2017/12/01 - 2017/12/02 | G46: 03:00-04:00 | H46: For Offered Capacity see respective constraints | I46: For Offered Capacity see respective constraints | J46: For Offered Capacity see respective constraints | K46: 0 | L46: 0 | M46: 0 | N46: 5
A47: 2017 | B47: 12 | C47: 2017-12-01 | D47: CEEXD-D-DAILYPRODU-171201-01 | E47: CZ-DE(TenneT) | F47: 2017/12/01 - 2017/12/02 | G47: 03:00-04:00 | H47: 1329 | J47: 1329 | K47: 5092 | L47: 0.95 | M47: 1329 | N47: 15 | O47: 7
A48: 2017 | B48: 12 | C48: 2017-12-01 | D48: CEEXD-D-DAILYPRODU-171201-01 | E48: CZ-AT | F48: 2017/12/01 - 2017/12/02 | G48: 03:00-04:00 | H48: 785 | J48: 785 | K48: 3247 | L48: 0.35 | M48: 785 | N48: 14 | O48: 13
A49: 2017 | B49: 12 | C49: 2017-12-01 | D49: CEEXD-D-DAILYPRODU-171201-01 | E49: AT-CZ | F49: 2017/12/01 - 2017/12/02 | G49: 03:00-04:00 | H49: 615 | J49: 615 | K49: 2409 | L49: 0.08 | M49: 615 | N49: 13 | O49: 7
A50: 2017 | B50: 12 | C50: 2017-12-01 | D50: CEEXD-D-DAILYPRODU-171201-01 | E50: AT-CZ | F50: 2017/12/01 - 2017/12/02 | G50: 04:00-05:00 | H50: 615 | J50: 615 | K50: 2409 | L50: 0.08 | M50: 615 | N50: 13 | O50: 7
A51: 2017 | B51: 12 | C51: 2017-12-01 | D51: CEEXD-D-DAILYPRODU-171201-01 | E51: CZ-AT | F51: 2017/12/01 - 2017/12/02 | G51: 04:00-05:00 | H51: 785 | J51: 785 | K51: 3247 | L51: 0.35 | M51: 785 | N51: 14 | O51: 13
A52: 2017 | B52: 12 | C52: 2017-12-01 | D52: CEEXD-D-DAILYPRODU-171201-01 | E52: CZ-DE(TenneT) | F52: 2017/12/01 - 2017/12/02 | G52: 04:00-05:00 | H52: 1329 | J52: 1329 | K52: 5092 | L52: 0.95 | M52: 1329 | N52: 15 | O52: 7
A53: 2017 | B53: 12 | C53: 2017-12-01 | D53: CEEXD-D-DAILYPRODU-171201-01 | E53: CZ-PL | F53: 2017/12/01 - 2017/12/02 | G53: 04:00-05:00 | H53: For Offered Capacity see respective constraints | I53: For Offered Capacity see respective constraints | J53: For Offered Capacity see respective constraints | K53: 0 | L53: 0 | M53: 0 | N53: 5
A54: 2017 | B54: 12 | C54: 2017-12-01 | D54: CEEXD-D-DAILYPRODU-171201-01 | E54: DE(TenneT)-CZ | F54: 2017/12/01 - 2017/12/02 | G54: 04:00-05:00 | H54: 1221 | J54: 1221 | K54: 3656 | L54: 0.01 | M54: 1221 | N54: 16 | O54: 12
A55: 2017 | B55: 12 | C55: 2017-12-01 | D55: CEEXD-D-DAILYPRODU-171201-01 | E55: PL-CZ | F55: 2017/12/01 - 2017/12/02 | G55: 04:00-05:00 | H55: For Offered Capacity see respective constraints | I55: For Offered Capacity see respective constraints | J55: For Offered Capacity see respective constraints | K55: 1498 | L55: 1.08 | M55: 568 | N55: 11 | O55: 8
A56: 2017 | B56: 12 | C56: 2017-12-01 | D56: CEEXD-D-DAILYPRODU-171201-01 | E56: PL-SK | F56: 2017/12/01 - 2017/12/02 | G56: 04:00-05:00 | H56: For Offered Capacity see respective constraints | I56: For Offered Capacity see respective constraints | J56: For Offered Capacity see respective constraints | K56: 395 | L56: 1.08 | M56: 365 | N56: 8 | O56: 6
A57: 2017 | B57: 12 | C57: 2017-12-01 | D57: CEEXD-D-DAILYPRODU-171201-01 | E57: SK-PL | F57: 2017/12/01 - 2017/12/02 | G57: 04:00-05:00 | H57: For Offered Capacity see respective constraints | I57: For Offered Capacity see respective constraints | J57: For Offered Capacity see respective constraints | K57: 0 | L57: 0 | M57: 0 | N57: 3
A58: 2017 | B58: 12 | C58: 2017-12-01 | D58: CEEXD-D-DAILYPRODU-171201-01 | E58: PL-DE(50Hz) | F58: 2017/12/01 - 2017/12/02 | G58: 04:00-05:00 | H58: For Offered Capacity see respective constraints | I58: For Offered Capacity see respective constraints | J58: For Offered Capacity see respective constraints | K58: 1897 | L58: 1.59 | M58: 867 | N58: 10 | O58: 7
A59: 2017 | B59: 12 | C59: 2017-12-01 | D59: CEEXD-D-DAILYPRODU-171201-01 | E59: DE(50Hz)-PL | F59: 2017/12/01 - 2017/12/02 | G59: 04:00-05:00 | H59: For Offered Capacity see respective constraints | I59: For Offered Capacity see respective constraints | J59: For Offered Capacity see respective constraints | K59: 0 | L59: 0.02 | M59: 0 | N59: 6
A60: 2017 | B60: 12 | C60: 2017-12-01 | D60: CEEXD-D-DAILYPRODU-171201-01 | E60: DE(50Hz)-CZ | F60: 2017/12/01 - 2017/12/02 | G60: 04:00-05:00 | H60: For Offered Capacity see respective constraints | I60: For Offered Capacity see respective constraints | J60: For Offered Capacity see respective constraints | K60: 3261 | L60: 0.02 | M60: 1015 | N60: 13 | O60: 10
A61: 2017 | B61: 12 | C61: 2017-12-01 | D61: CEEXD-D-DAILYPRODU-171201-01 | E61: CZ-DE(50Hz) | F61: 2017/12/01 - 2017/12/02 | G61: 04:00-05:00 | H61: For Offered Capacity see respective constraints | I61: For Offered Capacity see respective constraints | J61: For Offered Capacity see respective constraints | K61: 4535 | L61: 0.51 | M61: 667 | N61: 12 | O61: 7
A62: 2017 | B62: 12 | C62: 2017-12-01 | D62: CEEXD-D-DAILYPRODU-171201-01 | E62: CZ-DE(50Hz) | F62: 2017/12/01 - 2017/12/02 | G62: 05:00-06:00 | H62: For Offered Capacity see respective constraints | I62: For Offered Capacity see respective constraints | J62: For Offered Capacity see respective constraints | K62: 4507 | L62: 0.51 | M62: 672 | N62: 12 | O62: 6
A63: 2017 | B63: 12 | C63: 2017-12-01 | D63: CEEXD-D-DAILYPRODU-171201-01 | E63: DE(50Hz)-CZ | F63: 2017/12/01 - 2017/12/02 | G63: 05:00-06:00 | H63: For Offered Capacity see respective constraints | I63: For Offered Capacity see respective constraints | J63: For Offered Capacity see respective constraints | K63: 3161 | L63: 0.02 | M63: 965 | N63: 13 | O63: 10
A64: 2017 | B64: 12 | C64: 2017-12-01 | D64: CEEXD-D-DAILYPRODU-171201-01 | E64: DE(50Hz)-PL | F64: 2017/12/01 - 2017/12/02 | G64: 05:00-06:00 | H64: For Offered Capacity see respective constraints | I64: For Offered Capacity see respective constraints | J64: For Offered Capacity see respective constraints | K64: 0 | L64: 0.02 | M64: 0 | N64: 6
A65: 2017 | B65: 12 | C65: 2017-12-01 | D65: CEEXD-D-DAILYPRODU-171201-01 | E65: PL-DE(50Hz) | F65: 2017/12/01 - 2017/12/02 | G65: 05:00-06:00 | H65: For Offered Capacity see respective constraints | I65: For Offered Capacity see respective constraints | J65: For Offered Capacity see respective constraints | K65: 1897 | L65: 2.74 | M65: 862 | N65: 10 | O65: 7
A66: 2017 | B66: 12 | C66: 2017-12-01 | D66: CEEXD-D-DAILYPRODU-171201-01 | E66: SK-PL | F66: 2017/12/01 - 2017/12/02 | G66: 05:00-06:00 | H66: For Offered Capacity see respective constraints | I66: For Offered Capacity see respective constraints | J66: For Offered Capacity see respective constraints | K66: 0 | L66: 0 | M66: 0 | N66: 3
A67: 2017 | B67: 12 | C67: 2017-12-01 | D67: CEEXD-D-DAILYPRODU-171201-01 | E67: PL-SK | F67: 2017/12/01 - 2017/12/02 | G67: 05:00-06:00 | H67: For Offered Capacity see respective constraints | I67: For Offered Capacity see respective constraints | J67: For Offered Capacity see respective constraints | K67: 395 | L67: 2.23 | M67: 345 | N67: 8 | O67: 6
A68: 2017 | B68: 12 | C68: 2017-12-01 | D68: CEEXD-D-DAILYPRODU-171201-01 | E68: PL-CZ | F68: 2017/12/01 - 2017/12/02 | G68: 05:00-06:00 | H68: For Offered Capacity see respective constraints | I68: For Offered Capacity see respective constraints | J68: For Offered Capacity see respective constraints | K68: 1498 | L68: 2.23 | M68: 593 | N68: 11 | O68: 9
A69: 2017 | B69: 12 | C69: 2017-12-01 | D69: CEEXD-D-DAILYPRODU-171201-01 | E69: DE(TenneT)-CZ | F69: 2017/12/01 - 2017/12/02 | G69: 05:00-06:00 | H69: 1171 | J69: 1171 | K69: 3556 | L69: 0.01 | M69: 1169 | N69: 16 | O69: 12
A70: 2017 | B70: 12 | C70: 2017-12-01 | D70: CEEXD-D-DAILYPRODU-171201-01 | E70: CZ-PL | F70: 2017/12/01 - 2017/12/02 | G70: 05:00-06:00 | H70: For Offered Capacity see respective constraints | I70: For Offered Capacity see respective constraints | J70: For Offered Capacity see respective constraints | K70: 0 | L70: 0 | M70: 0 | N70: 5
A71: 2017 | B71: 12 | C71: 2017-12-01 | D71: CEEXD-D-DAILYPRODU-171201-01 | E71: CZ-DE(TenneT) | F71: 2017/12/01 - 2017/12/02 | G71: 05:00-06:00 | H71: 1329 | J71: 1329 | K71: 5092 | L71: 0.95 | M71: 1329 | N71: 15 | O71: 6
A72: 2017 | B72: 12 | C72: 2017-12-01 | D72: CEEXD-D-DAILYPRODU-171201-01 | E72: CZ-AT | F72: 2017/12/01 - 2017/12/02 | G72: 05:00-06:00 | H72: 785 | J72: 785 | K72: 3247 | L72: 0.32 | M72: 785 | N72: 14 | O72: 13
A73: 2017 | B73: 12 | C73: 2017-12-01 | D73: CEEXD-D-DAILYPRODU-171201-01 | E73: AT-CZ | F73: 2017/12/01 - 2017/12/02 | G73: 05:00-06:00 | H73: 615 | J73: 615 | K73: 2409 | L73: 0.08 | M73: 615 | N73: 13 | O73: 7
A74: 2017 | B74: 12 | C74: 2017-12-01 | D74: CEEXD-D-DAILYPRODU-171201-01 | E74: AT-CZ | F74: 2017/12/01 - 2017/12/02 | G74: 06:00-07:00 | H74: 610 | J74: 610 | K74: 2414 | L74: 0.1 | M74: 610 | N74: 13 | O74: 8
A75: 2017 | B75: 12 | C75: 2017-12-01 | D75: CEEXD-D-DAILYPRODU-171201-01 | E75: CZ-AT | F75: 2017/12/01 - 2017/12/02 | G75: 06:00-07:00 | H75: 790 | J75: 790 | K75: 3098 | L75: 0.23 | M75: 790 | N75: 14 | O75: 12
A76: 2017 | B76: 12 | C76: 2017-12-01 | D76: CEEXD-D-DAILYPRODU-171201-01 | E76: CZ-DE(TenneT) | F76: 2017/12/01 - 2017/12/02 | G76: 06:00-07:00 | H76: 1339 | J76: 1339 | K76: 4451 | L76: 0.31 | M76: 1339 | N76: 15 | O76: 9
A77: 2017 | B77: 12 | C77: 2017-12-01 | D77: CEEXD-D-DAILYPRODU-171201-01 | E77: CZ-PL | F77: 2017/12/01 - 2017/12/02 | G77: 06:00-07:00 | H77: For Offered Capacity see respective constraints | I77: For Offered Capacity see respective constraints | J77: For Offered Capacity see respective constraints | K77: 175 | L77: 0 | M77: 175 | N77: 5 | O77: 2
A78: 2017 | B78: 12 | C78: 2017-12-01 | D78: CEEXD-D-DAILYPRODU-171201-01 | E78: DE(TenneT)-CZ | F78: 2017/12/01 - 2017/12/02 | G78: 06:00-07:00 | H78: 1011 | J78: 1011 | K78: 3251 | L78: 0.02 | M78: 1011 | N78: 16 | O78: 13
A79: 2017 | B79: 12 | C79: 2017-12-01 | D79: CEEXD-D-DAILYPRODU-171201-01 | E79: PL-CZ | F79: 2017/12/01 - 2017/12/02 | G79: 06:00-07:00 | H79: For Offered Capacity see respective constraints | I79: For Offered Capacity see respective constraints | J79: For Offered Capacity see respective constraints | K79: 643 | L79: 15.48 | M79: 154 | N79: 11 | O79: 4
A80: 2017 | B80: 12 | C80: 2017-12-01 | D80: CEEXD-D-DAILYPRODU-171201-01 | E80: PL-SK | F80: 2017/12/01 - 2017/12/02 | G80: 06:00-07:00 | H80: For Offered Capacity see respective constraints | I80: For Offered Capacity see respective constraints | J80: For Offered Capacity see respective constraints | K80: 370 | L80: 15.48 | M80: 150 | N80: 8 | O80: 2
A81: 2017 | B81: 12 | C81: 2017-12-01 | D81: CEEXD-D-DAILYPRODU-171201-01 | E81: SK-PL | F81: 2017/12/01 - 2017/12/02 | G81: 06:00-07:00 | H81: For Offered Capacity see respective constraints | I81: For Offered Capacity see respective constraints | J81: For Offered Capacity see respective constraints | K81: 25 | L81: 0 | M81: 25 | N81: 3 | O81: 1
A82: 2017 | B82: 12 | C82: 2017-12-01 | D82: CEEXD-D-DAILYPRODU-171201-01 | E82: PL-DE(50Hz) | F82: 2017/12/01 - 2017/12/02 | G82: 06:00-07:00 | H82: For Offered Capacity see respective constraints | I82: For Offered Capacity see respective constraints | J82: For Offered Capacity see respective constraints | K82: 1329 | L82: 15.63 | M82: 319 | N82: 10 | O82: 3
A83: 2017 | B83: 12 | C83: 2017-12-01 | D83: CEEXD-D-DAILYPRODU-171201-01 | E83: DE(50Hz)-PL | F83: 2017/12/01 - 2017/12/02 | G83: 06:00-07:00 | H83: For Offered Capacity see respective constraints | I83: For Offered Capacity see respective constraints | J83: For Offered Capacity see respective constraints | K83: 391 | L83: 0.03 | M83: 0 | N83: 6
A84: 2017 | B84: 12 | C84: 2017-12-01 | D84: CEEXD-D-DAILYPRODU-171201-01 | E84: DE(50Hz)-CZ | F84: 2017/12/01 - 2017/12/02 | G84: 06:00-07:00 | H84: For Offered Capacity see respective constraints | I84: For Offered Capacity see respective constraints | J84: For Offered Capacity see respective constraints | K84: 2852 | L84: 0.03 | M84: 803 | N84: 13 | O84: 10
A85: 2017 | B85: 12 | C85: 2017-12-01 | D85: CEEXD-D-DAILYPRODU-171201-01 | E85: CZ-DE(50Hz) | F85: 2017/12/01 - 2017/12/02 | G85: 06:00-07:00 | H85: For Offered Capacity see respective constraints | I85: For Offered Capacity see respective constraints | J85: For Offered Capacity see respective constraints | K85: 4531 | L85: 0.15 | M85: 1226 | N85: 12 | O85: 9
A86: 2017 | B86: 12 | C86: 2017-12-01 | D86: CEEXD-D-DAILYPRODU-171201-01 | E86: CZ-DE(50Hz) | F86: 2017/12/01 - 2017/12/02 | G86: 07:00-08:00 | H86: For Offered Capacity see respective constraints | I86: For Offered Capacity see respective constraints | J86: For Offered Capacity see respective constraints | K86: 4581 | L86: 0.13 | M86: 1546 | N86: 12 | O86: 10
A87: 2017 | B87: 12 | C87: 2017-12-01 | D87: CEEXD-D-DAILYPRODU-171201-01 | E87: DE(50Hz)-CZ | F87: 2017/12/01 - 2017/12/02 | G87: 07:00-08:00 | H87: For Offered Capacity see respective constraints | I87: For Offered Capacity see respective constraints | J87: For Offered Capacity see respective constraints | K87: 2952 | L87: 0.03 | M87: 800 | N87: 13 | O87: 11
A88: 2017 | B88: 12 | C88: 2017-12-01 | D88: CEEXD-D-DAILYPRODU-171201-01 | E88: DE(50Hz)-PL | F88: 2017/12/01 - 2017/12/02 | G88: 07:00-08:00 | H88: For Offered Capacity see respective constraints | I88: For Offered Capacity see respective constraints | J88: For Offered Capacity see respective constraints | K88: 542 | L88: 0.03 | M88: 0 | N88: 6
A89: 2017 | B89: 12 | C89: 2017-12-01 | D89: CEEXD-D-DAILYPRODU-171201-01 | E89: PL-DE(50Hz) | F89: 2017/12/01 - 2017/12/02 | G89: 07:00-08:00 | H89: For Offered Capacity see respective constraints | I89: For Offered Capacity see respective constraints | J89: For Offered Capacity see respective constraints | K89: 0 | L89: 0.13 | M89: 0 | N89: 10
A90: 2017 | B90: 12 | C90: 2017-12-01 | D90: CEEXD-D-DAILYPRODU-171201-01 | E90: SK-PL | F90: 2017/12/01 - 2017/12/02 | G90: 07:00-08:00 | H90: For Offered Capacity see respective constraints | I90: For Offered Capacity see respective constraints | J90: For Offered Capacity see respective constraints | K90: 25 | L90: 0 | M90: 25 | N90: 3 | O90: 1
A91: 2017 | B91: 12 | C91: 2017-12-01 | D91: CEEXD-D-DAILYPRODU-171201-01 | E91: PL-SK | F91: 2017/12/01 - 2017/12/02 | G91: 07:00-08:00 | H91: For Offered Capacity see respective constraints | I91: For Offered Capacity see respective constraints | J91: For Offered Capacity see respective constraints | K91: 0 | L91: 0 | M91: 0 | N91: 8
A92: 2017 | B92: 12 | C92: 2017-12-01 | D92: CEEXD-D-DAILYPRODU-171201-01 | E92: PL-CZ | F92: 2017/12/01 - 2017/12/02 | G92: 07:00-08:00 | H92: For Offered Capacity see respective constraints | I92: For Offered Capacity see respective constraints | J92: For Offered Capacity see respective constraints | K92: 0 | L92: 0 | M92: 0 | N92: 11
A93: 2017 | B93: 12 | C93: 2017-12-01 | D93: CEEXD-D-DAILYPRODU-171201-01 | E93: DE(TenneT)-CZ | F93: 2017/12/01 - 2017/12/02 | G93: 07:00-08:00 | H93: 1011 | J93: 1011 | K93: 3301 | L93: 0.02 | M93: 1009 | N93: 16 | O93: 13
A94: 2017 | B94: 12 | C94: 2017-12-01 | D94: CEEXD-D-DAILYPRODU-171201-01 | E94: CZ-PL | F94: 2017/12/01 - 2017/12/02 | G94: 07:00-08:00 | H94: For Offered Capacity see respective constraints | I94: For Offered Capacity see respective constraints | J94: For Offered Capacity see respective constraints | K94: 175 | L94: 0 | M94: 175 | N94: 5 | O94: 2
A95: 2017 | B95: 12 | C95: 2017-12-01 | D95: CEEXD-D-DAILYPRODU-171201-01 | E95: CZ-DE(TenneT) | F95: 2017/12/01 - 2017/12/02 | G95: 07:00-08:00 | H95: 1339 | J95: 1339 | K95: 4092 | L95: 0.21 | M95: 1339 | N95: 15 | O95: 10
A96: 2017 | B96: 12 | C96: 2017-12-01 | D96: CEEXD-D-DAILYPRODU-171201-01 | E96: CZ-AT | F96: 2017/12/01 - 2017/12/02 | G96: 07:00-08:00 | H96: 790 | J96: 790 | K96: 3039 | L96: 0.2 | M96: 790 | N96: 14 | O96: 10
A97: 2017 | B97: 12 | C97: 2017-12-01 | D97: CEEXD-D-DAILYPRODU-171201-01 | E97: AT-CZ | F97: 2017/12/01 - 2017/12/02 | G97: 07:00-08:00 | H97: 610 | J97: 610 | K97: 2464 | L97: 0.11 | M97: 610 | N97: 13 | O97: 8
A98: 2017 | B98: 12 | C98: 2017-12-01 | D98: CEEXD-D-DAILYPRODU-171201-01 | E98: AT-CZ | F98: 2017/12/01 - 2017/12/02 | G98: 08:00-09:00 | H98: 610 | J98: 610 | K98: 2464 | L98: 0.11 | M98: 610 | N98: 13 | O98: 8
A99: 2017 | B99: 12 | C99: 2017-12-01 | D99: CEEXD-D-DAILYPRODU-171201-01 | E99: CZ-AT | F99: 2017/12/01 - 2017/12/02 | G99: 08:00-09:00 | H99: 790 | J99: 790 | K99: 3039 | L99: 0.2 | M99: 790 | N99: 14 | O99: 10
A100: 2017 | B100: 12 | C100: 2017-12-01 | D100: CEEXD-D-DAILYPRODU-171201-01 | E100: CZ-DE(TenneT) | F100: 2017/12/01 - 2017/12/02 | G100: 08:00-09:00 | H100: 1354 | J100: 1354 | K100: 4122 | L100: 0.21 | M100: 1354 | N100: 15 | O100: 10
A101: 2017 | B101: 12 | C101: 2017-12-01 | D101: CEEXD-D-DAILYPRODU-171201-01 | E101: CZ-PL | F101: 2017/12/01 - 2017/12/02 | G101: 08:00-09:00 | H101: For Offered Capacity see respective constraints | I101: For Offered Capacity see respective constraints | J101: For Offered Capacity see respective constraints | K101: 175 | L101: 0 | M101: 175 | N101: 5 | O101: 2
A102: 2017 | B102: 12 | C102: 2017-12-01 | D102: CEEXD-D-DAILYPRODU-171201-01 | E102: DE(TenneT)-CZ | F102: 2017/12/01 - 2017/12/02 | G102: 08:00-09:00 | H102: 896 | J102: 896 | K102: 3071 | L102: 0.03 | M102: 893 | N102: 16 | O102: 11
A103: 2017 | B103: 12 | C103: 2017-12-01 | D103: CEEXD-D-DAILYPRODU-171201-01 | E103: PL-CZ | F103: 2017/12/01 - 2017/12/02 | G103: 08:00-09:00 | H103: For Offered Capacity see respective constraints | I103: For Offered Capacity see respective constraints | J103: For Offered Capacity see respective constraints | K103: 0 | L103: 0 | M103: 0 | N103: 11
A104: 2017 | B104: 12 | C104: 2017-12-01 | D104: CEEXD-D-DAILYPRODU-171201-01 | E104: PL-SK | F104: 2017/12/01 - 2017/12/02 | G104: 08:00-09:00 | H104: For Offered Capacity see respective constraints | I104: For Offered Capacity see respective constraints | J104: For Offered Capacity see respective constraints | K104: 0 | L104: 0 | M104: 0 | N104: 8
A105: 2017 | B105: 12 | C105: 2017-12-01 | D105: CEEXD-D-DAILYPRODU-171201-01 | E105: SK-PL | F105: 2017/12/01 - 2017/12/02 | G105: 08:00-09:00 | H105: For Offered Capacity see respective constraints | I105: For Offered Capacity see respective constraints | J105: For Offered Capacity see respective constraints | K105: 25 | L105: 0 | M105: 25 | N105: 3 | O105: 1
A106: 2017 | B106: 12 | C106: 2017-12-01 | D106: CEEXD-D-DAILYPRODU-171201-01 | E106: PL-DE(50Hz) | F106: 2017/12/01 - 2017/12/02 | G106: 08:00-09:00 | H106: For Offered Capacity see respective constraints | I106: For Offered Capacity see respective constraints | J106: For Offered Capacity see respective constraints | K106: 0 | L106: 0.13 | M106: 0 | N106: 10
A107: 2017 | B107: 12 | C107: 2017-12-01 | D107: CEEXD-D-DAILYPRODU-171201-01 | E107: DE(50Hz)-PL | F107: 2017/12/01 - 2017/12/02 | G107: 08:00-09:00 | H107: For Offered Capacity see respective constraints | I107: For Offered Capacity see respective constraints | J107: For Offered Capacity see respective constraints | K107: 675 | L107: 0.04 | M107: 0 | N107: 6
A108: 2017 | B108: 12 | C108: 2017-12-01 | D108: CEEXD-D-DAILYPRODU-171201-01 | E108: DE(50Hz)-CZ | F108: 2017/12/01 - 2017/12/02 | G108: 08:00-09:00 | H108: For Offered Capacity see respective constraints | I108: For Offered Capacity see respective constraints | J108: For Offered Capacity see respective constraints | K108: 2752 | L108: 0.04 | M108: 703 | N108: 13 | O108: 10
A109: 2017 | B109: 12 | C109: 2017-12-01 | D109: CEEXD-D-DAILYPRODU-171201-01 | E109: CZ-DE(50Hz) | F109: 2017/12/01 - 2017/12/02 | G109: 08:00-09:00 | H109: For Offered Capacity see respective constraints | I109: For Offered Capacity see respective constraints | J109: For Offered Capacity see respective constraints | K109: 4581 | L109: 0.13 | M109: 1546 | N109: 12 | O109: 10
A110: 2017 | B110: 12 | C110: 2017-12-01 | D110: CEEXD-D-DAILYPRODU-171201-01 | E110: CZ-DE(50Hz) | F110: 2017/12/01 - 2017/12/02 | G110: 09:00-10:00 | H110: For Offered Capacity see respective constraints | I110: For Offered Capacity see respective constraints | J110: For Offered Capacity see respective constraints | K110: 4581 | L110: 0.13 | M110: 1546 | N110: 12 | O110: 10
A111: 2017 | B111: 12 | C111: 2017-12-01 | D111: CEEXD-D-DAILYPRODU-171201-01 | E111: DE(50Hz)-CZ | F111: 2017/12/01 - 2017/12/02 | G111: 09:00-10:00 | H111: For Offered Capacity see respective constraints | I111: For Offered Capacity see respective constraints | J111: For Offered Capacity see respective constraints | K111: 2702 | L111: 0.03 | M111: 700 | N111: 13 | O111: 10
A112: 2017 | B112: 12 | C112: 2017-12-01 | D112: CEEXD-D-DAILYPRODU-171201-01 | E112: DE(50Hz)-PL | F112: 2017/12/01 - 2017/12/02 | G112: 09:00-10:00 | H112: For Offered Capacity see respective constraints | I112: For Offered Capacity see respective constraints | J112: For Offered Capacity see respective constraints | K112: 675 | L112: 0.03 | M112: 0 | N112: 6
A113: 2017 | B113: 12 | C113: 2017-12-01 | D113: CEEXD-D-DAILYPRODU-171201-01 | E113: PL-DE(50Hz) | F113: 2017/12/01 - 2017/12/02 | G113: 09:00-10:00 | H113: For Offered Capacity see respective constraints | I113: For Offered Capacity see respective constraints | J113: For Offered Capacity see respective constraints | K113: 0 | L113: 0.13 | M113: 0 | N113: 10
A114: 2017 | B114: 12 | C114: 2017-12-01 | D114: CEEXD-D-DAILYPRODU-171201-01 | E114: SK-PL | F114: 2017/12/01 - 2017/12/02 | G114: 09:00-10:00 | H114: For Offered Capacity see respective constraints | I114: For Offered Capacity see respective constraints | J114: For Offered Capacity see respective constraints | K114: 25 | L114: 0 | M114: 25 | N114: 3 | O114: 1
A115: 2017 | B115: 12 | C115: 2017-12-01 | D115: CEEXD-D-DAILYPRODU-171201-01 | E115: PL-SK | F115: 2017/12/01 - 2017/12/02 | G115: 09:00-10:00 | H115: For Offered Capacity see respective constraints | I115: For Offered Capacity see respective constraints | J115: For Offered Capacity see respective constraints | K115: 0 | L115: 0 | M115: 0 | N115: 8
A116: 2017 | B116: 12 | C116: 2017-12-01 | D116: CEEXD-D-DAILYPRODU-171201-01 | E116: PL-CZ | F116: 2017/12/01 - 2017/12/02 | G116: 09:00-10:00 | H116: For Offered Capacity see respective constraints | I116: For Offered Capacity see respective constraints | J116: For Offered Capacity see respective constraints | K116: 0 | L116: 0 | M116: 0 | N116: 11
A117: 2017 | B117: 12 | C117: 2017-12-01 | D117: CEEXD-D-DAILYPRODU-171201-01 | E117: DE(TenneT)-CZ | F117: 2017/12/01 - 2017/12/02 | G117: 09:00-10:00 | H117: 896 | J117: 896 | K117: 3249 | L117: 0.04 | M117: 896 | N117: 16 | O117: 12
A118: 2017 | B118: 12 | C118: 2017-12-01 | D118: CEEXD-D-DAILYPRODU-171201-01 | E118: CZ-PL | F118: 2017/12/01 - 2017/12/02 | G118: 09:00-10:00 | H118: For Offered Capacity see respective constraints | I118: For Offered Capacity see respective constraints | J118: For Offered Capacity see respective constraints | K118: 175 | L118: 0 | M118: 175 | N118: 5 | O118: 2
A119: 2017 | B119: 12 | C119: 2017-12-01 | D119: CEEXD-D-DAILYPRODU-171201-01 | E119: CZ-DE(TenneT) | F119: 2017/12/01 - 2017/12/02 | G119: 09:00-10:00 | H119: 1354 | J119: 1354 | K119: 4122 | L119: 0.21 | M119: 1354 | N119: 15 | O119: 10
A120: 2017 | B120: 12 | C120: 2017-12-01 | D120: CEEXD-D-DAILYPRODU-171201-01 | E120: CZ-AT | F120: 2017/12/01 - 2017/12/02 | G120: 09:00-10:00 | H120: 790 | J120: 790 | K120: 3039 | L120: 0.2 | M120: 790 | N120: 14 | O120: 10
A121: 2017 | B121: 12 | C121: 2017-12-01 | D121: CEEXD-D-DAILYPRODU-171201-01 | E121: AT-CZ | F121: 2017/12/01 - 2017/12/02 | G121: 09:00-10:00 | H121: 610 | J121: 610 | K121: 2585 | L121: 0.12 | M121: 610 | N121: 13 | O121: 9
A122: 2017 | B122: 12 | C122: 2017-12-01 | D122: CEEXD-D-DAILYPRODU-171201-01 | E122: AT-CZ | F122: 2017/12/01 - 2017/12/02 | G122: 10:00-11:00 | H122: 610 | J122: 610 | K122: 2464 | L122: 0.11 | M122: 610 | N122: 13 | O122: 8
A123: 2017 | B123: 12 | C123: 2017-12-01 | D123: CEEXD-D-DAILYPRODU-171201-01 | E123: CZ-AT | F123: 2017/12/01 - 2017/12/02 | G123: 10:00-11:00 | H123: 790 | J123: 790 | K123: 3039 | L123: 0.22 | M123: 790 | N123: 14 | O123: 10
A124: 2017 | B124: 12 | C124: 2017-12-01 | D124: CEEXD-D-DAILYPRODU-171201-01 | E124: CZ-DE(TenneT) | F124: 2017/12/01 - 2017/12/02 | G124: 10:00-11:00 | H124: 1354 | J124: 1354 | K124: 4122 | L124: 0.21 | M124: 1354 | N124: 15 | O124: 10
A125: 2017 | B125: 12 | C125: 2017-12-01 | D125: CEEXD-D-DAILYPRODU-171201-01 | E125: CZ-PL | F125: 2017/12/01 - 2017/12/02 | G125: 10:00-11:00 | H125: For Offered Capacity see respective constraints | I125: For Offered Capacity see respective constraints | J125: For Offered Capacity see respective constraints | K125: 0 | L125: 0 | M125: 0 | N125: 5
A126: 2017 | B126: 12 | C126: 2017-12-01 | D126: CEEXD-D-DAILYPRODU-171201-01 | E126: DE(TenneT)-CZ | F126: 2017/12/01 - 2017/12/02 | G126: 10:00-11:00 | H126: 996 | J126: 996 | K126: 3271 | L126: 0.02 | M126: 993 | N126: 16 | O126: 13
A127: 2017 | B127: 12 | C127: 2017-12-01 | D127: CEEXD-D-DAILYPRODU-171201-01 | E127: PL-CZ | F127: 2017/12/01 - 2017/12/02 | G127: 10:00-11:00 | H127: For Offered Capacity see respective constraints | I127: For Offered Capacity see respective constraints | J127: For Offered Capacity see respective constraints | K127: 0 | L127: 0 | M127: 0 | N127: 11
A128: 2017 | B128: 12 | C128: 2017-12-01 | D128: CEEXD-D-DAILYPRODU-171201-01 | E128: PL-SK | F128: 2017/12/01 - 2017/12/02 | G128: 10:00-11:00 | H128: For Offered Capacity see respective constraints | I128: For Offered Capacity see respective constraints | J128: For Offered Capacity see respective constraints | K128: 0 | L128: 0 | M128: 0 | N128: 8
A129: 2017 | B129: 12 | C129: 2017-12-01 | D129: CEEXD-D-DAILYPRODU-171201-01 | E129: SK-PL | F129: 2017/12/01 - 2017/12/02 | G129: 10:00-11:00 | H129: For Offered Capacity see respective constraints | I129: For Offered Capacity see respective constraints | J129: For Offered Capacity see respective constraints | K129: 0 | L129: 0 | M129: 0 | N129: 3
A130: 2017 | B130: 12 | C130: 2017-12-01 | D130: CEEXD-D-DAILYPRODU-171201-01 | E130: PL-DE(50Hz) | F130: 2017/12/01 - 2017/12/02 | G130: 10:00-11:00 | H130: For Offered Capacity see respective constraints | I130: For Offered Capacity see respective constraints | J130: For Offered Capacity see respective constraints | K130: 0 | L130: 0.13 | M130: 0 | N130: 10
A131: 2017 | B131: 12 | C131: 2017-12-01 | D131: CEEXD-D-DAILYPRODU-171201-01 | E131: DE(50Hz)-PL | F131: 2017/12/01 - 2017/12/02 | G131: 10:00-11:00 | H131: For Offered Capacity see respective constraints | I131: For Offered Capacity see respective constraints | J131: For Offered Capacity see respective constraints | K131: 0 | L131: 0.03 | M131: 0 | N131: 6
A132: 2017 | B132: 12 | C132: 2017-12-01 | D132: CEEXD-D-DAILYPRODU-171201-01 | E132: DE(50Hz)-CZ | F132: 2017/12/01 - 2017/12/02 | G132: 10:00-11:00 | H132: For Offered Capacity see respective constraints | I132: For Offered Capacity see respective constraints | J132: For Offered Capacity see respective constraints | K132: 2902 | L132: 0.03 | M132: 800 | N132: 13 | O132: 10
A133: 2017 | B133: 12 | C133: 2017-12-01 | D133: CEEXD-D-DAILYPRODU-171201-01 | E133: CZ-DE(50Hz) | F133: 2017/12/01 - 2017/12/02 | G133: 10:00-11:00 | H133: For Offered Capacity see respective constraints | I133: For Offered Capacity see respective constraints | J133: For Offered Capacity see respective constraints | K133: 4581 | L133: 0.13 | M133: 1546 | N133: 12 | O133: 10
A134: 2017 | B134: 12 | C134: 2017-12-01 | D134: CEEXD-D-DAILYPRODU-171201-01 | E134: CZ-DE(50Hz) | F134: 2017/12/01 - 2017/12/02 | G134: 11:00-12:00 | H134: For Offered Capacity see respective constraints | I134: For Offered Capacity see respective constraints | J134: For Offered Capacity see respective constraints | K134: 4581 | L134: 0.13 | M134: 1546 | N134: 12 | O134: 10
A135: 2017 | B135: 12 | C135: 2017-12-01 | D135: CEEXD-D-DAILYPRODU-171201-01 | E135: DE(50Hz)-CZ | F135: 2017/12/01 - 2017/12/02 | G135: 11:00-12:00 | H135: For Offered Capacity see respective constraints | I135: For Offered Capacity see respective constraints | J135: For Offered Capacity see respective constraints | K135: 2902 | L135: 0.03 | M135: 800 | N135: 13 | O135: 10
A136: 2017 | B136: 12 | C136: 2017-12-01 | D136: CEEXD-D-DAILYPRODU-171201-01 | E136: DE(50Hz)-PL | F136: 2017/12/01 - 2017/12/02 | G136: 11:00-12:00 | H136: For Offered Capacity see respective constraints | I136: For Offered Capacity see respective constraints | J136: For Offered Capacity see respective constraints | K136: 0 | L136: 0.03 | M136: 0 | N136: 6
A137: 2017 | B137: 12 | C137: 2017-12-01 | D137: CEEXD-D-DAILYPRODU-171201-01 | E137: PL-DE(50Hz) | F137: 2017/12/01 - 2017/12/02 | G137: 11:00-12:00 | H137: For Offered Capacity see respective constraints | I137: For Offered Capacity see respective constraints | J137: For Offered Capacity see respective constraints | K137: 0 | L137: 0.13 | M137: 0 | N137: 10
A138: 2017 | B138: 12 | C138: 2017-12-01 | D138: CEEXD-D-DAILYPRODU-171201-01 | E138: SK-PL | F138: 2017/12/01 - 2017/12/02 | G138: 11:00-12:00 | H138: For Offered Capacity see respective constraints | I138: For Offered Capacity see respective constraints | J138: For Offered Capacity see respective constraints | K138: 0 | L138: 0 | M138: 0 | N138: 3
A139: 2017 | B139: 12 | C139: 2017-12-01 | D139: CEEXD-D-DAILYPRODU-171201-01 | E139: PL-SK | F139: 2017/12/01 - 2017/12/02 | G139: 11:00-12:00 | H139: For Offered Capacity see respective constraints | I139: For Offered Capacity see respective constraints | J139: For Offered Capacity see respective constraints | K139: 0 | L139: 0 | M139: 0 | N139: 8
A140: 2017 | B140: 12 | C140: 2017-12-01 | D140: CEEXD-D-DAILYPRODU-171201-01 | E140: PL-CZ | F140: 2017/12/01 - 2017/12/02 | G140: 11:00-12:00 | H140: For Offered Capacity see respective constraints | I140: For Offered Capacity see respective constraints | J140: For Offered Capacity see respective constraints | K140: 0 | L140: 0 | M140: 0 | N140: 11
A141: 2017 | B141: 12 | C141: 2017-12-01 | D141: CEEXD-D-DAILYPRODU-171201-01 | E141: DE(TenneT)-CZ | F141: 2017/12/01 - 2017/12/02 | G141: 11:00-12:00 | H141: 996 | J141: 996 | K141: 3271 | L141: 0.02 | M141: 993 | N141: 16 | O141: 13
A142: 2017 | B142: 12 | C142: 2017-12-01 | D142: CEEXD-D-DAILYPRODU-171201-01 | E142: CZ-PL | F142: 2017/12/01 - 2017/12/02 | G142: 11:00-12:00 | H142: For Offered Capacity see respective constraints | I142: For Offered Capacity see respective constraints | J142: For Offered Capacity see respective constraints | K142: 0 | L142: 0 | M142: 0 | N142: 5
A143: 2017 | B143: 12 | C143: 2017-12-01 | D143: CEEXD-D-DAILYPRODU-171201-01 | E143: CZ-DE(TenneT) | F143: 2017/12/01 - 2017/12/02 | G143: 11:00-12:00 | H143: 1354 | J143: 1354 | K143: 4122 | L143: 0.21 | M143: 1354 | N143: 15 | O143: 10
A144: 2017 | B144: 12 | C144: 2017-12-01 | D144: CEEXD-D-DAILYPRODU-171201-01 | E144: CZ-AT | F144: 2017/12/01 - 2017/12/02 | G144: 11:00-12:00 | H144: 790 | J144: 790 | K144: 3039 | L144: 0.22 | M144: 790 | N144: 14 | O144: 10
A145: 2017 | B145: 12 | C145: 2017-12-01 | D145: CEEXD-D-DAILYPRODU-171201-01 | E145: AT-CZ | F145: 2017/12/01 - 2017/12/02 | G145: 11:00-12:00 | H145: 610 | J145: 610 | K145: 2464 | L145: 0.11 | M145: 610 | N145: 13 | O145: 8
A146: 2017 | B146: 12 | C146: 2017-12-01 | D146: CEEXD-D-DAILYPRODU-171201-01 | E146: AT-CZ | F146: 2017/12/01 - 2017/12/02 | G146: 12:00-13:00 | H146: 610 | J146: 610 | K146: 2616 | L146: 0.14 | M146: 610 | N146: 13 | O146: 9
A147: 2017 | B147: 12 | C147: 2017-12-01 | D147: CEEXD-D-DAILYPRODU-171201-01 | E147: CZ-AT | F147: 2017/12/01 - 2017/12/02 | G147: 12:00-13:00 | H147: 790 | J147: 790 | K147: 3039 | L147: 0.22 | M147: 790 | N147: 14 | O147: 10
A148: 2017 | B148: 12 | C148: 2017-12-01 | D148: CEEXD-D-DAILYPRODU-171201-01 | E148: CZ-DE(TenneT) | F148: 2017/12/01 - 2017/12/02 | G148: 12:00-13:00 | H148: 1354 | J148: 1354 | K148: 4122 | L148: 0.21 | M148: 1354 | N148: 15 | O148: 10
A149: 2017 | B149: 12 | C149: 2017-12-01 | D149: CEEXD-D-DAILYPRODU-171201-01 | E149: CZ-PL | F149: 2017/12/01 - 2017/12/02 | G149: 12:00-13:00 | H149: For Offered Capacity see respective constraints | I149: For Offered Capacity see respective constraints | J149: For Offered Capacity see respective constraints | K149: 0 | L149: 0 | M149: 0 | N149: 5
A150: 2017 | B150: 12 | C150: 2017-12-01 | D150: CEEXD-D-DAILYPRODU-171201-01 | E150: DE(TenneT)-CZ | F150: 2017/12/01 - 2017/12/02 | G150: 12:00-13:00 | H150: 996 | J150: 996 | K150: 3519 | L150: 0.03 | M150: 993 | N150: 16 | O150: 12
A151: 2017 | B151: 12 | C151: 2017-12-01 | D151: CEEXD-D-DAILYPRODU-171201-01 | E151: PL-CZ | F151: 2017/12/01 - 2017/12/02 | G151: 12:00-13:00 | H151: For Offered Capacity see respective constraints | I151: For Offered Capacity see respective constraints | J151: For Offered Capacity see respective constraints | K151: 0 | L151: 0 | M151: 0 | N151: 11
A152: 2017 | B152: 12 | C152: 2017-12-01 | D152: CEEXD-D-DAILYPRODU-171201-01 | E152: PL-SK | F152: 2017/12/01 - 2017/12/02 | G152: 12:00-13:00 | H152: For Offered Capacity see respective constraints | I152: For Offered Capacity see respective constraints | J152: For Offered Capacity see respective constraints | K152: 0 | L152: 0 | M152: 0 | N152: 8
A153: 2017 | B153: 12 | C153: 2017-12-01 | D153: CEEXD-D-DAILYPRODU-171201-01 | E153: SK-PL | F153: 2017/12/01 - 2017/12/02 | G153: 12:00-13:00 | H153: For Offered Capacity see respective constraints | I153: For Offered Capacity see respective constraints | J153: For Offered Capacity see respective constraints | K153: 0 | L153: 0 | M153: 0 | N153: 3
A154: 2017 | B154: 12 | C154: 2017-12-01 | D154: CEEXD-D-DAILYPRODU-171201-01 | E154: PL-DE(50Hz) | F154: 2017/12/01 - 2017/12/02 | G154: 12:00-13:00 | H154: For Offered Capacity see respective constraints | I154: For Offered Capacity see respective constraints | J154: For Offered Capacity see respective constraints | K154: 0 | L154: 0.13 | M154: 0 | N154: 10
A155: 2017 | B155: 12 | C155: 2017-12-01 | D155: CEEXD-D-DAILYPRODU-171201-01 | E155: DE(50Hz)-PL | F155: 2017/12/01 - 2017/12/02 | G155: 12:00-13:00 | H155: For Offered Capacity see respective constraints | I155: For Offered Capacity see respective constraints | J155: For Offered Capacity see respective constraints | K155: 0 | L155: 0.03 | M155: 0 | N155: 6
A156: 2017 | B156: 12 | C156: 2017-12-01 | D156: CEEXD-D-DAILYPRODU-171201-01 | E156: DE(50Hz)-CZ | F156: 2017/12/01 - 2017/12/02 | G156: 12:00-13:00 | H156: For Offered Capacity see respective constraints | I156: For Offered Capacity see respective constraints | J156: For Offered Capacity see respective constraints | K156: 2902 | L156: 0.03 | M156: 800 | N156: 13 | O156: 10
A157: 2017 | B157: 12 | C157: 2017-12-01 | D157: CEEXD-D-DAILYPRODU-171201-01 | E157: CZ-DE(50Hz) | F157: 2017/12/01 - 2017/12/02 | G157: 12:00-13:00 | H157: For Offered Capacity see respective constraints | I157: For Offered Capacity see respective constraints | J157: For Offered Capacity see respective constraints | K157: 4581 | L157: 0.13 | M157: 1546 | N157: 12 | O157: 10
A158: 2017 | B158: 12 | C158: 2017-12-01 | D158: CEEXD-D-DAILYPRODU-171201-01 | E158: CZ-DE(50Hz) | F158: 2017/12/01 - 2017/12/02 | G158: 13:00-14:00 | H158: For Offered Capacity see respective constraints | I158: For Offered Capacity see respective constraints | J158: For Offered Capacity see respective constraints | K158: 4581 | L158: 0.13 | M158: 1546 | N158: 12 | O158: 10
A159: 2017 | B159: 12 | C159: 2017-12-01 | D159: CEEXD-D-DAILYPRODU-171201-01 | E159: DE(50Hz)-CZ | F159: 2017/12/01 - 2017/12/02 | G159: 13:00-14:00 | H159: For Offered Capacity see respective constraints | I159: For Offered Capacity see respective constraints | J159: For Offered Capacity see respective constraints | K159: 2902 | L159: 0.03 | M159: 800 | N159: 13 | O159: 10
A160: 2017 | B160: 12 | C160: 2017-12-01 | D160: CEEXD-D-DAILYPRODU-171201-01 | E160: DE(50Hz)-PL | F160: 2017/12/01 - 2017/12/02 | G160: 13:00-14:00 | H160: For Offered Capacity see respective constraints | I160: For Offered Capacity see respective constraints | J160: For Offered Capacity see respective constraints | K160: 0 | L160: 0.03 | M160: 0 | N160: 6
A161: 2017 | B161: 12 | C161: 2017-12-01 | D161: CEEXD-D-DAILYPRODU-171201-01 | E161: PL-DE(50Hz) | F161: 2017/12/01 - 2017/12/02 | G161: 13:00-14:00 | H161: For Offered Capacity see respective constraints | I161: For Offered Capacity see respective constraints | J161: For Offered Capacity see respective constraints | K161: 0 | L161: 0.13 | M161: 0 | N161: 10
A162: 2017 | B162: 12 | C162: 2017-12-01 | D162: CEEXD-D-DAILYPRODU-171201-01 | E162: SK-PL | F162: 2017/12/01 - 2017/12/02 | G162: 13:00-14:00 | H162: For Offered Capacity see respective constraints | I162: For Offered Capacity see respective constraints | J162: For Offered Capacity see respective constraints | K162: 0 | L162: 0 | M162: 0 | N162: 3
A163: 2017 | B163: 12 | C163: 2017-12-01 | D163: CEEXD-D-DAILYPRODU-171201-01 | E163: PL-SK | F163: 2017/12/01 - 2017/12/02 | G163: 13:00-14:00 | H163: For Offered Capacity see respective constraints | I163: For Offered Capacity see respective constraints | J163: For Offered Capacity see respective constraints | K163: 0 | L163: 0 | M163: 0 | N163: 8
A164: 2017 | B164: 12 | C164: 2017-12-01 | D164: CEEXD-D-DAILYPRODU-171201-01 | E164: PL-CZ | F164: 2017/12/01 - 2017/12/02 | G164: 13:00-14:00 | H164: For Offered Capacity see respective constraints | I164: For Offered Capacity see respective constraints | J164: For Offered Capacity see respective constraints | K164: 0 | L164: 0 | M164: 0 | N164: 11
A165: 2017 | B165: 12 | C165: 2017-12-01 | D165: CEEXD-D-DAILYPRODU-171201-01 | E165: DE(TenneT)-CZ | F165: 2017/12/01 - 2017/12/02 | G165: 13:00-14:00 | H165: 996 | J165: 996 | K165: 3457 | L165: 0.03 | M165: 995 | N165: 16 | O165: 12
A166: 2017 | B166: 12 | C166: 2017-12-01 | D166: CEEXD-D-DAILYPRODU-171201-01 | E166: CZ-PL | F166: 2017/12/01 - 2017/12/02 | G166: 13:00-14:00 | H166: For Offered Capacity see respective constraints | I166: For Offered Capacity see respective constraints | J166: For Offered Capacity see respective constraints | K166: 0 | L166: 0 | M166: 0 | N166: 5
A167: 2017 | B167: 12 | C167: 2017-12-01 | D167: CEEXD-D-DAILYPRODU-171201-01 | E167: CZ-DE(TenneT) | F167: 2017/12/01 - 2017/12/02 | G167: 13:00-14:00 | H167: 1354 | J167: 1354 | K167: 4122 | L167: 0.21 | M167: 1354 | N167: 15 | O167: 10
A168: 2017 | B168: 12 | C168: 2017-12-01 | D168: CEEXD-D-DAILYPRODU-171201-01 | E168: CZ-AT | F168: 2017/12/01 - 2017/12/02 | G168: 13:00-14:00 | H168: 790 | J168: 790 | K168: 3039 | L168: 0.22 | M168: 790 | N168: 14 | O168: 10
A169: 2017 | B169: 12 | C169: 2017-12-01 | D169: CEEXD-D-DAILYPRODU-171201-01 | E169: AT-CZ | F169: 2017/12/01 - 2017/12/02 | G169: 13:00-14:00 | H169: 610 | J169: 610 | K169: 2578 | L169: 0.12 | M169: 610 | N169: 13 | O169: 9
A170: 2017 | B170: 12 | C170: 2017-12-01 | D170: CEEXD-D-DAILYPRODU-171201-01 | E170: AT-CZ | F170: 2017/12/01 - 2017/12/02 | G170: 14:00-15:00 | H170: 610 | J170: 610 | K170: 2521 | L170: 0.11 | M170: 610 | N170: 13 | O170: 9
A171: 2017 | B171: 12 | C171: 2017-12-01 | D171: CEEXD-D-DAILYPRODU-171201-01 | E171: CZ-AT | F171: 2017/12/01 - 2017/12/02 | G171: 14:00-15:00 | H171: 790 | J171: 790 | K171: 3039 | L171: 0.22 | M171: 790 | N171: 14 | O171: 10
A172: 2017 | B172: 12 | C172: 2017-12-01 | D172: CEEXD-D-DAILYPRODU-171201-01 | E172: CZ-DE(TenneT) | F172: 2017/12/01 - 2017/12/02 | G172: 14:00-15:00 | H172: 1354 | J172: 1354 | K172: 4122 | L172: 0.21 | M172: 1354 | N172: 15 | O172: 10
A173: 2017 | B173: 12 | C173: 2017-12-01 | D173: CEEXD-D-DAILYPRODU-171201-01 | E173: CZ-PL | F173: 2017/12/01 - 2017/12/02 | G173: 14:00-15:00 | H173: For Offered Capacity see respective constraints | I173: For Offered Capacity see respective constraints | J173: For Offered Capacity see respective constraints | K173: 275 | L173: 0 | M173: 275 | N173: 5 | O173: 3
A174: 2017 | B174: 12 | C174: 2017-12-01 | D174: CEEXD-D-DAILYPRODU-171201-01 | E174: DE(TenneT)-CZ | F174: 2017/12/01 - 2017/12/02 | G174: 14:00-15:00 | H174: 996 | J174: 996 | K174: 3364 | L174: 0.03 | M174: 994 | N174: 16 | O174: 12
A175: 2017 | B175: 12 | C175: 2017-12-01 | D175: CEEXD-D-DAILYPRODU-171201-01 | E175: PL-CZ | F175: 2017/12/01 - 2017/12/02 | G175: 14:00-15:00 | H175: For Offered Capacity see respective constraints | I175: For Offered Capacity see respective constraints | J175: For Offered Capacity see respective constraints | K175: 0 | L175: 0 | M175: 0 | N175: 11
A176: 2017 | B176: 12 | C176: 2017-12-01 | D176: CEEXD-D-DAILYPRODU-171201-01 | E176: PL-SK | F176: 2017/12/01 - 2017/12/02 | G176: 14:00-15:00 | H176: For Offered Capacity see respective constraints | I176: For Offered Capacity see respective constraints | J176: For Offered Capacity see respective constraints | K176: 0 | L176: 0 | M176: 0 | N176: 8
A177: 2017 | B177: 12 | C177: 2017-12-01 | D177: CEEXD-D-DAILYPRODU-171201-01 | E177: SK-PL | F177: 2017/12/01 - 2017/12/02 | G177: 14:00-15:00 | H177: For Offered Capacity see respective constraints | I177: For Offered Capacity see respective constraints | J177: For Offered Capacity see respective constraints | K177: 25 | L177: 0 | M177: 25 | N177: 3 | O177: 1
A178: 2017 | B178: 12 | C178: 2017-12-01 | D178: CEEXD-D-DAILYPRODU-171201-01 | E178: PL-DE(50Hz) | F178: 2017/12/01 - 2017/12/02 | G178: 14:00-15:00 | H178: For Offered Capacity see respective constraints | I178: For Offered Capacity see respective constraints | J178: For Offered Capacity see respective constraints | K178: 0 | L178: 0.13 | M178: 0 | N178: 10
A179: 2017 | B179: 12 | C179: 2017-12-01 | D179: CEEXD-D-DAILYPRODU-171201-01 | E179: DE(50Hz)-PL | F179: 2017/12/01 - 2017/12/02 | G179: 14:00-15:00 | H179: For Offered Capacity see respective constraints | I179: For Offered Capacity see respective constraints | J179: For Offered Capacity see respective constraints | K179: 745 | L179: 0.03 | M179: 70 | N179: 6 | O179: 1
A180: 2017 | B180: 12 | C180: 2017-12-01 | D180: CEEXD-D-DAILYPRODU-171201-01 | E180: DE(50Hz)-CZ | F180: 2017/12/01 - 2017/12/02 | G180: 14:00-15:00 | H180: For Offered Capacity see respective constraints | I180: For Offered Capacity see respective constraints | J180: For Offered Capacity see respective constraints | K180: 2902 | L180: 0.03 | M180: 730 | N180: 13 | O180: 10
A181: 2017 | B181: 12 | C181: 2017-12-01 | D181: CEEXD-D-DAILYPRODU-171201-01 | E181: CZ-DE(50Hz) | F181: 2017/12/01 - 2017/12/02 | G181: 14:00-15:00 | H181: For Offered Capacity see respective constraints | I181: For Offered Capacity see respective constraints | J181: For Offered Capacity see respective constraints | K181: 4581 | L181: 0.13 | M181: 1546 | N181: 12 | O181: 10
A182: 2017 | B182: 12 | C182: 2017-12-01 | D182: CEEXD-D-DAILYPRODU-171201-01 | E182: CZ-DE(50Hz) | F182: 2017/12/01 - 2017/12/02 | G182: 15:00-16:00 | H182: For Offered Capacity see respective constraints | I182: For Offered Capacity see respective constraints | J182: For Offered Capacity see respective constraints | K182: 4581 | L182: 0.13 | M182: 1546 | N182: 12 | O182: 10
A183: 2017 | B183: 12 | C183: 2017-12-01 | D183: CEEXD-D-DAILYPRODU-171201-01 | E183: DE(50Hz)-CZ | F183: 2017/12/01 - 2017/12/02 | G183: 15:00-16:00 | H183: For Offered Capacity see respective constraints | I183: For Offered Capacity see respective constraints | J183: For Offered Capacity see respective constraints | K183: 2902 | L183: 0.03 | M183: 730 | N183: 13 | O183: 10
A184: 2017 | B184: 12 | C184: 2017-12-01 | D184: CEEXD-D-DAILYPRODU-171201-01 | E184: DE(50Hz)-PL | F184: 2017/12/01 - 2017/12/02 | G184: 15:00-16:00 | H184: For Offered Capacity see respective constraints | I184: For Offered Capacity see respective constraints | J184: For Offered Capacity see respective constraints | K184: 745 | L184: 0.03 | M184: 70 | N184: 6 | O184: 1
A185: 2017 | B185: 12 | C185: 2017-12-01 | D185: CEEXD-D-DAILYPRODU-171201-01 | E185: PL-DE(50Hz) | F185: 2017/12/01 - 2017/12/02 | G185: 15:00-16:00 | H185: For Offered Capacity see respective constraints | I185: For Offered Capacity see respective constraints | J185: For Offered Capacity see respective constraints | K185: 0 | L185: 0.13 | M185: 0 | N185: 10
A186: 2017 | B186: 12 | C186: 2017-12-01 | D186: CEEXD-D-DAILYPRODU-171201-01 | E186: SK-PL | F186: 2017/12/01 - 2017/12/02 | G186: 15:00-16:00 | H186: For Offered Capacity see respective constraints | I186: For Offered Capacity see respective constraints | J186: For Offered Capacity see respective constraints | K186: 25 | L186: 0 | M186: 25 | N186: 3 | O186: 1
A187: 2017 | B187: 12 | C187: 2017-12-01 | D187: CEEXD-D-DAILYPRODU-171201-01 | E187: PL-SK | F187: 2017/12/01 - 2017/12/02 | G187: 15:00-16:00 | H187: For Offered Capacity see respective constraints | I187: For Offered Capacity see respective constraints | J187: For Offered Capacity see respective constraints | K187: 0 | L187: 0 | M187: 0 | N187: 8
A188: 2017 | B188: 12 | C188: 2017-12-01 | D188: CEEXD-D-DAILYPRODU-171201-01 | E188: PL-CZ | F188: 2017/12/01 - 2017/12/02 | G188: 15:00-16:00 | H188: For Offered Capacity see respective constraints | I188: For Offered Capacity see respective constraints | J188: For Offered Capacity see respective constraints | K188: 0 | L188: 0 | M188: 0 | N188: 11
A189: 2017 | B189: 12 | C189: 2017-12-01 | D189: CEEXD-D-DAILYPRODU-171201-01 | E189: DE(TenneT)-CZ | F189: 2017/12/01 - 2017/12/02 | G189: 15:00-16:00 | H189: 996 | J189: 996 | K189: 3364 | L189: 0.03 | M189: 994 | N189: 16 | O189: 12
A190: 2017 | B190: 12 | C190: 2017-12-01 | D190: CEEXD-D-DAILYPRODU-171201-01 | E190: CZ-PL | F190: 2017/12/01 - 2017/12/02 | G190: 15:00-16:00 | H190: For Offered Capacity see respective constraints | I190: For Offered Capacity see respective constraints | J190: For Offered Capacity see respective constraints | K190: 275 | L190: 0 | M190: 275 | N190: 5 | O190: 3
A191: 2017 | B191: 12 | C191: 2017-12-01 | D191: CEEXD-D-DAILYPRODU-171201-01 | E191: CZ-DE(TenneT) | F191: 2017/12/01 - 2017/12/02 | G191: 15:00-16:00 | H191: 1354 | J191: 1354 | K191: 4122 | L191: 0.21 | M191: 1354 | N191: 15 | O191: 10
A192: 2017 | B192: 12 | C192: 2017-12-01 | D192: CEEXD-D-DAILYPRODU-171201-01 | E192: CZ-AT | F192: 2017/12/01 - 2017/12/02 | G192: 15:00-16:00 | H192: 790 | J192: 790 | K192: 3039 | L192: 0.22 | M192: 790 | N192: 14 | O192: 10
A193: 2017 | B193: 12 | C193: 2017-12-01 | D193: CEEXD-D-DAILYPRODU-171201-01 | E193: AT-CZ | F193: 2017/12/01 - 2017/12/02 | G193: 15:00-16:00 | H193: 610 | J193: 610 | K193: 2521 | L193: 0.11 | M193: 610 | N193: 13 | O193: 9
A194: 2017 | B194: 12 | C194: 2017-12-01 | D194: CEEXD-D-DAILYPRODU-171201-01 | E194: AT-CZ | F194: 2017/12/01 - 2017/12/02 | G194: 16:00-17:00 | H194: 610 | J194: 610 | K194: 2616 | L194: 0.14 | M194: 610 | N194: 13 | O194: 9
A195: 2017 | B195: 12 | C195: 2017-12-01 | D195: CEEXD-D-DAILYPRODU-171201-01 | E195: CZ-AT | F195: 2017/12/01 - 2017/12/02 | G195: 16:00-17:00 | H195: 790 | J195: 790 | K195: 3089 | L195: 0.23 | M195: 790 | N195: 14 | O195: 11
A196: 2017 | B196: 12 | C196: 2017-12-01 | D196: CEEXD-D-DAILYPRODU-171201-01 | E196: CZ-DE(TenneT) | F196: 2017/12/01 - 2017/12/02 | G196: 16:00-17:00 | H196: 1354 | J196: 1354 | K196: 4122 | L196: 0.21 | M196: 1354 | N196: 15 | O196: 10
A197: 2017 | B197: 12 | C197: 2017-12-01 | D197: CEEXD-D-DAILYPRODU-171201-01 | E197: CZ-PL | F197: 2017/12/01 - 2017/12/02 | G197: 16:00-17:00 | H197: For Offered Capacity see respective constraints | I197: For Offered Capacity see respective constraints | J197: For Offered Capacity see respective constraints | K197: 275 | L197: 0.16 | M197: 90 | N197: 5 | O197: 1
A198: 2017 | B198: 12 | C198: 2017-12-01 | D198: CEEXD-D-DAILYPRODU-171201-01 | E198: DE(TenneT)-CZ | F198: 2017/12/01 - 2017/12/02 | G198: 16:00-17:00 | H198: 996 | J198: 996 | K198: 3519 | L198: 0.03 | M198: 993 | N198: 16 | O198: 12
A199: 2017 | B199: 12 | C199: 2017-12-01 | D199: CEEXD-D-DAILYPRODU-171201-01 | E199: PL-CZ | F199: 2017/12/01 - 2017/12/02 | G199: 16:00-17:00 | H199: For Offered Capacity see respective constraints | I199: For Offered Capacity see respective constraints | J199: For Offered Capacity see respective constraints | K199: 0 | L199: 0 | M199: 0 | N199: 11
A200: 2017 | B200: 12 | C200: 2017-12-01 | D200: CEEXD-D-DAILYPRODU-171201-01 | E200: PL-SK | F200: 2017/12/01 - 2017/12/02 | G200: 16:00-17:00 | H200: For Offered Capacity see respective constraints | I200: For Offered Capacity see respective constraints | J200: For Offered Capacity see respective constraints | K200: 0 | L200: 0 | M200: 0 | N200: 8
... 4300 more rows

Sheet ATC like
A1: PSE>CEPS Daily ATC-like | B1: PSE>50Hz Daily ATC-like | C1: 50Hz>PSE Daily ATC-like | D1: CEPS>PSE Daily ATC-like | E1: PSE>SEPS Daily ATC-like | F1: SEPS>PSE Daily ATC-like | G1: HOPS>ELES Daily ATC-like | H1: MAVIR>APG Daily ATC-like | I1: CEPS>EON Daily ATC-like | J1: APG>CEPS Daily ATC-like | K1: APG>MAVIR Daily ATC-like | L1: CEPS>APG Daily ATC-like | M1: 50Hz>CEPS Daily ATC-like | N1: HOPS>MAVIR Daily ATC-like | O1: CEPS>50Hz Daily ATC-like | P1: EON>CEPS Daily ATC-like | Q1: ELES>HOPS Daily ATC-like | R1: MAVIR>HOPS Daily ATC-like | T1: DE+CZ+SK-PL | U1: PL-DE+CZ+SK | V1: PL+CZ-DE | W1: DE-PL+CZ
A2: =MIN(U2,Off.Cap.!K25) -> 900 | B2: =MIN(V2,U2) -> 1800 | C2: =MIN(T2,W2) -> 218 | D2: =MIN(T2,Off.Cap.!E25) -> 218 | E2: =MIN(U2,Off.Cap.!N25) -> 550 | F2: =MIN(T2,Off.Cap.!O25) -> 218 | G2: =Algoritmus!AP3 -> 0 | H2: =Algoritmus!AQ3 -> 0 | I2: =V2 -> 2863 | J2: =Algoritmus!AR3 -> 615 | K2: =Algoritmus!AS3 -> 0 | L2: =Algoritmus!AT3 -> 785 | M2: =W2 -> 2437 | N2: =Algoritmus!AV3 -> 0 | O2: =V2 -> 2863 | P2: =W2 -> 2437 | Q2: =Algoritmus!AX3 -> 0 | R2: =Algoritmus!AY3 -> 0 | T2: =Off.Cap.!L25 -> 218 | U2: =Off.Cap.!M25 -> 1800 | V2: =Off.Cap.!P25 -> 2863 | W2: =Off.Cap.!Q25 -> 2437
A3: =MIN(U3,Off.Cap.!K26) -> 900 | B3: =MIN(V3,U3) -> 1800 | C3: =MIN(T3,W3) -> 0 | D3: =MIN(T3,Off.Cap.!E26) -> 0 | E3: =MIN(U3,Off.Cap.!N26) -> 550 | F3: =MIN(T3,Off.Cap.!O26) -> 0 | G3: =Algoritmus!#REF! ->  | H3: =Algoritmus!#REF! ->  | I3: =V3 -> 2863 | J3: =Algoritmus!#REF! ->  | K3: =Algoritmus!#REF! ->  | L3: =Algoritmus!#REF! ->  | M3: =W3 -> 2337 | N3: =Algoritmus!#REF! ->  | O3: =V3 -> 2863 | P3: =W3 -> 2337 | Q3: =Algoritmus!#REF! ->  | R3: =Algoritmus!#REF! ->  | T3: =Off.Cap.!L26 -> 0 | U3: =Off.Cap.!M26 -> 1800 | V3: =Off.Cap.!P26 -> 2863 | W3: =Off.Cap.!Q26 -> 2337
A4: =MIN(U4,Off.Cap.!K27) -> 900 | B4: 1800 | C4: 0 | D4: =MIN(T4,Off.Cap.!E27) -> 0 | E4: =MIN(U4,Off.Cap.!N27) -> 550 | F4: =MIN(T4,Off.Cap.!O27) -> 0 | G4: =Algoritmus!#REF! ->  | H4: =Algoritmus!#REF! ->  | I4: 2863 | J4: =Algoritmus!#REF! ->  | K4: =Algoritmus!#REF! ->  | L4: =Algoritmus!#REF! ->  | M4: 2237 | N4: =Algoritmus!#REF! ->  | O4: 2863 | P4: 2237 | Q4: =Algoritmus!#REF! ->  | R4: =Algoritmus!#REF! ->  | T4: =Off.Cap.!L27 -> 0 | U4: =Off.Cap.!M27 -> 1800 | V4: =Off.Cap.!P27 -> 2863 | W4: =Off.Cap.!Q27 -> 2237
A5: =MIN(U5,Off.Cap.!K28) -> 900 | B5: 1800 | C5: 0 | D5: =MIN(T5,Off.Cap.!E28) -> 0 | E5: =MIN(U5,Off.Cap.!N28) -> 550 | F5: =MIN(T5,Off.Cap.!O28) -> 0 | G5: =Algoritmus!#REF! ->  | H5: =Algoritmus!#REF! ->  | I5: 2863 | J5: =Algoritmus!#REF! ->  | K5: =Algoritmus!#REF! ->  | L5: =Algoritmus!#REF! ->  | M5: 2237 | N5: =Algoritmus!#REF! ->  | O5: 2863 | P5: 2237 | Q5: =Algoritmus!#REF! ->  | R5: =Algoritmus!#REF! ->  | T5: =Off.Cap.!L28 -> 0 | U5: =Off.Cap.!M28 -> 1800 | V5: =Off.Cap.!P28 -> 2863 | W5: =Off.Cap.!Q28 -> 2237
A6: =MIN(U6,Off.Cap.!K29) -> 900 | B6: 1800 | C6: 0 | D6: =MIN(T6,Off.Cap.!E29) -> 0 | E6: =MIN(U6,Off.Cap.!N29) -> 550 | F6: =MIN(T6,Off.Cap.!O29) -> 0 | G6: =Algoritmus!#REF! ->  | H6: =Algoritmus!#REF! ->  | I6: 2863 | J6: =Algoritmus!#REF! ->  | K6: =Algoritmus!#REF! ->  | L6: =Algoritmus!#REF! ->  | M6: 2237 | N6: =Algoritmus!#REF! ->  | O6: 2863 | P6: 2237 | Q6: =Algoritmus!#REF! ->  | R6: =Algoritmus!#REF! ->  | T6: =Off.Cap.!L29 -> 0 | U6: =Off.Cap.!M29 -> 1800 | V6: =Off.Cap.!P29 -> 2863 | W6: =Off.Cap.!Q29 -> 2237
A7: =MIN(U7,Off.Cap.!K30) -> 900 | B7: 1800 | C7: 0 | D7: =MIN(T7,Off.Cap.!E30) -> 0 | E7: =MIN(U7,Off.Cap.!N30) -> 550 | F7: =MIN(T7,Off.Cap.!O30) -> 0 | G7: =Algoritmus!#REF! ->  | H7: =Algoritmus!#REF! ->  | I7: 2863 | J7: =Algoritmus!#REF! ->  | K7: =Algoritmus!#REF! ->  | L7: =Algoritmus!#REF! ->  | M7: 2137 | N7: =Algoritmus!#REF! ->  | O7: 2863 | P7: 2137 | Q7: =Algoritmus!#REF! ->  | R7: =Algoritmus!#REF! ->  | T7: =Off.Cap.!L30 -> 0 | U7: =Off.Cap.!M30 -> 1800 | V7: =Off.Cap.!P30 -> 2863 | W7: =Off.Cap.!Q30 -> 2137
A8: =MIN(U8,Off.Cap.!K31) -> 623 | B8: 623 | C8: 216 | D8: =MIN(T8,Off.Cap.!E31) -> 216 | E8: =MIN(U8,Off.Cap.!N31) -> 550 | F8: =MIN(T8,Off.Cap.!O31) -> 216 | G8: =Algoritmus!#REF! ->  | H8: =Algoritmus!#REF! ->  | I8: 2885 | J8: =Algoritmus!#REF! ->  | K8: =Algoritmus!#REF! ->  | L8: =Algoritmus!#REF! ->  | M8: 1815 | N8: =Algoritmus!#REF! ->  | O8: 2885 | P8: 1815 | Q8: =Algoritmus!#REF! ->  | R8: =Algoritmus!#REF! ->  | T8: =Off.Cap.!L31 -> 216 | U8: =Off.Cap.!M31 -> 623 | V8: =Off.Cap.!P31 -> 2885 | W8: =Off.Cap.!Q31 -> 1815
A9: =MIN(U9,Off.Cap.!K32) -> 0 | B9: 0 | C9: 367 | D9: =MIN(T9,Off.Cap.!E32) -> 367 | E9: =MIN(U9,Off.Cap.!N32) -> 0 | F9: =MIN(T9,Off.Cap.!O32) -> 367 | G9: =Algoritmus!#REF! ->  | H9: =Algoritmus!#REF! ->  | I9: 2885 | J9: =Algoritmus!#REF! ->  | K9: =Algoritmus!#REF! ->  | L9: =Algoritmus!#REF! ->  | M9: 1815 | N9: =Algoritmus!#REF! ->  | O9: 2885 | P9: 1815 | Q9: =Algoritmus!#REF! ->  | R9: =Algoritmus!#REF! ->  | T9: =Off.Cap.!L32 -> 367 | U9: =Off.Cap.!M32 -> 0 | V9: =Off.Cap.!P32 -> 2885 | W9: =Off.Cap.!Q32 -> 1815
A10: =MIN(U10,Off.Cap.!K33) -> 0 | B10: 0 | C10: 500 | D10: =MIN(T10,Off.Cap.!E33) -> 500 | E10: =MIN(U10,Off.Cap.!N33) -> 0 | F10: =MIN(T10,Off.Cap.!O33) -> 500 | G10: =Algoritmus!#REF! ->  | H10: =Algoritmus!#REF! ->  | I10: 2900 | J10: =Algoritmus!#REF! ->  | K10: =Algoritmus!#REF! ->  | L10: =Algoritmus!#REF! ->  | M10: 1600 | N10: =Algoritmus!#REF! ->  | O10: 2900 | P10: 1600 | Q10: =Algoritmus!#REF! ->  | R10: =Algoritmus!#REF! ->  | T10: =Off.Cap.!L33 -> 500 | U10: =Off.Cap.!M33 -> 0 | V10: =Off.Cap.!P33 -> 2900 | W10: =Off.Cap.!Q33 -> 1600
A11: =MIN(U11,Off.Cap.!K34) -> 0 | B11: 0 | C11: 500 | D11: =MIN(T11,Off.Cap.!E34) -> 500 | E11: =MIN(U11,Off.Cap.!N34) -> 0 | F11: =MIN(T11,Off.Cap.!O34) -> 500 | G11: =Algoritmus!#REF! ->  | H11: =Algoritmus!#REF! ->  | I11: 2900 | J11: =Algoritmus!#REF! ->  | K11: =Algoritmus!#REF! ->  | L11: =Algoritmus!#REF! ->  | M11: 1600 | N11: =Algoritmus!#REF! ->  | O11: 2900 | P11: 1600 | Q11: =Algoritmus!#REF! ->  | R11: =Algoritmus!#REF! ->  | T11: =Off.Cap.!L34 -> 500 | U11: =Off.Cap.!M34 -> 0 | V11: =Off.Cap.!P34 -> 2900 | W11: =Off.Cap.!Q34 -> 1600
A12: =MIN(U12,Off.Cap.!K35) -> 0 | B12: 0 | C12: 0 | D12: =MIN(T12,Off.Cap.!E35) -> 0 | E12: =MIN(U12,Off.Cap.!N35) -> 0 | F12: =MIN(T12,Off.Cap.!O35) -> 0 | G12: =Algoritmus!#REF! ->  | H12: =Algoritmus!#REF! ->  | I12: 2900 | J12: =Algoritmus!#REF! ->  | K12: =Algoritmus!#REF! ->  | L12: =Algoritmus!#REF! ->  | M12: 1800 | N12: =Algoritmus!#REF! ->  | O12: 2900 | P12: 1800 | Q12: =Algoritmus!#REF! ->  | R12: =Algoritmus!#REF! ->  | T12: =Off.Cap.!L35 -> 0 | U12: =Off.Cap.!M35 -> 0 | V12: =Off.Cap.!P35 -> 2900 | W12: =Off.Cap.!Q35 -> 1800
A13: =MIN(U13,Off.Cap.!K36) -> 0 | B13: 0 | C13: 0 | D13: =MIN(T13,Off.Cap.!E36) -> 0 | E13: =MIN(U13,Off.Cap.!N36) -> 0 | F13: =MIN(T13,Off.Cap.!O36) -> 0 | G13: =Algoritmus!#REF! ->  | H13: =Algoritmus!#REF! ->  | I13: 2900 | J13: =Algoritmus!#REF! ->  | K13: =Algoritmus!#REF! ->  | L13: =Algoritmus!#REF! ->  | M13: 1800 | N13: =Algoritmus!#REF! ->  | O13: 2900 | P13: 1800 | Q13: =Algoritmus!#REF! ->  | R13: =Algoritmus!#REF! ->  | T13: =Off.Cap.!L36 -> 0 | U13: =Off.Cap.!M36 -> 0 | V13: =Off.Cap.!P36 -> 2900 | W13: =Off.Cap.!Q36 -> 1800
A14: =MIN(U14,Off.Cap.!K37) -> 0 | B14: 0 | C14: 0 | D14: =MIN(T14,Off.Cap.!E37) -> 0 | E14: =MIN(U14,Off.Cap.!N37) -> 0 | F14: =MIN(T14,Off.Cap.!O37) -> 0 | G14: =Algoritmus!#REF! ->  | H14: =Algoritmus!#REF! ->  | I14: 2900 | J14: =Algoritmus!#REF! ->  | K14: =Algoritmus!#REF! ->  | L14: =Algoritmus!#REF! ->  | M14: 1800 | N14: =Algoritmus!#REF! ->  | O14: 2900 | P14: 1800 | Q14: =Algoritmus!#REF! ->  | R14: =Algoritmus!#REF! ->  | T14: =Off.Cap.!L37 -> 0 | U14: =Off.Cap.!M37 -> 0 | V14: =Off.Cap.!P37 -> 2900 | W14: =Off.Cap.!Q37 -> 1800
A15: =MIN(U15,Off.Cap.!K38) -> 0 | B15: 0 | C15: 0 | D15: =MIN(T15,Off.Cap.!E38) -> 0 | E15: =MIN(U15,Off.Cap.!N38) -> 0 | F15: =MIN(T15,Off.Cap.!O38) -> 0 | G15: =Algoritmus!#REF! ->  | H15: =Algoritmus!#REF! ->  | I15: 2900 | J15: =Algoritmus!#REF! ->  | K15: =Algoritmus!#REF! ->  | L15: =Algoritmus!#REF! ->  | M15: 1800 | N15: =Algoritmus!#REF! ->  | O15: 2900 | P15: 1800 | Q15: =Algoritmus!#REF! ->  | R15: =Algoritmus!#REF! ->  | T15: =Off.Cap.!L38 -> 0 | U15: =Off.Cap.!M38 -> 0 | V15: =Off.Cap.!P38 -> 2900 | W15: =Off.Cap.!Q38 -> 1800
A16: =MIN(U16,Off.Cap.!K39) -> 0 | B16: 0 | C16: 500 | D16: =MIN(T16,Off.Cap.!E39) -> 500 | E16: =MIN(U16,Off.Cap.!N39) -> 0 | F16: =MIN(T16,Off.Cap.!O39) -> 500 | G16: =Algoritmus!#REF! ->  | H16: =Algoritmus!#REF! ->  | I16: 2900 | J16: =Algoritmus!#REF! ->  | K16: =Algoritmus!#REF! ->  | L16: =Algoritmus!#REF! ->  | M16: 1800 | N16: =Algoritmus!#REF! ->  | O16: 2900 | P16: 1800 | Q16: =Algoritmus!#REF! ->  | R16: =Algoritmus!#REF! ->  | T16: =Off.Cap.!L39 -> 500 | U16: =Off.Cap.!M39 -> 0 | V16: =Off.Cap.!P39 -> 2900 | W16: =Off.Cap.!Q39 -> 1800
A17: =MIN(U17,Off.Cap.!K40) -> 0 | B17: 0 | C17: 500 | D17: =MIN(T17,Off.Cap.!E40) -> 500 | E17: =MIN(U17,Off.Cap.!N40) -> 0 | F17: =MIN(T17,Off.Cap.!O40) -> 500 | G17: =Algoritmus!#REF! ->  | H17: =Algoritmus!#REF! ->  | I17: 2900 | J17: =Algoritmus!#REF! ->  | K17: =Algoritmus!#REF! ->  | L17: =Algoritmus!#REF! ->  | M17: 1800 | N17: =Algoritmus!#REF! ->  | O17: 2900 | P17: 1800 | Q17: =Algoritmus!#REF! ->  | R17: =Algoritmus!#REF! ->  | T17: =Off.Cap.!L40 -> 500 | U17: =Off.Cap.!M40 -> 0 | V17: =Off.Cap.!P40 -> 2900 | W17: =Off.Cap.!Q40 -> 1800
A18: =MIN(U18,Off.Cap.!K41) -> 0 | B18: 0 | C18: 500 | D18: =MIN(T18,Off.Cap.!E41) -> 500 | E18: =MIN(U18,Off.Cap.!N41) -> 0 | F18: =MIN(T18,Off.Cap.!O41) -> 500 | G18: =Algoritmus!#REF! ->  | H18: =Algoritmus!#REF! ->  | I18: 2900 | J18: =Algoritmus!#REF! ->  | K18: =Algoritmus!#REF! ->  | L18: =Algoritmus!#REF! ->  | M18: 1800 | N18: =Algoritmus!#REF! ->  | O18: 2900 | P18: 1800 | Q18: =Algoritmus!#REF! ->  | R18: =Algoritmus!#REF! ->  | T18: =Off.Cap.!L41 -> 500 | U18: =Off.Cap.!M41 -> 0 | V18: =Off.Cap.!P41 -> 2900 | W18: =Off.Cap.!Q41 -> 1800
A19: =MIN(U19,Off.Cap.!K42) -> 0 | B19: 0 | C19: 500 | D19: =MIN(T19,Off.Cap.!E42) -> 500 | E19: =MIN(U19,Off.Cap.!N42) -> 0 | F19: =MIN(T19,Off.Cap.!O42) -> 500 | G19: =Algoritmus!#REF! ->  | H19: =Algoritmus!#REF! ->  | I19: 2900 | J19: =Algoritmus!#REF! ->  | K19: =Algoritmus!#REF! ->  | L19: =Algoritmus!#REF! ->  | M19: 2100 | N19: =Algoritmus!#REF! ->  | O19: 2900 | P19: 2100 | Q19: =Algoritmus!#REF! ->  | R19: =Algoritmus!#REF! ->  | T19: =Off.Cap.!L42 -> 500 | U19: =Off.Cap.!M42 -> 0 | V19: =Off.Cap.!P42 -> 2900 | W19: =Off.Cap.!Q42 -> 2100
A20: =MIN(U20,Off.Cap.!K43) -> 0 | B20: 0 | C20: 500 | D20: =MIN(T20,Off.Cap.!E43) -> 500 | E20: =MIN(U20,Off.Cap.!N43) -> 0 | F20: =MIN(T20,Off.Cap.!O43) -> 500 | G20: =Algoritmus!#REF! ->  | H20: =Algoritmus!#REF! ->  | I20: 2900 | J20: =Algoritmus!#REF! ->  | K20: =Algoritmus!#REF! ->  | L20: =Algoritmus!#REF! ->  | M20: 1800 | N20: =Algoritmus!#REF! ->  | O20: 2900 | P20: 1800 | Q20: =Algoritmus!#REF! ->  | R20: =Algoritmus!#REF! ->  | T20: =Off.Cap.!L43 -> 500 | U20: =Off.Cap.!M43 -> 0 | V20: =Off.Cap.!P43 -> 2900 | W20: =Off.Cap.!Q43 -> 1800
A21: =MIN(U21,Off.Cap.!K44) -> 0 | B21: 0 | C21: 500 | D21: =MIN(T21,Off.Cap.!E44) -> 500 | E21: =MIN(U21,Off.Cap.!N44) -> 0 | F21: =MIN(T21,Off.Cap.!O44) -> 500 | G21: =Algoritmus!#REF! ->  | H21: =Algoritmus!#REF! ->  | I21: 2900 | J21: =Algoritmus!#REF! ->  | K21: =Algoritmus!#REF! ->  | L21: =Algoritmus!#REF! ->  | M21: 1900 | N21: =Algoritmus!#REF! ->  | O21: 2900 | P21: 1900 | Q21: =Algoritmus!#REF! ->  | R21: =Algoritmus!#REF! ->  | T21: =Off.Cap.!L44 -> 500 | U21: =Off.Cap.!M44 -> 0 | V21: =Off.Cap.!P44 -> 2900 | W21: =Off.Cap.!Q44 -> 1900
A22: =MIN(U22,Off.Cap.!K45) -> 0 | B22: 0 | C22: 500 | D22: =MIN(T22,Off.Cap.!E45) -> 500 | E22: =MIN(U22,Off.Cap.!N45) -> 0 | F22: =MIN(T22,Off.Cap.!O45) -> 500 | G22: =Algoritmus!#REF! ->  | H22: =Algoritmus!#REF! ->  | I22: 2885 | J22: =Algoritmus!#REF! ->  | K22: =Algoritmus!#REF! ->  | L22: =Algoritmus!#REF! ->  | M22: 2115 | N22: =Algoritmus!#REF! ->  | O22: 2885 | P22: 2115 | Q22: =Algoritmus!#REF! ->  | R22: =Algoritmus!#REF! ->  | T22: =Off.Cap.!L45 -> 500 | U22: =Off.Cap.!M45 -> 0 | V22: =Off.Cap.!P45 -> 2885 | W22: =Off.Cap.!Q45 -> 2115
A23: =MIN(U23,Off.Cap.!K46) -> 0 | B23: 0 | C23: 500 | D23: =MIN(T23,Off.Cap.!E46) -> 500 | E23: =MIN(U23,Off.Cap.!N46) -> 0 | F23: =MIN(T23,Off.Cap.!O46) -> 500 | G23: =Algoritmus!#REF! ->  | H23: =Algoritmus!#REF! ->  | I23: 2885 | J23: =Algoritmus!#REF! ->  | K23: =Algoritmus!#REF! ->  | L23: =Algoritmus!#REF! ->  | M23: 2315 | N23: =Algoritmus!#REF! ->  | O23: 2885 | P23: 2315 | Q23: =Algoritmus!#REF! ->  | R23: =Algoritmus!#REF! ->  | T23: =Off.Cap.!L46 -> 500 | U23: =Off.Cap.!M46 -> 0 | V23: =Off.Cap.!P46 -> 2885 | W23: =Off.Cap.!Q46 -> 2315
A24: =MIN(U24,Off.Cap.!K47) -> 900 | B24: 1007 | C24: 428 | D24: =MIN(T24,Off.Cap.!E47) -> 428 | E24: =MIN(U24,Off.Cap.!N47) -> 550 | F24: =MIN(T24,Off.Cap.!O47) -> 428 | G24: =Algoritmus!#REF! ->  | H24: =Algoritmus!#REF! ->  | I24: 2863 | J24: =Algoritmus!#REF! ->  | K24: =Algoritmus!#REF! ->  | L24: =Algoritmus!#REF! ->  | M24: 2737 | N24: =Algoritmus!#REF! ->  | O24: 2863 | P24: 2737 | Q24: =Algoritmus!#REF! ->  | R24: =Algoritmus!#REF! ->  | T24: =Off.Cap.!L47 -> 428 | U24: =Off.Cap.!M47 -> 1007 | V24: =Off.Cap.!P47 -> 2863 | W24: =Off.Cap.!Q47 -> 2737
A25: =MIN(U25,Off.Cap.!K48) -> 900 | B25: 1400 | C25: 227 | D25: =MIN(T25,Off.Cap.!E48) -> 227 | E25: =MIN(U25,Off.Cap.!N48) -> 550 | F25: =MIN(T25,Off.Cap.!O48) -> 227 | G25: =Algoritmus!#REF! ->  | H25: =Algoritmus!#REF! ->  | I25: 2863 | J25: =Algoritmus!#REF! ->  | K25: =Algoritmus!#REF! ->  | L25: =Algoritmus!#REF! ->  | M25: 2737 | N25: =Algoritmus!#REF! ->  | O25: 2863 | P25: 2737 | Q25: =Algoritmus!#REF! ->  | R25: =Algoritmus!#REF! ->  | T25: =Off.Cap.!L48 -> 227 | U25: =Off.Cap.!M48 -> 1400 | V25: =Off.Cap.!P48 -> 2863 | W25: =Off.Cap.!Q48 -> 2737
A26: =MIN(U26,Off.Cap.!K49) -> 900 | B26: 1800 | C26: 500 | D26: =MIN(T26,Off.Cap.!E49) -> 500 | E26: =MIN(U26,Off.Cap.!N49) -> 550 | F26: =MIN(T26,Off.Cap.!O49) -> 500 | G26: =Algoritmus!#REF! ->  | H26: =Algoritmus!#REF! ->  | I26: 2966 | J26: =Algoritmus!#REF! ->  | K26: =Algoritmus!#REF! ->  | L26: =Algoritmus!#REF! ->  | M26: 1934 | N26: =Algoritmus!#REF! ->  | O26: 2966 | P26: 1934 | Q26: =Algoritmus!#REF! ->  | R26: =Algoritmus!#REF! ->  | T26: =Off.Cap.!L49 -> 500 | U26: =Off.Cap.!M49 -> 1800 | V26: =Off.Cap.!P49 -> 2966 | W26: =Off.Cap.!Q49 -> 1934
A27: =MIN(U27,Off.Cap.!K50) -> 900 | B27: 1800 | C27: 378 | D27: =MIN(T27,Off.Cap.!E50) -> 378 | E27: =MIN(U27,Off.Cap.!N50) -> 550 | F27: =MIN(T27,Off.Cap.!O50) -> 378 | G27: =Algoritmus!#REF! ->  | H27: =Algoritmus!#REF! ->  | I27: 2966 | J27: =Algoritmus!#REF! ->  | K27: =Algoritmus!#REF! ->  | L27: =Algoritmus!#REF! ->  | M27: 1934 | N27: =Algoritmus!#REF! ->  | O27: 2966 | P27: 1934 | Q27: =Algoritmus!#REF! ->  | R27: =Algoritmus!#REF! ->  | T27: =Off.Cap.!L50 -> 378 | U27: =Off.Cap.!M50 -> 1800 | V27: =Off.Cap.!P50 -> 2966 | W27: =Off.Cap.!Q50 -> 1934
A28: =MIN(U28,Off.Cap.!K51) -> 900 | B28: 1800 | C28: 255 | D28: =MIN(T28,Off.Cap.!E51) -> 255 | E28: =MIN(U28,Off.Cap.!N51) -> 550 | F28: =MIN(T28,Off.Cap.!O51) -> 255 | G28: =Algoritmus!#REF! ->  | H28: =Algoritmus!#REF! ->  | I28: 2966 | J28: =Algoritmus!#REF! ->  | K28: =Algoritmus!#REF! ->  | L28: =Algoritmus!#REF! ->  | M28: 1834 | N28: =Algoritmus!#REF! ->  | O28: 2966 | P28: 1834 | Q28: =Algoritmus!#REF! ->  | R28: =Algoritmus!#REF! ->  | T28: =Off.Cap.!L51 -> 255 | U28: =Off.Cap.!M51 -> 1800 | V28: =Off.Cap.!P51 -> 2966 | W28: =Off.Cap.!Q51 -> 1834
A29: =MIN(U29,Off.Cap.!K52) -> 900 | B29: 1800 | C29: 241 | D29: =MIN(T29,Off.Cap.!E52) -> 241 | E29: =MIN(U29,Off.Cap.!N52) -> 550 | F29: =MIN(T29,Off.Cap.!O52) -> 241 | G29: =Algoritmus!#REF! ->  | H29: =Algoritmus!#REF! ->  | I29: 2966 | J29: =Algoritmus!#REF! ->  | K29: =Algoritmus!#REF! ->  | L29: =Algoritmus!#REF! ->  | M29: 2134 | N29: =Algoritmus!#REF! ->  | O29: 2966 | P29: 2134 | Q29: =Algoritmus!#REF! ->  | R29: =Algoritmus!#REF! ->  | T29: =Off.Cap.!L52 -> 241 | U29: =Off.Cap.!M52 -> 1800 | V29: =Off.Cap.!P52 -> 2966 | W29: =Off.Cap.!Q52 -> 2134
A30: =MIN(U30,Off.Cap.!K53) -> 900 | B30: 1800 | C30: 275 | D30: =MIN(T30,Off.Cap.!E53) -> 275 | E30: =MIN(U30,Off.Cap.!N53) -> 550 | F30: =MIN(T30,Off.Cap.!O53) -> 275 | G30: =Algoritmus!#REF! ->  | H30: =Algoritmus!#REF! ->  | I30: 2966 | J30: =Algoritmus!#REF! ->  | K30: =Algoritmus!#REF! ->  | L30: =Algoritmus!#REF! ->  | M30: 2234 | N30: =Algoritmus!#REF! ->  | O30: 2966 | P30: 2234 | Q30: =Algoritmus!#REF! ->  | R30: =Algoritmus!#REF! ->  | T30: =Off.Cap.!L53 -> 275 | U30: =Off.Cap.!M53 -> 1800 | V30: =Off.Cap.!P53 -> 2966 | W30: =Off.Cap.!Q53 -> 2234
A31: =MIN(U31,Off.Cap.!K54) -> 900 | B31: 1800 | C31: 389 | D31: =MIN(T31,Off.Cap.!E54) -> 389 | E31: =MIN(U31,Off.Cap.!N54) -> 550 | F31: =MIN(T31,Off.Cap.!O54) -> 389 | G31: =Algoritmus!#REF! ->  | H31: =Algoritmus!#REF! ->  | I31: 2966 | J31: =Algoritmus!#REF! ->  | K31: =Algoritmus!#REF! ->  | L31: =Algoritmus!#REF! ->  | M31: 2034 | N31: =Algoritmus!#REF! ->  | O31: 2966 | P31: 2034 | Q31: =Algoritmus!#REF! ->  | R31: =Algoritmus!#REF! ->  | T31: =Off.Cap.!L54 -> 389 | U31: =Off.Cap.!M54 -> 1800 | V31: =Off.Cap.!P54 -> 2966 | W31: =Off.Cap.!Q54 -> 2034
A32: =MIN(U32,Off.Cap.!K55) -> 678 | B32: 678 | C32: 500 | D32: =MIN(T32,Off.Cap.!E55) -> 500 | E32: =MIN(U32,Off.Cap.!N55) -> 550 | F32: =MIN(T32,Off.Cap.!O55) -> 500 | G32: =Algoritmus!#REF! ->  | H32: =Algoritmus!#REF! ->  | I32: 2993 | J32: =Algoritmus!#REF! ->  | K32: =Algoritmus!#REF! ->  | L32: =Algoritmus!#REF! ->  | M32: 1907 | N32: =Algoritmus!#REF! ->  | O32: 2993 | P32: 1907 | Q32: =Algoritmus!#REF! ->  | R32: =Algoritmus!#REF! ->  | T32: =Off.Cap.!L55 -> 500 | U32: =Off.Cap.!M55 -> 678 | V32: =Off.Cap.!P55 -> 2993 | W32: =Off.Cap.!Q55 -> 1907
A33: =MIN(U33,Off.Cap.!K56) -> 744 | B33: 744 | C33: 0 | D33: =MIN(T33,Off.Cap.!E56) -> 0 | E33: =MIN(U33,Off.Cap.!N56) -> 550 | F33: =MIN(T33,Off.Cap.!O56) -> 0 | G33: =Algoritmus!#REF! ->  | H33: =Algoritmus!#REF! ->  | I33: 2993 | J33: =Algoritmus!#REF! ->  | K33: =Algoritmus!#REF! ->  | L33: =Algoritmus!#REF! ->  | M33: 1807 | N33: =Algoritmus!#REF! ->  | O33: 2993 | P33: 1807 | Q33: =Algoritmus!#REF! ->  | R33: =Algoritmus!#REF! ->  | T33: =Off.Cap.!L56 -> 0 | U33: =Off.Cap.!M56 -> 744 | V33: =Off.Cap.!P56 -> 2993 | W33: =Off.Cap.!Q56 -> 1807
A34: =MIN(U34,Off.Cap.!K57) -> 543 | B34: 543 | C34: 0 | D34: =MIN(T34,Off.Cap.!E57) -> 0 | E34: =MIN(U34,Off.Cap.!N57) -> 543 | F34: =MIN(T34,Off.Cap.!O57) -> 0 | G34: =Algoritmus!#REF! ->  | H34: =Algoritmus!#REF! ->  | I34: 3073 | J34: =Algoritmus!#REF! ->  | K34: =Algoritmus!#REF! ->  | L34: =Algoritmus!#REF! ->  | M34: 1927 | N34: =Algoritmus!#REF! ->  | O34: 3073 | P34: 1927 | Q34: =Algoritmus!#REF! ->  | R34: =Algoritmus!#REF! ->  | T34: =Off.Cap.!L57 -> 0 | U34: =Off.Cap.!M57 -> 543 | V34: =Off.Cap.!P57 -> 3073 | W34: =Off.Cap.!Q57 -> 1927
A35: =MIN(U35,Off.Cap.!K58) -> 496 | B35: 496 | C35: 0 | D35: =MIN(T35,Off.Cap.!E58) -> 0 | E35: =MIN(U35,Off.Cap.!N58) -> 496 | F35: =MIN(T35,Off.Cap.!O58) -> 0 | G35: =Algoritmus!#REF! ->  | H35: =Algoritmus!#REF! ->  | I35: 3073 | J35: =Algoritmus!#REF! ->  | K35: =Algoritmus!#REF! ->  | L35: =Algoritmus!#REF! ->  | M35: 2127 | N35: =Algoritmus!#REF! ->  | O35: 3073 | P35: 2127 | Q35: =Algoritmus!#REF! ->  | R35: =Algoritmus!#REF! ->  | T35: =Off.Cap.!L58 -> 0 | U35: =Off.Cap.!M58 -> 496 | V35: =Off.Cap.!P58 -> 3073 | W35: =Off.Cap.!Q58 -> 2127
A36: =MIN(U36,Off.Cap.!K59) -> 547 | B36: 547 | C36: 500 | D36: =MIN(T36,Off.Cap.!E59) -> 500 | E36: =MIN(U36,Off.Cap.!N59) -> 547 | F36: =MIN(T36,Off.Cap.!O59) -> 500 | G36: =Algoritmus!#REF! ->  | H36: =Algoritmus!#REF! ->  | I36: 3073 | J36: =Algoritmus!#REF! ->  | K36: =Algoritmus!#REF! ->  | L36: =Algoritmus!#REF! ->  | M36: 2627 | N36: =Algoritmus!#REF! ->  | O36: 3073 | P36: 2627 | Q36: =Algoritmus!#REF! ->  | R36: =Algoritmus!#REF! ->  | T36: =Off.Cap.!L59 -> 500 | U36: =Off.Cap.!M59 -> 547 | V36: =Off.Cap.!P59 -> 3073 | W36: =Off.Cap.!Q59 -> 2627
A37: =MIN(U37,Off.Cap.!K60) -> 533 | B37: 533 | C37: 500 | D37: =MIN(T37,Off.Cap.!E60) -> 500 | E37: =MIN(U37,Off.Cap.!N60) -> 533 | F37: =MIN(T37,Off.Cap.!O60) -> 500 | G37: =Algoritmus!#REF! ->  | H37: =Algoritmus!#REF! ->  | I37: 3073 | J37: =Algoritmus!#REF! ->  | K37: =Algoritmus!#REF! ->  | L37: =Algoritmus!#REF! ->  | M37: 2627 | N37: =Algoritmus!#REF! ->  | O37: 3073 | P37: 2627 | Q37: =Algoritmus!#REF! ->  | R37: =Algoritmus!#REF! ->  | T37: =Off.Cap.!L60 -> 500 | U37: =Off.Cap.!M60 -> 533 | V37: =Off.Cap.!P60 -> 3073 | W37: =Off.Cap.!Q60 -> 2627
A38: =MIN(U38,Off.Cap.!K61) -> 611 | B38: 611 | C38: 500 | D38: =MIN(T38,Off.Cap.!E61) -> 500 | E38: =MIN(U38,Off.Cap.!N61) -> 550 | F38: =MIN(T38,Off.Cap.!O61) -> 500 | G38: =Algoritmus!#REF! ->  | H38: =Algoritmus!#REF! ->  | I38: 3073 | J38: =Algoritmus!#REF! ->  | K38: =Algoritmus!#REF! ->  | L38: =Algoritmus!#REF! ->  | M38: 2627 | N38: =Algoritmus!#REF! ->  | O38: 3073 | P38: 2627 | Q38: =Algoritmus!#REF! ->  | R38: =Algoritmus!#REF! ->  | T38: =Off.Cap.!L61 -> 500 | U38: =Off.Cap.!M61 -> 611 | V38: =Off.Cap.!P61 -> 3073 | W38: =Off.Cap.!Q61 -> 2627
A39: =MIN(U39,Off.Cap.!K62) -> 618 | B39: 618 | C39: 500 | D39: =MIN(T39,Off.Cap.!E62) -> 500 | E39: =MIN(U39,Off.Cap.!N62) -> 550 | F39: =MIN(T39,Off.Cap.!O62) -> 500 | G39: =Algoritmus!#REF! ->  | H39: =Algoritmus!#REF! ->  | I39: 3073 | J39: =Algoritmus!#REF! ->  | K39: =Algoritmus!#REF! ->  | L39: =Algoritmus!#REF! ->  | M39: 2627 | N39: =Algoritmus!#REF! ->  | O39: 3073 | P39: 2627 | Q39: =Algoritmus!#REF! ->  | R39: =Algoritmus!#REF! ->  | T39: =Off.Cap.!L62 -> 500 | U39: =Off.Cap.!M62 -> 618 | V39: =Off.Cap.!P62 -> 3073 | W39: =Off.Cap.!Q62 -> 2627
A40: =MIN(U40,Off.Cap.!K63) -> 602 | B40: 602 | C40: 500 | D40: =MIN(T40,Off.Cap.!E63) -> 500 | E40: =MIN(U40,Off.Cap.!N63) -> 550 | F40: =MIN(T40,Off.Cap.!O63) -> 500 | G40: =Algoritmus!#REF! ->  | H40: =Algoritmus!#REF! ->  | I40: 3073 | J40: =Algoritmus!#REF! ->  | K40: =Algoritmus!#REF! ->  | L40: =Algoritmus!#REF! ->  | M40: 2627 | N40: =Algoritmus!#REF! ->  | O40: 3073 | P40: 2627 | Q40: =Algoritmus!#REF! ->  | R40: =Algoritmus!#REF! ->  | T40: =Off.Cap.!L63 -> 500 | U40: =Off.Cap.!M63 -> 602 | V40: =Off.Cap.!P63 -> 3073 | W40: =Off.Cap.!Q63 -> 2627
A41: =MIN(U41,Off.Cap.!K64) -> 448 | B41: 448 | C41: 500 | D41: =MIN(T41,Off.Cap.!E64) -> 500 | E41: =MIN(U41,Off.Cap.!N64) -> 448 | F41: =MIN(T41,Off.Cap.!O64) -> 500 | G41: =Algoritmus!#REF! ->  | H41: =Algoritmus!#REF! ->  | I41: 3073 | J41: =Algoritmus!#REF! ->  | K41: =Algoritmus!#REF! ->  | L41: =Algoritmus!#REF! ->  | M41: 2327 | N41: =Algoritmus!#REF! ->  | O41: 3073 | P41: 2327 | Q41: =Algoritmus!#REF! ->  | R41: =Algoritmus!#REF! ->  | T41: =Off.Cap.!L64 -> 500 | U41: =Off.Cap.!M64 -> 448 | V41: =Off.Cap.!P64 -> 3073 | W41: =Off.Cap.!Q64 -> 2327
A42: =MIN(U42,Off.Cap.!K65) -> 210 | B42: 210 | C42: 500 | D42: =MIN(T42,Off.Cap.!E65) -> 500 | E42: =MIN(U42,Off.Cap.!N65) -> 210 | F42: =MIN(T42,Off.Cap.!O65) -> 500 | G42: =Algoritmus!#REF! ->  | H42: =Algoritmus!#REF! ->  | I42: 3073 | J42: =Algoritmus!#REF! ->  | K42: =Algoritmus!#REF! ->  | L42: =Algoritmus!#REF! ->  | M42: 2127 | N42: =Algoritmus!#REF! ->  | O42: 3073 | P42: 2127 | Q42: =Algoritmus!#REF! ->  | R42: =Algoritmus!#REF! ->  | T42: =Off.Cap.!L65 -> 500 | U42: =Off.Cap.!M65 -> 210 | V42: =Off.Cap.!P65 -> 3073 | W42: =Off.Cap.!Q65 -> 2127
A43: =MIN(U43,Off.Cap.!K66) -> 254 | B43: 254 | C43: 500 | D43: =MIN(T43,Off.Cap.!E66) -> 500 | E43: =MIN(U43,Off.Cap.!N66) -> 254 | F43: =MIN(T43,Off.Cap.!O66) -> 500 | G43: =Algoritmus!#REF! ->  | H43: =Algoritmus!#REF! ->  | I43: 3073 | J43: =Algoritmus!#REF! ->  | K43: =Algoritmus!#REF! ->  | L43: =Algoritmus!#REF! ->  | M43: 2427 | N43: =Algoritmus!#REF! ->  | O43: 3073 | P43: 2427 | Q43: =Algoritmus!#REF! ->  | R43: =Algoritmus!#REF! ->  | T43: =Off.Cap.!L66 -> 500 | U43: =Off.Cap.!M66 -> 254 | V43: =Off.Cap.!P66 -> 3073 | W43: =Off.Cap.!Q66 -> 2427
A44: =MIN(U44,Off.Cap.!K67) -> 284 | B44: 284 | C44: 500 | D44: =MIN(T44,Off.Cap.!E67) -> 500 | E44: =MIN(U44,Off.Cap.!N67) -> 284 | F44: =MIN(T44,Off.Cap.!O67) -> 500 | G44: =Algoritmus!#REF! ->  | H44: =Algoritmus!#REF! ->  | I44: 3073 | J44: =Algoritmus!#REF! ->  | K44: =Algoritmus!#REF! ->  | L44: =Algoritmus!#REF! ->  | M44: 2627 | N44: =Algoritmus!#REF! ->  | O44: 3073 | P44: 2627 | Q44: =Algoritmus!#REF! ->  | R44: =Algoritmus!#REF! ->  | T44: =Off.Cap.!L67 -> 500 | U44: =Off.Cap.!M67 -> 284 | V44: =Off.Cap.!P67 -> 3073 | W44: =Off.Cap.!Q67 -> 2627
A45: =MIN(U45,Off.Cap.!K68) -> 335 | B45: 335 | C45: 500 | D45: =MIN(T45,Off.Cap.!E68) -> 500 | E45: =MIN(U45,Off.Cap.!N68) -> 335 | F45: =MIN(T45,Off.Cap.!O68) -> 500 | G45: =Algoritmus!#REF! ->  | H45: =Algoritmus!#REF! ->  | I45: 3073 | J45: =Algoritmus!#REF! ->  | K45: =Algoritmus!#REF! ->  | L45: =Algoritmus!#REF! ->  | M45: 2327 | N45: =Algoritmus!#REF! ->  | O45: 3073 | P45: 2327 | Q45: =Algoritmus!#REF! ->  | R45: =Algoritmus!#REF! ->  | T45: =Off.Cap.!L68 -> 500 | U45: =Off.Cap.!M68 -> 335 | V45: =Off.Cap.!P68 -> 3073 | W45: =Off.Cap.!Q68 -> 2327
A46: =MIN(U46,Off.Cap.!K69) -> 567 | B46: 567 | C46: 500 | D46: =MIN(T46,Off.Cap.!E69) -> 500 | E46: =MIN(U46,Off.Cap.!N69) -> 550 | F46: =MIN(T46,Off.Cap.!O69) -> 500 | G46: =Algoritmus!#REF! ->  | H46: =Algoritmus!#REF! ->  | I46: 2993 | J46: =Algoritmus!#REF! ->  | K46: =Algoritmus!#REF! ->  | L46: =Algoritmus!#REF! ->  | M46: 2107 | N46: =Algoritmus!#REF! ->  | O46: 2993 | P46: 2107 | Q46: =Algoritmus!#REF! ->  | R46: =Algoritmus!#REF! ->  | T46: =Off.Cap.!L69 -> 500 | U46: =Off.Cap.!M69 -> 567 | V46: =Off.Cap.!P69 -> 2993 | W46: =Off.Cap.!Q69 -> 2107
A47: =MIN(U47,Off.Cap.!K70) -> 900 | B47: 1326 | C47: 500 | D47: =MIN(T47,Off.Cap.!E70) -> 500 | E47: =MIN(U47,Off.Cap.!N70) -> 550 | F47: =MIN(T47,Off.Cap.!O70) -> 500 | G47: =Algoritmus!#REF! ->  | H47: =Algoritmus!#REF! ->  | I47: 2993 | J47: =Algoritmus!#REF! ->  | K47: =Algoritmus!#REF! ->  | L47: =Algoritmus!#REF! ->  | M47: 2007 | N47: =Algoritmus!#REF! ->  | O47: 2993 | P47: 2007 | Q47: =Algoritmus!#REF! ->  | R47: =Algoritmus!#REF! ->  | T47: =Off.Cap.!L70 -> 500 | U47: =Off.Cap.!M70 -> 1326 | V47: =Off.Cap.!P70 -> 2993 | W47: =Off.Cap.!Q70 -> 2007
A48: =MIN(U48,Off.Cap.!K71) -> 900 | B48: 1400 | C48: 379 | D48: =MIN(T48,Off.Cap.!E71) -> 379 | E48: =MIN(U48,Off.Cap.!N71) -> 550 | F48: =MIN(T48,Off.Cap.!O71) -> 379 | G48: =Algoritmus!#REF! ->  | H48: =Algoritmus!#REF! ->  | I48: 2971 | J48: =Algoritmus!#REF! ->  | K48: =Algoritmus!#REF! ->  | L48: =Algoritmus!#REF! ->  | M48: 1729 | N48: =Algoritmus!#REF! ->  | O48: 2971 | P48: 1729 | Q48: =Algoritmus!#REF! ->  | R48: =Algoritmus!#REF! ->  | T48: =Off.Cap.!L71 -> 379 | U48: =Off.Cap.!M71 -> 1400 | V48: =Off.Cap.!P71 -> 2971 | W48: =Off.Cap.!Q71 -> 1729
A49: =MIN(U49,Off.Cap.!K72) -> 900 | B49: 1400 | C49: 249 | D49: =MIN(T49,Off.Cap.!E72) -> 249 | E49: =MIN(U49,Off.Cap.!N72) -> 550 | F49: =MIN(T49,Off.Cap.!O72) -> 249 | G49: =Algoritmus!#REF! ->  | H49: =Algoritmus!#REF! ->  | I49: 2971 | J49: =Algoritmus!#REF! ->  | K49: =Algoritmus!#REF! ->  | L49: =Algoritmus!#REF! ->  | M49: 1929 | N49: =Algoritmus!#REF! ->  | O49: 2971 | P49: 1929 | Q49: =Algoritmus!#REF! ->  | R49: =Algoritmus!#REF! ->  | T49: =Off.Cap.!L72 -> 249 | U49: =Off.Cap.!M72 -> 1400 | V49: =Off.Cap.!P72 -> 2971 | W49: =Off.Cap.!Q72 -> 1929
A50: =MIN(U50,Off.Cap.!K73) -> 900 | B50: 1400 | C50: 500 | D50: =MIN(T50,Off.Cap.!E73) -> 500 | E50: =MIN(U50,Off.Cap.!N73) -> 550 | F50: =MIN(T50,Off.Cap.!O73) -> 500 | G50: =Algoritmus!#REF! ->  | H50: =Algoritmus!#REF! ->  | I50: 3012 | J50: =Algoritmus!#REF! ->  | K50: =Algoritmus!#REF! ->  | L50: =Algoritmus!#REF! ->  | M50: 1888 | N50: =Algoritmus!#REF! ->  | O50: 3012 | P50: 1888 | Q50: =Algoritmus!#REF! ->  | R50: =Algoritmus!#REF! ->  | T50: =Off.Cap.!L73 -> 500 | U50: =Off.Cap.!M73 -> 1400 | V50: =Off.Cap.!P73 -> 3012 | W50: =Off.Cap.!Q73 -> 1888
A51: =MIN(U51,Off.Cap.!K74) -> 900 | B51: 1400 | C51: 479 | D51: =MIN(T51,Off.Cap.!E74) -> 479 | E51: =MIN(U51,Off.Cap.!N74) -> 550 | F51: =MIN(T51,Off.Cap.!O74) -> 479 | G51: =Algoritmus!#REF! ->  | H51: =Algoritmus!#REF! ->  | I51: 3012 | J51: =Algoritmus!#REF! ->  | K51: =Algoritmus!#REF! ->  | L51: =Algoritmus!#REF! ->  | M51: 2088 | N51: =Algoritmus!#REF! ->  | O51: 3012 | P51: 2088 | Q51: =Algoritmus!#REF! ->  | R51: =Algoritmus!#REF! ->  | T51: =Off.Cap.!L74 -> 479 | U51: =Off.Cap.!M74 -> 1400 | V51: =Off.Cap.!P74 -> 3012 | W51: =Off.Cap.!Q74 -> 2088
A52: =MIN(U52,Off.Cap.!K75) -> 900 | B52: 1400 | C52: 330 | D52: =MIN(T52,Off.Cap.!E75) -> 330 | E52: =MIN(U52,Off.Cap.!N75) -> 550 | F52: =MIN(T52,Off.Cap.!O75) -> 330 | G52: =Algoritmus!#REF! ->  | H52: =Algoritmus!#REF! ->  | I52: 3012 | J52: =Algoritmus!#REF! ->  | K52: =Algoritmus!#REF! ->  | L52: =Algoritmus!#REF! ->  | M52: 2388 | N52: =Algoritmus!#REF! ->  | O52: 3012 | P52: 2388 | Q52: =Algoritmus!#REF! ->  | R52: =Algoritmus!#REF! ->  | T52: =Off.Cap.!L75 -> 330 | U52: =Off.Cap.!M75 -> 1400 | V52: =Off.Cap.!P75 -> 3012 | W52: =Off.Cap.!Q75 -> 2388
A53: =MIN(U53,Off.Cap.!K76) -> 900 | B53: 1400 | C53: 244 | D53: =MIN(T53,Off.Cap.!E76) -> 244 | E53: =MIN(U53,Off.Cap.!N76) -> 550 | F53: =MIN(T53,Off.Cap.!O76) -> 244 | G53: =Algoritmus!#REF! ->  | H53: =Algoritmus!#REF! ->  | I53: 3012 | J53: =Algoritmus!#REF! ->  | K53: =Algoritmus!#REF! ->  | L53: =Algoritmus!#REF! ->  | M53: 2388 | N53: =Algoritmus!#REF! ->  | O53: 3012 | P53: 2388 | Q53: =Algoritmus!#REF! ->  | R53: =Algoritmus!#REF! ->  | T53: =Off.Cap.!L76 -> 244 | U53: =Off.Cap.!M76 -> 1400 | V53: =Off.Cap.!P76 -> 3012 | W53: =Off.Cap.!Q76 -> 2388
A54: =MIN(U54,Off.Cap.!K77) -> 900 | B54: 1400 | C54: 238 | D54: =MIN(T54,Off.Cap.!E77) -> 238 | E54: =MIN(U54,Off.Cap.!N77) -> 550 | F54: =MIN(T54,Off.Cap.!O77) -> 238 | G54: =Algoritmus!#REF! ->  | H54: =Algoritmus!#REF! ->  | I54: 3012 | J54: =Algoritmus!#REF! ->  | K54: =Algoritmus!#REF! ->  | L54: =Algoritmus!#REF! ->  | M54: 2288 | N54: =Algoritmus!#REF! ->  | O54: 3012 | P54: 2288 | Q54: =Algoritmus!#REF! ->  | R54: =Algoritmus!#REF! ->  | T54: =Off.Cap.!L77 -> 238 | U54: =Off.Cap.!M77 -> 1400 | V54: =Off.Cap.!P77 -> 3012 | W54: =Off.Cap.!Q77 -> 2288
A55: =MIN(U55,Off.Cap.!K78) -> 900 | B55: 1400 | C55: 257 | D55: =MIN(T55,Off.Cap.!E78) -> 257 | E55: =MIN(U55,Off.Cap.!N78) -> 550 | F55: =MIN(T55,Off.Cap.!O78) -> 257 | G55: =Algoritmus!#REF! ->  | H55: =Algoritmus!#REF! ->  | I55: 3012 | J55: =Algoritmus!#REF! ->  | K55: =Algoritmus!#REF! ->  | L55: =Algoritmus!#REF! ->  | M55: 2188 | N55: =Algoritmus!#REF! ->  | O55: 3012 | P55: 2188 | Q55: =Algoritmus!#REF! ->  | R55: =Algoritmus!#REF! ->  | T55: =Off.Cap.!L78 -> 257 | U55: =Off.Cap.!M78 -> 1400 | V55: =Off.Cap.!P78 -> 3012 | W55: =Off.Cap.!Q78 -> 2188
A56: =MIN(U56,Off.Cap.!K79) -> 524 | B56: 524 | C56: 363 | D56: =MIN(T56,Off.Cap.!E79) -> 363 | E56: =MIN(U56,Off.Cap.!N79) -> 524 | F56: =MIN(T56,Off.Cap.!O79) -> 363 | G56: =Algoritmus!#REF! ->  | H56: =Algoritmus!#REF! ->  | I56: 3122 | J56: =Algoritmus!#REF! ->  | K56: =Algoritmus!#REF! ->  | L56: =Algoritmus!#REF! ->  | M56: 2178 | N56: =Algoritmus!#REF! ->  | O56: 3122 | P56: 2178 | Q56: =Algoritmus!#REF! ->  | R56: =Algoritmus!#REF! ->  | T56: =Off.Cap.!L79 -> 363 | U56: =Off.Cap.!M79 -> 524 | V56: =Off.Cap.!P79 -> 3122 | W56: =Off.Cap.!Q79 -> 2178
A57: =MIN(U57,Off.Cap.!K80) -> 663 | B57: 663 | C57: 475 | D57: =MIN(T57,Off.Cap.!E80) -> 475 | E57: =MIN(U57,Off.Cap.!N80) -> 550 | F57: =MIN(T57,Off.Cap.!O80) -> 475 | G57: =Algoritmus!#REF! ->  | H57: =Algoritmus!#REF! ->  | I57: 3125 | J57: =Algoritmus!#REF! ->  | K57: =Algoritmus!#REF! ->  | L57: =Algoritmus!#REF! ->  | M57: 2475 | N57: =Algoritmus!#REF! ->  | O57: 3125 | P57: 2475 | Q57: =Algoritmus!#REF! ->  | R57: =Algoritmus!#REF! ->  | T57: =Off.Cap.!L80 -> 475 | U57: =Off.Cap.!M80 -> 663 | V57: =Off.Cap.!P80 -> 3125 | W57: =Off.Cap.!Q80 -> 2475
A58: =MIN(U58,Off.Cap.!K81) -> 662 | B58: 662 | C58: 500 | D58: =MIN(T58,Off.Cap.!E81) -> 500 | E58: =MIN(U58,Off.Cap.!N81) -> 550 | F58: =MIN(T58,Off.Cap.!O81) -> 500 | G58: =Algoritmus!#REF! ->  | H58: =Algoritmus!#REF! ->  | I58: 3253 | J58: =Algoritmus!#REF! ->  | K58: =Algoritmus!#REF! ->  | L58: =Algoritmus!#REF! ->  | M58: 1647 | N58: =Algoritmus!#REF! ->  | O58: 3253 | P58: 1647 | Q58: =Algoritmus!#REF! ->  | R58: =Algoritmus!#REF! ->  | T58: =Off.Cap.!L81 -> 500 | U58: =Off.Cap.!M81 -> 662 | V58: =Off.Cap.!P81 -> 3253 | W58: =Off.Cap.!Q81 -> 1647
A59: =MIN(U59,Off.Cap.!K82) -> 900 | B59: 1400 | C59: 500 | D59: =MIN(T59,Off.Cap.!E82) -> 500 | E59: =MIN(U59,Off.Cap.!N82) -> 550 | F59: =MIN(T59,Off.Cap.!O82) -> 500 | G59: =Algoritmus!#REF! ->  | H59: =Algoritmus!#REF! ->  | I59: 3253 | J59: =Algoritmus!#REF! ->  | K59: =Algoritmus!#REF! ->  | L59: =Algoritmus!#REF! ->  | M59: 1647 | N59: =Algoritmus!#REF! ->  | O59: 3253 | P59: 1647 | Q59: =Algoritmus!#REF! ->  | R59: =Algoritmus!#REF! ->  | T59: =Off.Cap.!L82 -> 500 | U59: =Off.Cap.!M82 -> 1400 | V59: =Off.Cap.!P82 -> 3253 | W59: =Off.Cap.!Q82 -> 1647
A60: =MIN(U60,Off.Cap.!K83) -> 900 | B60: 1400 | C60: 500 | D60: =MIN(T60,Off.Cap.!E83) -> 500 | E60: =MIN(U60,Off.Cap.!N83) -> 550 | F60: =MIN(T60,Off.Cap.!O83) -> 500 | G60: =Algoritmus!#REF! ->  | H60: =Algoritmus!#REF! ->  | I60: 3253 | J60: =Algoritmus!#REF! ->  | K60: =Algoritmus!#REF! ->  | L60: =Algoritmus!#REF! ->  | M60: 1447 | N60: =Algoritmus!#REF! ->  | O60: 3253 | P60: 1447 | Q60: =Algoritmus!#REF! ->  | R60: =Algoritmus!#REF! ->  | T60: =Off.Cap.!L83 -> 500 | U60: =Off.Cap.!M83 -> 1400 | V60: =Off.Cap.!P83 -> 3253 | W60: =Off.Cap.!Q83 -> 1447
A61: =MIN(U61,Off.Cap.!K84) -> 900 | B61: 1400 | C61: 500 | D61: =MIN(T61,Off.Cap.!E84) -> 500 | E61: =MIN(U61,Off.Cap.!N84) -> 550 | F61: =MIN(T61,Off.Cap.!O84) -> 500 | G61: =Algoritmus!#REF! ->  | H61: =Algoritmus!#REF! ->  | I61: 3253 | J61: =Algoritmus!#REF! ->  | K61: =Algoritmus!#REF! ->  | L61: =Algoritmus!#REF! ->  | M61: 1547 | N61: =Algoritmus!#REF! ->  | O61: 3253 | P61: 1547 | Q61: =Algoritmus!#REF! ->  | R61: =Algoritmus!#REF! ->  | T61: =Off.Cap.!L84 -> 500 | U61: =Off.Cap.!M84 -> 1400 | V61: =Off.Cap.!P84 -> 3253 | W61: =Off.Cap.!Q84 -> 1547
A62: =MIN(U62,Off.Cap.!K85) -> 900 | B62: 1400 | C62: 500 | D62: =MIN(T62,Off.Cap.!E85) -> 500 | E62: =MIN(U62,Off.Cap.!N85) -> 550 | F62: =MIN(T62,Off.Cap.!O85) -> 500 | G62: =Algoritmus!#REF! ->  | H62: =Algoritmus!#REF! ->  | I62: 3253 | J62: =Algoritmus!#REF! ->  | K62: =Algoritmus!#REF! ->  | L62: =Algoritmus!#REF! ->  | M62: 1647 | N62: =Algoritmus!#REF! ->  | O62: 3253 | P62: 1647 | Q62: =Algoritmus!#REF! ->  | R62: =Algoritmus!#REF! ->  | T62: =Off.Cap.!L85 -> 500 | U62: =Off.Cap.!M85 -> 1400 | V62: =Off.Cap.!P85 -> 3253 | W62: =Off.Cap.!Q85 -> 1647
A63: =MIN(U63,Off.Cap.!K86) -> 900 | B63: 1400 | C63: 500 | D63: =MIN(T63,Off.Cap.!E86) -> 500 | E63: =MIN(U63,Off.Cap.!N86) -> 550 | F63: =MIN(T63,Off.Cap.!O86) -> 500 | G63: =Algoritmus!#REF! ->  | H63: =Algoritmus!#REF! ->  | I63: 3253 | J63: =Algoritmus!#REF! ->  | K63: =Algoritmus!#REF! ->  | L63: =Algoritmus!#REF! ->  | M63: 1647 | N63: =Algoritmus!#REF! ->  | O63: 3253 | P63: 1647 | Q63: =Algoritmus!#REF! ->  | R63: =Algoritmus!#REF! ->  | T63: =Off.Cap.!L86 -> 500 | U63: =Off.Cap.!M86 -> 1400 | V63: =Off.Cap.!P86 -> 3253 | W63: =Off.Cap.!Q86 -> 1647
A64: =MIN(U64,Off.Cap.!K87) -> 900 | B64: 1400 | C64: 500 | D64: =MIN(T64,Off.Cap.!E87) -> 500 | E64: =MIN(U64,Off.Cap.!N87) -> 550 | F64: =MIN(T64,Off.Cap.!O87) -> 500 | G64: =Algoritmus!#REF! ->  | H64: =Algoritmus!#REF! ->  | I64: 3253 | J64: =Algoritmus!#REF! ->  | K64: =Algoritmus!#REF! ->  | L64: =Algoritmus!#REF! ->  | M64: 1547 | N64: =Algoritmus!#REF! ->  | O64: 3253 | P64: 1547 | Q64: =Algoritmus!#REF! ->  | R64: =Algoritmus!#REF! ->  | T64: =Off.Cap.!L87 -> 500 | U64: =Off.Cap.!M87 -> 1400 | V64: =Off.Cap.!P87 -> 3253 | W64: =Off.Cap.!Q87 -> 1547
A65: =MIN(U65,Off.Cap.!K88) -> 900 | B65: 1400 | C65: 500 | D65: =MIN(T65,Off.Cap.!E88) -> 500 | E65: =MIN(U65,Off.Cap.!N88) -> 550 | F65: =MIN(T65,Off.Cap.!O88) -> 500 | G65: =Algoritmus!#REF! ->  | H65: =Algoritmus!#REF! ->  | I65: 3253 | J65: =Algoritmus!#REF! ->  | K65: =Algoritmus!#REF! ->  | L65: =Algoritmus!#REF! ->  | M65: 1447 | N65: =Algoritmus!#REF! ->  | O65: 3253 | P65: 1447 | Q65: =Algoritmus!#REF! ->  | R65: =Algoritmus!#REF! ->  | T65: =Off.Cap.!L88 -> 500 | U65: =Off.Cap.!M88 -> 1400 | V65: =Off.Cap.!P88 -> 3253 | W65: =Off.Cap.!Q88 -> 1447
A66: =MIN(U66,Off.Cap.!K89) -> 900 | B66: 1400 | C66: 500 | D66: =MIN(T66,Off.Cap.!E89) -> 500 | E66: =MIN(U66,Off.Cap.!N89) -> 550 | F66: =MIN(T66,Off.Cap.!O89) -> 500 | G66: =Algoritmus!#REF! ->  | H66: =Algoritmus!#REF! ->  | I66: 3253 | J66: =Algoritmus!#REF! ->  | K66: =Algoritmus!#REF! ->  | L66: =Algoritmus!#REF! ->  | M66: 1547 | N66: =Algoritmus!#REF! ->  | O66: 3253 | P66: 1547 | Q66: =Algoritmus!#REF! ->  | R66: =Algoritmus!#REF! ->  | T66: =Off.Cap.!L89 -> 500 | U66: =Off.Cap.!M89 -> 1400 | V66: =Off.Cap.!P89 -> 3253 | W66: =Off.Cap.!Q89 -> 1547
A67: =MIN(U67,Off.Cap.!K90) -> 900 | B67: =MIN(V67,U67) -> 1400 | C67: =MIN(T67,W67) -> 500 | D67: =MIN(T67,Off.Cap.!E90) -> 500 | E67: =MIN(U67,Off.Cap.!N90) -> 550 | F67: =MIN(T67,Off.Cap.!O90) -> 500 | G67: =Algoritmus!#REF! ->  | H67: =Algoritmus!#REF! ->  | I67: =V67 -> 3253 | J67: =Algoritmus!#REF! ->  | K67: =Algoritmus!#REF! ->  | L67: =Algoritmus!#REF! ->  | M67: =W67 -> 1447 | N67: =Algoritmus!#REF! ->  | O67: =V67 -> 3253 | P67: =W67 -> 1447 | Q67: =Algoritmus!#REF! ->  | R67: =Algoritmus!#REF! ->  | T67: =Off.Cap.!L90 -> 500 | U67: =Off.Cap.!M90 -> 1400 | V67: =Off.Cap.!P90 -> 3253 | W67: =Off.Cap.!Q90 -> 1447
A68: =MIN(U68,Off.Cap.!K91) -> 900 | B68: 1400 | C68: 500 | D68: =MIN(T68,Off.Cap.!E91) -> 500 | E68: =MIN(U68,Off.Cap.!N91) -> 550 | F68: =MIN(T68,Off.Cap.!O91) -> 500 | G68: =Algoritmus!#REF! ->  | H68: =Algoritmus!#REF! ->  | I68: 3253 | J68: =Algoritmus!#REF! ->  | K68: =Algoritmus!#REF! ->  | L68: =Algoritmus!#REF! ->  | M68: 1347 | N68: =Algoritmus!#REF! ->  | O68: 3253 | P68: 1347 | Q68: =Algoritmus!#REF! ->  | R68: =Algoritmus!#REF! ->  | T68: =Off.Cap.!L91 -> 500 | U68: =Off.Cap.!M91 -> 1400 | V68: =Off.Cap.!P91 -> 3253 | W68: =Off.Cap.!Q91 -> 1347
A69: =MIN(U69,Off.Cap.!K92) -> 900 | B69: 1393 | C69: 500 | D69: =MIN(T69,Off.Cap.!E92) -> 500 | E69: =MIN(U69,Off.Cap.!N92) -> 550 | F69: =MIN(T69,Off.Cap.!O92) -> 500 | G69: =Algoritmus!#REF! ->  | H69: =Algoritmus!#REF! ->  | I69: 3253 | J69: =Algoritmus!#REF! ->  | K69: =Algoritmus!#REF! ->  | L69: =Algoritmus!#REF! ->  | M69: 1647 | N69: =Algoritmus!#REF! ->  | O69: 3253 | P69: 1647 | Q69: =Algoritmus!#REF! ->  | R69: =Algoritmus!#REF! ->  | T69: =Off.Cap.!L92 -> 500 | U69: =Off.Cap.!M92 -> 1393 | V69: =Off.Cap.!P92 -> 3253 | W69: =Off.Cap.!Q92 -> 1647
A70: =MIN(U70,Off.Cap.!K93) -> 900 | B70: 1212 | C70: 500 | D70: =MIN(T70,Off.Cap.!E93) -> 500 | E70: =MIN(U70,Off.Cap.!N93) -> 550 | F70: =MIN(T70,Off.Cap.!O93) -> 500 | G70: =Algoritmus!#REF! ->  | H70: =Algoritmus!#REF! ->  | I70: 3067 | J70: =Algoritmus!#REF! ->  | K70: =Algoritmus!#REF! ->  | L70: =Algoritmus!#REF! ->  | M70: 1333 | N70: =Algoritmus!#REF! ->  | O70: 3067 | P70: 1333 | Q70: =Algoritmus!#REF! ->  | R70: =Algoritmus!#REF! ->  | T70: =Off.Cap.!L93 -> 500 | U70: =Off.Cap.!M93 -> 1212 | V70: =Off.Cap.!P93 -> 3067 | W70: =Off.Cap.!Q93 -> 1333
A71: =MIN(U71,Off.Cap.!K94) -> 900 | B71: 1400 | C71: 500 | D71: =MIN(T71,Off.Cap.!E94) -> 500 | E71: =MIN(U71,Off.Cap.!N94) -> 550 | F71: =MIN(T71,Off.Cap.!O94) -> 500 | G71: =Algoritmus!#REF! ->  | H71: =Algoritmus!#REF! ->  | I71: 3067 | J71: =Algoritmus!#REF! ->  | K71: =Algoritmus!#REF! ->  | L71: =Algoritmus!#REF! ->  | M71: 1333 | N71: =Algoritmus!#REF! ->  | O71: 3067 | P71: 1333 | Q71: =Algoritmus!#REF! ->  | R71: =Algoritmus!#REF! ->  | T71: =Off.Cap.!L94 -> 500 | U71: =Off.Cap.!M94 -> 1400 | V71: =Off.Cap.!P94 -> 3067 | W71: =Off.Cap.!Q94 -> 1333
A72: =MIN(U72,Off.Cap.!K95) -> 900 | B72: 1400 | C72: 500 | D72: =MIN(T72,Off.Cap.!E95) -> 500 | E72: =MIN(U72,Off.Cap.!N95) -> 550 | F72: =MIN(T72,Off.Cap.!O95) -> 500 | G72: =Algoritmus!#REF! ->  | H72: =Algoritmus!#REF! ->  | I72: 3067 | J72: =Algoritmus!#REF! ->  | K72: =Algoritmus!#REF! ->  | L72: =Algoritmus!#REF! ->  | M72: 1333 | N72: =Algoritmus!#REF! ->  | O72: 3067 | P72: 1333 | Q72: =Algoritmus!#REF! ->  | R72: =Algoritmus!#REF! ->  | T72: =Off.Cap.!L95 -> 500 | U72: =Off.Cap.!M95 -> 1400 | V72: =Off.Cap.!P95 -> 3067 | W72: =Off.Cap.!Q95 -> 1333
A73: =MIN(U73,Off.Cap.!K96) -> 900 | B73: 1400 | C73: 140 | D73: =MIN(T73,Off.Cap.!E96) -> 140 | E73: =MIN(U73,Off.Cap.!N96) -> 550 | F73: =MIN(T73,Off.Cap.!O96) -> 140 | G73: =Algoritmus!#REF! ->  | H73: =Algoritmus!#REF! ->  | I73: 3067 | J73: =Algoritmus!#REF! ->  | K73: =Algoritmus!#REF! ->  | L73: =Algoritmus!#REF! ->  | M73: 1633 | N73: =Algoritmus!#REF! ->  | O73: 3067 | P73: 1633 | Q73: =Algoritmus!#REF! ->  | R73: =Algoritmus!#REF! ->  | T73: =Off.Cap.!L96 -> 140 | U73: =Off.Cap.!M96 -> 1400 | V73: =Off.Cap.!P96 -> 3067 | W73: =Off.Cap.!Q96 -> 1633
A74: =MIN(U74,Off.Cap.!K97) -> 900 | B74: 1400 | C74: 0 | D74: =MIN(T74,Off.Cap.!E97) -> 0 | E74: =MIN(U74,Off.Cap.!N97) -> 550 | F74: =MIN(T74,Off.Cap.!O97) -> 0 | G74: =Algoritmus!AP4 -> 0 | H74: =Algoritmus!AQ4 -> 0 | I74: 2641 | J74: =Algoritmus!AR4 -> 493 | K74: =Algoritmus!AS4 -> 0 | L74: =Algoritmus!AT4 -> 505 | M74: 1759 | N74: =Algoritmus!AV4 -> 0 | O74: 2641 | P74: 1759 | Q74: =Algoritmus!AX4 -> 0 | R74: =Algoritmus!AY4 -> 0 | T74: =Off.Cap.!L97 -> 0 | U74: =Off.Cap.!M97 -> 1400 | V74: =Off.Cap.!P97 -> 2641 | W74: =Off.Cap.!Q97 -> 1759
A75: =MIN(U75,Off.Cap.!K98) -> 900 | B75: 1400 | C75: 0 | D75: =MIN(T75,Off.Cap.!E98) -> 0 | E75: =MIN(U75,Off.Cap.!N98) -> 550 | F75: =MIN(T75,Off.Cap.!O98) -> 0 | G75: =Algoritmus!#REF! ->  | H75: =Algoritmus!#REF! ->  | I75: 2841 | J75: =Algoritmus!#REF! ->  | K75: =Algoritmus!#REF! ->  | L75: =Algoritmus!#REF! ->  | M75: 1459 | N75: =Algoritmus!#REF! ->  | O75: 2841 | P75: 1459 | Q75: =Algoritmus!#REF! ->  | R75: =Algoritmus!#REF! ->  | T75: =Off.Cap.!L98 -> 0 | U75: =Off.Cap.!M98 -> 1400 | V75: =Off.Cap.!P98 -> 2841 | W75: =Off.Cap.!Q98 -> 1459
A76: =MIN(U76,Off.Cap.!K99) -> 900 | B76: 1400 | C76: 0 | D76: =MIN(T76,Off.Cap.!E99) -> 0 | E76: =MIN(U76,Off.Cap.!N99) -> 550 | F76: =MIN(T76,Off.Cap.!O99) -> 0 | G76: =Algoritmus!#REF! ->  | H76: =Algoritmus!#REF! ->  | I76: 2771 | J76: =Algoritmus!#REF! ->  | K76: =Algoritmus!#REF! ->  | L76: =Algoritmus!#REF! ->  | M76: 1729 | N76: =Algoritmus!#REF! ->  | O76: 2771 | P76: 1729 | Q76: =Algoritmus!#REF! ->  | R76: =Algoritmus!#REF! ->  | T76: =Off.Cap.!L99 -> 0 | U76: =Off.Cap.!M99 -> 1400 | V76: =Off.Cap.!P99 -> 2771 | W76: =Off.Cap.!Q99 -> 1729
A77: =MIN(U77,Off.Cap.!K100) -> 900 | B77: 1400 | C77: 0 | D77: =MIN(T77,Off.Cap.!E100) -> 0 | E77: =MIN(U77,Off.Cap.!N100) -> 550 | F77: =MIN(T77,Off.Cap.!O100) -> 0 | G77: =Algoritmus!#REF! ->  | H77: =Algoritmus!#REF! ->  | I77: 2571 | J77: =Algoritmus!#REF! ->  | K77: =Algoritmus!#REF! ->  | L77: =Algoritmus!#REF! ->  | M77: 1429 | N77: =Algoritmus!#REF! ->  | O77: 2571 | P77: 1429 | Q77: =Algoritmus!#REF! ->  | R77: =Algoritmus!#REF! ->  | T77: =Off.Cap.!L100 -> 0 | U77: =Off.Cap.!M100 -> 1400 | V77: =Off.Cap.!P100 -> 2571 | W77: =Off.Cap.!Q100 -> 1429
A78: =MIN(U78,Off.Cap.!K101) -> 900 | B78: 1400 | C78: 0 | D78: =MIN(T78,Off.Cap.!E101) -> 0 | E78: =MIN(U78,Off.Cap.!N101) -> 550 | F78: =MIN(T78,Off.Cap.!O101) -> 0 | G78: =Algoritmus!#REF! ->  | H78: =Algoritmus!#REF! ->  | I78: 2771 | J78: =Algoritmus!#REF! ->  | K78: =Algoritmus!#REF! ->  | L78: =Algoritmus!#REF! ->  | M78: 1429 | N78: =Algoritmus!#REF! ->  | O78: 2771 | P78: 1429 | Q78: =Algoritmus!#REF! ->  | R78: =Algoritmus!#REF! ->  | T78: =Off.Cap.!L101 -> 0 | U78: =Off.Cap.!M101 -> 1400 | V78: =Off.Cap.!P101 -> 2771 | W78: =Off.Cap.!Q101 -> 1429
A79: =MIN(U79,Off.Cap.!K102) -> 900 | B79: 1400 | C79: 0 | D79: =MIN(T79,Off.Cap.!E102) -> 0 | E79: =MIN(U79,Off.Cap.!N102) -> 550 | F79: =MIN(T79,Off.Cap.!O102) -> 0 | G79: =Algoritmus!#REF! ->  | H79: =Algoritmus!#REF! ->  | I79: 2793 | J79: =Algoritmus!#REF! ->  | K79: =Algoritmus!#REF! ->  | L79: =Algoritmus!#REF! ->  | M79: 1107 | N79: =Algoritmus!#REF! ->  | O79: 2793 | P79: 1107 | Q79: =Algoritmus!#REF! ->  | R79: =Algoritmus!#REF! ->  | T79: =Off.Cap.!L102 -> 0 | U79: =Off.Cap.!M102 -> 1400 | V79: =Off.Cap.!P102 -> 2793 | W79: =Off.Cap.!Q102 -> 1107
A80: =MIN(U80,Off.Cap.!K103) -> 504 | B80: 504 | C80: 156 | D80: =MIN(T80,Off.Cap.!E103) -> 156 | E80: =MIN(U80,Off.Cap.!N103) -> 504 | F80: =MIN(T80,Off.Cap.!O103) -> 156 | G80: =Algoritmus!#REF! ->  | H80: =Algoritmus!#REF! ->  | I80: 2273 | J80: =Algoritmus!#REF! ->  | K80: =Algoritmus!#REF! ->  | L80: =Algoritmus!#REF! ->  | M80: 727 | N80: =Algoritmus!#REF! ->  | O80: 2273 | P80: 727 | Q80: =Algoritmus!#REF! ->  | R80: =Algoritmus!#REF! ->  | T80: =Off.Cap.!L103 -> 156 | U80: =Off.Cap.!M103 -> 504 | V80: =Off.Cap.!P103 -> 2273 | W80: =Off.Cap.!Q103 -> 727
A81: =MIN(U81,Off.Cap.!K104) -> 157 | B81: 157 | C81: 500 | D81: =MIN(T81,Off.Cap.!E104) -> 500 | E81: =MIN(U81,Off.Cap.!N104) -> 157 | F81: =MIN(T81,Off.Cap.!O104) -> 500 | G81: =Algoritmus!#REF! ->  | H81: =Algoritmus!#REF! ->  | I81: 2273 | J81: =Algoritmus!#REF! ->  | K81: =Algoritmus!#REF! ->  | L81: =Algoritmus!#REF! ->  | M81: 1027 | N81: =Algoritmus!#REF! ->  | O81: 2273 | P81: 1027 | Q81: =Algoritmus!#REF! ->  | R81: =Algoritmus!#REF! ->  | T81: =Off.Cap.!L104 -> 500 | U81: =Off.Cap.!M104 -> 157 | V81: =Off.Cap.!P104 -> 2273 | W81: =Off.Cap.!Q104 -> 1027
A82: =MIN(U82,Off.Cap.!K105) -> 0 | B82: 0 | C82: 500 | D82: =MIN(T82,Off.Cap.!E105) -> 500 | E82: =MIN(U82,Off.Cap.!N105) -> 0 | F82: =MIN(T82,Off.Cap.!O105) -> 500 | G82: =Algoritmus!#REF! ->  | H82: =Algoritmus!#REF! ->  | I82: 2288 | J82: =Algoritmus!#REF! ->  | K82: =Algoritmus!#REF! ->  | L82: =Algoritmus!#REF! ->  | M82: 1312 | N82: =Algoritmus!#REF! ->  | O82: 2288 | P82: 1312 | Q82: =Algoritmus!#REF! ->  | R82: =Algoritmus!#REF! ->  | T82: =Off.Cap.!L105 -> 500 | U82: =Off.Cap.!M105 -> 0 | V82: =Off.Cap.!P105 -> 2288 | W82: =Off.Cap.!Q105 -> 1312
A83: =MIN(U83,Off.Cap.!K106) -> 0 | B83: 0 | C83: 500 | D83: =MIN(T83,Off.Cap.!E106) -> 500 | E83: =MIN(U83,Off.Cap.!N106) -> 0 | F83: =MIN(T83,Off.Cap.!O106) -> 500 | G83: =Algoritmus!#REF! ->  | H83: =Algoritmus!#REF! ->  | I83: 2288 | J83: =Algoritmus!#REF! ->  | K83: =Algoritmus!#REF! ->  | L83: =Algoritmus!#REF! ->  | M83: 1312 | N83: =Algoritmus!#REF! ->  | O83: 2288 | P83: 1312 | Q83: =Algoritmus!#REF! ->  | R83: =Algoritmus!#REF! ->  | T83: =Off.Cap.!L106 -> 500 | U83: =Off.Cap.!M106 -> 0 | V83: =Off.Cap.!P106 -> 2288 | W83: =Off.Cap.!Q106 -> 1312
A84: =MIN(U84,Off.Cap.!K107) -> 0 | B84: 0 | C84: 500 | D84: =MIN(T84,Off.Cap.!E107) -> 500 | E84: =MIN(U84,Off.Cap.!N107) -> 0 | F84: =MIN(T84,Off.Cap.!O107) -> 500 | G84: =Algoritmus!#REF! ->  | H84: =Algoritmus!#REF! ->  | I84: 2288 | J84: =Algoritmus!#REF! ->  | K84: =Algoritmus!#REF! ->  | L84: =Algoritmus!#REF! ->  | M84: 1112 | N84: =Algoritmus!#REF! ->  | O84: 2288 | P84: 1112 | Q84: =Algoritmus!#REF! ->  | R84: =Algoritmus!#REF! ->  | T84: =Off.Cap.!L107 -> 500 | U84: =Off.Cap.!M107 -> 0 | V84: =Off.Cap.!P107 -> 2288 | W84: =Off.Cap.!Q107 -> 1112
A85: =MIN(U85,Off.Cap.!K108) -> 0 | B85: 0 | C85: 500 | D85: =MIN(T85,Off.Cap.!E108) -> 500 | E85: =MIN(U85,Off.Cap.!N108) -> 0 | F85: =MIN(T85,Off.Cap.!O108) -> 500 | G85: =Algoritmus!#REF! ->  | H85: =Algoritmus!#REF! ->  | I85: 2288 | J85: =Algoritmus!#REF! ->  | K85: =Algoritmus!#REF! ->  | L85: =Algoritmus!#REF! ->  | M85: 1312 | N85: =Algoritmus!#REF! ->  | O85: 2288 | P85: 1312 | Q85: =Algoritmus!#REF! ->  | R85: =Algoritmus!#REF! ->  | T85: =Off.Cap.!L108 -> 500 | U85: =Off.Cap.!M108 -> 0 | V85: =Off.Cap.!P108 -> 2288 | W85: =Off.Cap.!Q108 -> 1312
A86: =MIN(U86,Off.Cap.!K109) -> 0 | B86: 0 | C86: 500 | D86: =MIN(T86,Off.Cap.!E109) -> 500 | E86: =MIN(U86,Off.Cap.!N109) -> 0 | F86: =MIN(T86,Off.Cap.!O109) -> 500 | G86: =Algoritmus!#REF! ->  | H86: =Algoritmus!#REF! ->  | I86: 2288 | J86: =Algoritmus!#REF! ->  | K86: =Algoritmus!#REF! ->  | L86: =Algoritmus!#REF! ->  | M86: 1612 | N86: =Algoritmus!#REF! ->  | O86: 2288 | P86: 1612 | Q86: =Algoritmus!#REF! ->  | R86: =Algoritmus!#REF! ->  | T86: =Off.Cap.!L109 -> 500 | U86: =Off.Cap.!M109 -> 0 | V86: =Off.Cap.!P109 -> 2288 | W86: =Off.Cap.!Q109 -> 1612
A87: =MIN(U87,Off.Cap.!K110) -> 0 | B87: 0 | C87: 500 | D87: =MIN(T87,Off.Cap.!E110) -> 500 | E87: =MIN(U87,Off.Cap.!N110) -> 0 | F87: =MIN(T87,Off.Cap.!O110) -> 500 | G87: =Algoritmus!#REF! ->  | H87: =Algoritmus!#REF! ->  | I87: 2288 | J87: =Algoritmus!#REF! ->  | K87: =Algoritmus!#REF! ->  | L87: =Algoritmus!#REF! ->  | M87: 1512 | N87: =Algoritmus!#REF! ->  | O87: 2288 | P87: 1512 | Q87: =Algoritmus!#REF! ->  | R87: =Algoritmus!#REF! ->  | T87: =Off.Cap.!L110 -> 500 | U87: =Off.Cap.!M110 -> 0 | V87: =Off.Cap.!P110 -> 2288 | W87: =Off.Cap.!Q110 -> 1512
A88: =MIN(U88,Off.Cap.!K111) -> 0 | B88: 0 | C88: 500 | D88: =MIN(T88,Off.Cap.!E111) -> 500 | E88: =MIN(U88,Off.Cap.!N111) -> 0 | F88: =MIN(T88,Off.Cap.!O111) -> 500 | G88: =Algoritmus!#REF! ->  | H88: =Algoritmus!#REF! ->  | I88: 2388 | J88: =Algoritmus!#REF! ->  | K88: =Algoritmus!#REF! ->  | L88: =Algoritmus!#REF! ->  | M88: 1312 | N88: =Algoritmus!#REF! ->  | O88: 2388 | P88: 1312 | Q88: =Algoritmus!#REF! ->  | R88: =Algoritmus!#REF! ->  | T88: =Off.Cap.!L111 -> 500 | U88: =Off.Cap.!M111 -> 0 | V88: =Off.Cap.!P111 -> 2388 | W88: =Off.Cap.!Q111 -> 1312
A89: =MIN(U89,Off.Cap.!K112) -> 0 | B89: 0 | C89: 500 | D89: =MIN(T89,Off.Cap.!E112) -> 500 | E89: =MIN(U89,Off.Cap.!N112) -> 0 | F89: =MIN(T89,Off.Cap.!O112) -> 500 | G89: =Algoritmus!#REF! ->  | H89: =Algoritmus!#REF! ->  | I89: 2688 | J89: =Algoritmus!#REF! ->  | K89: =Algoritmus!#REF! ->  | L89: =Algoritmus!#REF! ->  | M89: 1312 | N89: =Algoritmus!#REF! ->  | O89: 2688 | P89: 1312 | Q89: =Algoritmus!#REF! ->  | R89: =Algoritmus!#REF! ->  | T89: =Off.Cap.!L112 -> 500 | U89: =Off.Cap.!M112 -> 0 | V89: =Off.Cap.!P112 -> 2688 | W89: =Off.Cap.!Q112 -> 1312
A90: =MIN(U90,Off.Cap.!K113) -> 0 | B90: 0 | C90: 500 | D90: =MIN(T90,Off.Cap.!E113) -> 500 | E90: =MIN(U90,Off.Cap.!N113) -> 0 | F90: =MIN(T90,Off.Cap.!O113) -> 500 | G90: =Algoritmus!#REF! ->  | H90: =Algoritmus!#REF! ->  | I90: 2988 | J90: =Algoritmus!#REF! ->  | K90: =Algoritmus!#REF! ->  | L90: =Algoritmus!#REF! ->  | M90: 1312 | N90: =Algoritmus!#REF! ->  | O90: 2988 | P90: 1312 | Q90: =Algoritmus!#REF! ->  | R90: =Algoritmus!#REF! ->  | T90: =Off.Cap.!L113 -> 500 | U90: =Off.Cap.!M113 -> 0 | V90: =Off.Cap.!P113 -> 2988 | W90: =Off.Cap.!Q113 -> 1312
A91: =MIN(U91,Off.Cap.!K114) -> 0 | B91: 0 | C91: 500 | D91: =MIN(T91,Off.Cap.!E114) -> 500 | E91: =MIN(U91,Off.Cap.!N114) -> 0 | F91: =MIN(T91,Off.Cap.!O114) -> 500 | G91: =Algoritmus!#REF! ->  | H91: =Algoritmus!#REF! ->  | I91: 2288 | J91: =Algoritmus!#REF! ->  | K91: =Algoritmus!#REF! ->  | L91: =Algoritmus!#REF! ->  | M91: 1312 | N91: =Algoritmus!#REF! ->  | O91: 2288 | P91: 1312 | Q91: =Algoritmus!#REF! ->  | R91: =Algoritmus!#REF! ->  | T91: =Off.Cap.!L114 -> 500 | U91: =Off.Cap.!M114 -> 0 | V91: =Off.Cap.!P114 -> 2288 | W91: =Off.Cap.!Q114 -> 1312
A92: =MIN(U92,Off.Cap.!K115) -> 0 | B92: 0 | C92: 500 | D92: =MIN(T92,Off.Cap.!E115) -> 500 | E92: =MIN(U92,Off.Cap.!N115) -> 0 | F92: =MIN(T92,Off.Cap.!O115) -> 500 | G92: =Algoritmus!#REF! ->  | H92: =Algoritmus!#REF! ->  | I92: 2388 | J92: =Algoritmus!#REF! ->  | K92: =Algoritmus!#REF! ->  | L92: =Algoritmus!#REF! ->  | M92: 1312 | N92: =Algoritmus!#REF! ->  | O92: 2388 | P92: 1312 | Q92: =Algoritmus!#REF! ->  | R92: =Algoritmus!#REF! ->  | T92: =Off.Cap.!L115 -> 500 | U92: =Off.Cap.!M115 -> 0 | V92: =Off.Cap.!P115 -> 2388 | W92: =Off.Cap.!Q115 -> 1312
A93: =MIN(U93,Off.Cap.!K116) -> 0 | B93: 0 | C93: 500 | D93: =MIN(T93,Off.Cap.!E116) -> 500 | E93: =MIN(U93,Off.Cap.!N116) -> 0 | F93: =MIN(T93,Off.Cap.!O116) -> 500 | G93: =Algoritmus!#REF! ->  | H93: =Algoritmus!#REF! ->  | I93: 2588 | J93: =Algoritmus!#REF! ->  | K93: =Algoritmus!#REF! ->  | L93: =Algoritmus!#REF! ->  | M93: 1312 | N93: =Algoritmus!#REF! ->  | O93: 2588 | P93: 1312 | Q93: =Algoritmus!#REF! ->  | R93: =Algoritmus!#REF! ->  | T93: =Off.Cap.!L116 -> 500 | U93: =Off.Cap.!M116 -> 0 | V93: =Off.Cap.!P116 -> 2588 | W93: =Off.Cap.!Q116 -> 1312
A94: =MIN(U94,Off.Cap.!K117) -> 0 | B94: 0 | C94: 500 | D94: =MIN(T94,Off.Cap.!E117) -> 500 | E94: =MIN(U94,Off.Cap.!N117) -> 0 | F94: =MIN(T94,Off.Cap.!O117) -> 500 | G94: =Algoritmus!#REF! ->  | H94: =Algoritmus!#REF! ->  | I94: 2393 | J94: =Algoritmus!#REF! ->  | K94: =Algoritmus!#REF! ->  | L94: =Algoritmus!#REF! ->  | M94: 1707 | N94: =Algoritmus!#REF! ->  | O94: 2393 | P94: 1707 | Q94: =Algoritmus!#REF! ->  | R94: =Algoritmus!#REF! ->  | T94: =Off.Cap.!L117 -> 500 | U94: =Off.Cap.!M117 -> 0 | V94: =Off.Cap.!P117 -> 2393 | W94: =Off.Cap.!Q117 -> 1707
A95: =MIN(U95,Off.Cap.!K118) -> 702 | B95: 702 | C95: 500 | D95: =MIN(T95,Off.Cap.!E118) -> 500 | E95: =MIN(U95,Off.Cap.!N118) -> 550 | F95: =MIN(T95,Off.Cap.!O118) -> 500 | G95: =Algoritmus!#REF! ->  | H95: =Algoritmus!#REF! ->  | I95: 2493 | J95: =Algoritmus!#REF! ->  | K95: =Algoritmus!#REF! ->  | L95: =Algoritmus!#REF! ->  | M95: 1707 | N95: =Algoritmus!#REF! ->  | O95: 2493 | P95: 1707 | Q95: =Algoritmus!#REF! ->  | R95: =Algoritmus!#REF! ->  | T95: =Off.Cap.!L118 -> 500 | U95: =Off.Cap.!M118 -> 702 | V95: =Off.Cap.!P118 -> 2493 | W95: =Off.Cap.!Q118 -> 1707
A96: =MIN(U96,Off.Cap.!K119) -> 900 | B96: 1400 | C96: 500 | D96: =MIN(T96,Off.Cap.!E119) -> 500 | E96: =MIN(U96,Off.Cap.!N119) -> 550 | F96: =MIN(T96,Off.Cap.!O119) -> 500 | G96: =Algoritmus!#REF! ->  | H96: =Algoritmus!#REF! ->  | I96: 2193 | J96: =Algoritmus!#REF! ->  | K96: =Algoritmus!#REF! ->  | L96: =Algoritmus!#REF! ->  | M96: 1807 | N96: =Algoritmus!#REF! ->  | O96: 2193 | P96: 1807 | Q96: =Algoritmus!#REF! ->  | R96: =Algoritmus!#REF! ->  | T96: =Off.Cap.!L119 -> 500 | U96: =Off.Cap.!M119 -> 1400 | V96: =Off.Cap.!P119 -> 2193 | W96: =Off.Cap.!Q119 -> 1807
A97: =MIN(U97,Off.Cap.!K120) -> 900 | B97: 1400 | C97: 500 | D97: =MIN(T97,Off.Cap.!E120) -> 500 | E97: =MIN(U97,Off.Cap.!N120) -> 550 | F97: =MIN(T97,Off.Cap.!O120) -> 500 | G97: =Algoritmus!#REF! ->  | H97: =Algoritmus!#REF! ->  | I97: 2263 | J97: =Algoritmus!#REF! ->  | K97: =Algoritmus!#REF! ->  | L97: =Algoritmus!#REF! ->  | M97: 1837 | N97: =Algoritmus!#REF! ->  | O97: 2263 | P97: 1837 | Q97: =Algoritmus!#REF! ->  | R97: =Algoritmus!#REF! ->  | T97: =Off.Cap.!L120 -> 500 | U97: =Off.Cap.!M120 -> 1400 | V97: =Off.Cap.!P120 -> 2263 | W97: =Off.Cap.!Q120 -> 1837
A98: =MIN(U98,Off.Cap.!K121) -> 900 | B98: 1400 | C98: 0 | D98: =MIN(T98,Off.Cap.!E121) -> 0 | E98: =MIN(U98,Off.Cap.!N121) -> 550 | F98: =MIN(T98,Off.Cap.!O121) -> 0 | G98: =Algoritmus!#REF! ->  | H98: =Algoritmus!#REF! ->  | I98: 3016 | J98: =Algoritmus!#REF! ->  | K98: =Algoritmus!#REF! ->  | L98: =Algoritmus!#REF! ->  | M98: 2384 | N98: =Algoritmus!#REF! ->  | O98: 3016 | P98: 2384 | Q98: =Algoritmus!#REF! ->  | R98: =Algoritmus!#REF! ->  | T98: =Off.Cap.!L121 -> 0 | U98: =Off.Cap.!M121 -> 1400 | V98: =Off.Cap.!P121 -> 3016 | W98: =Off.Cap.!Q121 -> 2384
A99: =MIN(U99,Off.Cap.!K122) -> 900 | B99: 1400 | C99: 0 | D99: =MIN(T99,Off.Cap.!E122) -> 0 | E99: =MIN(U99,Off.Cap.!N122) -> 550 | F99: =MIN(T99,Off.Cap.!O122) -> 0 | G99: =Algoritmus!#REF! ->  | H99: =Algoritmus!#REF! ->  | I99: 3016 | J99: =Algoritmus!#REF! ->  | K99: =Algoritmus!#REF! ->  | L99: =Algoritmus!#REF! ->  | M99: 1884 | N99: =Algoritmus!#REF! ->  | O99: 3016 | P99: 1884 | Q99: =Algoritmus!#REF! ->  | R99: =Algoritmus!#REF! ->  | T99: =Off.Cap.!L122 -> 0 | U99: =Off.Cap.!M122 -> 1400 | V99: =Off.Cap.!P122 -> 3016 | W99: =Off.Cap.!Q122 -> 1884
A100: =MIN(U100,Off.Cap.!K123) -> 900 | B100: 1400 | C100: 0 | D100: =MIN(T100,Off.Cap.!E123) -> 0 | E100: =MIN(U100,Off.Cap.!N123) -> 550 | F100: =MIN(T100,Off.Cap.!O123) -> 0 | G100: =Algoritmus!#REF! ->  | H100: =Algoritmus!#REF! ->  | I100: 3046 | J100: =Algoritmus!#REF! ->  | K100: =Algoritmus!#REF! ->  | L100: =Algoritmus!#REF! ->  | M100: 1954 | N100: =Algoritmus!#REF! ->  | O100: 3046 | P100: 1954 | Q100: =Algoritmus!#REF! ->  | R100: =Algoritmus!#REF! ->  | T100: =Off.Cap.!L123 -> 0 | U100: =Off.Cap.!M123 -> 1400 | V100: =Off.Cap.!P123 -> 3046 | W100: =Off.Cap.!Q123 -> 1954
A101: =MIN(U101,Off.Cap.!K124) -> 900 | B101: 1400 | C101: 0 | D101: =MIN(T101,Off.Cap.!E124) -> 0 | E101: =MIN(U101,Off.Cap.!N124) -> 550 | F101: =MIN(T101,Off.Cap.!O124) -> 0 | G101: =Algoritmus!#REF! ->  | H101: =Algoritmus!#REF! ->  | I101: 3046 | J101: =Algoritmus!#REF! ->  | K101: =Algoritmus!#REF! ->  | L101: =Algoritmus!#REF! ->  | M101: 2154 | N101: =Algoritmus!#REF! ->  | O101: 3046 | P101: 2154 | Q101: =Algoritmus!#REF! ->  | R101: =Algoritmus!#REF! ->  | T101: =Off.Cap.!L124 -> 0 | U101: =Off.Cap.!M124 -> 1400 | V101: =Off.Cap.!P124 -> 3046 | W101: =Off.Cap.!Q124 -> 2154
A102: =MIN(U102,Off.Cap.!K125) -> 900 | B102: 1400 | C102: 0 | D102: =MIN(T102,Off.Cap.!E125) -> 0 | E102: =MIN(U102,Off.Cap.!N125) -> 550 | F102: =MIN(T102,Off.Cap.!O125) -> 0 | G102: =Algoritmus!#REF! ->  | H102: =Algoritmus!#REF! ->  | I102: 3046 | J102: =Algoritmus!#REF! ->  | K102: =Algoritmus!#REF! ->  | L102: =Algoritmus!#REF! ->  | M102: 2054 | N102: =Algoritmus!#REF! ->  | O102: 3046 | P102: 2054 | Q102: =Algoritmus!#REF! ->  | R102: =Algoritmus!#REF! ->  | T102: =Off.Cap.!L125 -> 0 | U102: =Off.Cap.!M125 -> 1400 | V102: =Off.Cap.!P125 -> 3046 | W102: =Off.Cap.!Q125 -> 2054
A103: =MIN(U103,Off.Cap.!K126) -> 900 | B103: 1400 | C103: 103 | D103: =MIN(T103,Off.Cap.!E126) -> 103 | E103: =MIN(U103,Off.Cap.!N126) -> 550 | F103: =MIN(T103,Off.Cap.!O126) -> 103 | G103: =Algoritmus!#REF! ->  | H103: =Algoritmus!#REF! ->  | I103: 3068 | J103: =Algoritmus!#REF! ->  | K103: =Algoritmus!#REF! ->  | L103: =Algoritmus!#REF! ->  | M103: 1532 | N103: =Algoritmus!#REF! ->  | O103: 3068 | P103: 1532 | Q103: =Algoritmus!#REF! ->  | R103: =Algoritmus!#REF! ->  | T103: =Off.Cap.!L126 -> 103 | U103: =Off.Cap.!M126 -> 1400 | V103: =Off.Cap.!P126 -> 3068 | W103: =Off.Cap.!Q126 -> 1532
A104: =MIN(U104,Off.Cap.!K127) -> 548 | B104: 548 | C104: 293 | D104: =MIN(T104,Off.Cap.!E127) -> 293 | E104: =MIN(U104,Off.Cap.!N127) -> 548 | F104: =MIN(T104,Off.Cap.!O127) -> 293 | G104: =Algoritmus!#REF! ->  | H104: =Algoritmus!#REF! ->  | I104: 3073 | J104: =Algoritmus!#REF! ->  | K104: =Algoritmus!#REF! ->  | L104: =Algoritmus!#REF! ->  | M104: 1927 | N104: =Algoritmus!#REF! ->  | O104: 3073 | P104: 1927 | Q104: =Algoritmus!#REF! ->  | R104: =Algoritmus!#REF! ->  | T104: =Off.Cap.!L127 -> 293 | U104: =Off.Cap.!M127 -> 548 | V104: =Off.Cap.!P127 -> 3073 | W104: =Off.Cap.!Q127 -> 1927
A105: =MIN(U105,Off.Cap.!K128) -> 632 | B105: 632 | C105: 500 | D105: =MIN(T105,Off.Cap.!E128) -> 500 | E105: =MIN(U105,Off.Cap.!N128) -> 550 | F105: =MIN(T105,Off.Cap.!O128) -> 500 | G105: =Algoritmus!#REF! ->  | H105: =Algoritmus!#REF! ->  | I105: 3073 | J105: =Algoritmus!#REF! ->  | K105: =Algoritmus!#REF! ->  | L105: =Algoritmus!#REF! ->  | M105: 1127 | N105: =Algoritmus!#REF! ->  | O105: 3073 | P105: 1127 | Q105: =Algoritmus!#REF! ->  | R105: =Algoritmus!#REF! ->  | T105: =Off.Cap.!L128 -> 500 | U105: =Off.Cap.!M128 -> 632 | V105: =Off.Cap.!P128 -> 3073 | W105: =Off.Cap.!Q128 -> 1127
A106: =MIN(U106,Off.Cap.!K129) -> 608 | B106: 608 | C106: 500 | D106: =MIN(T106,Off.Cap.!E129) -> 500 | E106: =MIN(U106,Off.Cap.!N129) -> 550 | F106: =MIN(T106,Off.Cap.!O129) -> 500 | G106: =Algoritmus!#REF! ->  | H106: =Algoritmus!#REF! ->  | I106: 2788 | J106: =Algoritmus!#REF! ->  | K106: =Algoritmus!#REF! ->  | L106: =Algoritmus!#REF! ->  | M106: 1112 | N106: =Algoritmus!#REF! ->  | O106: 2788 | P106: 1112 | Q106: =Algoritmus!#REF! ->  | R106: =Algoritmus!#REF! ->  | T106: =Off.Cap.!L129 -> 500 | U106: =Off.Cap.!M129 -> 608 | V106: =Off.Cap.!P129 -> 2788 | W106: =Off.Cap.!Q129 -> 1112
A107: =MIN(U107,Off.Cap.!K130) -> 634 | B107: 634 | C107: 500 | D107: =MIN(T107,Off.Cap.!E130) -> 500 | E107: =MIN(U107,Off.Cap.!N130) -> 550 | F107: =MIN(T107,Off.Cap.!O130) -> 500 | G107: =Algoritmus!#REF! ->  | H107: =Algoritmus!#REF! ->  | I107: 3088 | J107: =Algoritmus!#REF! ->  | K107: =Algoritmus!#REF! ->  | L107: =Algoritmus!#REF! ->  | M107: 1112 | N107: =Algoritmus!#REF! ->  | O107: 3088 | P107: 1112 | Q107: =Algoritmus!#REF! ->  | R107: =Algoritmus!#REF! ->  | T107: =Off.Cap.!L130 -> 500 | U107: =Off.Cap.!M130 -> 634 | V107: =Off.Cap.!P130 -> 3088 | W107: =Off.Cap.!Q130 -> 1112
A108: =MIN(U108,Off.Cap.!K131) -> 727 | B108: 727 | C108: 500 | D108: =MIN(T108,Off.Cap.!E131) -> 500 | E108: =MIN(U108,Off.Cap.!N131) -> 550 | F108: =MIN(T108,Off.Cap.!O131) -> 500 | G108: =Algoritmus!#REF! ->  | H108: =Algoritmus!#REF! ->  | I108: 3088 | J108: =Algoritmus!#REF! ->  | K108: =Algoritmus!#REF! ->  | L108: =Algoritmus!#REF! ->  | M108: 1112 | N108: =Algoritmus!#REF! ->  | O108: 3088 | P108: 1112 | Q108: =Algoritmus!#REF! ->  | R108: =Algoritmus!#REF! ->  | T108: =Off.Cap.!L131 -> 500 | U108: =Off.Cap.!M131 -> 727 | V108: =Off.Cap.!P131 -> 3088 | W108: =Off.Cap.!Q131 -> 1112
A109: =MIN(U109,Off.Cap.!K132) -> 813 | B109: 813 | C109: 500 | D109: =MIN(T109,Off.Cap.!E132) -> 500 | E109: =MIN(U109,Off.Cap.!N132) -> 550 | F109: =MIN(T109,Off.Cap.!O132) -> 500 | G109: =Algoritmus!#REF! ->  | H109: =Algoritmus!#REF! ->  | I109: 2488 | J109: =Algoritmus!#REF! ->  | K109: =Algoritmus!#REF! ->  | L109: =Algoritmus!#REF! ->  | M109: 1112 | N109: =Algoritmus!#REF! ->  | O109: 2488 | P109: 1112 | Q109: =Algoritmus!#REF! ->  | R109: =Algoritmus!#REF! ->  | T109: =Off.Cap.!L132 -> 500 | U109: =Off.Cap.!M132 -> 813 | V109: =Off.Cap.!P132 -> 2488 | W109: =Off.Cap.!Q132 -> 1112
A110: =MIN(U110,Off.Cap.!K133) -> 900 | B110: 1092 | C110: 500 | D110: =MIN(T110,Off.Cap.!E133) -> 500 | E110: =MIN(U110,Off.Cap.!N133) -> 550 | F110: =MIN(T110,Off.Cap.!O133) -> 500 | G110: =Algoritmus!#REF! ->  | H110: =Algoritmus!#REF! ->  | I110: 2388 | J110: =Algoritmus!#REF! ->  | K110: =Algoritmus!#REF! ->  | L110: =Algoritmus!#REF! ->  | M110: 1112 | N110: =Algoritmus!#REF! ->  | O110: 2388 | P110: 1112 | Q110: =Algoritmus!#REF! ->  | R110: =Algoritmus!#REF! ->  | T110: =Off.Cap.!L133 -> 500 | U110: =Off.Cap.!M133 -> 1092 | V110: =Off.Cap.!P133 -> 2388 | W110: =Off.Cap.!Q133 -> 1112
A111: =MIN(U111,Off.Cap.!K134) -> 900 | B111: 1198 | C111: 500 | D111: =MIN(T111,Off.Cap.!E134) -> 500 | E111: =MIN(U111,Off.Cap.!N134) -> 550 | F111: =MIN(T111,Off.Cap.!O134) -> 500 | G111: =Algoritmus!#REF! ->  | H111: =Algoritmus!#REF! ->  | I111: 2288 | J111: =Algoritmus!#REF! ->  | K111: =Algoritmus!#REF! ->  | L111: =Algoritmus!#REF! ->  | M111: 1112 | N111: =Algoritmus!#REF! ->  | O111: 2288 | P111: 1112 | Q111: =Algoritmus!#REF! ->  | R111: =Algoritmus!#REF! ->  | T111: =Off.Cap.!L134 -> 500 | U111: =Off.Cap.!M134 -> 1198 | V111: =Off.Cap.!P134 -> 2288 | W111: =Off.Cap.!Q134 -> 1112
A112: =MIN(U112,Off.Cap.!K135) -> 900 | B112: 1255 | C112: 500 | D112: =MIN(T112,Off.Cap.!E135) -> 500 | E112: =MIN(U112,Off.Cap.!N135) -> 550 | F112: =MIN(T112,Off.Cap.!O135) -> 500 | G112: =Algoritmus!#REF! ->  | H112: =Algoritmus!#REF! ->  | I112: 2288 | J112: =Algoritmus!#REF! ->  | K112: =Algoritmus!#REF! ->  | L112: =Algoritmus!#REF! ->  | M112: 1112 | N112: =Algoritmus!#REF! ->  | O112: 2288 | P112: 1112 | Q112: =Algoritmus!#REF! ->  | R112: =Algoritmus!#REF! ->  | T112: =Off.Cap.!L135 -> 500 | U112: =Off.Cap.!M135 -> 1255 | V112: =Off.Cap.!P135 -> 2288 | W112: =Off.Cap.!Q135 -> 1112
A113: =MIN(U113,Off.Cap.!K136) -> 900 | B113: 1313 | C113: 500 | D113: =MIN(T113,Off.Cap.!E136) -> 500 | E113: =MIN(U113,Off.Cap.!N136) -> 550 | F113: =MIN(T113,Off.Cap.!O136) -> 500 | G113: =Algoritmus!#REF! ->  | H113: =Algoritmus!#REF! ->  | I113: 2288 | J113: =Algoritmus!#REF! ->  | K113: =Algoritmus!#REF! ->  | L113: =Algoritmus!#REF! ->  | M113: 1112 | N113: =Algoritmus!#REF! ->  | O113: 2288 | P113: 1112 | Q113: =Algoritmus!#REF! ->  | R113: =Algoritmus!#REF! ->  | T113: =Off.Cap.!L136 -> 500 | U113: =Off.Cap.!M136 -> 1313 | V113: =Off.Cap.!P136 -> 2288 | W113: =Off.Cap.!Q136 -> 1112
A114: =MIN(U114,Off.Cap.!K137) -> 900 | B114: 1302 | C114: 500 | D114: =MIN(T114,Off.Cap.!E137) -> 500 | E114: =MIN(U114,Off.Cap.!N137) -> 550 | F114: =MIN(T114,Off.Cap.!O137) -> 500 | G114: =Algoritmus!#REF! ->  | H114: =Algoritmus!#REF! ->  | I114: 2388 | J114: =Algoritmus!#REF! ->  | K114: =Algoritmus!#REF! ->  | L114: =Algoritmus!#REF! ->  | M114: 1112 | N114: =Algoritmus!#REF! ->  | O114: 2388 | P114: 1112 | Q114: =Algoritmus!#REF! ->  | R114: =Algoritmus!#REF! ->  | T114: =Off.Cap.!L137 -> 500 | U114: =Off.Cap.!M137 -> 1302 | V114: =Off.Cap.!P137 -> 2388 | W114: =Off.Cap.!Q137 -> 1112
A115: =MIN(U115,Off.Cap.!K138) -> 900 | B115: 1400 | C115: 500 | D115: =MIN(T115,Off.Cap.!E138) -> 500 | E115: =MIN(U115,Off.Cap.!N138) -> 550 | F115: =MIN(T115,Off.Cap.!O138) -> 500 | G115: =Algoritmus!#REF! ->  | H115: =Algoritmus!#REF! ->  | I115: 2788 | J115: =Algoritmus!#REF! ->  | K115: =Algoritmus!#REF! ->  | L115: =Algoritmus!#REF! ->  | M115: 1112 | N115: =Algoritmus!#REF! ->  | O115: 2788 | P115: 1112 | Q115: =Algoritmus!#REF! ->  | R115: =Algoritmus!#REF! ->  | T115: =Off.Cap.!L138 -> 500 | U115: =Off.Cap.!M138 -> 1400 | V115: =Off.Cap.!P138 -> 2788 | W115: =Off.Cap.!Q138 -> 1112
A116: =MIN(U116,Off.Cap.!K139) -> 900 | B116: 1400 | C116: 500 | D116: =MIN(T116,Off.Cap.!E139) -> 500 | E116: =MIN(U116,Off.Cap.!N139) -> 550 | F116: =MIN(T116,Off.Cap.!O139) -> 500 | G116: =Algoritmus!#REF! ->  | H116: =Algoritmus!#REF! ->  | I116: 2288 | J116: =Algoritmus!#REF! ->  | K116: =Algoritmus!#REF! ->  | L116: =Algoritmus!#REF! ->  | M116: 1112 | N116: =Algoritmus!#REF! ->  | O116: 2288 | P116: 1112 | Q116: =Algoritmus!#REF! ->  | R116: =Algoritmus!#REF! ->  | T116: =Off.Cap.!L139 -> 500 | U116: =Off.Cap.!M139 -> 1400 | V116: =Off.Cap.!P139 -> 2288 | W116: =Off.Cap.!Q139 -> 1112
A117: =MIN(U117,Off.Cap.!K140) -> 900 | B117: 1367 | C117: 447 | D117: =MIN(T117,Off.Cap.!E140) -> 447 | E117: =MIN(U117,Off.Cap.!N140) -> 550 | F117: =MIN(T117,Off.Cap.!O140) -> 447 | G117: =Algoritmus!#REF! ->  | H117: =Algoritmus!#REF! ->  | I117: 2288 | J117: =Algoritmus!#REF! ->  | K117: =Algoritmus!#REF! ->  | L117: =Algoritmus!#REF! ->  | M117: 1112 | N117: =Algoritmus!#REF! ->  | O117: 2288 | P117: 1112 | Q117: =Algoritmus!#REF! ->  | R117: =Algoritmus!#REF! ->  | T117: =Off.Cap.!L140 -> 447 | U117: =Off.Cap.!M140 -> 1367 | V117: =Off.Cap.!P140 -> 2288 | W117: =Off.Cap.!Q140 -> 1112
A118: =MIN(U118,Off.Cap.!K141) -> 900 | B118: 1400 | C118: 269 | D118: =MIN(T118,Off.Cap.!E141) -> 269 | E118: =MIN(U118,Off.Cap.!N141) -> 550 | F118: =MIN(T118,Off.Cap.!O141) -> 269 | G118: =Algoritmus!#REF! ->  | H118: =Algoritmus!#REF! ->  | I118: 2273 | J118: =Algoritmus!#REF! ->  | K118: =Algoritmus!#REF! ->  | L118: =Algoritmus!#REF! ->  | M118: 1627 | N118: =Algoritmus!#REF! ->  | O118: 2273 | P118: 1627 | Q118: =Algoritmus!#REF! ->  | R118: =Algoritmus!#REF! ->  | T118: =Off.Cap.!L141 -> 269 | U118: =Off.Cap.!M141 -> 1400 | V118: =Off.Cap.!P141 -> 2273 | W118: =Off.Cap.!Q141 -> 1627
A119: =MIN(U119,Off.Cap.!K142) -> 900 | B119: 1400 | C119: 24 | D119: =MIN(T119,Off.Cap.!E142) -> 24 | E119: =MIN(U119,Off.Cap.!N142) -> 550 | F119: =MIN(T119,Off.Cap.!O142) -> 24 | G119: =Algoritmus!#REF! ->  | H119: =Algoritmus!#REF! ->  | I119: 2268 | J119: =Algoritmus!#REF! ->  | K119: =Algoritmus!#REF! ->  | L119: =Algoritmus!#REF! ->  | M119: 1532 | N119: =Algoritmus!#REF! ->  | O119: 2268 | P119: 1532 | Q119: =Algoritmus!#REF! ->  | R119: =Algoritmus!#REF! ->  | T119: =Off.Cap.!L142 -> 24 | U119: =Off.Cap.!M142 -> 1400 | V119: =Off.Cap.!P142 -> 2268 | W119: =Off.Cap.!Q142 -> 1532
A120: =MIN(U120,Off.Cap.!K143) -> 900 | B120: 1400 | C120: 0 | D120: =MIN(T120,Off.Cap.!E143) -> 0 | E120: =MIN(U120,Off.Cap.!N143) -> 550 | F120: =MIN(T120,Off.Cap.!O143) -> 0 | G120: =Algoritmus!#REF! ->  | H120: =Algoritmus!#REF! ->  | I120: 2268 | J120: =Algoritmus!#REF! ->  | K120: =Algoritmus!#REF! ->  | L120: =Algoritmus!#REF! ->  | M120: 1632 | N120: =Algoritmus!#REF! ->  | O120: 2268 | P120: 1632 | Q120: =Algoritmus!#REF! ->  | R120: =Algoritmus!#REF! ->  | T120: =Off.Cap.!L143 -> 0 | U120: =Off.Cap.!M143 -> 1400 | V120: =Off.Cap.!P143 -> 2268 | W120: =Off.Cap.!Q143 -> 1632
A121: =MIN(U121,Off.Cap.!K144) -> 900 | B121: 1400 | C121: 0 | D121: =MIN(T121,Off.Cap.!E144) -> 0 | E121: =MIN(U121,Off.Cap.!N144) -> 550 | F121: =MIN(T121,Off.Cap.!O144) -> 0 | G121: =Algoritmus!#REF! ->  | H121: =Algoritmus!#REF! ->  | I121: 2238 | J121: =Algoritmus!#REF! ->  | K121: =Algoritmus!#REF! ->  | L121: =Algoritmus!#REF! ->  | M121: 1662 | N121: =Algoritmus!#REF! ->  | O121: 2238 | P121: 1662 | Q121: =Algoritmus!#REF! ->  | R121: =Algoritmus!#REF! ->  | T121: =Off.Cap.!L144 -> 0 | U121: =Off.Cap.!M144 -> 1400 | V121: =Off.Cap.!P144 -> 2238 | W121: =Off.Cap.!Q144 -> 1662
A122: =MIN(U122,Off.Cap.!K145) -> 900 | B122: 1400 | C122: 0 | D122: =MIN(T122,Off.Cap.!E145) -> 0 | E122: =MIN(U122,Off.Cap.!N145) -> 550 | F122: =MIN(T122,Off.Cap.!O145) -> 0 | G122: =Algoritmus!#REF! ->  | H122: =Algoritmus!#REF! ->  | I122: 2473 | J122: =Algoritmus!#REF! ->  | K122: =Algoritmus!#REF! ->  | L122: =Algoritmus!#REF! ->  | M122: 1527 | N122: =Algoritmus!#REF! ->  | O122: 2473 | P122: 1527 | Q122: =Algoritmus!#REF! ->  | R122: =Algoritmus!#REF! ->  | T122: =Off.Cap.!L145 -> 0 | U122: =Off.Cap.!M145 -> 1400 | V122: =Off.Cap.!P145 -> 2473 | W122: =Off.Cap.!Q145 -> 1527
A123: =MIN(U123,Off.Cap.!K146) -> 900 | B123: 1400 | C123: 0 | D123: =MIN(T123,Off.Cap.!E146) -> 0 | E123: =MIN(U123,Off.Cap.!N146) -> 550 | F123: =MIN(T123,Off.Cap.!O146) -> 0 | G123: =Algoritmus!#REF! ->  | H123: =Algoritmus!#REF! ->  | I123: 2773 | J123: =Algoritmus!#REF! ->  | K123: =Algoritmus!#REF! ->  | L123: =Algoritmus!#REF! ->  | M123: 1227 | N123: =Algoritmus!#REF! ->  | O123: 2773 | P123: 1227 | Q123: =Algoritmus!#REF! ->  | R123: =Algoritmus!#REF! ->  | T123: =Off.Cap.!L146 -> 0 | U123: =Off.Cap.!M146 -> 1400 | V123: =Off.Cap.!P146 -> 2773 | W123: =Off.Cap.!Q146 -> 1227
A124: =MIN(U124,Off.Cap.!K147) -> 900 | B124: 1400 | C124: 0 | D124: =MIN(T124,Off.Cap.!E147) -> 0 | E124: =MIN(U124,Off.Cap.!N147) -> 550 | F124: =MIN(T124,Off.Cap.!O147) -> 0 | G124: =Algoritmus!#REF! ->  | H124: =Algoritmus!#REF! ->  | I124: 3073 | J124: =Algoritmus!#REF! ->  | K124: =Algoritmus!#REF! ->  | L124: =Algoritmus!#REF! ->  | M124: 1227 | N124: =Algoritmus!#REF! ->  | O124: 3073 | P124: 1227 | Q124: =Algoritmus!#REF! ->  | R124: =Algoritmus!#REF! ->  | T124: =Off.Cap.!L147 -> 0 | U124: =Off.Cap.!M147 -> 1400 | V124: =Off.Cap.!P147 -> 3073 | W124: =Off.Cap.!Q147 -> 1227
A125: =MIN(U125,Off.Cap.!K148) -> 900 | B125: 1400 | C125: 0 | D125: =MIN(T125,Off.Cap.!E148) -> 0 | E125: =MIN(U125,Off.Cap.!N148) -> 550 | F125: =MIN(T125,Off.Cap.!O148) -> 0 | G125: =Algoritmus!#REF! ->  | H125: =Algoritmus!#REF! ->  | I125: 3173 | J125: =Algoritmus!#REF! ->  | K125: =Algoritmus!#REF! ->  | L125: =Algoritmus!#REF! ->  | M125: 1227 | N125: =Algoritmus!#REF! ->  | O125: 3173 | P125: 1227 | Q125: =Algoritmus!#REF! ->  | R125: =Algoritmus!#REF! ->  | T125: =Off.Cap.!L148 -> 0 | U125: =Off.Cap.!M148 -> 1400 | V125: =Off.Cap.!P148 -> 3173 | W125: =Off.Cap.!Q148 -> 1227
A126: =MIN(U126,Off.Cap.!K149) -> 900 | B126: 1400 | C126: 0 | D126: =MIN(T126,Off.Cap.!E149) -> 0 | E126: =MIN(U126,Off.Cap.!N149) -> 550 | F126: =MIN(T126,Off.Cap.!O149) -> 0 | G126: =Algoritmus!#REF! ->  | H126: =Algoritmus!#REF! ->  | I126: 3173 | J126: =Algoritmus!#REF! ->  | K126: =Algoritmus!#REF! ->  | L126: =Algoritmus!#REF! ->  | M126: 1227 | N126: =Algoritmus!#REF! ->  | O126: 3173 | P126: 1227 | Q126: =Algoritmus!#REF! ->  | R126: =Algoritmus!#REF! ->  | T126: =Off.Cap.!L149 -> 0 | U126: =Off.Cap.!M149 -> 1400 | V126: =Off.Cap.!P149 -> 3173 | W126: =Off.Cap.!Q149 -> 1227
A127: =MIN(U127,Off.Cap.!K150) -> 900 | B127: 1400 | C127: 0 | D127: =MIN(T127,Off.Cap.!E150) -> 0 | E127: =MIN(U127,Off.Cap.!N150) -> 550 | F127: =MIN(T127,Off.Cap.!O150) -> 0 | G127: =Algoritmus!#REF! ->  | H127: =Algoritmus!#REF! ->  | I127: 3173 | J127: =Algoritmus!#REF! ->  | K127: =Algoritmus!#REF! ->  | L127: =Algoritmus!#REF! ->  | M127: 1227 | N127: =Algoritmus!#REF! ->  | O127: 3173 | P127: 1227 | Q127: =Algoritmus!#REF! ->  | R127: =Algoritmus!#REF! ->  | T127: =Off.Cap.!L150 -> 0 | U127: =Off.Cap.!M150 -> 1400 | V127: =Off.Cap.!P150 -> 3173 | W127: =Off.Cap.!Q150 -> 1227
A128: =MIN(U128,Off.Cap.!K151) -> 503 | B128: 503 | C128: 125 | D128: =MIN(T128,Off.Cap.!E151) -> 125 | E128: =MIN(U128,Off.Cap.!N151) -> 503 | F128: =MIN(T128,Off.Cap.!O151) -> 125 | G128: =Algoritmus!#REF! ->  | H128: =Algoritmus!#REF! ->  | I128: 2473 | J128: =Algoritmus!#REF! ->  | K128: =Algoritmus!#REF! ->  | L128: =Algoritmus!#REF! ->  | M128: 727 | N128: =Algoritmus!#REF! ->  | O128: 2473 | P128: 727 | Q128: =Algoritmus!#REF! ->  | R128: =Algoritmus!#REF! ->  | T128: =Off.Cap.!L151 -> 125 | U128: =Off.Cap.!M151 -> 503 | V128: =Off.Cap.!P151 -> 2473 | W128: =Off.Cap.!Q151 -> 727
A129: =MIN(U129,Off.Cap.!K152) -> 504 | B129: 504 | C129: 308 | D129: =MIN(T129,Off.Cap.!E152) -> 308 | E129: =MIN(U129,Off.Cap.!N152) -> 504 | F129: =MIN(T129,Off.Cap.!O152) -> 308 | G129: =Algoritmus!#REF! ->  | H129: =Algoritmus!#REF! ->  | I129: 3073 | J129: =Algoritmus!#REF! ->  | K129: =Algoritmus!#REF! ->  | L129: =Algoritmus!#REF! ->  | M129: 927 | N129: =Algoritmus!#REF! ->  | O129: 3073 | P129: 927 | Q129: =Algoritmus!#REF! ->  | R129: =Algoritmus!#REF! ->  | T129: =Off.Cap.!L152 -> 308 | U129: =Off.Cap.!M152 -> 504 | V129: =Off.Cap.!P152 -> 3073 | W129: =Off.Cap.!Q152 -> 927
A130: =MIN(U130,Off.Cap.!K153) -> 662 | B130: 662 | C130: 500 | D130: =MIN(T130,Off.Cap.!E153) -> 500 | E130: =MIN(U130,Off.Cap.!N153) -> 550 | F130: =MIN(T130,Off.Cap.!O153) -> 500 | G130: =Algoritmus!#REF! ->  | H130: =Algoritmus!#REF! ->  | I130: 3288 | J130: =Algoritmus!#REF! ->  | K130: =Algoritmus!#REF! ->  | L130: =Algoritmus!#REF! ->  | M130: 912 | N130: =Algoritmus!#REF! ->  | O130: 3288 | P130: 912 | Q130: =Algoritmus!#REF! ->  | R130: =Algoritmus!#REF! ->  | T130: =Off.Cap.!L153 -> 500 | U130: =Off.Cap.!M153 -> 662 | V130: =Off.Cap.!P153 -> 3288 | W130: =Off.Cap.!Q153 -> 912
A131: =MIN(U131,Off.Cap.!K154) -> 900 | B131: =MIN(V131,U131) -> 1400 | C131: =MIN(T131,W131) -> 500 | D131: =MIN(T131,Off.Cap.!E154) -> 500 | E131: =MIN(U131,Off.Cap.!N154) -> 550 | F131: =MIN(T131,Off.Cap.!O154) -> 500 | G131: =Algoritmus!#REF! ->  | H131: =Algoritmus!#REF! ->  | I131: =V131 -> 3288 | J131: =Algoritmus!#REF! ->  | K131: =Algoritmus!#REF! ->  | L131: =Algoritmus!#REF! ->  | M131: =W131 -> 912 | N131: =Algoritmus!#REF! ->  | O131: =V131 -> 3288 | P131: =W131 -> 912 | Q131: =Algoritmus!#REF! ->  | R131: =Algoritmus!#REF! ->  | T131: =Off.Cap.!L154 -> 500 | U131: =Off.Cap.!M154 -> 1400 | V131: =Off.Cap.!P154 -> 3288 | W131: =Off.Cap.!Q154 -> 912
A132: =MIN(U132,Off.Cap.!K155) -> 900 | B132: 1400 | C132: 500 | D132: =MIN(T132,Off.Cap.!E155) -> 500 | E132: =MIN(U132,Off.Cap.!N155) -> 550 | F132: =MIN(T132,Off.Cap.!O155) -> 500 | G132: =Algoritmus!#REF! ->  | H132: =Algoritmus!#REF! ->  | I132: 3288 | J132: =Algoritmus!#REF! ->  | K132: =Algoritmus!#REF! ->  | L132: =Algoritmus!#REF! ->  | M132: 812 | N132: =Algoritmus!#REF! ->  | O132: 3288 | P132: 812 | Q132: =Algoritmus!#REF! ->  | R132: =Algoritmus!#REF! ->  | T132: =Off.Cap.!L155 -> 500 | U132: =Off.Cap.!M155 -> 1400 | V132: =Off.Cap.!P155 -> 3288 | W132: =Off.Cap.!Q155 -> 812
A133: =MIN(U133,Off.Cap.!K156) -> 900 | B133: 1400 | C133: 500 | D133: =MIN(T133,Off.Cap.!E156) -> 500 | E133: =MIN(U133,Off.Cap.!N156) -> 550 | F133: =MIN(T133,Off.Cap.!O156) -> 500 | G133: =Algoritmus!#REF! ->  | H133: =Algoritmus!#REF! ->  | I133: 3288 | J133: =Algoritmus!#REF! ->  | K133: =Algoritmus!#REF! ->  | L133: =Algoritmus!#REF! ->  | M133: 812 | N133: =Algoritmus!#REF! ->  | O133: 3288 | P133: 812 | Q133: =Algoritmus!#REF! ->  | R133: =Algoritmus!#REF! ->  | T133: =Off.Cap.!L156 -> 500 | U133: =Off.Cap.!M156 -> 1400 | V133: =Off.Cap.!P156 -> 3288 | W133: =Off.Cap.!Q156 -> 812
A134: =MIN(U134,Off.Cap.!K157) -> 900 | B134: 1400 | C134: 500 | D134: =MIN(T134,Off.Cap.!E157) -> 500 | E134: =MIN(U134,Off.Cap.!N157) -> 550 | F134: =MIN(T134,Off.Cap.!O157) -> 500 | G134: =Algoritmus!#REF! ->  | H134: =Algoritmus!#REF! ->  | I134: 3288 | J134: =Algoritmus!#REF! ->  | K134: =Algoritmus!#REF! ->  | L134: =Algoritmus!#REF! ->  | M134: 912 | N134: =Algoritmus!#REF! ->  | O134: 3288 | P134: 912 | Q134: =Algoritmus!#REF! ->  | R134: =Algoritmus!#REF! ->  | T134: =Off.Cap.!L157 -> 500 | U134: =Off.Cap.!M157 -> 1400 | V134: =Off.Cap.!P157 -> 3288 | W134: =Off.Cap.!Q157 -> 912
A135: =MIN(U135,Off.Cap.!K158) -> 900 | B135: 1400 | C135: 500 | D135: =MIN(T135,Off.Cap.!E158) -> 500 | E135: =MIN(U135,Off.Cap.!N158) -> 550 | F135: =MIN(T135,Off.Cap.!O158) -> 500 | G135: =Algoritmus!#REF! ->  | H135: =Algoritmus!#REF! ->  | I135: 3288 | J135: =Algoritmus!#REF! ->  | K135: =Algoritmus!#REF! ->  | L135: =Algoritmus!#REF! ->  | M135: 912 | N135: =Algoritmus!#REF! ->  | O135: 3288 | P135: 912 | Q135: =Algoritmus!#REF! ->  | R135: =Algoritmus!#REF! ->  | T135: =Off.Cap.!L158 -> 500 | U135: =Off.Cap.!M158 -> 1400 | V135: =Off.Cap.!P158 -> 3288 | W135: =Off.Cap.!Q158 -> 912
A136: =MIN(U136,Off.Cap.!K159) -> 900 | B136: 1400 | C136: 500 | D136: =MIN(T136,Off.Cap.!E159) -> 500 | E136: =MIN(U136,Off.Cap.!N159) -> 550 | F136: =MIN(T136,Off.Cap.!O159) -> 500 | G136: =Algoritmus!#REF! ->  | H136: =Algoritmus!#REF! ->  | I136: 3288 | J136: =Algoritmus!#REF! ->  | K136: =Algoritmus!#REF! ->  | L136: =Algoritmus!#REF! ->  | M136: 912 | N136: =Algoritmus!#REF! ->  | O136: 3288 | P136: 912 | Q136: =Algoritmus!#REF! ->  | R136: =Algoritmus!#REF! ->  | T136: =Off.Cap.!L159 -> 500 | U136: =Off.Cap.!M159 -> 1400 | V136: =Off.Cap.!P159 -> 3288 | W136: =Off.Cap.!Q159 -> 912
A137: =MIN(U137,Off.Cap.!K160) -> 900 | B137: 1400 | C137: 500 | D137: =MIN(T137,Off.Cap.!E160) -> 500 | E137: =MIN(U137,Off.Cap.!N160) -> 550 | F137: =MIN(T137,Off.Cap.!O160) -> 500 | G137: =Algoritmus!#REF! ->  | H137: =Algoritmus!#REF! ->  | I137: 3288 | J137: =Algoritmus!#REF! ->  | K137: =Algoritmus!#REF! ->  | L137: =Algoritmus!#REF! ->  | M137: 912 | N137: =Algoritmus!#REF! ->  | O137: 3288 | P137: 912 | Q137: =Algoritmus!#REF! ->  | R137: =Algoritmus!#REF! ->  | T137: =Off.Cap.!L160 -> 500 | U137: =Off.Cap.!M160 -> 1400 | V137: =Off.Cap.!P160 -> 3288 | W137: =Off.Cap.!Q160 -> 912
A138: =MIN(U138,Off.Cap.!K161) -> 900 | B138: 1400 | C138: 500 | D138: =MIN(T138,Off.Cap.!E161) -> 500 | E138: =MIN(U138,Off.Cap.!N161) -> 550 | F138: =MIN(T138,Off.Cap.!O161) -> 500 | G138: =Algoritmus!#REF! ->  | H138: =Algoritmus!#REF! ->  | I138: 3288 | J138: =Algoritmus!#REF! ->  | K138: =Algoritmus!#REF! ->  | L138: =Algoritmus!#REF! ->  | M138: 912 | N138: =Algoritmus!#REF! ->  | O138: 3288 | P138: 912 | Q138: =Algoritmus!#REF! ->  | R138: =Algoritmus!#REF! ->  | T138: =Off.Cap.!L161 -> 500 | U138: =Off.Cap.!M161 -> 1400 | V138: =Off.Cap.!P161 -> 3288 | W138: =Off.Cap.!Q161 -> 912
A139: =MIN(U139,Off.Cap.!K162) -> 900 | B139: 1400 | C139: 500 | D139: =MIN(T139,Off.Cap.!E162) -> 500 | E139: =MIN(U139,Off.Cap.!N162) -> 550 | F139: =MIN(T139,Off.Cap.!O162) -> 500 | G139: =Algoritmus!#REF! ->  | H139: =Algoritmus!#REF! ->  | I139: 3288 | J139: =Algoritmus!#REF! ->  | K139: =Algoritmus!#REF! ->  | L139: =Algoritmus!#REF! ->  | M139: 912 | N139: =Algoritmus!#REF! ->  | O139: 3288 | P139: 912 | Q139: =Algoritmus!#REF! ->  | R139: =Algoritmus!#REF! ->  | T139: =Off.Cap.!L162 -> 500 | U139: =Off.Cap.!M162 -> 1400 | V139: =Off.Cap.!P162 -> 3288 | W139: =Off.Cap.!Q162 -> 912
A140: =MIN(U140,Off.Cap.!K163) -> 900 | B140: 1400 | C140: 500 | D140: =MIN(T140,Off.Cap.!E163) -> 500 | E140: =MIN(U140,Off.Cap.!N163) -> 550 | F140: =MIN(T140,Off.Cap.!O163) -> 500 | G140: =Algoritmus!#REF! ->  | H140: =Algoritmus!#REF! ->  | I140: 3288 | J140: =Algoritmus!#REF! ->  | K140: =Algoritmus!#REF! ->  | L140: =Algoritmus!#REF! ->  | M140: 912 | N140: =Algoritmus!#REF! ->  | O140: 3288 | P140: 912 | Q140: =Algoritmus!#REF! ->  | R140: =Algoritmus!#REF! ->  | T140: =Off.Cap.!L163 -> 500 | U140: =Off.Cap.!M163 -> 1400 | V140: =Off.Cap.!P163 -> 3288 | W140: =Off.Cap.!Q163 -> 912
A141: =MIN(U141,Off.Cap.!K164) -> 900 | B141: 1400 | C141: 500 | D141: =MIN(T141,Off.Cap.!E164) -> 500 | E141: =MIN(U141,Off.Cap.!N164) -> 550 | F141: =MIN(T141,Off.Cap.!O164) -> 500 | G141: =Algoritmus!#REF! ->  | H141: =Algoritmus!#REF! ->  | I141: 3288 | J141: =Algoritmus!#REF! ->  | K141: =Algoritmus!#REF! ->  | L141: =Algoritmus!#REF! ->  | M141: 912 | N141: =Algoritmus!#REF! ->  | O141: 3288 | P141: 912 | Q141: =Algoritmus!#REF! ->  | R141: =Algoritmus!#REF! ->  | T141: =Off.Cap.!L164 -> 500 | U141: =Off.Cap.!M164 -> 1400 | V141: =Off.Cap.!P164 -> 3288 | W141: =Off.Cap.!Q164 -> 912
A142: =MIN(U142,Off.Cap.!K165) -> 900 | B142: 1400 | C142: 500 | D142: =MIN(T142,Off.Cap.!E165) -> 500 | E142: =MIN(U142,Off.Cap.!N165) -> 550 | F142: =MIN(T142,Off.Cap.!O165) -> 500 | G142: =Algoritmus!#REF! ->  | H142: =Algoritmus!#REF! ->  | I142: 3273 | J142: =Algoritmus!#REF! ->  | K142: =Algoritmus!#REF! ->  | L142: =Algoritmus!#REF! ->  | M142: 927 | N142: =Algoritmus!#REF! ->  | O142: 3273 | P142: 927 | Q142: =Algoritmus!#REF! ->  | R142: =Algoritmus!#REF! ->  | T142: =Off.Cap.!L165 -> 500 | U142: =Off.Cap.!M165 -> 1400 | V142: =Off.Cap.!P165 -> 3273 | W142: =Off.Cap.!Q165 -> 927
A143: =MIN(U143,Off.Cap.!K166) -> 900 | B143: 1400 | C143: 500 | D143: =MIN(T143,Off.Cap.!E166) -> 500 | E143: =MIN(U143,Off.Cap.!N166) -> 550 | F143: =MIN(T143,Off.Cap.!O166) -> 500 | G143: =Algoritmus!#REF! ->  | H143: =Algoritmus!#REF! ->  | I143: 3273 | J143: =Algoritmus!#REF! ->  | K143: =Algoritmus!#REF! ->  | L143: =Algoritmus!#REF! ->  | M143: 927 | N143: =Algoritmus!#REF! ->  | O143: 3273 | P143: 927 | Q143: =Algoritmus!#REF! ->  | R143: =Algoritmus!#REF! ->  | T143: =Off.Cap.!L166 -> 500 | U143: =Off.Cap.!M166 -> 1400 | V143: =Off.Cap.!P166 -> 3273 | W143: =Off.Cap.!Q166 -> 927
A144: =MIN(U144,Off.Cap.!K167) -> 900 | B144: 1400 | C144: 128 | D144: =MIN(T144,Off.Cap.!E167) -> 128 | E144: =MIN(U144,Off.Cap.!N167) -> 550 | F144: =MIN(T144,Off.Cap.!O167) -> 128 | G144: =Algoritmus!#REF! ->  | H144: =Algoritmus!#REF! ->  | I144: 3273 | J144: =Algoritmus!#REF! ->  | K144: =Algoritmus!#REF! ->  | L144: =Algoritmus!#REF! ->  | M144: 1327 | N144: =Algoritmus!#REF! ->  | O144: 3273 | P144: 1327 | Q144: =Algoritmus!#REF! ->  | R144: =Algoritmus!#REF! ->  | T144: =Off.Cap.!L167 -> 128 | U144: =Off.Cap.!M167 -> 1400 | V144: =Off.Cap.!P167 -> 3273 | W144: =Off.Cap.!Q167 -> 1327
A145: =MIN(U145,Off.Cap.!K168) -> 900 | B145: 1400 | C145: 0 | D145: =MIN(T145,Off.Cap.!E168) -> 0 | E145: =MIN(U145,Off.Cap.!N168) -> 550 | F145: =MIN(T145,Off.Cap.!O168) -> 0 | G145: =Algoritmus!#REF! ->  | H145: =Algoritmus!#REF! ->  | I145: 3273 | J145: =Algoritmus!#REF! ->  | K145: =Algoritmus!#REF! ->  | L145: =Algoritmus!#REF! ->  | M145: 1427 | N145: =Algoritmus!#REF! ->  | O145: 3273 | P145: 1427 | Q145: =Algoritmus!#REF! ->  | R145: =Algoritmus!#REF! ->  | T145: =Off.Cap.!L168 -> 0 | U145: =Off.Cap.!M168 -> 1400 | V145: =Off.Cap.!P168 -> 3273 | W145: =Off.Cap.!Q168 -> 1427
A146: =MIN(U146,Off.Cap.!K169) -> 900 | B146: 1400 | C146: 0 | D146: =MIN(T146,Off.Cap.!E169) -> 0 | E146: =MIN(U146,Off.Cap.!N169) -> 550 | F146: =MIN(T146,Off.Cap.!O169) -> 0 | G146: =Algoritmus!#REF! ->  | H146: =Algoritmus!#REF! ->  | I146: 3248 | J146: =Algoritmus!#REF! ->  | K146: =Algoritmus!#REF! ->  | L146: =Algoritmus!#REF! ->  | M146: 2052 | N146: =Algoritmus!#REF! ->  | O146: 3248 | P146: 2052 | Q146: =Algoritmus!#REF! ->  | R146: =Algoritmus!#REF! ->  | T146: =Off.Cap.!L169 -> 0 | U146: =Off.Cap.!M169 -> 1400 | V146: =Off.Cap.!P169 -> 3248 | W146: =Off.Cap.!Q169 -> 2052
A147: =MIN(U147,Off.Cap.!K170) -> 900 | B147: 1400 | C147: 0 | D147: =MIN(T147,Off.Cap.!E170) -> 0 | E147: =MIN(U147,Off.Cap.!N170) -> 550 | F147: =MIN(T147,Off.Cap.!O170) -> 0 | G147: =Algoritmus!#REF! ->  | H147: =Algoritmus!#REF! ->  | I147: 3248 | J147: =Algoritmus!#REF! ->  | K147: =Algoritmus!#REF! ->  | L147: =Algoritmus!#REF! ->  | M147: 1852 | N147: =Algoritmus!#REF! ->  | O147: 3248 | P147: 1852 | Q147: =Algoritmus!#REF! ->  | R147: =Algoritmus!#REF! ->  | T147: =Off.Cap.!L170 -> 0 | U147: =Off.Cap.!M170 -> 1400 | V147: =Off.Cap.!P170 -> 3248 | W147: =Off.Cap.!Q170 -> 1852
A148: =MIN(U148,Off.Cap.!K171) -> 900 | B148: 1400 | C148: 0 | D148: =MIN(T148,Off.Cap.!E171) -> 0 | E148: =MIN(U148,Off.Cap.!N171) -> 550 | F148: =MIN(T148,Off.Cap.!O171) -> 0 | G148: =Algoritmus!#REF! ->  | H148: =Algoritmus!#REF! ->  | I148: 3248 | J148: =Algoritmus!#REF! ->  | K148: =Algoritmus!#REF! ->  | L148: =Algoritmus!#REF! ->  | M148: 1952 | N148: =Algoritmus!#REF! ->  | O148: 3248 | P148: 1952 | Q148: =Algoritmus!#REF! ->  | R148: =Algoritmus!#REF! ->  | T148: =Off.Cap.!L171 -> 0 | U148: =Off.Cap.!M171 -> 1400 | V148: =Off.Cap.!P171 -> 3248 | W148: =Off.Cap.!Q171 -> 1952
A149: =MIN(U149,Off.Cap.!K172) -> 900 | B149: 1400 | C149: 0 | D149: =MIN(T149,Off.Cap.!E172) -> 0 | E149: =MIN(U149,Off.Cap.!N172) -> 550 | F149: =MIN(T149,Off.Cap.!O172) -> 0 | G149: =Algoritmus!#REF! ->  | H149: =Algoritmus!#REF! ->  | I149: 3248 | J149: =Algoritmus!#REF! ->  | K149: =Algoritmus!#REF! ->  | L149: =Algoritmus!#REF! ->  | M149: 1752 | N149: =Algoritmus!#REF! ->  | O149: 3248 | P149: 1752 | Q149: =Algoritmus!#REF! ->  | R149: =Algoritmus!#REF! ->  | T149: =Off.Cap.!L172 -> 0 | U149: =Off.Cap.!M172 -> 1400 | V149: =Off.Cap.!P172 -> 3248 | W149: =Off.Cap.!Q172 -> 1752
A150: =MIN(U150,Off.Cap.!K173) -> 900 | B150: 1400 | C150: 0 | D150: =MIN(T150,Off.Cap.!E173) -> 0 | E150: =MIN(U150,Off.Cap.!N173) -> 550 | F150: =MIN(T150,Off.Cap.!O173) -> 0 | G150: =Algoritmus!#REF! ->  | H150: =Algoritmus!#REF! ->  | I150: 3248 | J150: =Algoritmus!#REF! ->  | K150: =Algoritmus!#REF! ->  | L150: =Algoritmus!#REF! ->  | M150: 1352 | N150: =Algoritmus!#REF! ->  | O150: 3248 | P150: 1352 | Q150: =Algoritmus!#REF! ->  | R150: =Algoritmus!#REF! ->  | T150: =Off.Cap.!L173 -> 0 | U150: =Off.Cap.!M173 -> 1400 | V150: =Off.Cap.!P173 -> 3248 | W150: =Off.Cap.!Q173 -> 1352
A151: =MIN(U151,Off.Cap.!K174) -> 900 | B151: 1400 | C151: 0 | D151: =MIN(T151,Off.Cap.!E174) -> 0 | E151: =MIN(U151,Off.Cap.!N174) -> 550 | F151: =MIN(T151,Off.Cap.!O174) -> 0 | G151: =Algoritmus!#REF! ->  | H151: =Algoritmus!#REF! ->  | I151: 3248 | J151: =Algoritmus!#REF! ->  | K151: =Algoritmus!#REF! ->  | L151: =Algoritmus!#REF! ->  | M151: 952 | N151: =Algoritmus!#REF! ->  | O151: 3248 | P151: 952 | Q151: =Algoritmus!#REF! ->  | R151: =Algoritmus!#REF! ->  | T151: =Off.Cap.!L174 -> 0 | U151: =Off.Cap.!M174 -> 1400 | V151: =Off.Cap.!P174 -> 3248 | W151: =Off.Cap.!Q174 -> 952
A152: =MIN(U152,Off.Cap.!K175) -> 525 | B152: 525 | C152: 214 | D152: =MIN(T152,Off.Cap.!E175) -> 214 | E152: =MIN(U152,Off.Cap.!N175) -> 525 | F152: =MIN(T152,Off.Cap.!O175) -> 214 | G152: =Algoritmus!#REF! ->  | H152: =Algoritmus!#REF! ->  | I152: 3253 | J152: =Algoritmus!#REF! ->  | K152: =Algoritmus!#REF! ->  | L152: =Algoritmus!#REF! ->  | M152: 947 | N152: =Algoritmus!#REF! ->  | O152: 3253 | P152: 947 | Q152: =Algoritmus!#REF! ->  | R152: =Algoritmus!#REF! ->  | T152: =Off.Cap.!L175 -> 214 | U152: =Off.Cap.!M175 -> 525 | V152: =Off.Cap.!P175 -> 3253 | W152: =Off.Cap.!Q175 -> 947
A153: =MIN(U153,Off.Cap.!K176) -> 525 | B153: 525 | C153: 500 | D153: =MIN(T153,Off.Cap.!E176) -> 500 | E153: =MIN(U153,Off.Cap.!N176) -> 525 | F153: =MIN(T153,Off.Cap.!O176) -> 500 | G153: =Algoritmus!#REF! ->  | H153: =Algoritmus!#REF! ->  | I153: 3253 | J153: =Algoritmus!#REF! ->  | K153: =Algoritmus!#REF! ->  | L153: =Algoritmus!#REF! ->  | M153: 847 | N153: =Algoritmus!#REF! ->  | O153: 3253 | P153: 847 | Q153: =Algoritmus!#REF! ->  | R153: =Algoritmus!#REF! ->  | T153: =Off.Cap.!L176 -> 500 | U153: =Off.Cap.!M176 -> 525 | V153: =Off.Cap.!P176 -> 3253 | W153: =Off.Cap.!Q176 -> 847
A154: =MIN(U154,Off.Cap.!K177) -> 572 | B154: 572 | C154: 500 | D154: =MIN(T154,Off.Cap.!E177) -> 500 | E154: =MIN(U154,Off.Cap.!N177) -> 550 | F154: =MIN(T154,Off.Cap.!O177) -> 500 | G154: =Algoritmus!#REF! ->  | H154: =Algoritmus!#REF! ->  | I154: 3268 | J154: =Algoritmus!#REF! ->  | K154: =Algoritmus!#REF! ->  | L154: =Algoritmus!#REF! ->  | M154: 932 | N154: =Algoritmus!#REF! ->  | O154: 3268 | P154: 932 | Q154: =Algoritmus!#REF! ->  | R154: =Algoritmus!#REF! ->  | T154: =Off.Cap.!L177 -> 500 | U154: =Off.Cap.!M177 -> 572 | V154: =Off.Cap.!P177 -> 3268 | W154: =Off.Cap.!Q177 -> 932
A155: =MIN(U155,Off.Cap.!K178) -> 900 | B155: 921 | C155: 500 | D155: =MIN(T155,Off.Cap.!E178) -> 500 | E155: =MIN(U155,Off.Cap.!N178) -> 550 | F155: =MIN(T155,Off.Cap.!O178) -> 500 | G155: =Algoritmus!#REF! ->  | H155: =Algoritmus!#REF! ->  | I155: 3268 | J155: =Algoritmus!#REF! ->  | K155: =Algoritmus!#REF! ->  | L155: =Algoritmus!#REF! ->  | M155: 832 | N155: =Algoritmus!#REF! ->  | O155: 3268 | P155: 832 | Q155: =Algoritmus!#REF! ->  | R155: =Algoritmus!#REF! ->  | T155: =Off.Cap.!L178 -> 500 | U155: =Off.Cap.!M178 -> 921 | V155: =Off.Cap.!P178 -> 3268 | W155: =Off.Cap.!Q178 -> 832
A156: =MIN(U156,Off.Cap.!K179) -> 900 | B156: 920 | C156: 500 | D156: =MIN(T156,Off.Cap.!E179) -> 500 | E156: =MIN(U156,Off.Cap.!N179) -> 550 | F156: =MIN(T156,Off.Cap.!O179) -> 500 | G156: =Algoritmus!#REF! ->  | H156: =Algoritmus!#REF! ->  | I156: 3268 | J156: =Algoritmus!#REF! ->  | K156: =Algoritmus!#REF! ->  | L156: =Algoritmus!#REF! ->  | M156: 732 | N156: =Algoritmus!#REF! ->  | O156: 3268 | P156: 732 | Q156: =Algoritmus!#REF! ->  | R156: =Algoritmus!#REF! ->  | T156: =Off.Cap.!L179 -> 500 | U156: =Off.Cap.!M179 -> 920 | V156: =Off.Cap.!P179 -> 3268 | W156: =Off.Cap.!Q179 -> 732
A157: =MIN(U157,Off.Cap.!K180) -> 824 | B157: 824 | C157: 500 | D157: =MIN(T157,Off.Cap.!E180) -> 500 | E157: =MIN(U157,Off.Cap.!N180) -> 550 | F157: =MIN(T157,Off.Cap.!O180) -> 500 | G157: =Algoritmus!#REF! ->  | H157: =Algoritmus!#REF! ->  | I157: 3268 | J157: =Algoritmus!#REF! ->  | K157: =Algoritmus!#REF! ->  | L157: =Algoritmus!#REF! ->  | M157: 532 | N157: =Algoritmus!#REF! ->  | O157: 3268 | P157: 532 | Q157: =Algoritmus!#REF! ->  | R157: =Algoritmus!#REF! ->  | T157: =Off.Cap.!L180 -> 500 | U157: =Off.Cap.!M180 -> 824 | V157: =Off.Cap.!P180 -> 3268 | W157: =Off.Cap.!Q180 -> 532
A158: =MIN(U158,Off.Cap.!K181) -> 837 | B158: 837 | C158: 500 | D158: =MIN(T158,Off.Cap.!E181) -> 500 | E158: =MIN(U158,Off.Cap.!N181) -> 550 | F158: =MIN(T158,Off.Cap.!O181) -> 500 | G158: =Algoritmus!#REF! ->  | H158: =Algoritmus!#REF! ->  | I158: 3268 | J158: =Algoritmus!#REF! ->  | K158: =Algoritmus!#REF! ->  | L158: =Algoritmus!#REF! ->  | M158: 532 | N158: =Algoritmus!#REF! ->  | O158: 3268 | P158: 532 | Q158: =Algoritmus!#REF! ->  | R158: =Algoritmus!#REF! ->  | T158: =Off.Cap.!L181 -> 500 | U158: =Off.Cap.!M181 -> 837 | V158: =Off.Cap.!P181 -> 3268 | W158: =Off.Cap.!Q181 -> 532
A159: =MIN(U159,Off.Cap.!K182) -> 788 | B159: 788 | C159: 500 | D159: =MIN(T159,Off.Cap.!E182) -> 500 | E159: =MIN(U159,Off.Cap.!N182) -> 550 | F159: =MIN(T159,Off.Cap.!O182) -> 500 | G159: =Algoritmus!#REF! ->  | H159: =Algoritmus!#REF! ->  | I159: 3268 | J159: =Algoritmus!#REF! ->  | K159: =Algoritmus!#REF! ->  | L159: =Algoritmus!#REF! ->  | M159: 532 | N159: =Algoritmus!#REF! ->  | O159: 3268 | P159: 532 | Q159: =Algoritmus!#REF! ->  | R159: =Algoritmus!#REF! ->  | T159: =Off.Cap.!L182 -> 500 | U159: =Off.Cap.!M182 -> 788 | V159: =Off.Cap.!P182 -> 3268 | W159: =Off.Cap.!Q182 -> 532
A160: =MIN(U160,Off.Cap.!K183) -> 839 | B160: 839 | C160: 500 | D160: =MIN(T160,Off.Cap.!E183) -> 500 | E160: =MIN(U160,Off.Cap.!N183) -> 550 | F160: =MIN(T160,Off.Cap.!O183) -> 500 | G160: =Algoritmus!#REF! ->  | H160: =Algoritmus!#REF! ->  | I160: 3268 | J160: =Algoritmus!#REF! ->  | K160: =Algoritmus!#REF! ->  | L160: =Algoritmus!#REF! ->  | M160: 532 | N160: =Algoritmus!#REF! ->  | O160: 3268 | P160: 532 | Q160: =Algoritmus!#REF! ->  | R160: =Algoritmus!#REF! ->  | T160: =Off.Cap.!L183 -> 500 | U160: =Off.Cap.!M183 -> 839 | V160: =Off.Cap.!P183 -> 3268 | W160: =Off.Cap.!Q183 -> 532
A161: =MIN(U161,Off.Cap.!K184) -> 695 | B161: 695 | C161: 500 | D161: =MIN(T161,Off.Cap.!E184) -> 500 | E161: =MIN(U161,Off.Cap.!N184) -> 550 | F161: =MIN(T161,Off.Cap.!O184) -> 500 | G161: =Algoritmus!#REF! ->  | H161: =Algoritmus!#REF! ->  | I161: 3268 | J161: =Algoritmus!#REF! ->  | K161: =Algoritmus!#REF! ->  | L161: =Algoritmus!#REF! ->  | M161: 832 | N161: =Algoritmus!#REF! ->  | O161: 3268 | P161: 832 | Q161: =Algoritmus!#REF! ->  | R161: =Algoritmus!#REF! ->  | T161: =Off.Cap.!L184 -> 500 | U161: =Off.Cap.!M184 -> 695 | V161: =Off.Cap.!P184 -> 3268 | W161: =Off.Cap.!Q184 -> 832
A162: =MIN(U162,Off.Cap.!K185) -> 687 | B162: 687 | C162: 500 | D162: =MIN(T162,Off.Cap.!E185) -> 500 | E162: =MIN(U162,Off.Cap.!N185) -> 550 | F162: =MIN(T162,Off.Cap.!O185) -> 500 | G162: =Algoritmus!#REF! ->  | H162: =Algoritmus!#REF! ->  | I162: 3268 | J162: =Algoritmus!#REF! ->  | K162: =Algoritmus!#REF! ->  | L162: =Algoritmus!#REF! ->  | M162: 832 | N162: =Algoritmus!#REF! ->  | O162: 3268 | P162: 832 | Q162: =Algoritmus!#REF! ->  | R162: =Algoritmus!#REF! ->  | T162: =Off.Cap.!L185 -> 500 | U162: =Off.Cap.!M185 -> 687 | V162: =Off.Cap.!P185 -> 3268 | W162: =Off.Cap.!Q185 -> 832
A163: =MIN(U163,Off.Cap.!K186) -> 693 | B163: 693 | C163: 500 | D163: =MIN(T163,Off.Cap.!E186) -> 500 | E163: =MIN(U163,Off.Cap.!N186) -> 550 | F163: =MIN(T163,Off.Cap.!O186) -> 500 | G163: =Algoritmus!#REF! ->  | H163: =Algoritmus!#REF! ->  | I163: 2668 | J163: =Algoritmus!#REF! ->  | K163: =Algoritmus!#REF! ->  | L163: =Algoritmus!#REF! ->  | M163: 832 | N163: =Algoritmus!#REF! ->  | O163: 2668 | P163: 832 | Q163: =Algoritmus!#REF! ->  | R163: =Algoritmus!#REF! ->  | T163: =Off.Cap.!L186 -> 500 | U163: =Off.Cap.!M186 -> 693 | V163: =Off.Cap.!P186 -> 2668 | W163: =Off.Cap.!Q186 -> 832
A164: =MIN(U164,Off.Cap.!K187) -> 900 | B164: 956 | C164: 500 | D164: =MIN(T164,Off.Cap.!E187) -> 500 | E164: =MIN(U164,Off.Cap.!N187) -> 550 | F164: =MIN(T164,Off.Cap.!O187) -> 500 | G164: =Algoritmus!#REF! ->  | H164: =Algoritmus!#REF! ->  | I164: 2668 | J164: =Algoritmus!#REF! ->  | K164: =Algoritmus!#REF! ->  | L164: =Algoritmus!#REF! ->  | M164: 832 | N164: =Algoritmus!#REF! ->  | O164: 2668 | P164: 832 | Q164: =Algoritmus!#REF! ->  | R164: =Algoritmus!#REF! ->  | T164: =Off.Cap.!L187 -> 500 | U164: =Off.Cap.!M187 -> 956 | V164: =Off.Cap.!P187 -> 2668 | W164: =Off.Cap.!Q187 -> 832
A165: =MIN(U165,Off.Cap.!K188) -> 900 | B165: 1140 | C165: 500 | D165: =MIN(T165,Off.Cap.!E188) -> 500 | E165: =MIN(U165,Off.Cap.!N188) -> 550 | F165: =MIN(T165,Off.Cap.!O188) -> 500 | G165: =Algoritmus!#REF! ->  | H165: =Algoritmus!#REF! ->  | I165: 2468 | J165: =Algoritmus!#REF! ->  | K165: =Algoritmus!#REF! ->  | L165: =Algoritmus!#REF! ->  | M165: 832 | N165: =Algoritmus!#REF! ->  | O165: 2468 | P165: 832 | Q165: =Algoritmus!#REF! ->  | R165: =Algoritmus!#REF! ->  | T165: =Off.Cap.!L188 -> 500 | U165: =Off.Cap.!M188 -> 1140 | V165: =Off.Cap.!P188 -> 2468 | W165: =Off.Cap.!Q188 -> 832
A166: =MIN(U166,Off.Cap.!K189) -> 900 | B166: 1400 | C166: 500 | D166: =MIN(T166,Off.Cap.!E189) -> 500 | E166: =MIN(U166,Off.Cap.!N189) -> 550 | F166: =MIN(T166,Off.Cap.!O189) -> 500 | G166: =Algoritmus!#REF! ->  | H166: =Algoritmus!#REF! ->  | I166: 2653 | J166: =Algoritmus!#REF! ->  | K166: =Algoritmus!#REF! ->  | L166: =Algoritmus!#REF! ->  | M166: 547 | N166: =Algoritmus!#REF! ->  | O166: 2653 | P166: 547 | Q166: =Algoritmus!#REF! ->  | R166: =Algoritmus!#REF! ->  | T166: =Off.Cap.!L189 -> 500 | U166: =Off.Cap.!M189 -> 1400 | V166: =Off.Cap.!P189 -> 2653 | W166: =Off.Cap.!Q189 -> 547
A167: =MIN(U167,Off.Cap.!K190) -> 900 | B167: 1400 | C167: 473 | D167: =MIN(T167,Off.Cap.!E190) -> 473 | E167: =MIN(U167,Off.Cap.!N190) -> 550 | F167: =MIN(T167,Off.Cap.!O190) -> 473 | G167: =Algoritmus!#REF! ->  | H167: =Algoritmus!#REF! ->  | I167: 2753 | J167: =Algoritmus!#REF! ->  | K167: =Algoritmus!#REF! ->  | L167: =Algoritmus!#REF! ->  | M167: 747 | N167: =Algoritmus!#REF! ->  | O167: 2753 | P167: 747 | Q167: =Algoritmus!#REF! ->  | R167: =Algoritmus!#REF! ->  | T167: =Off.Cap.!L190 -> 473 | U167: =Off.Cap.!M190 -> 1400 | V167: =Off.Cap.!P190 -> 2753 | W167: =Off.Cap.!Q190 -> 747
A168: =MIN(U168,Off.Cap.!K191) -> 900 | B168: 1400 | C168: 0 | D168: =MIN(T168,Off.Cap.!E191) -> 0 | E168: =MIN(U168,Off.Cap.!N191) -> 550 | F168: =MIN(T168,Off.Cap.!O191) -> 0 | G168: =Algoritmus!#REF! ->  | H168: =Algoritmus!#REF! ->  | I168: 2753 | J168: =Algoritmus!#REF! ->  | K168: =Algoritmus!#REF! ->  | L168: =Algoritmus!#REF! ->  | M168: 547 | N168: =Algoritmus!#REF! ->  | O168: 2753 | P168: 547 | Q168: =Algoritmus!#REF! ->  | R168: =Algoritmus!#REF! ->  | T168: =Off.Cap.!L191 -> 0 | U168: =Off.Cap.!M191 -> 1400 | V168: =Off.Cap.!P191 -> 2753 | W168: =Off.Cap.!Q191 -> 547
A169: =MIN(U169,Off.Cap.!K192) -> 900 | B169: 1400 | C169: 0 | D169: =MIN(T169,Off.Cap.!E192) -> 0 | E169: =MIN(U169,Off.Cap.!N192) -> 550 | F169: =MIN(T169,Off.Cap.!O192) -> 0 | G169: =Algoritmus!#REF! ->  | H169: =Algoritmus!#REF! ->  | I169: 2953 | J169: =Algoritmus!#REF! ->  | K169: =Algoritmus!#REF! ->  | L169: =Algoritmus!#REF! ->  | M169: 547 | N169: =Algoritmus!#REF! ->  | O169: 2953 | P169: 547 | Q169: =Algoritmus!#REF! ->  | R169: =Algoritmus!#REF! ->  | T169: =Off.Cap.!L192 -> 0 | U169: =Off.Cap.!M192 -> 1400 | V169: =Off.Cap.!P192 -> 2953 | W169: =Off.Cap.!Q192 -> 547
A170: =MIN(U170,Off.Cap.!K193) -> 900 | B170: 1400 | C170: 0 | D170: =MIN(T170,Off.Cap.!E193) -> 0 | E170: =MIN(U170,Off.Cap.!N193) -> 550 | F170: =MIN(T170,Off.Cap.!O193) -> 0 | G170: =Algoritmus!#REF! ->  | H170: =Algoritmus!#REF! ->  | I170: 3243 | J170: =Algoritmus!#REF! ->  | K170: =Algoritmus!#REF! ->  | L170: =Algoritmus!#REF! ->  | M170: 1457 | N170: =Algoritmus!#REF! ->  | O170: 3243 | P170: 1457 | Q170: =Algoritmus!#REF! ->  | R170: =Algoritmus!#REF! ->  | T170: =Off.Cap.!L193 -> 0 | U170: =Off.Cap.!M193 -> 1400 | V170: =Off.Cap.!P193 -> 3243 | W170: =Off.Cap.!Q193 -> 1457
A171: =MIN(U171,Off.Cap.!K194) -> 900 | B171: 1400 | C171: 0 | D171: =MIN(T171,Off.Cap.!E194) -> 0 | E171: =MIN(U171,Off.Cap.!N194) -> 550 | F171: =MIN(T171,Off.Cap.!O194) -> 0 | G171: =Algoritmus!#REF! ->  | H171: =Algoritmus!#REF! ->  | I171: 3243 | J171: =Algoritmus!#REF! ->  | K171: =Algoritmus!#REF! ->  | L171: =Algoritmus!#REF! ->  | M171: 1557 | N171: =Algoritmus!#REF! ->  | O171: 3243 | P171: 1557 | Q171: =Algoritmus!#REF! ->  | R171: =Algoritmus!#REF! ->  | T171: =Off.Cap.!L194 -> 0 | U171: =Off.Cap.!M194 -> 1400 | V171: =Off.Cap.!P194 -> 3243 | W171: =Off.Cap.!Q194 -> 1557
A172: =MIN(U172,Off.Cap.!K195) -> 900 | B172: 1400 | C172: 0 | D172: =MIN(T172,Off.Cap.!E195) -> 0 | E172: =MIN(U172,Off.Cap.!N195) -> 550 | F172: =MIN(T172,Off.Cap.!O195) -> 0 | G172: =Algoritmus!#REF! ->  | H172: =Algoritmus!#REF! ->  | I172: 3243 | J172: =Algoritmus!#REF! ->  | K172: =Algoritmus!#REF! ->  | L172: =Algoritmus!#REF! ->  | M172: 1757 | N172: =Algoritmus!#REF! ->  | O172: 3243 | P172: 1757 | Q172: =Algoritmus!#REF! ->  | R172: =Algoritmus!#REF! ->  | T172: =Off.Cap.!L195 -> 0 | U172: =Off.Cap.!M195 -> 1400 | V172: =Off.Cap.!P195 -> 3243 | W172: =Off.Cap.!Q195 -> 1757
A173: =MIN(U173,Off.Cap.!K196) -> 900 | B173: 1400 | C173: 0 | D173: =MIN(T173,Off.Cap.!E196) -> 0 | E173: =MIN(U173,Off.Cap.!N196) -> 550 | F173: =MIN(T173,Off.Cap.!O196) -> 0 | G173: =Algoritmus!#REF! ->  | H173: =Algoritmus!#REF! ->  | I173: 3243 | J173: =Algoritmus!#REF! ->  | K173: =Algoritmus!#REF! ->  | L173: =Algoritmus!#REF! ->  | M173: 1857 | N173: =Algoritmus!#REF! ->  | O173: 3243 | P173: 1857 | Q173: =Algoritmus!#REF! ->  | R173: =Algoritmus!#REF! ->  | T173: =Off.Cap.!L196 -> 0 | U173: =Off.Cap.!M196 -> 1400 | V173: =Off.Cap.!P196 -> 3243 | W173: =Off.Cap.!Q196 -> 1857
A174: =MIN(U174,Off.Cap.!K197) -> 900 | B174: 1400 | C174: 0 | D174: =MIN(T174,Off.Cap.!E197) -> 0 | E174: =MIN(U174,Off.Cap.!N197) -> 550 | F174: =MIN(T174,Off.Cap.!O197) -> 0 | G174: =Algoritmus!#REF! ->  | H174: =Algoritmus!#REF! ->  | I174: 3243 | J174: =Algoritmus!#REF! ->  | K174: =Algoritmus!#REF! ->  | L174: =Algoritmus!#REF! ->  | M174: 1957 | N174: =Algoritmus!#REF! ->  | O174: 3243 | P174: 1957 | Q174: =Algoritmus!#REF! ->  | R174: =Algoritmus!#REF! ->  | T174: =Off.Cap.!L197 -> 0 | U174: =Off.Cap.!M197 -> 1400 | V174: =Off.Cap.!P197 -> 3243 | W174: =Off.Cap.!Q197 -> 1957
A175: =MIN(U175,Off.Cap.!K198) -> 900 | B175: 1400 | C175: 0 | D175: =MIN(T175,Off.Cap.!E198) -> 0 | E175: =MIN(U175,Off.Cap.!N198) -> 550 | F175: =MIN(T175,Off.Cap.!O198) -> 0 | G175: =Algoritmus!#REF! ->  | H175: =Algoritmus!#REF! ->  | I175: 3273 | J175: =Algoritmus!#REF! ->  | K175: =Algoritmus!#REF! ->  | L175: =Algoritmus!#REF! ->  | M175: 2027 | N175: =Algoritmus!#REF! ->  | O175: 3273 | P175: 2027 | Q175: =Algoritmus!#REF! ->  | R175: =Algoritmus!#REF! ->  | T175: =Off.Cap.!L198 -> 0 | U175: =Off.Cap.!M198 -> 1400 | V175: =Off.Cap.!P198 -> 3273 | W175: =Off.Cap.!Q198 -> 2027
A176: =MIN(U176,Off.Cap.!K199) -> 572 | B176: 572 | C176: 206 | D176: =MIN(T176,Off.Cap.!E199) -> 206 | E176: =MIN(U176,Off.Cap.!N199) -> 550 | F176: =MIN(T176,Off.Cap.!O199) -> 206 | G176: =Algoritmus!#REF! ->  | H176: =Algoritmus!#REF! ->  | I176: 3273 | J176: =Algoritmus!#REF! ->  | K176: =Algoritmus!#REF! ->  | L176: =Algoritmus!#REF! ->  | M176: 1827 | N176: =Algoritmus!#REF! ->  | O176: 3273 | P176: 1827 | Q176: =Algoritmus!#REF! ->  | R176: =Algoritmus!#REF! ->  | T176: =Off.Cap.!L199 -> 206 | U176: =Off.Cap.!M199 -> 572 | V176: =Off.Cap.!P199 -> 3273 | W176: =Off.Cap.!Q199 -> 1827
A177: =MIN(U177,Off.Cap.!K200) -> 630 | B177: 630 | C177: 500 | D177: =MIN(T177,Off.Cap.!E200) -> 500 | E177: =MIN(U177,Off.Cap.!N200) -> 550 | F177: =MIN(T177,Off.Cap.!O200) -> 500 | G177: =Algoritmus!#REF! ->  | H177: =Algoritmus!#REF! ->  | I177: 3273 | J177: =Algoritmus!#REF! ->  | K177: =Algoritmus!#REF! ->  | L177: =Algoritmus!#REF! ->  | M177: 1927 | N177: =Algoritmus!#REF! ->  | O177: 3273 | P177: 1927 | Q177: =Algoritmus!#REF! ->  | R177: =Algoritmus!#REF! ->  | T177: =Off.Cap.!L200 -> 500 | U177: =Off.Cap.!M200 -> 630 | V177: =Off.Cap.!P200 -> 3273 | W177: =Off.Cap.!Q200 -> 1927
A178: =MIN(U178,Off.Cap.!K201) -> 630 | B178: 630 | C178: 500 | D178: =MIN(T178,Off.Cap.!E201) -> 500 | E178: =MIN(U178,Off.Cap.!N201) -> 550 | F178: =MIN(T178,Off.Cap.!O201) -> 500 | G178: =Algoritmus!#REF! ->  | H178: =Algoritmus!#REF! ->  | I178: 3288 | J178: =Algoritmus!#REF! ->  | K178: =Algoritmus!#REF! ->  | L178: =Algoritmus!#REF! ->  | M178: 1512 | N178: =Algoritmus!#REF! ->  | O178: 3288 | P178: 1512 | Q178: =Algoritmus!#REF! ->  | R178: =Algoritmus!#REF! ->  | T178: =Off.Cap.!L201 -> 500 | U178: =Off.Cap.!M201 -> 630 | V178: =Off.Cap.!P201 -> 3288 | W178: =Off.Cap.!Q201 -> 1512
A179: =MIN(U179,Off.Cap.!K202) -> 718 | B179: 718 | C179: 500 | D179: =MIN(T179,Off.Cap.!E202) -> 500 | E179: =MIN(U179,Off.Cap.!N202) -> 550 | F179: =MIN(T179,Off.Cap.!O202) -> 500 | G179: =Algoritmus!#REF! ->  | H179: =Algoritmus!#REF! ->  | I179: 3288 | J179: =Algoritmus!#REF! ->  | K179: =Algoritmus!#REF! ->  | L179: =Algoritmus!#REF! ->  | M179: 1112 | N179: =Algoritmus!#REF! ->  | O179: 3288 | P179: 1112 | Q179: =Algoritmus!#REF! ->  | R179: =Algoritmus!#REF! ->  | T179: =Off.Cap.!L202 -> 500 | U179: =Off.Cap.!M202 -> 718 | V179: =Off.Cap.!P202 -> 3288 | W179: =Off.Cap.!Q202 -> 1112
A180: =MIN(U180,Off.Cap.!K203) -> 739 | B180: 739 | C180: 500 | D180: =MIN(T180,Off.Cap.!E203) -> 500 | E180: =MIN(U180,Off.Cap.!N203) -> 550 | F180: =MIN(T180,Off.Cap.!O203) -> 500 | G180: =Algoritmus!#REF! ->  | H180: =Algoritmus!#REF! ->  | I180: 3288 | J180: =Algoritmus!#REF! ->  | K180: =Algoritmus!#REF! ->  | L180: =Algoritmus!#REF! ->  | M180: 1212 | N180: =Algoritmus!#REF! ->  | O180: 3288 | P180: 1212 | Q180: =Algoritmus!#REF! ->  | R180: =Algoritmus!#REF! ->  | T180: =Off.Cap.!L203 -> 500 | U180: =Off.Cap.!M203 -> 739 | V180: =Off.Cap.!P203 -> 3288 | W180: =Off.Cap.!Q203 -> 1212
A181: =MIN(U181,Off.Cap.!K204) -> 705 | B181: 705 | C181: 500 | D181: =MIN(T181,Off.Cap.!E204) -> 500 | E181: =MIN(U181,Off.Cap.!N204) -> 550 | F181: =MIN(T181,Off.Cap.!O204) -> 500 | G181: =Algoritmus!#REF! ->  | H181: =Algoritmus!#REF! ->  | I181: 3288 | J181: =Algoritmus!#REF! ->  | K181: =Algoritmus!#REF! ->  | L181: =Algoritmus!#REF! ->  | M181: 1012 | N181: =Algoritmus!#REF! ->  | O181: 3288 | P181: 1012 | Q181: =Algoritmus!#REF! ->  | R181: =Algoritmus!#REF! ->  | T181: =Off.Cap.!L204 -> 500 | U181: =Off.Cap.!M204 -> 705 | V181: =Off.Cap.!P204 -> 3288 | W181: =Off.Cap.!Q204 -> 1012
A182: =MIN(U182,Off.Cap.!K205) -> 722 | B182: 722 | C182: 500 | D182: =MIN(T182,Off.Cap.!E205) -> 500 | E182: =MIN(U182,Off.Cap.!N205) -> 550 | F182: =MIN(T182,Off.Cap.!O205) -> 500 | G182: =Algoritmus!#REF! ->  | H182: =Algoritmus!#REF! ->  | I182: 3288 | J182: =Algoritmus!#REF! ->  | K182: =Algoritmus!#REF! ->  | L182: =Algoritmus!#REF! ->  | M182: 912 | N182: =Algoritmus!#REF! ->  | O182: 3288 | P182: 912 | Q182: =Algoritmus!#REF! ->  | R182: =Algoritmus!#REF! ->  | T182: =Off.Cap.!L205 -> 500 | U182: =Off.Cap.!M205 -> 722 | V182: =Off.Cap.!P205 -> 3288 | W182: =Off.Cap.!Q205 -> 912
A183: =MIN(U183,Off.Cap.!K206) -> 708 | B183: 708 | C183: 500 | D183: =MIN(T183,Off.Cap.!E206) -> 500 | E183: =MIN(U183,Off.Cap.!N206) -> 550 | F183: =MIN(T183,Off.Cap.!O206) -> 500 | G183: =Algoritmus!#REF! ->  | H183: =Algoritmus!#REF! ->  | I183: 3288 | J183: =Algoritmus!#REF! ->  | K183: =Algoritmus!#REF! ->  | L183: =Algoritmus!#REF! ->  | M183: 912 | N183: =Algoritmus!#REF! ->  | O183: 3288 | P183: 912 | Q183: =Algoritmus!#REF! ->  | R183: =Algoritmus!#REF! ->  | T183: =Off.Cap.!L206 -> 500 | U183: =Off.Cap.!M206 -> 708 | V183: =Off.Cap.!P206 -> 3288 | W183: =Off.Cap.!Q206 -> 912
A184: =MIN(U184,Off.Cap.!K207) -> 742 | B184: 742 | C184: 500 | D184: =MIN(T184,Off.Cap.!E207) -> 500 | E184: =MIN(U184,Off.Cap.!N207) -> 550 | F184: =MIN(T184,Off.Cap.!O207) -> 500 | G184: =Algoritmus!#REF! ->  | H184: =Algoritmus!#REF! ->  | I184: 3288 | J184: =Algoritmus!#REF! ->  | K184: =Algoritmus!#REF! ->  | L184: =Algoritmus!#REF! ->  | M184: 912 | N184: =Algoritmus!#REF! ->  | O184: 3288 | P184: 912 | Q184: =Algoritmus!#REF! ->  | R184: =Algoritmus!#REF! ->  | T184: =Off.Cap.!L207 -> 500 | U184: =Off.Cap.!M207 -> 742 | V184: =Off.Cap.!P207 -> 3288 | W184: =Off.Cap.!Q207 -> 912
A185: =MIN(U185,Off.Cap.!K208) -> 259 | B185: 259 | C185: 500 | D185: =MIN(T185,Off.Cap.!E208) -> 500 | E185: =MIN(U185,Off.Cap.!N208) -> 259 | F185: =MIN(T185,Off.Cap.!O208) -> 500 | G185: =Algoritmus!#REF! ->  | H185: =Algoritmus!#REF! ->  | I185: 3288 | J185: =Algoritmus!#REF! ->  | K185: =Algoritmus!#REF! ->  | L185: =Algoritmus!#REF! ->  | M185: 1112 | N185: =Algoritmus!#REF! ->  | O185: 3288 | P185: 1112 | Q185: =Algoritmus!#REF! ->  | R185: =Algoritmus!#REF! ->  | T185: =Off.Cap.!L208 -> 500 | U185: =Off.Cap.!M208 -> 259 | V185: =Off.Cap.!P208 -> 3288 | W185: =Off.Cap.!Q208 -> 1112
A186: =MIN(U186,Off.Cap.!K209) -> 150 | B186: 150 | C186: 500 | D186: =MIN(T186,Off.Cap.!E209) -> 500 | E186: =MIN(U186,Off.Cap.!N209) -> 150 | F186: =MIN(T186,Off.Cap.!O209) -> 500 | G186: =Algoritmus!#REF! ->  | H186: =Algoritmus!#REF! ->  | I186: 3288 | J186: =Algoritmus!#REF! ->  | K186: =Algoritmus!#REF! ->  | L186: =Algoritmus!#REF! ->  | M186: 1212 | N186: =Algoritmus!#REF! ->  | O186: 3288 | P186: 1212 | Q186: =Algoritmus!#REF! ->  | R186: =Algoritmus!#REF! ->  | T186: =Off.Cap.!L209 -> 500 | U186: =Off.Cap.!M209 -> 150 | V186: =Off.Cap.!P209 -> 3288 | W186: =Off.Cap.!Q209 -> 1212
A187: =MIN(U187,Off.Cap.!K210) -> 228 | B187: 228 | C187: 500 | D187: =MIN(T187,Off.Cap.!E210) -> 500 | E187: =MIN(U187,Off.Cap.!N210) -> 228 | F187: =MIN(T187,Off.Cap.!O210) -> 500 | G187: =Algoritmus!#REF! ->  | H187: =Algoritmus!#REF! ->  | I187: 3288 | J187: =Algoritmus!#REF! ->  | K187: =Algoritmus!#REF! ->  | L187: =Algoritmus!#REF! ->  | M187: 1112 | N187: =Algoritmus!#REF! ->  | O187: 3288 | P187: 1112 | Q187: =Algoritmus!#REF! ->  | R187: =Algoritmus!#REF! ->  | T187: =Off.Cap.!L210 -> 500 | U187: =Off.Cap.!M210 -> 228 | V187: =Off.Cap.!P210 -> 3288 | W187: =Off.Cap.!Q210 -> 1112
A188: =MIN(U188,Off.Cap.!K211) -> 560 | B188: 560 | C188: 500 | D188: =MIN(T188,Off.Cap.!E211) -> 500 | E188: =MIN(U188,Off.Cap.!N211) -> 550 | F188: =MIN(T188,Off.Cap.!O211) -> 500 | G188: =Algoritmus!#REF! ->  | H188: =Algoritmus!#REF! ->  | I188: 3288 | J188: =Algoritmus!#REF! ->  | K188: =Algoritmus!#REF! ->  | L188: =Algoritmus!#REF! ->  | M188: 1312 | N188: =Algoritmus!#REF! ->  | O188: 3288 | P188: 1312 | Q188: =Algoritmus!#REF! ->  | R188: =Algoritmus!#REF! ->  | T188: =Off.Cap.!L211 -> 500 | U188: =Off.Cap.!M211 -> 560 | V188: =Off.Cap.!P211 -> 3288 | W188: =Off.Cap.!Q211 -> 1312
A189: =MIN(U189,Off.Cap.!K212) -> 763 | B189: 763 | C189: 500 | D189: =MIN(T189,Off.Cap.!E212) -> 500 | E189: =MIN(U189,Off.Cap.!N212) -> 550 | F189: =MIN(T189,Off.Cap.!O212) -> 500 | G189: =Algoritmus!#REF! ->  | H189: =Algoritmus!#REF! ->  | I189: 3288 | J189: =Algoritmus!#REF! ->  | K189: =Algoritmus!#REF! ->  | L189: =Algoritmus!#REF! ->  | M189: 1612 | N189: =Algoritmus!#REF! ->  | O189: 3288 | P189: 1612 | Q189: =Algoritmus!#REF! ->  | R189: =Algoritmus!#REF! ->  | T189: =Off.Cap.!L212 -> 500 | U189: =Off.Cap.!M212 -> 763 | V189: =Off.Cap.!P212 -> 3288 | W189: =Off.Cap.!Q212 -> 1612
A190: =MIN(U190,Off.Cap.!K213) -> 900 | B190: 1261 | C190: 500 | D190: =MIN(T190,Off.Cap.!E213) -> 500 | E190: =MIN(U190,Off.Cap.!N213) -> 550 | F190: =MIN(T190,Off.Cap.!O213) -> 500 | G190: =Algoritmus!#REF! ->  | H190: =Algoritmus!#REF! ->  | I190: 3273 | J190: =Algoritmus!#REF! ->  | K190: =Algoritmus!#REF! ->  | L190: =Algoritmus!#REF! ->  | M190: 1227 | N190: =Algoritmus!#REF! ->  | O190: 3273 | P190: 1227 | Q190: =Algoritmus!#REF! ->  | R190: =Algoritmus!#REF! ->  | T190: =Off.Cap.!L213 -> 500 | U190: =Off.Cap.!M213 -> 1261 | V190: =Off.Cap.!P213 -> 3273 | W190: =Off.Cap.!Q213 -> 1227
A191: =MIN(U191,Off.Cap.!K214) -> 900 | B191: 1400 | C191: 500 | D191: =MIN(T191,Off.Cap.!E214) -> 500 | E191: =MIN(U191,Off.Cap.!N214) -> 550 | F191: =MIN(T191,Off.Cap.!O214) -> 500 | G191: =Algoritmus!#REF! ->  | H191: =Algoritmus!#REF! ->  | I191: 3243 | J191: =Algoritmus!#REF! ->  | K191: =Algoritmus!#REF! ->  | L191: =Algoritmus!#REF! ->  | M191: 857 | N191: =Algoritmus!#REF! ->  | O191: 3243 | P191: 857 | Q191: =Algoritmus!#REF! ->  | R191: =Algoritmus!#REF! ->  | T191: =Off.Cap.!L214 -> 500 | U191: =Off.Cap.!M214 -> 1400 | V191: =Off.Cap.!P214 -> 3243 | W191: =Off.Cap.!Q214 -> 857
A192: =MIN(U192,Off.Cap.!K215) -> 900 | B192: 1400 | C192: 228 | D192: =MIN(T192,Off.Cap.!E215) -> 228 | E192: =MIN(U192,Off.Cap.!N215) -> 550 | F192: =MIN(T192,Off.Cap.!O215) -> 228 | G192: =Algoritmus!#REF! ->  | H192: =Algoritmus!#REF! ->  | I192: 3243 | J192: =Algoritmus!#REF! ->  | K192: =Algoritmus!#REF! ->  | L192: =Algoritmus!#REF! ->  | M192: 1157 | N192: =Algoritmus!#REF! ->  | O192: 3243 | P192: 1157 | Q192: =Algoritmus!#REF! ->  | R192: =Algoritmus!#REF! ->  | T192: =Off.Cap.!L215 -> 228 | U192: =Off.Cap.!M215 -> 1400 | V192: =Off.Cap.!P215 -> 3243 | W192: =Off.Cap.!Q215 -> 1157
A193: =MIN(U193,Off.Cap.!K216) -> 900 | B193: 1400 | C193: 74 | D193: =MIN(T193,Off.Cap.!E216) -> 74 | E193: =MIN(U193,Off.Cap.!N216) -> 550 | F193: =MIN(T193,Off.Cap.!O216) -> 74 | G193: =Algoritmus!#REF! ->  | H193: =Algoritmus!#REF! ->  | I193: 3243 | J193: =Algoritmus!#REF! ->  | K193: =Algoritmus!#REF! ->  | L193: =Algoritmus!#REF! ->  | M193: 1257 | N193: =Algoritmus!#REF! ->  | O193: 3243 | P193: 1257 | Q193: =Algoritmus!#REF! ->  | R193: =Algoritmus!#REF! ->  | T193: =Off.Cap.!L216 -> 74 | U193: =Off.Cap.!M216 -> 1400 | V193: =Off.Cap.!P216 -> 3243 | W193: =Off.Cap.!Q216 -> 1257
A194: =MIN(U194,Off.Cap.!K217) -> 900 | B194: 1700 | C194: 271 | D194: =MIN(T194,Off.Cap.!E217) -> 271 | E194: =MIN(U194,Off.Cap.!N217) -> 550 | F194: =MIN(T194,Off.Cap.!O217) -> 271 | G194: =Algoritmus!#REF! ->  | H194: =Algoritmus!#REF! ->  | I194: 3309 | J194: =Algoritmus!#REF! ->  | K194: =Algoritmus!#REF! ->  | L194: =Algoritmus!#REF! ->  | M194: 1091 | N194: =Algoritmus!#REF! ->  | O194: 3309 | P194: 1091 | Q194: =Algoritmus!#REF! ->  | R194: =Algoritmus!#REF! ->  | T194: =Off.Cap.!L217 -> 271 | U194: =Off.Cap.!M217 -> 1700 | V194: =Off.Cap.!P217 -> 3309 | W194: =Off.Cap.!Q217 -> 1091
A195: =MIN(U195,Off.Cap.!K218) -> 900 | B195: =MIN(V195,U195) -> 1700 | C195: =MIN(T195,W195) -> 63 | D195: =MIN(T195,Off.Cap.!E218) -> 63 | E195: =MIN(U195,Off.Cap.!N218) -> 550 | F195: =MIN(T195,Off.Cap.!O218) -> 63 | G195: =Algoritmus!#REF! ->  | H195: =Algoritmus!#REF! ->  | I195: =V195 -> 3309 | J195: =Algoritmus!#REF! ->  | K195: =Algoritmus!#REF! ->  | L195: =Algoritmus!#REF! ->  | M195: =W195 -> 1291 | N195: =Algoritmus!#REF! ->  | O195: =V195 -> 3309 | P195: =W195 -> 1291 | Q195: =Algoritmus!#REF! ->  | R195: =Algoritmus!#REF! ->  | T195: =Off.Cap.!L218 -> 63 | U195: =Off.Cap.!M218 -> 1700 | V195: =Off.Cap.!P218 -> 3309 | W195: =Off.Cap.!Q218 -> 1291
A196: =MIN(U196,Off.Cap.!K219) -> 900 | B196: 1700 | C196: 0 | D196: =MIN(T196,Off.Cap.!E219) -> 0 | E196: =MIN(U196,Off.Cap.!N219) -> 550 | F196: =MIN(T196,Off.Cap.!O219) -> 0 | G196: =Algoritmus!#REF! ->  | H196: =Algoritmus!#REF! ->  | I196: 3309 | J196: =Algoritmus!#REF! ->  | K196: =Algoritmus!#REF! ->  | L196: =Algoritmus!#REF! ->  | M196: 1391 | N196: =Algoritmus!#REF! ->  | O196: 3309 | P196: 1391 | Q196: =Algoritmus!#REF! ->  | R196: =Algoritmus!#REF! ->  | T196: =Off.Cap.!L219 -> 0 | U196: =Off.Cap.!M219 -> 1700 | V196: =Off.Cap.!P219 -> 3309 | W196: =Off.Cap.!Q219 -> 1391
A197: =MIN(U197,Off.Cap.!K220) -> 900 | B197: 1700 | C197: 0 | D197: =MIN(T197,Off.Cap.!E220) -> 0 | E197: =MIN(U197,Off.Cap.!N220) -> 550 | F197: =MIN(T197,Off.Cap.!O220) -> 0 | G197: =Algoritmus!#REF! ->  | H197: =Algoritmus!#REF! ->  | I197: 3309 | J197: =Algoritmus!#REF! ->  | K197: =Algoritmus!#REF! ->  | L197: =Algoritmus!#REF! ->  | M197: 1591 | N197: =Algoritmus!#REF! ->  | O197: 3309 | P197: 1591 | Q197: =Algoritmus!#REF! ->  | R197: =Algoritmus!#REF! ->  | T197: =Off.Cap.!L220 -> 0 | U197: =Off.Cap.!M220 -> 1700 | V197: =Off.Cap.!P220 -> 3309 | W197: =Off.Cap.!Q220 -> 1591
A198: =MIN(U198,Off.Cap.!K221) -> 900 | B198: 1700 | C198: 0 | D198: =MIN(T198,Off.Cap.!E221) -> 0 | E198: =MIN(U198,Off.Cap.!N221) -> 550 | F198: =MIN(T198,Off.Cap.!O221) -> 0 | G198: =Algoritmus!#REF! ->  | H198: =Algoritmus!#REF! ->  | I198: 3309 | J198: =Algoritmus!#REF! ->  | K198: =Algoritmus!#REF! ->  | L198: =Algoritmus!#REF! ->  | M198: 1691 | N198: =Algoritmus!#REF! ->  | O198: 3309 | P198: 1691 | Q198: =Algoritmus!#REF! ->  | R198: =Algoritmus!#REF! ->  | T198: =Off.Cap.!L221 -> 0 | U198: =Off.Cap.!M221 -> 1700 | V198: =Off.Cap.!P221 -> 3309 | W198: =Off.Cap.!Q221 -> 1691
A199: =MIN(U199,Off.Cap.!K222) -> 900 | B199: 1700 | C199: 13 | D199: =MIN(T199,Off.Cap.!E222) -> 13 | E199: =MIN(U199,Off.Cap.!N222) -> 550 | F199: =MIN(T199,Off.Cap.!O222) -> 13 | G199: =Algoritmus!#REF! ->  | H199: =Algoritmus!#REF! ->  | I199: 3393 | J199: =Algoritmus!#REF! ->  | K199: =Algoritmus!#REF! ->  | L199: =Algoritmus!#REF! ->  | M199: 1007 | N199: =Algoritmus!#REF! ->  | O199: 3393 | P199: 1007 | Q199: =Algoritmus!#REF! ->  | R199: =Algoritmus!#REF! ->  | T199: =Off.Cap.!L222 -> 13 | U199: =Off.Cap.!M222 -> 1700 | V199: =Off.Cap.!P222 -> 3393 | W199: =Off.Cap.!Q222 -> 1007
A200: =MIN(U200,Off.Cap.!K223) -> 589 | B200: 589 | C200: 199 | D200: =MIN(T200,Off.Cap.!E223) -> 199 | E200: =MIN(U200,Off.Cap.!N223) -> 550 | F200: =MIN(T200,Off.Cap.!O223) -> 199 | G200: =Algoritmus!#REF! ->  | H200: =Algoritmus!#REF! ->  | I200: 3431 | J200: =Algoritmus!#REF! ->  | K200: =Algoritmus!#REF! ->  | L200: =Algoritmus!#REF! ->  | M200: 569 | N200: =Algoritmus!#REF! ->  | O200: 3431 | P200: 569 | Q200: =Algoritmus!#REF! ->  | R200: =Algoritmus!#REF! ->  | T200: =Off.Cap.!L223 -> 199 | U200: =Off.Cap.!M223 -> 589 | V200: =Off.Cap.!P223 -> 3431 | W200: =Off.Cap.!Q223 -> 569
... 800 more rows

Sheet SP
A1: Market Day | B1: Hour | C1: CZ>PL SP | D1: PL>CZ SP | E1: HR>HU SP | F1: SK>PL SP | G1: PL>SK SP | H1: SI>HR SP | I1: HR>SI SP | J1: HU>HR SP | K1: AT>HU SP | L1: HU>AT SP | M1: PL>50Hz+CZ+SK SP | N1: CZ>AT SP | O1: AT>CZ SP | P1: DE(TenneT)>CZ SP | Q1: CZ>DE(TenneT) SP | R1: DE(50Hz)+CZ+SK>PL SP | S1: DE>PL+CZ SP | T1: PL+CZ>DE SP
A2: 2017/12/01 - 2017/12/02 | B2: 00:00-01:00 | C2: =Algoritmus!G3-SP!R2 -> 0 | D2: =Algoritmus!D3-SP!M2 -> 0 | E2: 0 | F2: =Algoritmus!I3-SP!R2 -> 0 | G2: =Algoritmus!H3-SP!M2 -> 0 | H2: 0 | I2: 0 | J2: 0.02 | K2: 0.3 | L2: 0.15 | M2: =Algoritmus!E3-SP!T2 -> 0.96 | N2: =Algoritmus!N3 -> 0.32 | O2: =Algoritmus!L3 -> 0.08 | P2: =Algoritmus!#REF! ->  | Q2: =Algoritmus!#REF! ->  | R2: =Algoritmus!F3-SP!S2 -> 0 | S2: =Algoritmus!O3 -> 0.01 | T2: =Algoritmus!Q3 -> 0.7
A3: 2017/12/01 - 2017/12/02 | B3: 01:00-02:00 | C3: =Algoritmus!#REF!-SP!R3 ->  | D3: =Algoritmus!#REF!-SP!M3 ->  | E3: 0 | F3: =Algoritmus!#REF!-SP!R3 ->  | G3: =Algoritmus!#REF!-SP!M3 ->  | H3: 0 | I3: 0 | J3: 0.02 | K3: 0.28 | L3: 0.15 | M3: =Algoritmus!#REF!-SP!T3 ->  | N3: =Algoritmus!#REF! ->  | O3: =Algoritmus!#REF! ->  | P3: =Algoritmus!#REF! ->  | Q3: =Algoritmus!#REF! ->  | R3: =Algoritmus!#REF!-SP!S3 ->  | S3: =Algoritmus!#REF! ->  | T3: =Algoritmus!#REF! -> 
A4: 2017/12/01 - 2017/12/02 | B4: 02:00-03:00 | C4: =Algoritmus!#REF!-SP!R4 ->  | D4: =Algoritmus!#REF!-SP!M4 ->  | E4: 0 | F4: =Algoritmus!#REF!-SP!R4 ->  | G4: =Algoritmus!#REF!-SP!M4 ->  | H4: 0 | I4: 0 | J4: 0.02 | K4: 0.28 | L4: 0.13 | M4: =Algoritmus!#REF!-SP!T4 ->  | N4: =Algoritmus!#REF! ->  | O4: =Algoritmus!#REF! ->  | P4: =Algoritmus!#REF! ->  | Q4: =Algoritmus!#REF! ->  | R4: =Algoritmus!#REF!-SP!S4 ->  | S4: =Algoritmus!#REF! ->  | T4: =Algoritmus!#REF! -> 
A5: 2017/12/01 - 2017/12/02 | B5: 03:00-04:00 | C5: =Algoritmus!#REF!-SP!R5 ->  | D5: =Algoritmus!#REF!-SP!M5 ->  | E5: 0 | F5: =Algoritmus!#REF!-SP!R5 ->  | G5: =Algoritmus!#REF!-SP!M5 ->  | H5: 0 | I5: 0 | J5: 0.02 | K5: 0.28 | L5: 0.15 | M5: =Algoritmus!#REF!-SP!T5 ->  | N5: =Algoritmus!#REF! ->  | O5: =Algoritmus!#REF! ->  | P5: =Algoritmus!#REF! ->  | Q5: =Algoritmus!#REF! ->  | R5: =Algoritmus!#REF!-SP!S5 ->  | S5: =Algoritmus!#REF! ->  | T5: =Algoritmus!#REF! -> 
A6: 2017/12/01 - 2017/12/02 | B6: 04:00-05:00 | C6: =Algoritmus!#REF!-SP!R6 ->  | D6: =Algoritmus!#REF!-SP!M6 ->  | E6: 0 | F6: =Algoritmus!#REF!-SP!R6 ->  | G6: =Algoritmus!#REF!-SP!M6 ->  | H6: 0 | I6: 0 | J6: 0.02 | K6: 0.28 | L6: 0.15 | M6: =Algoritmus!#REF!-SP!T6 ->  | N6: =Algoritmus!#REF! ->  | O6: =Algoritmus!#REF! ->  | P6: =Algoritmus!#REF! ->  | Q6: =Algoritmus!#REF! ->  | R6: =Algoritmus!#REF!-SP!S6 ->  | S6: =Algoritmus!#REF! ->  | T6: =Algoritmus!#REF! -> 
A7: 2017/12/01 - 2017/12/02 | B7: 05:00-06:00 | C7: =Algoritmus!#REF!-SP!R7 ->  | D7: =Algoritmus!#REF!-SP!M7 ->  | E7: 0 | F7: =Algoritmus!#REF!-SP!R7 ->  | G7: =Algoritmus!#REF!-SP!M7 ->  | H7: 0 | I7: 0 | J7: 0.01 | K7: 0.28 | L7: 0.15 | M7: =Algoritmus!#REF!-SP!T7 ->  | N7: =Algoritmus!#REF! ->  | O7: =Algoritmus!#REF! ->  | P7: =Algoritmus!#REF! ->  | Q7: =Algoritmus!#REF! ->  | R7: =Algoritmus!#REF!-SP!S7 ->  | S7: =Algoritmus!#REF! ->  | T7: =Algoritmus!#REF! -> 
A8: 2017/12/01 - 2017/12/02 | B8: 06:00-07:00 | C8: =Algoritmus!#REF!-SP!R8 ->  | D8: =Algoritmus!#REF!-SP!M8 ->  | E8: 0 | F8: =Algoritmus!#REF!-SP!R8 ->  | G8: =Algoritmus!#REF!-SP!M8 ->  | H8: 0 | I8: 0 | J8: 0 | K8: 0.28 | L8: 0.15 | M8: =Algoritmus!#REF!-SP!T8 ->  | N8: =Algoritmus!#REF! ->  | O8: =Algoritmus!#REF! ->  | P8: =Algoritmus!#REF! ->  | Q8: =Algoritmus!#REF! ->  | R8: =Algoritmus!#REF!-SP!S8 ->  | S8: =Algoritmus!#REF! ->  | T8: =Algoritmus!#REF! -> 
A9: 2017/12/01 - 2017/12/02 | B9: 07:00-08:00 | C9: =Algoritmus!#REF!-SP!R9 ->  | D9: =Algoritmus!#REF!-SP!M9 ->  | E9: 0.02 | F9: =Algoritmus!#REF!-SP!R9 ->  | G9: =Algoritmus!#REF!-SP!M9 ->  | H9: 0.02 | I9: 0 | J9: 0.01 | K9: 0.43 | L9: 0.03 | M9: =Algoritmus!#REF!-SP!T9 ->  | N9: =Algoritmus!#REF! ->  | O9: =Algoritmus!#REF! ->  | P9: =Algoritmus!#REF! ->  | Q9: =Algoritmus!#REF! ->  | R9: =Algoritmus!#REF!-SP!S9 ->  | S9: =Algoritmus!#REF! ->  | T9: =Algoritmus!#REF! -> 
